Workbook

Sheet Intro
G2: Electricity Distribution Network Service Provider
I3: RFM - Depreciation tracking module
L4: Version: | M4: 1
L5: Date: | M5: April 2020
B8: Introduction | J8: Electricity distribution module
C14: This attachment to the RFM is used by the AER to determine the forecast regulatory asset base (RAB) and tax asset base (TAB) depreciation for a distribution network service provider.
C15: It also calculates the actual tax depreciation for use in the RFM.
C17: INSTRUCTIONS FOR USE
C18: The RFM handbook, which contains information on this depreciation tracking module, is available on the AER website at http://www.aer.gov.au
C20: a. Fill out input cells on the 'RAB input' and 'TAB input' sheets. These input cells are highlighted blue.
C21: This provides the data for the depreciation tracking calculations.
C22: In general, input expenditure data should be valued in nominal dollar terms of the year indicated.
C23: Units and basis for entry are specified where required for each data table.
C24: Not all input cells require an input - be sure to read and follow the instructions contained within the comments for each section heading.
C25: All relevant inputs are to be filled on an ongoing basis, with the details of past expenditure and asset lives to be preserved.
C27: b. The values in the 'Tracking output' sheet
C28: This sheet summarises the key outputs of the year-by-year tracking approach, which includes forecast RAB and TAB depreciation to be input into the PTRM
C29: as well as actual tax depreciation for the current regulatory period to be input into the RFM.
C31: VERSION RECORD
C33: Version | D33: Date | F33: Description
C34: 1 | D34: April 2020 | F34: Initial module

Sheet RAB input
R1: AER Draft Decision Changes
E2: =IF($F$8='TAB input'!$F$8, $F$8, 'TAB input'!$F$8) & " - RAB input - Elec DNSP "&Intro!$I$3&" - version "& Intro!$M$4 -> Power and Water - RAB input - Elec DNSP RFM - Depreciation tracking module - version 1 | J2: Input cells in blue | R2: PWC Revised Proposal Changes
E4: Year | F4: =IF(LEN($H$9)>4, CONCATENATE(LEFT($H$9, 4)-2 & "-" & IF(AND(RIGHT($H$9, 2)<"12", RIGHT($H$9, 2)>"01"), "0", "") & IF(RIGHT($H$9, 2)="00", "98", IF(RIGHT($H$9, 2)="01", "99", RIGHT($H$9, 2)-2))), $H$9-2) -> 2012-13 | G4: =IF(LEN(F4)>4,CONCATENATE(LEFT(F4,4)+1&"-"&IF(RIGHT(F4, 2)<"09", "0","")&IF(RIGHT(F4, 2)="99", "00", RIGHT(F4,2)+1)),F4+1) -> 2013-14 | H4: =IF(LEN(G4)>4,CONCATENATE(LEFT(G4,4)+1&"-"&IF(RIGHT(G4, 2)<"09", "0","")&IF(RIGHT(G4, 2)="99", "00", RIGHT(G4,2)+1)),G4+1) -> 2014-15 | I4: 2015-16 | J4: 2016-17 | K4: 2017-18 | L4: 2018-19 | M4: 2019-20 | N4: 2020-21 | O4: 2021-22 | P4: 2022-23 | Q4: 2023-24 | R4: 2024-25 | S4: 2025-26 | T4: 2026-27 | U4: 2027-28 | V4: 2028-29 | W4: 2029-30 | X4: 2030-31 | Y4: 2031-32 | Z4: 2032-33 | AA4: 2033-34 | AB4: 2034-35 | AC4: 2035-36 | AD4: 2036-37 | AE4: 2037-38 | AF4: 2038-39 | AG4: 2039-40 | AH4: 2040-41 | AI4: 2041-42 | AJ4: 2042-43 | AK4: 2043-44 | AL4: 2044-45 | AM4: 2045-46 | AN4: 2046-47 | AO4: 2047-48 | AP4: 2048-49 | AQ4: 2049-50 | AR4: 2050-51 | AS4: 2051-52 | AT4: 2052-53 | AU4: 2053-54 | AV4: 2054-55 | AW4: 2055-56 | AX4: 2056-57 | AY4: 2057-58 | AZ4: 2058-59 | BA4: 2059-60 | BB4: 2060-61 | BC4: 2061-62 | BD4: 2062-63 | BE4: 2063-64 | BF4: 2064-65 | BG4: 2065-66 | BH4: 2066-67 | BI4: 2067-68 | BJ4: 2068-69 | BK4: 2069-70 | BL4: 2070-71 | BM4: 2071-72 | BN4: 2072-73 | BO4: 2073-74 | BP4: 2074-75 | BQ4: 2075-76 | BR4: 2076-77 | BS4: 2077-78 | BT4: =IF(LEN(BS4)>4,CONCATENATE(LEFT(BS4,4)+1&"-"&IF(RIGHT(BS4, 2)<"09", "0","")&IF(RIGHT(BS4, 2)="99", "00", RIGHT(BS4,2)+1)),BS4+1) -> 2078-79 | BU4: 2079-80 | BV4: 2080-81 | BW4: 2081-82 | BX4: 2082-83 | BY4: 2083-84 | BZ4: 2084-85
D6: General information
E8: Business name | F8: Power and Water
E9: First regulatory year for tracking | H9: 2014-15 | I9: =IF(SUM($11:$11)=COUNTA($H$9:H$9), "Input for next period", "") ->  | J9: =IF(SUM($11:$11)=COUNTA($H$9:I$9), "Input for next period", "") ->  | K9: =IF(SUM($11:$11)=COUNTA($H$9:J$9), "Input for next period", "") ->  | L9: =IF(SUM($11:$11)=COUNTA($H$9:K$9), "Input for next period", "") ->  | M9: =IF(SUM($11:$11)=COUNTA($H$9:L$9), "Input for next period", "") ->  | N9: =IF(SUM($11:$11)=COUNTA($H$9:M$9), "Input for next period", "") ->  | O9: =IF(SUM($11:$11)=COUNTA($H$9:N$9), "Input for next period", "") ->  | P9: =IF(SUM($11:$11)=COUNTA($H$9:O$9), "Input for next period", "") ->  | Q9: =IF(SUM($11:$11)=COUNTA($H$9:P$9), "Input for next period", "") ->  | R9: =IF(SUM($11:$11)=COUNTA($H$9:Q$9), "Input for next period", "") -> Input for next period | S9: =IF(SUM($11:$11)=COUNTA($H$9:R$9), "Input for next period", "") ->  | T9: =IF(SUM($11:$11)=COUNTA($H$9:S$9), "Input for next period", "") ->  | U9: =IF(SUM($11:$11)=COUNTA($H$9:T$9), "Input for next period", "") ->  | V9: =IF(SUM($11:$11)=COUNTA($H$9:U$9), "Input for next period", "") ->  | W9: =IF(SUM($11:$11)=COUNTA($H$9:V$9), "Input for next period", "") ->  | X9: =IF(SUM($11:$11)=COUNTA($H$9:W$9), "Input for next period", "") ->  | Y9: =IF(SUM($11:$11)=COUNTA($H$9:X$9), "Input for next period", "") ->  | Z9: =IF(SUM($11:$11)=COUNTA($H$9:Y$9), "Input for next period", "") ->  | AA9: =IF(SUM($11:$11)=COUNTA($H$9:Z$9), "Input for next period", "") ->  | AB9: =IF(SUM($11:$11)=COUNTA($H$9:AA$9), "Input for next period", "") ->  | AC9: =IF(SUM($11:$11)=COUNTA($H$9:AB$9), "Input for next period", "") ->  | AD9: =IF(SUM($11:$11)=COUNTA($H$9:AC$9), "Input for next period", "") ->  | AE9: =IF(SUM($11:$11)=COUNTA($H$9:AD$9), "Input for next period", "") ->  | AF9: =IF(SUM($11:$11)=COUNTA($H$9:AE$9), "Input for next period", "") ->  | AG9: =IF(SUM($11:$11)=COUNTA($H$9:AF$9), "Input for next period", "") ->  | AH9: =IF(SUM($11:$11)=COUNTA($H$9:AG$9), "Input for next period", "") ->  | AI9: =IF(SUM($11:$11)=COUNTA($H$9:AH$9), "Input for next period", "") ->  | AJ9: =IF(SUM($11:$11)=COUNTA($H$9:AI$9), "Input for next period", "") ->  | AK9: =IF(SUM($11:$11)=COUNTA($H$9:AJ$9), "Input for next period", "") ->  | AL9: =IF(SUM($11:$11)=COUNTA($H$9:AK$9), "Input for next period", "") ->  | AM9: =IF(SUM($11:$11)=COUNTA($H$9:AL$9), "Input for next period", "") ->  | AN9: =IF(SUM($11:$11)=COUNTA($H$9:AM$9), "Input for next period", "") ->  | AO9: =IF(SUM($11:$11)=COUNTA($H$9:AN$9), "Input for next period", "") ->  | AP9: =IF(SUM($11:$11)=COUNTA($H$9:AO$9), "Input for next period", "") ->  | AQ9: =IF(SUM($11:$11)=COUNTA($H$9:AP$9), "Input for next period", "") ->  | AR9: =IF(SUM($11:$11)=COUNTA($H$9:AQ$9), "Input for next period", "") ->  | AS9: =IF(SUM($11:$11)=COUNTA($H$9:AR$9), "Input for next period", "") ->  | AT9: =IF(SUM($11:$11)=COUNTA($H$9:AS$9), "Input for next period", "") ->  | AU9: =IF(SUM($11:$11)=COUNTA($H$9:AT$9), "Input for next period", "") ->  | AV9: =IF(SUM($11:$11)=COUNTA($H$9:AU$9), "Input for next period", "") ->  | AW9: =IF(SUM($11:$11)=COUNTA($H$9:AV$9), "Input for next period", "") ->  | AX9: =IF(SUM($11:$11)=COUNTA($H$9:AW$9), "Input for next period", "") ->  | AY9: =IF(SUM($11:$11)=COUNTA($H$9:AX$9), "Input for next period", "") ->  | AZ9: =IF(SUM($11:$11)=COUNTA($H$9:AY$9), "Input for next period", "") ->  | BA9: =IF(SUM($11:$11)=COUNTA($H$9:AZ$9), "Input for next period", "") ->  | BB9: =IF(SUM($11:$11)=COUNTA($H$9:BA$9), "Input for next period", "") ->  | BC9: =IF(SUM($11:$11)=COUNTA($H$9:BB$9), "Input for next period", "") ->  | BD9: =IF(SUM($11:$11)=COUNTA($H$9:BC$9), "Input for next period", "") ->  | BE9: =IF(SUM($11:$11)=COUNTA($H$9:BD$9), "Input for next period", "") ->  | BF9: =IF(SUM($11:$11)=COUNTA($H$9:BE$9), "Input for next period", "") ->  | BG9: =IF(SUM($11:$11)=COUNTA($H$9:BF$9), "Input for next period", "") ->  | BH9: =IF(SUM($11:$11)=COUNTA($H$9:BG$9), "Input for next period", "") ->  | BI9: =IF(SUM($11:$11)=COUNTA($H$9:BH$9), "Input for next period", "") ->  | BJ9: =IF(SUM($11:$11)=COUNTA($H$9:BI$9), "Input for next period", "") ->  | BK9: =IF(SUM($11:$11)=COUNTA($H$9:BJ$9), "Input for next period", "") ->  | BL9: =IF(SUM($11:$11)=COUNTA($H$9:BK$9), "Input for next period", "") ->  | BM9: =IF(SUM($11:$11)=COUNTA($H$9:BL$9), "Input for next period", "") ->  | BN9: =IF(SUM($11:$11)=COUNTA($H$9:BM$9), "Input for next period", "") ->  | BO9: =IF(SUM($11:$11)=COUNTA($H$9:BN$9), "Input for next period", "") ->  | BP9: =IF(SUM($11:$11)=COUNTA($H$9:BO$9), "Input for next period", "") ->  | BQ9: =IF(SUM($11:$11)=COUNTA($H$9:BP$9), "Input for next period", "") ->  | BR9: =IF(SUM($11:$11)=COUNTA($H$9:BQ$9), "Input for next period", "") ->  | BS9: =IF(SUM($11:$11)=COUNTA($H$9:BR$9), "Input for next period", "") ->  | BT9: =IF(SUM($11:$11)=COUNTA($H$9:BS$9), "Input for next period", "") ->  | BU9: =IF(SUM($11:$11)=COUNTA($H$9:BT$9), "Input for next period", "") ->  | BV9: =IF(SUM($11:$11)=COUNTA($H$9:BU$9), "Input for next period", "") ->  | BW9: =IF(SUM($11:$11)=COUNTA($H$9:BV$9), "Input for next period", "") ->  | BX9: =IF(SUM($11:$11)=COUNTA($H$9:BW$9), "Input for next period", "") ->  | BY9: =IF(SUM($11:$11)=COUNTA($H$9:BX$9), "Input for next period", "") ->  | BZ9: =IF(SUM($11:$11)=COUNTA($H$9:BY$9), "Input for next period", "") -> 
E10: Regulatory period | H10: 2014-19 | M10: 2019-24
E11: Years in regulatory period | H11: 5 | M11: 5
E13: Lagged inflation approach | F13: Partially-lagged
E14: =IF($F$13="All-lagged", "Lagged actual", "Actual")& " CPI inflation rate" -> Actual CPI inflation rate | G14: 0.02449888641 | H14: 0.01717557252 | I14: 0.01688555347 | J14: 0.0147601476 | K14: 0.01909090909 | L14: 0.0178412132 | M14: 0.01840490798 | N14: 0.008605851979 | O14: 0.03498293515 | P14: 0.07831821929 | Q14: 0.041
E15: Actual CPI (one year lagged) | F15: =G15/IF($F$13="Partially-lagged", (1+F14), (1+G14)) -> 1 | G15: 1 | H15: =G15*(1+IF($F$13="Partially-lagged",G14,H14)) -> 1.024498886 | I15: 1.042095241 | J15: 1.059691596 | K15: 1.075332801 | L15: 1.095861881 | M15: 1.115413387 | N15: 1.135942468 | O15: 1.14571822 | P15: =O15*(1+IF($F$13="Partially-lagged",O14,P14)) -> 1.185798807 | Q15: 1.278668457 | R15: 1.331093864 | S15: 1.331093864 | T15: 1.331093864 | U15: 1.331093864 | V15: 1.331093864 | W15: 1.331093864 | X15: 1.331093864 | Y15: 1.331093864 | Z15: 1.331093864 | AA15: 1.331093864 | AB15: 1.331093864 | AC15: 1.331093864 | AD15: 1.331093864 | AE15: 1.331093864 | AF15: 1.331093864 | AG15: 1.331093864 | AH15: 1.331093864 | AI15: 1.331093864 | AJ15: 1.331093864 | AK15: 1.331093864 | AL15: 1.331093864 | AM15: 1.331093864 | AN15: =AM15*(1+IF($F$13="Partially-lagged",AM14,AN14)) -> 1.331093864 | AO15: 1.331093864 | AP15: 1.331093864 | AQ15: 1.331093864 | AR15: 1.331093864 | AS15: 1.331093864 | AT15: 1.331093864 | AU15: 1.331093864 | AV15: 1.331093864 | AW15: 1.331093864 | AX15: 1.331093864 | AY15: 1.331093864 | AZ15: 1.331093864 | BA15: 1.331093864 | BB15: 1.331093864 | BC15: 1.331093864 | BD15: 1.331093864 | BE15: 1.331093864 | BF15: 1.331093864 | BG15: 1.331093864 | BH15: 1.331093864 | BI15: 1.331093864 | BJ15: 1.331093864 | BK15: 1.331093864 | BL15: 1.331093864 | BM15: 1.331093864 | BN15: 1.331093864 | BO15: 1.331093864 | BP15: 1.331093864 | BQ15: 1.331093864 | BR15: 1.331093864 | BS15: 1.331093864 | BT15: =BS15*(1+IF($F$13="Partially-lagged",BS14,BT14)) -> 1.331093864 | BU15: 1.331093864 | BV15: 1.331093864 | BW15: 1.331093864 | BX15: 1.331093864 | BY15: 1.331093864 | BZ15: 1.331093864
E17: Nominal vanilla WACC (fixed real time varying) | G17: 0.09441514707 | H17: 0.06365689705 | I17: 0.06335362516 | J17: 0.06113109576 | K17: 0.06565975773 | L17: 0.06435295516 | M17: 0.04278919717 | N17: 0.03209536553 | O17: 0.05807952408 | P17: 0.1016695683 | Q17: 0.06472532242
E18: Nominal vanilla WACC index | F18: =G18/(1+G17) -> 0.9137300436 | G18: 1 | H18: =G18*(1+H17) -> 1.063656897 | I18: 1.131043417 | J18: 1.200185341 | K18: 1.27898922 | L18: 1.361295955 | M18: 1.419544717 | N18: 1.465105523 | O18: 1.550198155 | P18: 1.707806132 | Q18: 1.818344434
E19: Real vanilla WACC | G19: 0.06824435008 | H19: 0.04569646164 | I19: 0.04569646164 | J19: 0.04569646164 | K19: 0.04569646164 | L19: 0.04569646164 | M19: 0.02394360927 | N19: 0.02328909109 | O19: 0.0223159128 | P19: 0.02165534121 | Q19: 0.02279089569
E20: Real vanilla WACC index | F20: =G20/(1+G19) -> 0.9361154121 | G20: 1 | H20: =G20*(1+H19) -> 1.045696462 | I20: 1.09348109 | J20: 1.143449307 | K20: 1.195700894 | L20: 1.250340194 | M20: 1.280277851 | N20: 1.310094359 | O20: 1.33933031 | P20: 1.368333965 | Q20: 1.399519522 | R20: 1.399519522 | S20: 1.399519522 | T20: 1.399519522 | U20: 1.399519522 | V20: 1.399519522 | W20: 1.399519522 | X20: 1.399519522 | Y20: 1.399519522 | Z20: 1.399519522 | AA20: 1.399519522 | AB20: 1.399519522 | AC20: 1.399519522 | AD20: 1.399519522 | AE20: 1.399519522 | AF20: 1.399519522 | AG20: 1.399519522 | AH20: 1.399519522 | AI20: 1.399519522 | AJ20: 1.399519522 | AK20: 1.399519522 | AL20: 1.399519522 | AM20: 1.399519522 | AN20: 1.399519522 | AO20: 1.399519522 | AP20: 1.399519522 | AQ20: 1.399519522 | AR20: 1.399519522 | AS20: 1.399519522 | AT20: 1.399519522 | AU20: 1.399519522 | AV20: 1.399519522 | AW20: 1.399519522 | AX20: 1.399519522 | AY20: 1.399519522 | AZ20: 1.399519522 | BA20: 1.399519522 | BB20: 1.399519522 | BC20: 1.399519522 | BD20: 1.399519522 | BE20: 1.399519522 | BF20: 1.399519522 | BG20: 1.399519522 | BH20: 1.399519522 | BI20: 1.399519522 | BJ20: 1.399519522 | BK20: 1.399519522 | BL20: 1.399519522 | BM20: 1.399519522 | BN20: 1.399519522 | BO20: 1.399519522 | BP20: 1.399519522 | BQ20: 1.399519522 | BR20: 1.399519522 | BS20: 1.399519522 | BT20: =BS20*(1+BT19) -> 1.399519522 | BU20: 1.399519522 | BV20: 1.399519522 | BW20: 1.399519522 | BX20: 1.399519522 | BY20: 1.399519522 | BZ20: 1.399519522
D22: Starting RAB and actual gross capex - As incurred ($m, nominal)
E23: Asset class | G23: ="RAB (closing as at "&$G$4&")" -> RAB (closing as at 2013-14) | H23: ="Actual gross capex ("&H4&")" -> Actual gross capex (2014-15) | I23: =IF(COUNTA($H$23:H$23)<SUM($11:$11), "Actual gross capex ("&I4&")", "") -> Actual gross capex (2015-16) | J23: =IF(COUNTA($H$23:I$23)<SUM($11:$11), "Actual gross capex ("&J4&")", "") -> Actual gross capex (2016-17) | K23: =IF(COUNTA($H$23:J$23)<SUM($11:$11), "Actual gross capex ("&K4&")", "") -> Actual gross capex (2017-18) | L23: =IF(COUNTA($H$23:K$23)<SUM($11:$11), "Actual gross capex ("&L4&")", "") -> Actual gross capex (2018-19) | M23: =IF(COUNTA($H$23:L$23)<SUM($11:$11), "Actual gross capex ("&M4&")", "") -> Actual gross capex (2019-20) | N23: =IF(COUNTA($H$23:M$23)<SUM($11:$11), "Actual gross capex ("&N4&")", "") -> Actual gross capex (2020-21) | O23: =IF(COUNTA($H$23:N$23)<SUM($11:$11), "Actual gross capex ("&O4&")", "") -> Actual gross capex (2021-22) | P23: =IF(COUNTA($H$23:O$23)<SUM($11:$11), "Actual gross capex ("&P4&")", "") -> Actual gross capex (2022-23) | Q23: =IF(COUNTA($H$23:P$23)<SUM($11:$11), "Actual gross capex ("&Q4&")", "") -> Actual gross capex (2023-24) | R23: =IF(COUNTA($H$23:Q$23)<SUM($11:$11), "Actual gross capex ("&R4&")", "") ->  | S23: =IF(COUNTA($H$23:R$23)<SUM($11:$11), "Actual gross capex ("&S4&")", "") ->  | T23: =IF(COUNTA($H$23:S$23)<SUM($11:$11), "Actual gross capex ("&T4&")", "") ->  | U23: =IF(COUNTA($H$23:T$23)<SUM($11:$11), "Actual gross capex ("&U4&")", "") ->  | V23: =IF(COUNTA($H$23:U$23)<SUM($11:$11), "Actual gross capex ("&V4&")", "") ->  | W23: =IF(COUNTA($H$23:V$23)<SUM($11:$11), "Actual gross capex ("&W4&")", "") ->  | X23: =IF(COUNTA($H$23:W$23)<SUM($11:$11), "Actual gross capex ("&X4&")", "") ->  | Y23: =IF(COUNTA($H$23:X$23)<SUM($11:$11), "Actual gross capex ("&Y4&")", "") ->  | Z23: =IF(COUNTA($H$23:Y$23)<SUM($11:$11), "Actual gross capex ("&Z4&")", "") ->  | AA23: =IF(COUNTA($H$23:Z$23)<SUM($11:$11), "Actual gross capex ("&AA4&")", "") ->  | AB23: =IF(COUNTA($H$23:AA$23)<SUM($11:$11), "Actual gross capex ("&AB4&")", "") ->  | AC23: =IF(COUNTA($H$23:AB$23)<SUM($11:$11), "Actual gross capex ("&AC4&")", "") ->  | AD23: =IF(COUNTA($H$23:AC$23)<SUM($11:$11), "Actual gross capex ("&AD4&")", "") ->  | AE23: =IF(COUNTA($H$23:AD$23)<SUM($11:$11), "Actual gross capex ("&AE4&")", "") ->  | AF23: =IF(COUNTA($H$23:AE$23)<SUM($11:$11), "Actual gross capex ("&AF4&")", "") ->  | AG23: =IF(COUNTA($H$23:AF$23)<SUM($11:$11), "Actual gross capex ("&AG4&")", "") ->  | AH23: =IF(COUNTA($H$23:AG$23)<SUM($11:$11), "Actual gross capex ("&AH4&")", "") ->  | AI23: =IF(COUNTA($H$23:AH$23)<SUM($11:$11), "Actual gross capex ("&AI4&")", "") ->  | AJ23: =IF(COUNTA($H$23:AI$23)<SUM($11:$11), "Actual gross capex ("&AJ4&")", "") ->  | AK23: =IF(COUNTA($H$23:AJ$23)<SUM($11:$11), "Actual gross capex ("&AK4&")", "") ->  | AL23: =IF(COUNTA($H$23:AK$23)<SUM($11:$11), "Actual gross capex ("&AL4&")", "") ->  | AM23: =IF(COUNTA($H$23:AL$23)<SUM($11:$11), "Actual gross capex ("&AM4&")", "") ->  | AN23: =IF(COUNTA($H$23:AM$23)<SUM($11:$11), "Actual gross capex ("&AN4&")", "") ->  | AO23: =IF(COUNTA($H$23:AN$23)<SUM($11:$11), "Actual gross capex ("&AO4&")", "") ->  | AP23: =IF(COUNTA($H$23:AO$23)<SUM($11:$11), "Actual gross capex ("&AP4&")", "") ->  | AQ23: =IF(COUNTA($H$23:AP$23)<SUM($11:$11), "Actual gross capex ("&AQ4&")", "") ->  | AR23: =IF(COUNTA($H$23:AQ$23)<SUM($11:$11), "Actual gross capex ("&AR4&")", "") ->  | AS23: =IF(COUNTA($H$23:AR$23)<SUM($11:$11), "Actual gross capex ("&AS4&")", "") ->  | AT23: =IF(COUNTA($H$23:AS$23)<SUM($11:$11), "Actual gross capex ("&AT4&")", "") ->  | AU23: =IF(COUNTA($H$23:AT$23)<SUM($11:$11), "Actual gross capex ("&AU4&")", "") ->  | AV23: =IF(COUNTA($H$23:AU$23)<SUM($11:$11), "Actual gross capex ("&AV4&")", "") ->  | AW23: =IF(COUNTA($H$23:AV$23)<SUM($11:$11), "Actual gross capex ("&AW4&")", "") ->  | AX23: =IF(COUNTA($H$23:AW$23)<SUM($11:$11), "Actual gross capex ("&AX4&")", "") ->  | AY23: =IF(COUNTA($H$23:AX$23)<SUM($11:$11), "Actual gross capex ("&AY4&")", "") ->  | AZ23: =IF(COUNTA($H$23:AY$23)<SUM($11:$11), "Actual gross capex ("&AZ4&")", "") ->  | BA23: =IF(COUNTA($H$23:AZ$23)<SUM($11:$11), "Actual gross capex ("&BA4&")", "") ->  | BB23: =IF(COUNTA($H$23:BA$23)<SUM($11:$11), "Actual gross capex ("&BB4&")", "") ->  | BC23: =IF(COUNTA($H$23:BB$23)<SUM($11:$11), "Actual gross capex ("&BC4&")", "") ->  | BD23: =IF(COUNTA($H$23:BC$23)<SUM($11:$11), "Actual gross capex ("&BD4&")", "") ->  | BE23: =IF(COUNTA($H$23:BD$23)<SUM($11:$11), "Actual gross capex ("&BE4&")", "") ->  | BF23: =IF(COUNTA($H$23:BE$23)<SUM($11:$11), "Actual gross capex ("&BF4&")", "") ->  | BG23: =IF(COUNTA($H$23:BF$23)<SUM($11:$11), "Actual gross capex ("&BG4&")", "") ->  | BH23: =IF(COUNTA($H$23:BG$23)<SUM($11:$11), "Actual gross capex ("&BH4&")", "") ->  | BI23: =IF(COUNTA($H$23:BH$23)<SUM($11:$11), "Actual gross capex ("&BI4&")", "") ->  | BJ23: =IF(COUNTA($H$23:BI$23)<SUM($11:$11), "Actual gross capex ("&BJ4&")", "") ->  | BK23: =IF(COUNTA($H$23:BJ$23)<SUM($11:$11), "Actual gross capex ("&BK4&")", "") ->  | BL23: =IF(COUNTA($H$23:BK$23)<SUM($11:$11), "Actual gross capex ("&BL4&")", "") ->  | BM23: =IF(COUNTA($H$23:BL$23)<SUM($11:$11), "Actual gross capex ("&BM4&")", "") ->  | BN23: =IF(COUNTA($H$23:BM$23)<SUM($11:$11), "Actual gross capex ("&BN4&")", "") ->  | BO23: =IF(COUNTA($H$23:BN$23)<SUM($11:$11), "Actual gross capex ("&BO4&")", "") ->  | BP23: =IF(COUNTA($H$23:BO$23)<SUM($11:$11), "Actual gross capex ("&BP4&")", "") ->  | BQ23: =IF(COUNTA($H$23:BP$23)<SUM($11:$11), "Actual gross capex ("&BQ4&")", "") ->  | BR23: =IF(COUNTA($H$23:BQ$23)<SUM($11:$11), "Actual gross capex ("&BR4&")", "") ->  | BS23: =IF(COUNTA($H$23:BR$23)<SUM($11:$11), "Actual gross capex ("&BS4&")", "") ->  | BT23: =IF(COUNTA($H$23:BS$23)<SUM($11:$11), "Actual gross capex ("&BT4&")", "") ->  | BU23: =IF(COUNTA($H$23:BT$23)<SUM($11:$11), "Actual gross capex ("&BU4&")", "") ->  | BV23: =IF(COUNTA($H$23:BU$23)<SUM($11:$11), "Actual gross capex ("&BV4&")", "") ->  | BW23: =IF(COUNTA($H$23:BV$23)<SUM($11:$11), "Actual gross capex ("&BW4&")", "") ->  | BX23: =IF(COUNTA($H$23:BW$23)<SUM($11:$11), "Actual gross capex ("&BX4&")", "") ->  | BY23: =IF(COUNTA($H$23:BX$23)<SUM($11:$11), "Actual gross capex ("&BY4&")", "") ->  | BZ23: =IF(COUNTA($H$23:BY$23)<SUM($11:$11), "Actual gross capex ("&BZ4&")", "") -> 
D25: 1 | E25: Substations | G25: 294.1886357 | H25: 32.10638736 | I25: 27.53251863 | J25: 14.04638719 | K25: 7.40519589 | L25: 10.80047775 | M25: 15.99101865 | N25: 9.88345569 | O25: 8.509179865 | P25: 9.029303 | Q25: 25.6905376
D26: 2 | E26: Distribution Lines | G26: 226.5854921 | H26: 19.94908732 | I26: 15.85937989 | J26: 15.14071182 | K26: 13.62745872 | L26: 12.46250931 | M26: 11.64235166 | N26: 12.99743517 | O26: 19.68813023 | P26: 32.274641 | Q26: 32.76932259
D27: 3 | E27: Transmission Lines | G27: 168.8266736 | H27: 3.336009762 | I27: 5.903921342 | J27: 5.806269352 | K27: 9.66816421 | L27: 3.395003429 | M27: 0.89620874 | N27: 1.633001464 | O27: 2.373318089 | P27: 2.045814 | Q27: 5.716812587
D28: 4 | E28: LV Services | G28: 0.1991221814 | H28: 1.800826399 | I28: 1.867278915 | J28: 1.699268562 | K28: 0.6144472744 | L28: 0.580575491 | M28: 0.6438356423 | N28: 1.093957902 | O28: 2.134189822 | P28: 2.118855 | Q28: 2.708345606
D29: 5 | E29: Distribution Substations | G29: 82.73569443 | H29: 11.5302516 | I29: 8.902699208 | J29: 6.155834041 | K29: 7.833526577 | L29: 6.071326708 | M29: 5.616238728 | N29: 5.427435575 | O29: 6.900696482 | P29: 8.589874 | Q29: 4.019344213
D30: 6 | E30: Distribution Switchgear | G30: 15.43641098 | H30: 5.437275259 | I30: 6.263004075 | J30: 5.699771909 | K30: 4.395952171 | L30: 3.193113228 | M30: 1.998344609 | N30: 3.171634479 | O30: 2.664988646 | P30: 4.17321 | Q30: 3.187489722
D31: 7 | E31: Protection | G31: 9.574519445 | H31: 5.641762397 | I31: 4.77090331 | J31: 2.930122394 | K31: 0.9542531437 | L31: 0.2861404376 | M31: 1.507008138 | N31: 1.540067057 | O31: 3.021105875 | P31: 4.620397 | Q31: 5.513393375
D32: 8 | E32: SCADA | G32: 2.727751707 | H32: 2.238057586 | I32: 1.061529244 | J32: 0.5741411886 | K32: 0.4370285936 | L32: 0.489688765 | M32: 1.615589926 | N32: 1.386807275 | O32: 1.574275985 | P32: 2.86388 | Q32: 7.692160869
D33: 9 | E33: Communications | G33: 8.94789224 | H33: 2.918224023 | I33: 1.7829786 | J33: 0.8305268636 | K33: 1.809440413 | L33: 3.077948793 | M33: 2.109418005 | N33: 1.780888012 | O33: 2.030567677 | P33: 4.703654 | Q33: 2.55597313
D34: 10 | E34: Land and Easements | G34: 34.61124737 | H34: 0 | I34: 0 | J34: 0 | K34: 0 | L34: 0 | M34: 0 | N34: 0 | O34: 0 | P34: -0.126532 | Q34: 0
D35: 11 | E35: Property | G35: 1.029634726 | H35: 0.01032431358 | I35: 0.04210847143 | J35: 0.03673038297 | K35: 0.4383713732 | L35: 0.3009093806 | M35: 0.5070368885 | N35: 0.4940832645 | O35: 0.2824025859 | P35: 0.446373 | Q35: 1.819531336
D36: 12 | E36: IT and Communications | G36: 0.63969852 | H36: 0.4231998293 | I36: 0.8972094595 | J36: 2.73850794 | K36: 2.708674047 | L36: 2.004713475 | M36: 6.419140989 | N36: 1.648793124 | O36: 5.012250871 | P36: 22.942543 | Q36: 25.43462629
D37: 13 | E37: Motor Vehicles | G37: 0.04981594859 | H37: 0.07185312516 | I37: 0.009475287769 | J37: 9.626262484e-05 | K37: 0.008307356874 | L37: 0.03254120699 | M37: 0.06649450071 | N37: 0.4971987808 | O37: 0.1197421212 | P37: 0.153596 | Q37: 0
D38: 14 | E38: Plant and Equipment | G38: 7.665048863 | H38: 0.5999515538 | I38: 0.3126493214 | J38: 0.4537768075 | K38: 0.9435031504 | L38: 1.290321444 | M38: 0.8833245347 | N38: 2.222045679 | O38: 1.91415293 | P38: 2.146753 | Q38: 1.646753328
D39: 15 | E39: Property Leases | L39: 0 | M39: 3.26957368 | N39: 0.8178070878 | O39: 9.796005411 | P39: 1.080617 | Q39: 5.253089645
D40: 16 | E40: Fleet Leases | L40: 0 | M40: 14.27709501 | N40: 2.444284259 | O40: 2.74303557 | P40: 2.688565 | Q40: 2.324638664
D41: 17 | E41: 0 | M41: 0 | N41: 0 | O41: 0 | P41: 0 | Q41: 0
D42: 18 | E42: 0 | M42: 0 | N42: 0 | O42: 0 | P42: 0 | Q42: 0
D43: 19 | E43: 0 | M43: 0 | N43: 0 | O43: 0 | P43: 0 | Q43: 0
D44: 20 | E44: 0 | M44: 0 | N44: 0 | O44: 0 | P44: 0 | Q44: 0
D45: 21 | E45: 0 | M45: 0 | N45: 0 | O45: 0 | P45: 0 | Q45: 0
D46: 22 | E46: 0 | M46: 0 | N46: 0 | O46: 0 | P46: 0 | Q46: 0
D47: 23 | E47: 0 | M47: 0 | N47: 0 | O47: 0 | P47: 0 | Q47: 0
D48: 24 | E48: 0 | M48: 0 | N48: 0 | O48: 0 | P48: 0 | Q48: 0
D49: 25 | E49: 0 | M49: 0 | N49: 0 | O49: 0 | P49: 0 | Q49: 0
D50: 26 | E50: 0 | M50: 0 | N50: 0 | O50: 0 | P50: 0 | Q50: 0
D51: 27 | E51: 0 | M51: 0 | N51: 0 | O51: 0 | P51: 0 | Q51: 0
D52: 28 | E52: 0 | M52: 0 | N52: 0 | O52: 0 | P52: 0 | Q52: 0
D53: 29 | E53: 0 | M53: 0 | N53: 0 | O53: 0 | P53: 0 | Q53: 0
D54: 30 | E54: 0 | M54: 0 | N54: 0 | O54: 0 | P54: 0 | Q54: 0
D55: 31 | E55: 0 | M55: 0 | N55: 0 | O55: 0 | P55: 0 | Q55: 0
D56: 32 | E56: 0 | M56: 0 | N56: 0 | O56: 0 | P56: 0 | Q56: 0
D57: 33 | E57: 0 | M57: 0 | N57: 0 | O57: 0 | P57: 0 | Q57: 0
D58: 34 | E58: 0 | M58: 0 | N58: 0 | O58: 0 | P58: 0 | Q58: 0
D59: 35 | E59: 0 | M59: 0 | N59: 0 | O59: 0 | P59: 0 | Q59: 0
D60: 36 | E60: 0 | M60: 0 | N60: 0 | O60: 0 | P60: 0 | Q60: 0
D61: 37 | E61: 0 | M61: 0 | N61: 0 | O61: 0 | P61: 0 | Q61: 0
D62: 38 | E62: 0 | M62: 0 | N62: 0 | O62: 0 | P62: 0 | Q62: 0
D63: 39 | E63: 0 | M63: 0 | N63: 0 | O63: 0 | P63: 0 | Q63: 0
D64: 40 | E64: 0 | M64: 0 | N64: 0 | O64: 0 | P64: 0 | Q64: 0
D65: 41 | E65: 0 | M65: 0 | N65: 0 | O65: 0 | P65: 0 | Q65: 0
D66: 42 | E66: 0 | M66: 0 | N66: 0 | O66: 0 | P66: 0 | Q66: 0
D67: 43 | E67: 0 | M67: 0 | N67: 0 | O67: 0 | P67: 0 | Q67: 0
D68: 44 | E68: 0 | M68: 0 | N68: 0 | O68: 0 | P68: 0 | Q68: 0
D69: 45 | E69: 0 | M69: 0 | N69: 0 | O69: 0 | P69: 0 | Q69: 0
D70: 46 | E70: 0 | M70: 0 | N70: 0 | O70: 0 | P70: 0 | Q70: 0
D71: 47 | E71: Spare straight-line tax asset class | M71: 0 | N71: 0 | O71: 0 | P71: 0 | Q71: 0
D72: 48 | E72: Buildings | L72: 0 | M72: 0.1605315811 | N72: 0.6918976275 | O72: 2.210791296 | P72: 2.175607 | Q72: 0
D73: 49 | E73: in-house software | L73: 0 | M73: 0 | N73: 0 | O73: 0 | P73: 0 | Q73: 0
D74: 50 | E74: Equity raising costs | G74: 0 | H74: 0 | I74: 0 | J74: 0 | K74: 0 | L74: 0 | M74: 0 | N74: 0 | O74: 0 | P74: 0 | Q74: 0
E75: Total | G75: =SUM(G25:G74) -> 853.2176379 | H75: =SUM(H25:H74) -> 86.06321053 | I75: 75.20565575 | J75: 56.11214471 | K75: 50.84432292 | L75: 43.98526942 | M75: 67.60321128 | N75: 47.73079245 | O75: 70.97483345 | P75: 101.92715 | Q75: 126.332019 | R75: 0 | S75: 0 | T75: 0 | U75: 0 | V75: 0 | W75: 0 | X75: 0 | Y75: 0 | Z75: 0 | AA75: 0 | AB75: 0 | AC75: 0 | AD75: 0 | AE75: 0 | AF75: 0 | AG75: 0 | AH75: 0 | AI75: 0 | AJ75: 0 | AK75: 0 | AL75: 0 | AM75: 0 | AN75: 0 | AO75: 0 | AP75: 0 | AQ75: 0 | AR75: 0 | AS75: 0 | AT75: 0 | AU75: 0 | AV75: 0 | AW75: 0 | AX75: 0 | AY75: 0 | AZ75: 0 | BA75: 0 | BB75: 0 | BC75: 0 | BD75: 0 | BE75: 0 | BF75: 0 | BG75: 0 | BH75: 0 | BI75: 0 | BJ75: 0 | BK75: 0 | BL75: 0 | BM75: 0 | BN75: 0 | BO75: 0 | BP75: 0 | BQ75: 0 | BR75: 0 | BS75: 0 | BT75: =SUM(BT25:BT74) -> 0 | BU75: 0 | BV75: 0 | BW75: 0 | BX75: 0 | BY75: 0 | BZ75: 0
D77: Actual asset disposals - As incurred ($m, nominal)
E78: =$E$23 -> Asset class | H78: =IF(H$23="", "", "Actual asset disposals ("&H$4&")") -> Actual asset disposals (2014-15) | I78: =IF(I$23="", "", "Actual asset disposals ("&I$4&")") -> Actual asset disposals (2015-16) | J78: Actual asset disposals (2016-17) | K78: Actual asset disposals (2017-18) | L78: Actual asset disposals (2018-19) | M78: Actual asset disposals (2019-20) | N78: Actual asset disposals (2020-21) | O78: Actual asset disposals (2021-22) | P78: Actual asset disposals (2022-23) | Q78: Actual asset disposals (2023-24) | BU78: =IF(BU$23="", "", "Actual asset disposals ("&BU$4&")") -> 
E79: =E25 -> Substations | H79: 0.031527084 | I79: 0.032585331 | J79: 0.136414496 | K79: 0.06145566 | L79: 0.02863636 | M79: 0.01553318 | N79: 0.02866984 | O79: 0.04581809 | P79: 0.02388965 | Q79: 0.04198754893
E80: Distribution Lines | H80: 0.063054168 | I80: 0.062866662 | J80: 0.119896992 | K80: 0.11989577 | L80: 0.05756314 | M80: 0.03539688 | N80: 0.09280617 | O80: 0.09163618 | P80: 0.06079974 | Q80: 0.09254144404
E81: Transmission Lines | H81: 0.010509028 | I81: 0.010477777 | J81: 0.019982832 | K81: 0.02102618 | L81: 0 | M81: 0.00517773 | N81: 0.00955661 | O81: 0.0152727 | P81: 0.00793291 | Q81: 0.01186583914
E82: LV Services | H82: 0 | I82: 0 | J82: 0 | K82: 0 | L82: 0 | M82: 0 | N82: 0 | O82: 0 | P82: 0 | Q82: 0
E83: Distribution Substations | H83: 0.007668 | I83: 0 | J83: 0 | K83: 0 | L83: 0.02620137 | M83: 0.03668518 | N83: 0.00595 | O83: 0 | P83: 0.0012 | Q83: 0.01621549753
E84: Distribution Switchgear | H84: 0 | I84: 0 | J84: 0 | K84: 0 | L84: 0.00392545 | M84: 0 | N84: 0 | O84: 0 | P84: 0.01256864 | Q84: 0.0009295892733
E85: Protection | H85: 0 | I85: 0 | J85: 0 | K85: 0 | L85: 0 | M85: 0 | N85: 0 | O85: 0 | P85: 0 | Q85: 0
E86: SCADA | H86: 0 | I86: 0 | J86: 0 | K86: 0 | L86: 0 | M86: 0 | N86: 0 | O86: 0 | P86: 0 | Q86: 0
E87: Communications | H87: 0 | I87: 0 | J87: 0 | K87: 0 | L87: 0 | M87: 0 | N87: 0 | O87: 0 | P87: 0 | Q87: 0
E88: Land and Easements | H88: 0 | I88: 0 | J88: 0.01 | K88: 0 | L88: 0 | M88: 0 | N88: 0 | O88: 0 | P88: 0.125 | Q88: 0
E89: Property | H89: 0 | I89: 0.00886836 | J89: 0 | K89: 0 | L89: 0 | M89: 0 | N89: 0 | O89: 0 | P89: 0 | Q89: 0
E90: IT and Communications | H90: 0 | I90: 0 | J90: 0 | K90: 0 | L90: 0 | M90: 0 | N90: 0 | O90: 0 | P90: 0 | Q90: 0
E91: Motor Vehicles | H91: 0 | I91: 0 | J91: 0.00477792 | K91: 0 | L91: 0 | M91: 0 | N91: 0 | O91: 0 | P91: 0 | Q91: 0
E92: Plant and Equipment | H92: 0.002725 | I92: 0.00218182 | J92: 0 | K92: 0 | L92: 0 | M92: 0 | N92: 0 | O92: 0 | P92: 0 | Q92: 0
E93: Property Leases | H93: 0 | I93: 0 | J93: 0 | K93: 0 | L93: 0 | M93: 0 | N93: 0 | O93: 0 | P93: 0 | Q93: 0
E94: Fleet Leases | H94: 0 | I94: 0 | J94: 0 | K94: 0 | L94: 0 | M94: 0 | N94: 0 | O94: 0 | P94: 0 | Q94: 0
E95: 0 | M95: 0 | N95: 0 | O95: 0 | P95: 0 | Q95: 0
E96: 0 | M96: 0 | N96: 0 | O96: 0 | P96: 0 | Q96: 0
E97: 0 | M97: 0 | N97: 0 | O97: 0 | P97: 0 | Q97: 0
E98: 0 | M98: 0 | N98: 0 | O98: 0 | P98: 0 | Q98: 0
E99: 0 | M99: 0 | N99: 0 | O99: 0 | P99: 0 | Q99: 0
E100: 0 | M100: 0 | N100: 0 | O100: 0 | P100: 0 | Q100: 0
E101: 0 | M101: 0 | N101: 0 | O101: 0 | P101: 0 | Q101: 0
E102: 0 | M102: 0 | N102: 0 | O102: 0 | P102: 0 | Q102: 0
E103: 0 | M103: 0 | N103: 0 | O103: 0 | P103: 0 | Q103: 0
E104: 0 | M104: 0 | N104: 0 | O104: 0 | P104: 0 | Q104: 0
E105: 0 | M105: 0 | N105: 0 | O105: 0 | P105: 0 | Q105: 0
E106: 0 | M106: 0 | N106: 0 | O106: 0 | P106: 0 | Q106: 0
E107: 0 | M107: 0 | N107: 0 | O107: 0 | P107: 0 | Q107: 0
E108: 0 | M108: 0 | N108: 0 | O108: 0 | P108: 0 | Q108: 0
E109: 0 | M109: 0 | N109: 0 | O109: 0 | P109: 0 | Q109: 0
E110: 0 | M110: 0 | N110: 0 | O110: 0 | P110: 0 | Q110: 0
E111: =E57 -> 0 | M111: 0 | N111: 0 | O111: 0 | P111: 0 | Q111: 0
E112: 0 | M112: 0 | N112: 0 | O112: 0 | P112: 0 | Q112: 0
E113: 0 | M113: 0 | N113: 0 | O113: 0 | P113: 0 | Q113: 0
E114: 0 | M114: 0 | N114: 0 | O114: 0 | P114: 0 | Q114: 0
E115: 0 | M115: 0 | N115: 0 | O115: 0 | P115: 0 | Q115: 0
E116: 0 | M116: 0 | N116: 0 | O116: 0 | P116: 0 | Q116: 0
E117: 0 | M117: 0 | N117: 0 | O117: 0 | P117: 0 | Q117: 0
E118: 0 | M118: 0 | N118: 0 | O118: 0 | P118: 0 | Q118: 0
E119: 0 | M119: 0 | N119: 0 | O119: 0 | P119: 0 | Q119: 0
E120: 0 | M120: 0 | N120: 0 | O120: 0 | P120: 0 | Q120: 0
E121: 0 | M121: 0 | N121: 0 | O121: 0 | P121: 0 | Q121: 0
E122: 0 | M122: 0 | N122: 0 | O122: 0 | P122: 0 | Q122: 0
E123: 0 | M123: 0 | N123: 0 | O123: 0 | P123: 0 | Q123: 0
E124: 0 | M124: 0 | N124: 0 | O124: 0 | P124: 0 | Q124: 0
E125: Spare straight-line tax asset class | M125: 0 | N125: 0 | O125: 0 | P125: 0 | Q125: 0
... 153 more rows

Sheet TAB input
R1: AER Draft Decision Changes
E2: =IF('RAB input'!$F$8=$F$8, 'RAB input'!$F$8, $F$8) & " - TAB input - Elec DNSP "&Intro!$I$3&" - version "&Intro!$M$4 -> Power and Water - TAB input - Elec DNSP RFM - Depreciation tracking module - version 1 | J2: Input cells in blue | R2: PWC Revised Proposal Changes
E4: Year | F4: =IF(LEN($H$9)>4, CONCATENATE(LEFT($H$9, 4)-2 & "-" & IF(AND(RIGHT($H$9, 2)<"12", RIGHT($H$9, 2)>"01"), "0", "") & IF(RIGHT($H$9, 2)="00", "98", IF(RIGHT($H$9, 2)="01", "99", RIGHT($H$9, 2)-2))), $H$9-2) -> 2017-18 | G4: =IF(LEN(F4)>4,CONCATENATE(LEFT(F4,4)+1&"-"&IF(RIGHT(F4, 2)<"09", "0","")&IF(RIGHT(F4, 2)="99", "00", RIGHT(F4,2)+1)),F4+1) -> 2018-19 | H4: =IF(LEN(G4)>4,CONCATENATE(LEFT(G4,4)+1&"-"&IF(RIGHT(G4, 2)<"09", "0","")&IF(RIGHT(G4, 2)="99", "00", RIGHT(G4,2)+1)),G4+1) -> 2019-20 | I4: 2020-21 | J4: 2021-22 | K4: 2022-23 | L4: 2023-24 | M4: 2024-25 | N4: 2025-26 | O4: 2026-27 | P4: 2027-28 | Q4: 2028-29 | R4: 2029-30 | S4: 2030-31 | T4: 2031-32 | U4: 2032-33 | V4: 2033-34 | W4: 2034-35 | X4: 2035-36 | Y4: 2036-37 | Z4: 2037-38 | AA4: 2038-39 | AB4: 2039-40 | AC4: 2040-41 | AD4: 2041-42 | AE4: 2042-43 | AF4: 2043-44 | AG4: 2044-45 | AH4: 2045-46 | AI4: 2046-47 | AJ4: 2047-48 | AK4: 2048-49 | AL4: 2049-50 | AM4: 2050-51 | AN4: 2051-52 | AO4: 2052-53 | AP4: 2053-54 | AQ4: 2054-55 | AR4: 2055-56 | AS4: 2056-57 | AT4: 2057-58 | AU4: 2058-59 | AV4: 2059-60 | AW4: 2060-61 | AX4: 2061-62 | AY4: 2062-63 | AZ4: 2063-64 | BA4: 2064-65 | BB4: 2065-66 | BC4: 2066-67 | BD4: 2067-68 | BE4: 2068-69 | BF4: 2069-70 | BG4: 2070-71 | BH4: 2071-72 | BI4: 2072-73 | BJ4: 2073-74 | BK4: 2074-75 | BL4: 2075-76 | BM4: 2076-77 | BN4: 2077-78 | BO4: 2078-79 | BP4: 2079-80 | BQ4: 2080-81 | BR4: 2081-82 | BS4: 2082-83 | BT4: =IF(LEN(BS4)>4,CONCATENATE(LEFT(BS4,4)+1&"-"&IF(RIGHT(BS4, 2)<"09", "0","")&IF(RIGHT(BS4, 2)="99", "00", RIGHT(BS4,2)+1)),BS4+1) -> 2083-84 | BU4: 2084-85 | BV4: 2085-86 | BW4: 2086-87 | BX4: 2087-88 | BY4: 2088-89 | BZ4: 2089-90
D6: General information
E8: Business name | F8: ='RAB input'!$F$8 -> Power and Water
E9: First regulatory year for tracking | H9: 2019-20 | I9: =IF(SUM($11:$11)=COUNTA($H$9:H$9), "Input for next period", "") ->  | J9: =IF(SUM($11:$11)=COUNTA($H$9:I$9), "Input for next period", "") ->  | K9: =IF(SUM($11:$11)=COUNTA($H$9:J$9), "Input for next period", "") ->  | L9: =IF(SUM($11:$11)=COUNTA($H$9:K$9), "Input for next period", "") ->  | M9: =IF(SUM($11:$11)=COUNTA($H$9:L$9), "Input for next period", "") -> Input for next period | N9: =IF(SUM($11:$11)=COUNTA($H$9:M$9), "Input for next period", "") ->  | O9: =IF(SUM($11:$11)=COUNTA($H$9:N$9), "Input for next period", "") ->  | P9: =IF(SUM($11:$11)=COUNTA($H$9:O$9), "Input for next period", "") ->  | Q9: =IF(SUM($11:$11)=COUNTA($H$9:P$9), "Input for next period", "") ->  | R9: =IF(SUM($11:$11)=COUNTA($H$9:Q$9), "Input for next period", "") ->  | S9: =IF(SUM($11:$11)=COUNTA($H$9:R$9), "Input for next period", "") ->  | T9: =IF(SUM($11:$11)=COUNTA($H$9:S$9), "Input for next period", "") ->  | U9: =IF(SUM($11:$11)=COUNTA($H$9:T$9), "Input for next period", "") ->  | V9: =IF(SUM($11:$11)=COUNTA($H$9:U$9), "Input for next period", "") ->  | W9: =IF(SUM($11:$11)=COUNTA($H$9:V$9), "Input for next period", "") ->  | X9: =IF(SUM($11:$11)=COUNTA($H$9:W$9), "Input for next period", "") ->  | Y9: =IF(SUM($11:$11)=COUNTA($H$9:X$9), "Input for next period", "") ->  | Z9: =IF(SUM($11:$11)=COUNTA($H$9:Y$9), "Input for next period", "") ->  | AA9: =IF(SUM($11:$11)=COUNTA($H$9:Z$9), "Input for next period", "") ->  | AB9: =IF(SUM($11:$11)=COUNTA($H$9:AA$9), "Input for next period", "") ->  | AC9: =IF(SUM($11:$11)=COUNTA($H$9:AB$9), "Input for next period", "") ->  | AD9: =IF(SUM($11:$11)=COUNTA($H$9:AC$9), "Input for next period", "") ->  | AE9: =IF(SUM($11:$11)=COUNTA($H$9:AD$9), "Input for next period", "") ->  | AF9: =IF(SUM($11:$11)=COUNTA($H$9:AE$9), "Input for next period", "") ->  | AG9: =IF(SUM($11:$11)=COUNTA($H$9:AF$9), "Input for next period", "") ->  | AH9: =IF(SUM($11:$11)=COUNTA($H$9:AG$9), "Input for next period", "") ->  | AI9: =IF(SUM($11:$11)=COUNTA($H$9:AH$9), "Input for next period", "") ->  | AJ9: =IF(SUM($11:$11)=COUNTA($H$9:AI$9), "Input for next period", "") ->  | AK9: =IF(SUM($11:$11)=COUNTA($H$9:AJ$9), "Input for next period", "") ->  | AL9: =IF(SUM($11:$11)=COUNTA($H$9:AK$9), "Input for next period", "") ->  | AM9: =IF(SUM($11:$11)=COUNTA($H$9:AL$9), "Input for next period", "") ->  | AN9: =IF(SUM($11:$11)=COUNTA($H$9:AM$9), "Input for next period", "") ->  | AO9: =IF(SUM($11:$11)=COUNTA($H$9:AN$9), "Input for next period", "") ->  | AP9: =IF(SUM($11:$11)=COUNTA($H$9:AO$9), "Input for next period", "") ->  | AQ9: =IF(SUM($11:$11)=COUNTA($H$9:AP$9), "Input for next period", "") ->  | AR9: =IF(SUM($11:$11)=COUNTA($H$9:AQ$9), "Input for next period", "") ->  | AS9: =IF(SUM($11:$11)=COUNTA($H$9:AR$9), "Input for next period", "") ->  | AT9: =IF(SUM($11:$11)=COUNTA($H$9:AS$9), "Input for next period", "") ->  | AU9: =IF(SUM($11:$11)=COUNTA($H$9:AT$9), "Input for next period", "") ->  | AV9: =IF(SUM($11:$11)=COUNTA($H$9:AU$9), "Input for next period", "") ->  | AW9: =IF(SUM($11:$11)=COUNTA($H$9:AV$9), "Input for next period", "") ->  | AX9: =IF(SUM($11:$11)=COUNTA($H$9:AW$9), "Input for next period", "") ->  | AY9: =IF(SUM($11:$11)=COUNTA($H$9:AX$9), "Input for next period", "") ->  | AZ9: =IF(SUM($11:$11)=COUNTA($H$9:AY$9), "Input for next period", "") ->  | BA9: =IF(SUM($11:$11)=COUNTA($H$9:AZ$9), "Input for next period", "") ->  | BB9: =IF(SUM($11:$11)=COUNTA($H$9:BA$9), "Input for next period", "") ->  | BC9: =IF(SUM($11:$11)=COUNTA($H$9:BB$9), "Input for next period", "") ->  | BD9: =IF(SUM($11:$11)=COUNTA($H$9:BC$9), "Input for next period", "") ->  | BE9: =IF(SUM($11:$11)=COUNTA($H$9:BD$9), "Input for next period", "") ->  | BF9: =IF(SUM($11:$11)=COUNTA($H$9:BE$9), "Input for next period", "") ->  | BG9: =IF(SUM($11:$11)=COUNTA($H$9:BF$9), "Input for next period", "") ->  | BH9: =IF(SUM($11:$11)=COUNTA($H$9:BG$9), "Input for next period", "") ->  | BI9: =IF(SUM($11:$11)=COUNTA($H$9:BH$9), "Input for next period", "") ->  | BJ9: =IF(SUM($11:$11)=COUNTA($H$9:BI$9), "Input for next period", "") ->  | BK9: =IF(SUM($11:$11)=COUNTA($H$9:BJ$9), "Input for next period", "") ->  | BL9: =IF(SUM($11:$11)=COUNTA($H$9:BK$9), "Input for next period", "") ->  | BM9: =IF(SUM($11:$11)=COUNTA($H$9:BL$9), "Input for next period", "") ->  | BN9: =IF(SUM($11:$11)=COUNTA($H$9:BM$9), "Input for next period", "") ->  | BO9: =IF(SUM($11:$11)=COUNTA($H$9:BN$9), "Input for next period", "") ->  | BP9: =IF(SUM($11:$11)=COUNTA($H$9:BO$9), "Input for next period", "") ->  | BQ9: =IF(SUM($11:$11)=COUNTA($H$9:BP$9), "Input for next period", "") ->  | BR9: =IF(SUM($11:$11)=COUNTA($H$9:BQ$9), "Input for next period", "") ->  | BS9: =IF(SUM($11:$11)=COUNTA($H$9:BR$9), "Input for next period", "") ->  | BT9: =IF(SUM($11:$11)=COUNTA($H$9:BS$9), "Input for next period", "") ->  | BU9: =IF(SUM($11:$11)=COUNTA($H$9:BT$9), "Input for next period", "") ->  | BV9: =IF(SUM($11:$11)=COUNTA($H$9:BU$9), "Input for next period", "") ->  | BW9: =IF(SUM($11:$11)=COUNTA($H$9:BV$9), "Input for next period", "") ->  | BX9: =IF(SUM($11:$11)=COUNTA($H$9:BW$9), "Input for next period", "") ->  | BY9: =IF(SUM($11:$11)=COUNTA($H$9:BX$9), "Input for next period", "") ->  | BZ9: =IF(SUM($11:$11)=COUNTA($H$9:BY$9), "Input for next period", "") -> 
E10: Regulatory period | H10: =IFERROR(IF(INDEX('RAB input'!10:10, MATCH(H$4, 'RAB input'!$4:$4, 0))="", "", INDEX('RAB input'!10:10, MATCH(H$4, 'RAB input'!$4:$4, 0))), "") -> 2019-24 | I10: =IFERROR(IF(INDEX('RAB input'!10:10, MATCH(I$4, 'RAB input'!$4:$4, 0))="", "", INDEX('RAB input'!10:10, MATCH(I$4, 'RAB input'!$4:$4, 0))), "") ->  | J10: =IFERROR(IF(INDEX('RAB input'!10:10, MATCH(J$4, 'RAB input'!$4:$4, 0))="", "", INDEX('RAB input'!10:10, MATCH(J$4, 'RAB input'!$4:$4, 0))), "") ->  | K10: =IFERROR(IF(INDEX('RAB input'!10:10, MATCH(K$4, 'RAB input'!$4:$4, 0))="", "", INDEX('RAB input'!10:10, MATCH(K$4, 'RAB input'!$4:$4, 0))), "") ->  | L10: =IFERROR(IF(INDEX('RAB input'!10:10, MATCH(L$4, 'RAB input'!$4:$4, 0))="", "", INDEX('RAB input'!10:10, MATCH(L$4, 'RAB input'!$4:$4, 0))), "") ->  | M10: =IFERROR(IF(INDEX('RAB input'!10:10, MATCH(M$4, 'RAB input'!$4:$4, 0))="", "", INDEX('RAB input'!10:10, MATCH(M$4, 'RAB input'!$4:$4, 0))), "") ->  | N10: =IFERROR(IF(INDEX('RAB input'!10:10, MATCH(N$4, 'RAB input'!$4:$4, 0))="", "", INDEX('RAB input'!10:10, MATCH(N$4, 'RAB input'!$4:$4, 0))), "") ->  | O10: =IFERROR(IF(INDEX('RAB input'!10:10, MATCH(O$4, 'RAB input'!$4:$4, 0))="", "", INDEX('RAB input'!10:10, MATCH(O$4, 'RAB input'!$4:$4, 0))), "") ->  | P10: =IFERROR(IF(INDEX('RAB input'!10:10, MATCH(P$4, 'RAB input'!$4:$4, 0))="", "", INDEX('RAB input'!10:10, MATCH(P$4, 'RAB input'!$4:$4, 0))), "") ->  | Q10: =IFERROR(IF(INDEX('RAB input'!10:10, MATCH(Q$4, 'RAB input'!$4:$4, 0))="", "", INDEX('RAB input'!10:10, MATCH(Q$4, 'RAB input'!$4:$4, 0))), "") ->  | R10: =IFERROR(IF(INDEX('RAB input'!10:10, MATCH(R$4, 'RAB input'!$4:$4, 0))="", "", INDEX('RAB input'!10:10, MATCH(R$4, 'RAB input'!$4:$4, 0))), "") ->  | S10: =IFERROR(IF(INDEX('RAB input'!10:10, MATCH(S$4, 'RAB input'!$4:$4, 0))="", "", INDEX('RAB input'!10:10, MATCH(S$4, 'RAB input'!$4:$4, 0))), "") ->  | T10: =IFERROR(IF(INDEX('RAB input'!10:10, MATCH(T$4, 'RAB input'!$4:$4, 0))="", "", INDEX('RAB input'!10:10, MATCH(T$4, 'RAB input'!$4:$4, 0))), "") ->  | U10: =IFERROR(IF(INDEX('RAB input'!10:10, MATCH(U$4, 'RAB input'!$4:$4, 0))="", "", INDEX('RAB input'!10:10, MATCH(U$4, 'RAB input'!$4:$4, 0))), "") ->  | V10: =IFERROR(IF(INDEX('RAB input'!10:10, MATCH(V$4, 'RAB input'!$4:$4, 0))="", "", INDEX('RAB input'!10:10, MATCH(V$4, 'RAB input'!$4:$4, 0))), "") ->  | W10: =IFERROR(IF(INDEX('RAB input'!10:10, MATCH(W$4, 'RAB input'!$4:$4, 0))="", "", INDEX('RAB input'!10:10, MATCH(W$4, 'RAB input'!$4:$4, 0))), "") ->  | X10: =IFERROR(IF(INDEX('RAB input'!10:10, MATCH(X$4, 'RAB input'!$4:$4, 0))="", "", INDEX('RAB input'!10:10, MATCH(X$4, 'RAB input'!$4:$4, 0))), "") ->  | Y10: =IFERROR(IF(INDEX('RAB input'!10:10, MATCH(Y$4, 'RAB input'!$4:$4, 0))="", "", INDEX('RAB input'!10:10, MATCH(Y$4, 'RAB input'!$4:$4, 0))), "") ->  | Z10: =IFERROR(IF(INDEX('RAB input'!10:10, MATCH(Z$4, 'RAB input'!$4:$4, 0))="", "", INDEX('RAB input'!10:10, MATCH(Z$4, 'RAB input'!$4:$4, 0))), "") ->  | AA10: =IFERROR(IF(INDEX('RAB input'!10:10, MATCH(AA$4, 'RAB input'!$4:$4, 0))="", "", INDEX('RAB input'!10:10, MATCH(AA$4, 'RAB input'!$4:$4, 0))), "") ->  | AB10: =IFERROR(IF(INDEX('RAB input'!10:10, MATCH(AB$4, 'RAB input'!$4:$4, 0))="", "", INDEX('RAB input'!10:10, MATCH(AB$4, 'RAB input'!$4:$4, 0))), "") ->  | AC10: =IFERROR(IF(INDEX('RAB input'!10:10, MATCH(AC$4, 'RAB input'!$4:$4, 0))="", "", INDEX('RAB input'!10:10, MATCH(AC$4, 'RAB input'!$4:$4, 0))), "") ->  | AD10: =IFERROR(IF(INDEX('RAB input'!10:10, MATCH(AD$4, 'RAB input'!$4:$4, 0))="", "", INDEX('RAB input'!10:10, MATCH(AD$4, 'RAB input'!$4:$4, 0))), "") ->  | AE10: =IFERROR(IF(INDEX('RAB input'!10:10, MATCH(AE$4, 'RAB input'!$4:$4, 0))="", "", INDEX('RAB input'!10:10, MATCH(AE$4, 'RAB input'!$4:$4, 0))), "") ->  | AF10: =IFERROR(IF(INDEX('RAB input'!10:10, MATCH(AF$4, 'RAB input'!$4:$4, 0))="", "", INDEX('RAB input'!10:10, MATCH(AF$4, 'RAB input'!$4:$4, 0))), "") ->  | AG10: =IFERROR(IF(INDEX('RAB input'!10:10, MATCH(AG$4, 'RAB input'!$4:$4, 0))="", "", INDEX('RAB input'!10:10, MATCH(AG$4, 'RAB input'!$4:$4, 0))), "") ->  | AH10: =IFERROR(IF(INDEX('RAB input'!10:10, MATCH(AH$4, 'RAB input'!$4:$4, 0))="", "", INDEX('RAB input'!10:10, MATCH(AH$4, 'RAB input'!$4:$4, 0))), "") ->  | AI10: =IFERROR(IF(INDEX('RAB input'!10:10, MATCH(AI$4, 'RAB input'!$4:$4, 0))="", "", INDEX('RAB input'!10:10, MATCH(AI$4, 'RAB input'!$4:$4, 0))), "") ->  | AJ10: =IFERROR(IF(INDEX('RAB input'!10:10, MATCH(AJ$4, 'RAB input'!$4:$4, 0))="", "", INDEX('RAB input'!10:10, MATCH(AJ$4, 'RAB input'!$4:$4, 0))), "") ->  | AK10: =IFERROR(IF(INDEX('RAB input'!10:10, MATCH(AK$4, 'RAB input'!$4:$4, 0))="", "", INDEX('RAB input'!10:10, MATCH(AK$4, 'RAB input'!$4:$4, 0))), "") ->  | AL10: =IFERROR(IF(INDEX('RAB input'!10:10, MATCH(AL$4, 'RAB input'!$4:$4, 0))="", "", INDEX('RAB input'!10:10, MATCH(AL$4, 'RAB input'!$4:$4, 0))), "") ->  | AM10: =IFERROR(IF(INDEX('RAB input'!10:10, MATCH(AM$4, 'RAB input'!$4:$4, 0))="", "", INDEX('RAB input'!10:10, MATCH(AM$4, 'RAB input'!$4:$4, 0))), "") ->  | AN10: =IFERROR(IF(INDEX('RAB input'!10:10, MATCH(AN$4, 'RAB input'!$4:$4, 0))="", "", INDEX('RAB input'!10:10, MATCH(AN$4, 'RAB input'!$4:$4, 0))), "") ->  | AO10: =IFERROR(IF(INDEX('RAB input'!10:10, MATCH(AO$4, 'RAB input'!$4:$4, 0))="", "", INDEX('RAB input'!10:10, MATCH(AO$4, 'RAB input'!$4:$4, 0))), "") ->  | AP10: =IFERROR(IF(INDEX('RAB input'!10:10, MATCH(AP$4, 'RAB input'!$4:$4, 0))="", "", INDEX('RAB input'!10:10, MATCH(AP$4, 'RAB input'!$4:$4, 0))), "") ->  | AQ10: =IFERROR(IF(INDEX('RAB input'!10:10, MATCH(AQ$4, 'RAB input'!$4:$4, 0))="", "", INDEX('RAB input'!10:10, MATCH(AQ$4, 'RAB input'!$4:$4, 0))), "") ->  | AR10: =IFERROR(IF(INDEX('RAB input'!10:10, MATCH(AR$4, 'RAB input'!$4:$4, 0))="", "", INDEX('RAB input'!10:10, MATCH(AR$4, 'RAB input'!$4:$4, 0))), "") ->  | AS10: =IFERROR(IF(INDEX('RAB input'!10:10, MATCH(AS$4, 'RAB input'!$4:$4, 0))="", "", INDEX('RAB input'!10:10, MATCH(AS$4, 'RAB input'!$4:$4, 0))), "") ->  | AT10: =IFERROR(IF(INDEX('RAB input'!10:10, MATCH(AT$4, 'RAB input'!$4:$4, 0))="", "", INDEX('RAB input'!10:10, MATCH(AT$4, 'RAB input'!$4:$4, 0))), "") ->  | AU10: =IFERROR(IF(INDEX('RAB input'!10:10, MATCH(AU$4, 'RAB input'!$4:$4, 0))="", "", INDEX('RAB input'!10:10, MATCH(AU$4, 'RAB input'!$4:$4, 0))), "") ->  | AV10: =IFERROR(IF(INDEX('RAB input'!10:10, MATCH(AV$4, 'RAB input'!$4:$4, 0))="", "", INDEX('RAB input'!10:10, MATCH(AV$4, 'RAB input'!$4:$4, 0))), "") ->  | AW10: =IFERROR(IF(INDEX('RAB input'!10:10, MATCH(AW$4, 'RAB input'!$4:$4, 0))="", "", INDEX('RAB input'!10:10, MATCH(AW$4, 'RAB input'!$4:$4, 0))), "") ->  | AX10: =IFERROR(IF(INDEX('RAB input'!10:10, MATCH(AX$4, 'RAB input'!$4:$4, 0))="", "", INDEX('RAB input'!10:10, MATCH(AX$4, 'RAB input'!$4:$4, 0))), "") ->  | AY10: =IFERROR(IF(INDEX('RAB input'!10:10, MATCH(AY$4, 'RAB input'!$4:$4, 0))="", "", INDEX('RAB input'!10:10, MATCH(AY$4, 'RAB input'!$4:$4, 0))), "") ->  | AZ10: =IFERROR(IF(INDEX('RAB input'!10:10, MATCH(AZ$4, 'RAB input'!$4:$4, 0))="", "", INDEX('RAB input'!10:10, MATCH(AZ$4, 'RAB input'!$4:$4, 0))), "") ->  | BA10: =IFERROR(IF(INDEX('RAB input'!10:10, MATCH(BA$4, 'RAB input'!$4:$4, 0))="", "", INDEX('RAB input'!10:10, MATCH(BA$4, 'RAB input'!$4:$4, 0))), "") ->  | BB10: =IFERROR(IF(INDEX('RAB input'!10:10, MATCH(BB$4, 'RAB input'!$4:$4, 0))="", "", INDEX('RAB input'!10:10, MATCH(BB$4, 'RAB input'!$4:$4, 0))), "") ->  | BC10: =IFERROR(IF(INDEX('RAB input'!10:10, MATCH(BC$4, 'RAB input'!$4:$4, 0))="", "", INDEX('RAB input'!10:10, MATCH(BC$4, 'RAB input'!$4:$4, 0))), "") ->  | BD10: =IFERROR(IF(INDEX('RAB input'!10:10, MATCH(BD$4, 'RAB input'!$4:$4, 0))="", "", INDEX('RAB input'!10:10, MATCH(BD$4, 'RAB input'!$4:$4, 0))), "") ->  | BE10: =IFERROR(IF(INDEX('RAB input'!10:10, MATCH(BE$4, 'RAB input'!$4:$4, 0))="", "", INDEX('RAB input'!10:10, MATCH(BE$4, 'RAB input'!$4:$4, 0))), "") ->  | BF10: =IFERROR(IF(INDEX('RAB input'!10:10, MATCH(BF$4, 'RAB input'!$4:$4, 0))="", "", INDEX('RAB input'!10:10, MATCH(BF$4, 'RAB input'!$4:$4, 0))), "") ->  | BG10: =IFERROR(IF(INDEX('RAB input'!10:10, MATCH(BG$4, 'RAB input'!$4:$4, 0))="", "", INDEX('RAB input'!10:10, MATCH(BG$4, 'RAB input'!$4:$4, 0))), "") ->  | BH10: =IFERROR(IF(INDEX('RAB input'!10:10, MATCH(BH$4, 'RAB input'!$4:$4, 0))="", "", INDEX('RAB input'!10:10, MATCH(BH$4, 'RAB input'!$4:$4, 0))), "") ->  | BI10: =IFERROR(IF(INDEX('RAB input'!10:10, MATCH(BI$4, 'RAB input'!$4:$4, 0))="", "", INDEX('RAB input'!10:10, MATCH(BI$4, 'RAB input'!$4:$4, 0))), "") ->  | BJ10: =IFERROR(IF(INDEX('RAB input'!10:10, MATCH(BJ$4, 'RAB input'!$4:$4, 0))="", "", INDEX('RAB input'!10:10, MATCH(BJ$4, 'RAB input'!$4:$4, 0))), "") ->  | BK10: =IFERROR(IF(INDEX('RAB input'!10:10, MATCH(BK$4, 'RAB input'!$4:$4, 0))="", "", INDEX('RAB input'!10:10, MATCH(BK$4, 'RAB input'!$4:$4, 0))), "") ->  | BL10: =IFERROR(IF(INDEX('RAB input'!10:10, MATCH(BL$4, 'RAB input'!$4:$4, 0))="", "", INDEX('RAB input'!10:10, MATCH(BL$4, 'RAB input'!$4:$4, 0))), "") ->  | BM10: =IFERROR(IF(INDEX('RAB input'!10:10, MATCH(BM$4, 'RAB input'!$4:$4, 0))="", "", INDEX('RAB input'!10:10, MATCH(BM$4, 'RAB input'!$4:$4, 0))), "") ->  | BN10: =IFERROR(IF(INDEX('RAB input'!10:10, MATCH(BN$4, 'RAB input'!$4:$4, 0))="", "", INDEX('RAB input'!10:10, MATCH(BN$4, 'RAB input'!$4:$4, 0))), "") ->  | BO10: =IFERROR(IF(INDEX('RAB input'!10:10, MATCH(BO$4, 'RAB input'!$4:$4, 0))="", "", INDEX('RAB input'!10:10, MATCH(BO$4, 'RAB input'!$4:$4, 0))), "") ->  | BP10: =IFERROR(IF(INDEX('RAB input'!10:10, MATCH(BP$4, 'RAB input'!$4:$4, 0))="", "", INDEX('RAB input'!10:10, MATCH(BP$4, 'RAB input'!$4:$4, 0))), "") ->  | BQ10: =IFERROR(IF(INDEX('RAB input'!10:10, MATCH(BQ$4, 'RAB input'!$4:$4, 0))="", "", INDEX('RAB input'!10:10, MATCH(BQ$4, 'RAB input'!$4:$4, 0))), "") ->  | BR10: =IFERROR(IF(INDEX('RAB input'!10:10, MATCH(BR$4, 'RAB input'!$4:$4, 0))="", "", INDEX('RAB input'!10:10, MATCH(BR$4, 'RAB input'!$4:$4, 0))), "") ->  | BS10: =IFERROR(IF(INDEX('RAB input'!10:10, MATCH(BS$4, 'RAB input'!$4:$4, 0))="", "", INDEX('RAB input'!10:10, MATCH(BS$4, 'RAB input'!$4:$4, 0))), "") ->  | BT10: =IFERROR(IF(INDEX('RAB input'!10:10, MATCH(BT$4, 'RAB input'!$4:$4, 0))="", "", INDEX('RAB input'!10:10, MATCH(BT$4, 'RAB input'!$4:$4, 0))), "") ->  | BU10: =IFERROR(IF(INDEX('RAB input'!10:10, MATCH(BU$4, 'RAB input'!$4:$4, 0))="", "", INDEX('RAB input'!10:10, MATCH(BU$4, 'RAB input'!$4:$4, 0))), "") ->  | BV10: =IFERROR(IF(INDEX('RAB input'!10:10, MATCH(BV$4, 'RAB input'!$4:$4, 0))="", "", INDEX('RAB input'!10:10, MATCH(BV$4, 'RAB input'!$4:$4, 0))), "") ->  | BW10: =IFERROR(IF(INDEX('RAB input'!10:10, MATCH(BW$4, 'RAB input'!$4:$4, 0))="", "", INDEX('RAB input'!10:10, MATCH(BW$4, 'RAB input'!$4:$4, 0))), "") ->  | BX10: =IFERROR(IF(INDEX('RAB input'!10:10, MATCH(BX$4, 'RAB input'!$4:$4, 0))="", "", INDEX('RAB input'!10:10, MATCH(BX$4, 'RAB input'!$4:$4, 0))), "") ->  | BY10: =IFERROR(IF(INDEX('RAB input'!10:10, MATCH(BY$4, 'RAB input'!$4:$4, 0))="", "", INDEX('RAB input'!10:10, MATCH(BY$4, 'RAB input'!$4:$4, 0))), "") ->  | BZ10: =IFERROR(IF(INDEX('RAB input'!10:10, MATCH(BZ$4, 'RAB input'!$4:$4, 0))="", "", INDEX('RAB input'!10:10, MATCH(BZ$4, 'RAB input'!$4:$4, 0))), "") -> 
E11: Years in regulatory period | H11: =IFERROR(IF(INDEX('RAB input'!11:11, MATCH(H$4, 'RAB input'!$4:$4, 0))="", "", INDEX('RAB input'!11:11, MATCH(H$4, 'RAB input'!$4:$4, 0))), "") -> 5 | I11: =IFERROR(IF(INDEX('RAB input'!11:11, MATCH(I$4, 'RAB input'!$4:$4, 0))="", "", INDEX('RAB input'!11:11, MATCH(I$4, 'RAB input'!$4:$4, 0))), "") ->  | J11: =IFERROR(IF(INDEX('RAB input'!11:11, MATCH(J$4, 'RAB input'!$4:$4, 0))="", "", INDEX('RAB input'!11:11, MATCH(J$4, 'RAB input'!$4:$4, 0))), "") ->  | K11: =IFERROR(IF(INDEX('RAB input'!11:11, MATCH(K$4, 'RAB input'!$4:$4, 0))="", "", INDEX('RAB input'!11:11, MATCH(K$4, 'RAB input'!$4:$4, 0))), "") ->  | L11: =IFERROR(IF(INDEX('RAB input'!11:11, MATCH(L$4, 'RAB input'!$4:$4, 0))="", "", INDEX('RAB input'!11:11, MATCH(L$4, 'RAB input'!$4:$4, 0))), "") ->  | M11: =IFERROR(IF(INDEX('RAB input'!11:11, MATCH(M$4, 'RAB input'!$4:$4, 0))="", "", INDEX('RAB input'!11:11, MATCH(M$4, 'RAB input'!$4:$4, 0))), "") ->  | N11: =IFERROR(IF(INDEX('RAB input'!11:11, MATCH(N$4, 'RAB input'!$4:$4, 0))="", "", INDEX('RAB input'!11:11, MATCH(N$4, 'RAB input'!$4:$4, 0))), "") ->  | O11: =IFERROR(IF(INDEX('RAB input'!11:11, MATCH(O$4, 'RAB input'!$4:$4, 0))="", "", INDEX('RAB input'!11:11, MATCH(O$4, 'RAB input'!$4:$4, 0))), "") ->  | P11: =IFERROR(IF(INDEX('RAB input'!11:11, MATCH(P$4, 'RAB input'!$4:$4, 0))="", "", INDEX('RAB input'!11:11, MATCH(P$4, 'RAB input'!$4:$4, 0))), "") ->  | Q11: =IFERROR(IF(INDEX('RAB input'!11:11, MATCH(Q$4, 'RAB input'!$4:$4, 0))="", "", INDEX('RAB input'!11:11, MATCH(Q$4, 'RAB input'!$4:$4, 0))), "") ->  | R11: =IFERROR(IF(INDEX('RAB input'!11:11, MATCH(R$4, 'RAB input'!$4:$4, 0))="", "", INDEX('RAB input'!11:11, MATCH(R$4, 'RAB input'!$4:$4, 0))), "") ->  | S11: =IFERROR(IF(INDEX('RAB input'!11:11, MATCH(S$4, 'RAB input'!$4:$4, 0))="", "", INDEX('RAB input'!11:11, MATCH(S$4, 'RAB input'!$4:$4, 0))), "") ->  | T11: =IFERROR(IF(INDEX('RAB input'!11:11, MATCH(T$4, 'RAB input'!$4:$4, 0))="", "", INDEX('RAB input'!11:11, MATCH(T$4, 'RAB input'!$4:$4, 0))), "") ->  | U11: =IFERROR(IF(INDEX('RAB input'!11:11, MATCH(U$4, 'RAB input'!$4:$4, 0))="", "", INDEX('RAB input'!11:11, MATCH(U$4, 'RAB input'!$4:$4, 0))), "") ->  | V11: =IFERROR(IF(INDEX('RAB input'!11:11, MATCH(V$4, 'RAB input'!$4:$4, 0))="", "", INDEX('RAB input'!11:11, MATCH(V$4, 'RAB input'!$4:$4, 0))), "") ->  | W11: =IFERROR(IF(INDEX('RAB input'!11:11, MATCH(W$4, 'RAB input'!$4:$4, 0))="", "", INDEX('RAB input'!11:11, MATCH(W$4, 'RAB input'!$4:$4, 0))), "") ->  | X11: =IFERROR(IF(INDEX('RAB input'!11:11, MATCH(X$4, 'RAB input'!$4:$4, 0))="", "", INDEX('RAB input'!11:11, MATCH(X$4, 'RAB input'!$4:$4, 0))), "") ->  | Y11: =IFERROR(IF(INDEX('RAB input'!11:11, MATCH(Y$4, 'RAB input'!$4:$4, 0))="", "", INDEX('RAB input'!11:11, MATCH(Y$4, 'RAB input'!$4:$4, 0))), "") ->  | Z11: =IFERROR(IF(INDEX('RAB input'!11:11, MATCH(Z$4, 'RAB input'!$4:$4, 0))="", "", INDEX('RAB input'!11:11, MATCH(Z$4, 'RAB input'!$4:$4, 0))), "") ->  | AA11: =IFERROR(IF(INDEX('RAB input'!11:11, MATCH(AA$4, 'RAB input'!$4:$4, 0))="", "", INDEX('RAB input'!11:11, MATCH(AA$4, 'RAB input'!$4:$4, 0))), "") ->  | AB11: =IFERROR(IF(INDEX('RAB input'!11:11, MATCH(AB$4, 'RAB input'!$4:$4, 0))="", "", INDEX('RAB input'!11:11, MATCH(AB$4, 'RAB input'!$4:$4, 0))), "") ->  | AC11: =IFERROR(IF(INDEX('RAB input'!11:11, MATCH(AC$4, 'RAB input'!$4:$4, 0))="", "", INDEX('RAB input'!11:11, MATCH(AC$4, 'RAB input'!$4:$4, 0))), "") ->  | AD11: =IFERROR(IF(INDEX('RAB input'!11:11, MATCH(AD$4, 'RAB input'!$4:$4, 0))="", "", INDEX('RAB input'!11:11, MATCH(AD$4, 'RAB input'!$4:$4, 0))), "") ->  | AE11: =IFERROR(IF(INDEX('RAB input'!11:11, MATCH(AE$4, 'RAB input'!$4:$4, 0))="", "", INDEX('RAB input'!11:11, MATCH(AE$4, 'RAB input'!$4:$4, 0))), "") ->  | AF11: =IFERROR(IF(INDEX('RAB input'!11:11, MATCH(AF$4, 'RAB input'!$4:$4, 0))="", "", INDEX('RAB input'!11:11, MATCH(AF$4, 'RAB input'!$4:$4, 0))), "") ->  | AG11: =IFERROR(IF(INDEX('RAB input'!11:11, MATCH(AG$4, 'RAB input'!$4:$4, 0))="", "", INDEX('RAB input'!11:11, MATCH(AG$4, 'RAB input'!$4:$4, 0))), "") ->  | AH11: =IFERROR(IF(INDEX('RAB input'!11:11, MATCH(AH$4, 'RAB input'!$4:$4, 0))="", "", INDEX('RAB input'!11:11, MATCH(AH$4, 'RAB input'!$4:$4, 0))), "") ->  | AI11: =IFERROR(IF(INDEX('RAB input'!11:11, MATCH(AI$4, 'RAB input'!$4:$4, 0))="", "", INDEX('RAB input'!11:11, MATCH(AI$4, 'RAB input'!$4:$4, 0))), "") ->  | AJ11: =IFERROR(IF(INDEX('RAB input'!11:11, MATCH(AJ$4, 'RAB input'!$4:$4, 0))="", "", INDEX('RAB input'!11:11, MATCH(AJ$4, 'RAB input'!$4:$4, 0))), "") ->  | AK11: =IFERROR(IF(INDEX('RAB input'!11:11, MATCH(AK$4, 'RAB input'!$4:$4, 0))="", "", INDEX('RAB input'!11:11, MATCH(AK$4, 'RAB input'!$4:$4, 0))), "") ->  | AL11: =IFERROR(IF(INDEX('RAB input'!11:11, MATCH(AL$4, 'RAB input'!$4:$4, 0))="", "", INDEX('RAB input'!11:11, MATCH(AL$4, 'RAB input'!$4:$4, 0))), "") ->  | AM11: =IFERROR(IF(INDEX('RAB input'!11:11, MATCH(AM$4, 'RAB input'!$4:$4, 0))="", "", INDEX('RAB input'!11:11, MATCH(AM$4, 'RAB input'!$4:$4, 0))), "") ->  | AN11: =IFERROR(IF(INDEX('RAB input'!11:11, MATCH(AN$4, 'RAB input'!$4:$4, 0))="", "", INDEX('RAB input'!11:11, MATCH(AN$4, 'RAB input'!$4:$4, 0))), "") ->  | AO11: =IFERROR(IF(INDEX('RAB input'!11:11, MATCH(AO$4, 'RAB input'!$4:$4, 0))="", "", INDEX('RAB input'!11:11, MATCH(AO$4, 'RAB input'!$4:$4, 0))), "") ->  | AP11: =IFERROR(IF(INDEX('RAB input'!11:11, MATCH(AP$4, 'RAB input'!$4:$4, 0))="", "", INDEX('RAB input'!11:11, MATCH(AP$4, 'RAB input'!$4:$4, 0))), "") ->  | AQ11: =IFERROR(IF(INDEX('RAB input'!11:11, MATCH(AQ$4, 'RAB input'!$4:$4, 0))="", "", INDEX('RAB input'!11:11, MATCH(AQ$4, 'RAB input'!$4:$4, 0))), "") ->  | AR11: =IFERROR(IF(INDEX('RAB input'!11:11, MATCH(AR$4, 'RAB input'!$4:$4, 0))="", "", INDEX('RAB input'!11:11, MATCH(AR$4, 'RAB input'!$4:$4, 0))), "") ->  | AS11: =IFERROR(IF(INDEX('RAB input'!11:11, MATCH(AS$4, 'RAB input'!$4:$4, 0))="", "", INDEX('RAB input'!11:11, MATCH(AS$4, 'RAB input'!$4:$4, 0))), "") ->  | AT11: =IFERROR(IF(INDEX('RAB input'!11:11, MATCH(AT$4, 'RAB input'!$4:$4, 0))="", "", INDEX('RAB input'!11:11, MATCH(AT$4, 'RAB input'!$4:$4, 0))), "") ->  | AU11: =IFERROR(IF(INDEX('RAB input'!11:11, MATCH(AU$4, 'RAB input'!$4:$4, 0))="", "", INDEX('RAB input'!11:11, MATCH(AU$4, 'RAB input'!$4:$4, 0))), "") ->  | AV11: =IFERROR(IF(INDEX('RAB input'!11:11, MATCH(AV$4, 'RAB input'!$4:$4, 0))="", "", INDEX('RAB input'!11:11, MATCH(AV$4, 'RAB input'!$4:$4, 0))), "") ->  | AW11: =IFERROR(IF(INDEX('RAB input'!11:11, MATCH(AW$4, 'RAB input'!$4:$4, 0))="", "", INDEX('RAB input'!11:11, MATCH(AW$4, 'RAB input'!$4:$4, 0))), "") ->  | AX11: =IFERROR(IF(INDEX('RAB input'!11:11, MATCH(AX$4, 'RAB input'!$4:$4, 0))="", "", INDEX('RAB input'!11:11, MATCH(AX$4, 'RAB input'!$4:$4, 0))), "") ->  | AY11: =IFERROR(IF(INDEX('RAB input'!11:11, MATCH(AY$4, 'RAB input'!$4:$4, 0))="", "", INDEX('RAB input'!11:11, MATCH(AY$4, 'RAB input'!$4:$4, 0))), "") ->  | AZ11: =IFERROR(IF(INDEX('RAB input'!11:11, MATCH(AZ$4, 'RAB input'!$4:$4, 0))="", "", INDEX('RAB input'!11:11, MATCH(AZ$4, 'RAB input'!$4:$4, 0))), "") ->  | BA11: =IFERROR(IF(INDEX('RAB input'!11:11, MATCH(BA$4, 'RAB input'!$4:$4, 0))="", "", INDEX('RAB input'!11:11, MATCH(BA$4, 'RAB input'!$4:$4, 0))), "") ->  | BB11: =IFERROR(IF(INDEX('RAB input'!11:11, MATCH(BB$4, 'RAB input'!$4:$4, 0))="", "", INDEX('RAB input'!11:11, MATCH(BB$4, 'RAB input'!$4:$4, 0))), "") ->  | BC11: =IFERROR(IF(INDEX('RAB input'!11:11, MATCH(BC$4, 'RAB input'!$4:$4, 0))="", "", INDEX('RAB input'!11:11, MATCH(BC$4, 'RAB input'!$4:$4, 0))), "") ->  | BD11: =IFERROR(IF(INDEX('RAB input'!11:11, MATCH(BD$4, 'RAB input'!$4:$4, 0))="", "", INDEX('RAB input'!11:11, MATCH(BD$4, 'RAB input'!$4:$4, 0))), "") ->  | BE11: =IFERROR(IF(INDEX('RAB input'!11:11, MATCH(BE$4, 'RAB input'!$4:$4, 0))="", "", INDEX('RAB input'!11:11, MATCH(BE$4, 'RAB input'!$4:$4, 0))), "") ->  | BF11: =IFERROR(IF(INDEX('RAB input'!11:11, MATCH(BF$4, 'RAB input'!$4:$4, 0))="", "", INDEX('RAB input'!11:11, MATCH(BF$4, 'RAB input'!$4:$4, 0))), "") ->  | BG11: =IFERROR(IF(INDEX('RAB input'!11:11, MATCH(BG$4, 'RAB input'!$4:$4, 0))="", "", INDEX('RAB input'!11:11, MATCH(BG$4, 'RAB input'!$4:$4, 0))), "") ->  | BH11: =IFERROR(IF(INDEX('RAB input'!11:11, MATCH(BH$4, 'RAB input'!$4:$4, 0))="", "", INDEX('RAB input'!11:11, MATCH(BH$4, 'RAB input'!$4:$4, 0))), "") ->  | BI11: =IFERROR(IF(INDEX('RAB input'!11:11, MATCH(BI$4, 'RAB input'!$4:$4, 0))="", "", INDEX('RAB input'!11:11, MATCH(BI$4, 'RAB input'!$4:$4, 0))), "") ->  | BJ11: =IFERROR(IF(INDEX('RAB input'!11:11, MATCH(BJ$4, 'RAB input'!$4:$4, 0))="", "", INDEX('RAB input'!11:11, MATCH(BJ$4, 'RAB input'!$4:$4, 0))), "") ->  | BK11: =IFERROR(IF(INDEX('RAB input'!11:11, MATCH(BK$4, 'RAB input'!$4:$4, 0))="", "", INDEX('RAB input'!11:11, MATCH(BK$4, 'RAB input'!$4:$4, 0))), "") ->  | BL11: =IFERROR(IF(INDEX('RAB input'!11:11, MATCH(BL$4, 'RAB input'!$4:$4, 0))="", "", INDEX('RAB input'!11:11, MATCH(BL$4, 'RAB input'!$4:$4, 0))), "") ->  | BM11: =IFERROR(IF(INDEX('RAB input'!11:11, MATCH(BM$4, 'RAB input'!$4:$4, 0))="", "", INDEX('RAB input'!11:11, MATCH(BM$4, 'RAB input'!$4:$4, 0))), "") ->  | BN11: =IFERROR(IF(INDEX('RAB input'!11:11, MATCH(BN$4, 'RAB input'!$4:$4, 0))="", "", INDEX('RAB input'!11:11, MATCH(BN$4, 'RAB input'!$4:$4, 0))), "") ->  | BO11: =IFERROR(IF(INDEX('RAB input'!11:11, MATCH(BO$4, 'RAB input'!$4:$4, 0))="", "", INDEX('RAB input'!11:11, MATCH(BO$4, 'RAB input'!$4:$4, 0))), "") ->  | BP11: =IFERROR(IF(INDEX('RAB input'!11:11, MATCH(BP$4, 'RAB input'!$4:$4, 0))="", "", INDEX('RAB input'!11:11, MATCH(BP$4, 'RAB input'!$4:$4, 0))), "") ->  | BQ11: =IFERROR(IF(INDEX('RAB input'!11:11, MATCH(BQ$4, 'RAB input'!$4:$4, 0))="", "", INDEX('RAB input'!11:11, MATCH(BQ$4, 'RAB input'!$4:$4, 0))), "") ->  | BR11: =IFERROR(IF(INDEX('RAB input'!11:11, MATCH(BR$4, 'RAB input'!$4:$4, 0))="", "", INDEX('RAB input'!11:11, MATCH(BR$4, 'RAB input'!$4:$4, 0))), "") ->  | BS11: =IFERROR(IF(INDEX('RAB input'!11:11, MATCH(BS$4, 'RAB input'!$4:$4, 0))="", "", INDEX('RAB input'!11:11, MATCH(BS$4, 'RAB input'!$4:$4, 0))), "") ->  | BT11: =IFERROR(IF(INDEX('RAB input'!11:11, MATCH(BT$4, 'RAB input'!$4:$4, 0))="", "", INDEX('RAB input'!11:11, MATCH(BT$4, 'RAB input'!$4:$4, 0))), "") ->  | BU11: =IFERROR(IF(INDEX('RAB input'!11:11, MATCH(BU$4, 'RAB input'!$4:$4, 0))="", "", INDEX('RAB input'!11:11, MATCH(BU$4, 'RAB input'!$4:$4, 0))), "") ->  | BV11: =IFERROR(IF(INDEX('RAB input'!11:11, MATCH(BV$4, 'RAB input'!$4:$4, 0))="", "", INDEX('RAB input'!11:11, MATCH(BV$4, 'RAB input'!$4:$4, 0))), "") ->  | BW11: =IFERROR(IF(INDEX('RAB input'!11:11, MATCH(BW$4, 'RAB input'!$4:$4, 0))="", "", INDEX('RAB input'!11:11, MATCH(BW$4, 'RAB input'!$4:$4, 0))), "") ->  | BX11: =IFERROR(IF(INDEX('RAB input'!11:11, MATCH(BX$4, 'RAB input'!$4:$4, 0))="", "", INDEX('RAB input'!11:11, MATCH(BX$4, 'RAB input'!$4:$4, 0))), "") ->  | BY11: =IFERROR(IF(INDEX('RAB input'!11:11, MATCH(BY$4, 'RAB input'!$4:$4, 0))="", "", INDEX('RAB input'!11:11, MATCH(BY$4, 'RAB input'!$4:$4, 0))), "") ->  | BZ11: =IFERROR(IF(INDEX('RAB input'!11:11, MATCH(BZ$4, 'RAB input'!$4:$4, 0))="", "", INDEX('RAB input'!11:11, MATCH(BZ$4, 'RAB input'!$4:$4, 0))), "") -> 
G12: =IF(OR(G$446:G$495="DV"), "DV input required", "") ->  | H12: =IF(AND(OR(H$446:H$495="DV"), H$13=""), "DV input required", "") ->  | I12: =IF(COUNTA($H$12:H$12)<SUM($11:$11), IF(AND(I$446:I$495=""), IF(AND(H$13<>"", I$13=""), "DV input required", H$12), IF(AND(OR(I$446:I$495="DV"), I$13=""), "DV input required", "")), "") ->  | J12: =IF(COUNTA($H$12:I$12)<SUM($11:$11), IF(AND(J$446:J$495=""), IF(AND(I$13<>"", J$13=""), "DV input required", I$12), IF(AND(OR(J$446:J$495="DV"), J$13=""), "DV input required", "")), "") ->  | K12: =IF(COUNTA($H$12:J$12)<SUM($11:$11), IF(AND(K$446:K$495=""), IF(AND(J$13<>"", K$13=""), "DV input required", J$12), IF(AND(OR(K$446:K$495="DV"), K$13=""), "DV input required", "")), "") ->  | L12: =IF(COUNTA($H$12:K$12)<SUM($11:$11), IF(AND(L$446:L$495=""), IF(AND(K$13<>"", L$13=""), "DV input required", K$12), IF(AND(OR(L$446:L$495="DV"), L$13=""), "DV input required", "")), "") ->  | M12: =IF(COUNTA($H$12:L$12)<SUM($11:$11), IF(AND(M$446:M$495=""), IF(AND(L$13<>"", M$13=""), "DV input required", L$12), IF(AND(OR(M$446:M$495="DV"), M$13=""), "DV input required", "")), "") ->  | N12: =IF(COUNTA($H$12:M$12)<SUM($11:$11), IF(AND(N$446:N$495=""), IF(AND(M$13<>"", N$13=""), "DV input required", M$12), IF(AND(OR(N$446:N$495="DV"), N$13=""), "DV input required", "")), "") ->  | O12: =IF(COUNTA($H$12:N$12)<SUM($11:$11), IF(AND(O$446:O$495=""), IF(AND(N$13<>"", O$13=""), "DV input required", N$12), IF(AND(OR(O$446:O$495="DV"), O$13=""), "DV input required", "")), "") ->  | P12: =IF(COUNTA($H$12:O$12)<SUM($11:$11), IF(AND(P$446:P$495=""), IF(AND(O$13<>"", P$13=""), "DV input required", O$12), IF(AND(OR(P$446:P$495="DV"), P$13=""), "DV input required", "")), "") ->  | Q12: =IF(COUNTA($H$12:P$12)<SUM($11:$11), IF(AND(Q$446:Q$495=""), IF(AND(P$13<>"", Q$13=""), "DV input required", P$12), IF(AND(OR(Q$446:Q$495="DV"), Q$13=""), "DV input required", "")), "") ->  | R12: =IF(COUNTA($H$12:Q$12)<SUM($11:$11), IF(AND(R$446:R$495=""), IF(AND(Q$13<>"", R$13=""), "DV input required", Q$12), IF(AND(OR(R$446:R$495="DV"), R$13=""), "DV input required", "")), "") ->  | S12: =IF(COUNTA($H$12:R$12)<SUM($11:$11), IF(AND(S$446:S$495=""), IF(AND(R$13<>"", S$13=""), "DV input required", R$12), IF(AND(OR(S$446:S$495="DV"), S$13=""), "DV input required", "")), "") ->  | T12: =IF(COUNTA($H$12:S$12)<SUM($11:$11), IF(AND(T$446:T$495=""), IF(AND(S$13<>"", T$13=""), "DV input required", S$12), IF(AND(OR(T$446:T$495="DV"), T$13=""), "DV input required", "")), "") ->  | U12: =IF(COUNTA($H$12:T$12)<SUM($11:$11), IF(AND(U$446:U$495=""), IF(AND(T$13<>"", U$13=""), "DV input required", T$12), IF(AND(OR(U$446:U$495="DV"), U$13=""), "DV input required", "")), "") ->  | V12: =IF(COUNTA($H$12:U$12)<SUM($11:$11), IF(AND(V$446:V$495=""), IF(AND(U$13<>"", V$13=""), "DV input required", U$12), IF(AND(OR(V$446:V$495="DV"), V$13=""), "DV input required", "")), "") ->  | W12: =IF(COUNTA($H$12:V$12)<SUM($11:$11), IF(AND(W$446:W$495=""), IF(AND(V$13<>"", W$13=""), "DV input required", V$12), IF(AND(OR(W$446:W$495="DV"), W$13=""), "DV input required", "")), "") ->  | X12: =IF(COUNTA($H$12:W$12)<SUM($11:$11), IF(AND(X$446:X$495=""), IF(AND(W$13<>"", X$13=""), "DV input required", W$12), IF(AND(OR(X$446:X$495="DV"), X$13=""), "DV input required", "")), "") ->  | Y12: =IF(COUNTA($H$12:X$12)<SUM($11:$11), IF(AND(Y$446:Y$495=""), IF(AND(X$13<>"", Y$13=""), "DV input required", X$12), IF(AND(OR(Y$446:Y$495="DV"), Y$13=""), "DV input required", "")), "") ->  | Z12: =IF(COUNTA($H$12:Y$12)<SUM($11:$11), IF(AND(Z$446:Z$495=""), IF(AND(Y$13<>"", Z$13=""), "DV input required", Y$12), IF(AND(OR(Z$446:Z$495="DV"), Z$13=""), "DV input required", "")), "") ->  | AA12: =IF(COUNTA($H$12:Z$12)<SUM($11:$11), IF(AND(AA$446:AA$495=""), IF(AND(Z$13<>"", AA$13=""), "DV input required", Z$12), IF(AND(OR(AA$446:AA$495="DV"), AA$13=""), "DV input required", "")), "") ->  | AB12: =IF(COUNTA($H$12:AA$12)<SUM($11:$11), IF(AND(AB$446:AB$495=""), IF(AND(AA$13<>"", AB$13=""), "DV input required", AA$12), IF(AND(OR(AB$446:AB$495="DV"), AB$13=""), "DV input required", "")), "") ->  | AC12: =IF(COUNTA($H$12:AB$12)<SUM($11:$11), IF(AND(AC$446:AC$495=""), IF(AND(AB$13<>"", AC$13=""), "DV input required", AB$12), IF(AND(OR(AC$446:AC$495="DV"), AC$13=""), "DV input required", "")), "") ->  | AD12: =IF(COUNTA($H$12:AC$12)<SUM($11:$11), IF(AND(AD$446:AD$495=""), IF(AND(AC$13<>"", AD$13=""), "DV input required", AC$12), IF(AND(OR(AD$446:AD$495="DV"), AD$13=""), "DV input required", "")), "") ->  | AE12: =IF(COUNTA($H$12:AD$12)<SUM($11:$11), IF(AND(AE$446:AE$495=""), IF(AND(AD$13<>"", AE$13=""), "DV input required", AD$12), IF(AND(OR(AE$446:AE$495="DV"), AE$13=""), "DV input required", "")), "") ->  | AF12: =IF(COUNTA($H$12:AE$12)<SUM($11:$11), IF(AND(AF$446:AF$495=""), IF(AND(AE$13<>"", AF$13=""), "DV input required", AE$12), IF(AND(OR(AF$446:AF$495="DV"), AF$13=""), "DV input required", "")), "") ->  | AG12: =IF(COUNTA($H$12:AF$12)<SUM($11:$11), IF(AND(AG$446:AG$495=""), IF(AND(AF$13<>"", AG$13=""), "DV input required", AF$12), IF(AND(OR(AG$446:AG$495="DV"), AG$13=""), "DV input required", "")), "") ->  | AH12: =IF(COUNTA($H$12:AG$12)<SUM($11:$11), IF(AND(AH$446:AH$495=""), IF(AND(AG$13<>"", AH$13=""), "DV input required", AG$12), IF(AND(OR(AH$446:AH$495="DV"), AH$13=""), "DV input required", "")), "") ->  | AI12: =IF(COUNTA($H$12:AH$12)<SUM($11:$11), IF(AND(AI$446:AI$495=""), IF(AND(AH$13<>"", AI$13=""), "DV input required", AH$12), IF(AND(OR(AI$446:AI$495="DV"), AI$13=""), "DV input required", "")), "") ->  | AJ12: =IF(COUNTA($H$12:AI$12)<SUM($11:$11), IF(AND(AJ$446:AJ$495=""), IF(AND(AI$13<>"", AJ$13=""), "DV input required", AI$12), IF(AND(OR(AJ$446:AJ$495="DV"), AJ$13=""), "DV input required", "")), "") ->  | AK12: =IF(COUNTA($H$12:AJ$12)<SUM($11:$11), IF(AND(AK$446:AK$495=""), IF(AND(AJ$13<>"", AK$13=""), "DV input required", AJ$12), IF(AND(OR(AK$446:AK$495="DV"), AK$13=""), "DV input required", "")), "") ->  | AL12: =IF(COUNTA($H$12:AK$12)<SUM($11:$11), IF(AND(AL$446:AL$495=""), IF(AND(AK$13<>"", AL$13=""), "DV input required", AK$12), IF(AND(OR(AL$446:AL$495="DV"), AL$13=""), "DV input required", "")), "") ->  | AM12: =IF(COUNTA($H$12:AL$12)<SUM($11:$11), IF(AND(AM$446:AM$495=""), IF(AND(AL$13<>"", AM$13=""), "DV input required", AL$12), IF(AND(OR(AM$446:AM$495="DV"), AM$13=""), "DV input required", "")), "") ->  | AN12: =IF(COUNTA($H$12:AM$12)<SUM($11:$11), IF(AND(AN$446:AN$495=""), IF(AND(AM$13<>"", AN$13=""), "DV input required", AM$12), IF(AND(OR(AN$446:AN$495="DV"), AN$13=""), "DV input required", "")), "") ->  | AO12: =IF(COUNTA($H$12:AN$12)<SUM($11:$11), IF(AND(AO$446:AO$495=""), IF(AND(AN$13<>"", AO$13=""), "DV input required", AN$12), IF(AND(OR(AO$446:AO$495="DV"), AO$13=""), "DV input required", "")), "") ->  | AP12: =IF(COUNTA($H$12:AO$12)<SUM($11:$11), IF(AND(AP$446:AP$495=""), IF(AND(AO$13<>"", AP$13=""), "DV input required", AO$12), IF(AND(OR(AP$446:AP$495="DV"), AP$13=""), "DV input required", "")), "") ->  | AQ12: =IF(COUNTA($H$12:AP$12)<SUM($11:$11), IF(AND(AQ$446:AQ$495=""), IF(AND(AP$13<>"", AQ$13=""), "DV input required", AP$12), IF(AND(OR(AQ$446:AQ$495="DV"), AQ$13=""), "DV input required", "")), "") ->  | AR12: =IF(COUNTA($H$12:AQ$12)<SUM($11:$11), IF(AND(AR$446:AR$495=""), IF(AND(AQ$13<>"", AR$13=""), "DV input required", AQ$12), IF(AND(OR(AR$446:AR$495="DV"), AR$13=""), "DV input required", "")), "") ->  | AS12: =IF(COUNTA($H$12:AR$12)<SUM($11:$11), IF(AND(AS$446:AS$495=""), IF(AND(AR$13<>"", AS$13=""), "DV input required", AR$12), IF(AND(OR(AS$446:AS$495="DV"), AS$13=""), "DV input required", "")), "") ->  | AT12: =IF(COUNTA($H$12:AS$12)<SUM($11:$11), IF(AND(AT$446:AT$495=""), IF(AND(AS$13<>"", AT$13=""), "DV input required", AS$12), IF(AND(OR(AT$446:AT$495="DV"), AT$13=""), "DV input required", "")), "") ->  | AU12: =IF(COUNTA($H$12:AT$12)<SUM($11:$11), IF(AND(AU$446:AU$495=""), IF(AND(AT$13<>"", AU$13=""), "DV input required", AT$12), IF(AND(OR(AU$446:AU$495="DV"), AU$13=""), "DV input required", "")), "") ->  | AV12: =IF(COUNTA($H$12:AU$12)<SUM($11:$11), IF(AND(AV$446:AV$495=""), IF(AND(AU$13<>"", AV$13=""), "DV input required", AU$12), IF(AND(OR(AV$446:AV$495="DV"), AV$13=""), "DV input required", "")), "") ->  | AW12: =IF(COUNTA($H$12:AV$12)<SUM($11:$11), IF(AND(AW$446:AW$495=""), IF(AND(AV$13<>"", AW$13=""), "DV input required", AV$12), IF(AND(OR(AW$446:AW$495="DV"), AW$13=""), "DV input required", "")), "") ->  | AX12: =IF(COUNTA($H$12:AW$12)<SUM($11:$11), IF(AND(AX$446:AX$495=""), IF(AND(AW$13<>"", AX$13=""), "DV input required", AW$12), IF(AND(OR(AX$446:AX$495="DV"), AX$13=""), "DV input required", "")), "") ->  | AY12: =IF(COUNTA($H$12:AX$12)<SUM($11:$11), IF(AND(AY$446:AY$495=""), IF(AND(AX$13<>"", AY$13=""), "DV input required", AX$12), IF(AND(OR(AY$446:AY$495="DV"), AY$13=""), "DV input required", "")), "") ->  | AZ12: =IF(COUNTA($H$12:AY$12)<SUM($11:$11), IF(AND(AZ$446:AZ$495=""), IF(AND(AY$13<>"", AZ$13=""), "DV input required", AY$12), IF(AND(OR(AZ$446:AZ$495="DV"), AZ$13=""), "DV input required", "")), "") ->  | BA12: =IF(COUNTA($H$12:AZ$12)<SUM($11:$11), IF(AND(BA$446:BA$495=""), IF(AND(AZ$13<>"", BA$13=""), "DV input required", AZ$12), IF(AND(OR(BA$446:BA$495="DV"), BA$13=""), "DV input required", "")), "") ->  | BB12: =IF(COUNTA($H$12:BA$12)<SUM($11:$11), IF(AND(BB$446:BB$495=""), IF(AND(BA$13<>"", BB$13=""), "DV input required", BA$12), IF(AND(OR(BB$446:BB$495="DV"), BB$13=""), "DV input required", "")), "") ->  | BC12: =IF(COUNTA($H$12:BB$12)<SUM($11:$11), IF(AND(BC$446:BC$495=""), IF(AND(BB$13<>"", BC$13=""), "DV input required", BB$12), IF(AND(OR(BC$446:BC$495="DV"), BC$13=""), "DV input required", "")), "") ->  | BD12: =IF(COUNTA($H$12:BC$12)<SUM($11:$11), IF(AND(BD$446:BD$495=""), IF(AND(BC$13<>"", BD$13=""), "DV input required", BC$12), IF(AND(OR(BD$446:BD$495="DV"), BD$13=""), "DV input required", "")), "") ->  | BE12: =IF(COUNTA($H$12:BD$12)<SUM($11:$11), IF(AND(BE$446:BE$495=""), IF(AND(BD$13<>"", BE$13=""), "DV input required", BD$12), IF(AND(OR(BE$446:BE$495="DV"), BE$13=""), "DV input required", "")), "") ->  | BF12: =IF(COUNTA($H$12:BE$12)<SUM($11:$11), IF(AND(BF$446:BF$495=""), IF(AND(BE$13<>"", BF$13=""), "DV input required", BE$12), IF(AND(OR(BF$446:BF$495="DV"), BF$13=""), "DV input required", "")), "") ->  | BG12: =IF(COUNTA($H$12:BF$12)<SUM($11:$11), IF(AND(BG$446:BG$495=""), IF(AND(BF$13<>"", BG$13=""), "DV input required", BF$12), IF(AND(OR(BG$446:BG$495="DV"), BG$13=""), "DV input required", "")), "") ->  | BH12: =IF(COUNTA($H$12:BG$12)<SUM($11:$11), IF(AND(BH$446:BH$495=""), IF(AND(BG$13<>"", BH$13=""), "DV input required", BG$12), IF(AND(OR(BH$446:BH$495="DV"), BH$13=""), "DV input required", "")), "") ->  | BI12: =IF(COUNTA($H$12:BH$12)<SUM($11:$11), IF(AND(BI$446:BI$495=""), IF(AND(BH$13<>"", BI$13=""), "DV input required", BH$12), IF(AND(OR(BI$446:BI$495="DV"), BI$13=""), "DV input required", "")), "") ->  | BJ12: =IF(COUNTA($H$12:BI$12)<SUM($11:$11), IF(AND(BJ$446:BJ$495=""), IF(AND(BI$13<>"", BJ$13=""), "DV input required", BI$12), IF(AND(OR(BJ$446:BJ$495="DV"), BJ$13=""), "DV input required", "")), "") ->  | BK12: =IF(COUNTA($H$12:BJ$12)<SUM($11:$11), IF(AND(BK$446:BK$495=""), IF(AND(BJ$13<>"", BK$13=""), "DV input required", BJ$12), IF(AND(OR(BK$446:BK$495="DV"), BK$13=""), "DV input required", "")), "") ->  | BL12: =IF(COUNTA($H$12:BK$12)<SUM($11:$11), IF(AND(BL$446:BL$495=""), IF(AND(BK$13<>"", BL$13=""), "DV input required", BK$12), IF(AND(OR(BL$446:BL$495="DV"), BL$13=""), "DV input required", "")), "") ->  | BM12: =IF(COUNTA($H$12:BL$12)<SUM($11:$11), IF(AND(BM$446:BM$495=""), IF(AND(BL$13<>"", BM$13=""), "DV input required", BL$12), IF(AND(OR(BM$446:BM$495="DV"), BM$13=""), "DV input required", "")), "") ->  | BN12: =IF(COUNTA($H$12:BM$12)<SUM($11:$11), IF(AND(BN$446:BN$495=""), IF(AND(BM$13<>"", BN$13=""), "DV input required", BM$12), IF(AND(OR(BN$446:BN$495="DV"), BN$13=""), "DV input required", "")), "") ->  | BO12: =IF(COUNTA($H$12:BN$12)<SUM($11:$11), IF(AND(BO$446:BO$495=""), IF(AND(BN$13<>"", BO$13=""), "DV input required", BN$12), IF(AND(OR(BO$446:BO$495="DV"), BO$13=""), "DV input required", "")), "") ->  | BP12: =IF(COUNTA($H$12:BO$12)<SUM($11:$11), IF(AND(BP$446:BP$495=""), IF(AND(BO$13<>"", BP$13=""), "DV input required", BO$12), IF(AND(OR(BP$446:BP$495="DV"), BP$13=""), "DV input required", "")), "") ->  | BQ12: =IF(COUNTA($H$12:BP$12)<SUM($11:$11), IF(AND(BQ$446:BQ$495=""), IF(AND(BP$13<>"", BQ$13=""), "DV input required", BP$12), IF(AND(OR(BQ$446:BQ$495="DV"), BQ$13=""), "DV input required", "")), "") ->  | BR12: =IF(COUNTA($H$12:BQ$12)<SUM($11:$11), IF(AND(BR$446:BR$495=""), IF(AND(BQ$13<>"", BR$13=""), "DV input required", BQ$12), IF(AND(OR(BR$446:BR$495="DV"), BR$13=""), "DV input required", "")), "") ->  | BS12: =IF(COUNTA($H$12:BR$12)<SUM($11:$11), IF(AND(BS$446:BS$495=""), IF(AND(BR$13<>"", BS$13=""), "DV input required", BR$12), IF(AND(OR(BS$446:BS$495="DV"), BS$13=""), "DV input required", "")), "") ->  | BT12: =IF(COUNTA($H$12:BS$12)<SUM($11:$11), IF(AND(BT$446:BT$495=""), IF(AND(BS$13<>"", BT$13=""), "DV input required", BS$12), IF(AND(OR(BT$446:BT$495="DV"), BT$13=""), "DV input required", "")), "") ->  | BU12: =IF(COUNTA($H$12:BT$12)<SUM($11:$11), IF(AND(BU$446:BU$495=""), IF(AND(BT$13<>"", BU$13=""), "DV input required", BT$12), IF(AND(OR(BU$446:BU$495="DV"), BU$13=""), "DV input required", "")), "") ->  | BV12: =IF(COUNTA($H$12:BU$12)<SUM($11:$11), IF(AND(BV$446:BV$495=""), IF(AND(BU$13<>"", BV$13=""), "DV input required", BU$12), IF(AND(OR(BV$446:BV$495="DV"), BV$13=""), "DV input required", "")), "") ->  | BW12: =IF(COUNTA($H$12:BV$12)<SUM($11:$11), IF(AND(BW$446:BW$495=""), IF(AND(BV$13<>"", BW$13=""), "DV input required", BV$12), IF(AND(OR(BW$446:BW$495="DV"), BW$13=""), "DV input required", "")), "") ->  | BX12: =IF(COUNTA($H$12:BW$12)<SUM($11:$11), IF(AND(BX$446:BX$495=""), IF(AND(BW$13<>"", BX$13=""), "DV input required", BW$12), IF(AND(OR(BX$446:BX$495="DV"), BX$13=""), "DV input required", "")), "") ->  | BY12: =IF(COUNTA($H$12:BX$12)<SUM($11:$11), IF(AND(BY$446:BY$495=""), IF(AND(BX$13<>"", BY$13=""), "DV input required", BX$12), IF(AND(OR(BY$446:BY$495="DV"), BY$13=""), "DV input required", "")), "") ->  | BZ12: =IF(COUNTA($H$12:BY$12)<SUM($11:$11), IF(AND(BZ$446:BZ$495=""), IF(AND(BY$13<>"", BZ$13=""), "DV input required", BY$12), IF(AND(OR(BZ$446:BZ$495="DV"), BZ$13=""), "DV input required", "")), "") -> 
E13: Diminishing value multiplier | G13: 2 | H13: 2 | I13: 2 | J13: 2 | K13: 2 | L13: 2
D15: Starting TAB and actual gross capex - As incurred ($m, nominal)
E16: Asset class | G16: ="TAB (opening as at "&$H$4&")" -> TAB (opening as at 2019-20) | H16: ="Actual gross capex ("&H$4&")" -> Actual gross capex (2019-20) | I16: =IF(COUNTA($H$16:H$16)<SUM($11:$11), "Actual gross capex ("&I$4&")", "") -> Actual gross capex (2020-21) | J16: =IF(COUNTA($H$16:I$16)<SUM($11:$11), "Actual gross capex ("&J$4&")", "") -> Actual gross capex (2021-22) | K16: =IF(COUNTA($H$16:J$16)<SUM($11:$11), "Actual gross capex ("&K$4&")", "") -> Actual gross capex (2022-23) | L16: =IF(COUNTA($H$16:K$16)<SUM($11:$11), "Actual gross capex ("&L$4&")", "") -> Actual gross capex (2023-24) | M16: =IF(COUNTA($H$16:L$16)<SUM($11:$11), "Actual gross capex ("&M$4&")", "") ->  | N16: =IF(COUNTA($H$16:M$16)<SUM($11:$11), "Actual gross capex ("&N$4&")", "") ->  | O16: =IF(COUNTA($H$16:N$16)<SUM($11:$11), "Actual gross capex ("&O$4&")", "") ->  | P16: =IF(COUNTA($H$16:O$16)<SUM($11:$11), "Actual gross capex ("&P$4&")", "") ->  | Q16: =IF(COUNTA($H$16:P$16)<SUM($11:$11), "Actual gross capex ("&Q$4&")", "") ->  | R16: =IF(COUNTA($H$16:Q$16)<SUM($11:$11), "Actual gross capex ("&R$4&")", "") ->  | S16: =IF(COUNTA($H$16:R$16)<SUM($11:$11), "Actual gross capex ("&S$4&")", "") ->  | T16: =IF(COUNTA($H$16:S$16)<SUM($11:$11), "Actual gross capex ("&T$4&")", "") ->  | U16: =IF(COUNTA($H$16:T$16)<SUM($11:$11), "Actual gross capex ("&U$4&")", "") ->  | V16: =IF(COUNTA($H$16:U$16)<SUM($11:$11), "Actual gross capex ("&V$4&")", "") ->  | W16: =IF(COUNTA($H$16:V$16)<SUM($11:$11), "Actual gross capex ("&W$4&")", "") ->  | X16: =IF(COUNTA($H$16:W$16)<SUM($11:$11), "Actual gross capex ("&X$4&")", "") ->  | Y16: =IF(COUNTA($H$16:X$16)<SUM($11:$11), "Actual gross capex ("&Y$4&")", "") ->  | Z16: =IF(COUNTA($H$16:Y$16)<SUM($11:$11), "Actual gross capex ("&Z$4&")", "") ->  | AA16: =IF(COUNTA($H$16:Z$16)<SUM($11:$11), "Actual gross capex ("&AA$4&")", "") ->  | AB16: =IF(COUNTA($H$16:AA$16)<SUM($11:$11), "Actual gross capex ("&AB$4&")", "") ->  | AC16: =IF(COUNTA($H$16:AB$16)<SUM($11:$11), "Actual gross capex ("&AC$4&")", "") ->  | AD16: =IF(COUNTA($H$16:AC$16)<SUM($11:$11), "Actual gross capex ("&AD$4&")", "") ->  | AE16: =IF(COUNTA($H$16:AD$16)<SUM($11:$11), "Actual gross capex ("&AE$4&")", "") ->  | AF16: =IF(COUNTA($H$16:AE$16)<SUM($11:$11), "Actual gross capex ("&AF$4&")", "") ->  | AG16: =IF(COUNTA($H$16:AF$16)<SUM($11:$11), "Actual gross capex ("&AG$4&")", "") ->  | AH16: =IF(COUNTA($H$16:AG$16)<SUM($11:$11), "Actual gross capex ("&AH$4&")", "") ->  | AI16: =IF(COUNTA($H$16:AH$16)<SUM($11:$11), "Actual gross capex ("&AI$4&")", "") ->  | AJ16: =IF(COUNTA($H$16:AI$16)<SUM($11:$11), "Actual gross capex ("&AJ$4&")", "") ->  | AK16: =IF(COUNTA($H$16:AJ$16)<SUM($11:$11), "Actual gross capex ("&AK$4&")", "") ->  | AL16: =IF(COUNTA($H$16:AK$16)<SUM($11:$11), "Actual gross capex ("&AL$4&")", "") ->  | AM16: =IF(COUNTA($H$16:AL$16)<SUM($11:$11), "Actual gross capex ("&AM$4&")", "") ->  | AN16: =IF(COUNTA($H$16:AM$16)<SUM($11:$11), "Actual gross capex ("&AN$4&")", "") ->  | AO16: =IF(COUNTA($H$16:AN$16)<SUM($11:$11), "Actual gross capex ("&AO$4&")", "") ->  | AP16: =IF(COUNTA($H$16:AO$16)<SUM($11:$11), "Actual gross capex ("&AP$4&")", "") ->  | AQ16: =IF(COUNTA($H$16:AP$16)<SUM($11:$11), "Actual gross capex ("&AQ$4&")", "") ->  | AR16: =IF(COUNTA($H$16:AQ$16)<SUM($11:$11), "Actual gross capex ("&AR$4&")", "") ->  | AS16: =IF(COUNTA($H$16:AR$16)<SUM($11:$11), "Actual gross capex ("&AS$4&")", "") ->  | AT16: =IF(COUNTA($H$16:AS$16)<SUM($11:$11), "Actual gross capex ("&AT$4&")", "") ->  | AU16: =IF(COUNTA($H$16:AT$16)<SUM($11:$11), "Actual gross capex ("&AU$4&")", "") ->  | AV16: =IF(COUNTA($H$16:AU$16)<SUM($11:$11), "Actual gross capex ("&AV$4&")", "") ->  | AW16: =IF(COUNTA($H$16:AV$16)<SUM($11:$11), "Actual gross capex ("&AW$4&")", "") ->  | AX16: =IF(COUNTA($H$16:AW$16)<SUM($11:$11), "Actual gross capex ("&AX$4&")", "") ->  | AY16: =IF(COUNTA($H$16:AX$16)<SUM($11:$11), "Actual gross capex ("&AY$4&")", "") ->  | AZ16: =IF(COUNTA($H$16:AY$16)<SUM($11:$11), "Actual gross capex ("&AZ$4&")", "") ->  | BA16: =IF(COUNTA($H$16:AZ$16)<SUM($11:$11), "Actual gross capex ("&BA$4&")", "") ->  | BB16: =IF(COUNTA($H$16:BA$16)<SUM($11:$11), "Actual gross capex ("&BB$4&")", "") ->  | BC16: =IF(COUNTA($H$16:BB$16)<SUM($11:$11), "Actual gross capex ("&BC$4&")", "") ->  | BD16: =IF(COUNTA($H$16:BC$16)<SUM($11:$11), "Actual gross capex ("&BD$4&")", "") ->  | BE16: =IF(COUNTA($H$16:BD$16)<SUM($11:$11), "Actual gross capex ("&BE$4&")", "") ->  | BF16: =IF(COUNTA($H$16:BE$16)<SUM($11:$11), "Actual gross capex ("&BF$4&")", "") ->  | BG16: =IF(COUNTA($H$16:BF$16)<SUM($11:$11), "Actual gross capex ("&BG$4&")", "") ->  | BH16: =IF(COUNTA($H$16:BG$16)<SUM($11:$11), "Actual gross capex ("&BH$4&")", "") ->  | BI16: =IF(COUNTA($H$16:BH$16)<SUM($11:$11), "Actual gross capex ("&BI$4&")", "") ->  | BJ16: =IF(COUNTA($H$16:BI$16)<SUM($11:$11), "Actual gross capex ("&BJ$4&")", "") ->  | BK16: =IF(COUNTA($H$16:BJ$16)<SUM($11:$11), "Actual gross capex ("&BK$4&")", "") ->  | BL16: =IF(COUNTA($H$16:BK$16)<SUM($11:$11), "Actual gross capex ("&BL$4&")", "") ->  | BM16: =IF(COUNTA($H$16:BL$16)<SUM($11:$11), "Actual gross capex ("&BM$4&")", "") ->  | BN16: =IF(COUNTA($H$16:BM$16)<SUM($11:$11), "Actual gross capex ("&BN$4&")", "") ->  | BO16: =IF(COUNTA($H$16:BN$16)<SUM($11:$11), "Actual gross capex ("&BO$4&")", "") ->  | BP16: =IF(COUNTA($H$16:BO$16)<SUM($11:$11), "Actual gross capex ("&BP$4&")", "") ->  | BQ16: =IF(COUNTA($H$16:BP$16)<SUM($11:$11), "Actual gross capex ("&BQ$4&")", "") ->  | BR16: =IF(COUNTA($H$16:BQ$16)<SUM($11:$11), "Actual gross capex ("&BR$4&")", "") ->  | BS16: =IF(COUNTA($H$16:BR$16)<SUM($11:$11), "Actual gross capex ("&BS$4&")", "") ->  | BT16: =IF(COUNTA($H$16:BS$16)<SUM($11:$11), "Actual gross capex ("&BT$4&")", "") ->  | BU16: =IF(COUNTA($H$16:BT$16)<SUM($11:$11), "Actual gross capex ("&BU$4&")", "") ->  | BV16: =IF(COUNTA($H$16:BU$16)<SUM($11:$11), "Actual gross capex ("&BV$4&")", "") ->  | BW16: =IF(COUNTA($H$16:BV$16)<SUM($11:$11), "Actual gross capex ("&BW$4&")", "") ->  | BX16: =IF(COUNTA($H$16:BW$16)<SUM($11:$11), "Actual gross capex ("&BX$4&")", "") ->  | BY16: =IF(COUNTA($H$16:BX$16)<SUM($11:$11), "Actual gross capex ("&BY$4&")", "") ->  | BZ16: =IF(COUNTA($H$16:BY$16)<SUM($11:$11), "Actual gross capex ("&BZ$4&")", "") -> 
D18: 1 | E18: ='RAB input'!E25 -> Substations | G18: 297.8565436 | H18: ='RAB input'!M25 -> 15.99101865 | I18: ='RAB input'!N25 -> 9.88345569 | J18: ='RAB input'!O25 -> 8.509179865 | K18: ='RAB input'!P25 -> 9.029303 | L18: ='RAB input'!Q25 -> 25.6905376
D19: 2 | E19: ='RAB input'!E26 -> Distribution Lines | G19: 335.469578 | H19: ='RAB input'!M26 -> 11.64235166 | I19: ='RAB input'!N26 -> 12.99743517 | J19: ='RAB input'!O26 -> 19.68813023 | K19: ='RAB input'!P26 -> 32.274641 | L19: ='RAB input'!Q26 -> 32.76932259
D20: 3 | E20: ='RAB input'!E27 -> Transmission Lines | G20: 62.14289693 | H20: ='RAB input'!M27 -> 0.89620874 | I20: ='RAB input'!N27 -> 1.633001464 | J20: ='RAB input'!O27 -> 2.373318089 | K20: ='RAB input'!P27 -> 2.045814 | L20: ='RAB input'!Q27 -> 5.716812587
D21: 4 | E21: ='RAB input'!E28 -> LV Services | G21: 7.600689921 | H21: ='RAB input'!M28 -> 0.6438356423 | I21: ='RAB input'!N28 -> 1.093957902 | J21: ='RAB input'!O28 -> 2.134189822 | K21: ='RAB input'!P28 -> 2.118855 | L21: ='RAB input'!Q28 -> 2.708345606
D22: 5 | E22: ='RAB input'!E29 -> Distribution Substations | G22: 75.86338872 | H22: ='RAB input'!M29 -> 5.616238728 | I22: ='RAB input'!N29 -> 5.427435575 | J22: ='RAB input'!O29 -> 6.900696482 | K22: ='RAB input'!P29 -> 8.589874 | L22: ='RAB input'!Q29 -> 4.019344213
D23: 6 | E23: ='RAB input'!E30 -> Distribution Switchgear | G23: 39.46066684 | H23: ='RAB input'!M30 -> 1.998344609 | I23: ='RAB input'!N30 -> 3.171634479 | J23: ='RAB input'!O30 -> 2.664988646 | K23: ='RAB input'!P30 -> 4.17321 | L23: ='RAB input'!Q30 -> 3.187489722
D24: 7 | E24: ='RAB input'!E31 -> Protection | G24: 37.41101158 | H24: ='RAB input'!M31 -> 1.507008138 | I24: ='RAB input'!N31 -> 1.540067057 | J24: ='RAB input'!O31 -> 3.021105875 | K24: ='RAB input'!P31 -> 4.620397 | L24: ='RAB input'!Q31 -> 5.513393375
D25: 8 | E25: ='RAB input'!E32 -> SCADA | G25: 8.670141305 | H25: ='RAB input'!M32 -> 1.615589926 | I25: ='RAB input'!N32 -> 1.386807275 | J25: ='RAB input'!O32 -> 1.574275985 | K25: ='RAB input'!P32 -> 2.86388 | L25: ='RAB input'!Q32 -> 7.692160869
D26: 9 | E26: ='RAB input'!E33 -> Communications | G26: 20.90989478 | H26: ='RAB input'!M33 -> 2.109418005 | I26: ='RAB input'!N33 -> 1.780888012 | J26: ='RAB input'!O33 -> 2.030567677 | K26: ='RAB input'!P33 -> 4.703654 | L26: ='RAB input'!Q33 -> 2.55597313
D27: 10 | E27: ='RAB input'!E34 -> Land and Easements | G27: 9.512112283 | H27: ='RAB input'!M34 -> 0 | I27: ='RAB input'!N34 -> 0 | J27: ='RAB input'!O34 -> 0 | K27: ='RAB input'!P34 -> -0.126532 | L27: ='RAB input'!Q34 -> 0
D28: 11 | E28: ='RAB input'!E35 -> Property | G28: 12.00129128 | H28: ='RAB input'!M35 -> 0.5070368885 | I28: ='RAB input'!N35 -> 0.4940832645 | J28: ='RAB input'!O35 -> 0.2824025859 | K28: ='RAB input'!P35 -> 0.446373 | L28: ='RAB input'!Q35 -> 1.819531336
D29: 12 | E29: ='RAB input'!E36 -> IT and Communications | G29: 6.721024932 | H29: ='RAB input'!M36 -> 6.419140989 | I29: ='RAB input'!N36 -> 1.648793124 | J29: ='RAB input'!O36 -> 5.012250871 | K29: ='RAB input'!P36 -> 22.942543 | L29: ='RAB input'!Q36 -> 25.43462629
D30: 13 | E30: ='RAB input'!E37 -> Motor Vehicles | G30: 0.0545388382 | H30: ='RAB input'!M37 -> 0.06649450071 | I30: ='RAB input'!N37 -> 0.4971987808 | J30: ='RAB input'!O37 -> 0.1197421212 | K30: ='RAB input'!P37 -> 0.153596 | L30: ='RAB input'!Q37 -> 0
D31: 14 | E31: ='RAB input'!E38 -> Plant and Equipment | G31: 6.9239692 | H31: ='RAB input'!M38 -> 0.8833245347 | I31: ='RAB input'!N38 -> 2.222045679 | J31: ='RAB input'!O38 -> 1.91415293 | K31: ='RAB input'!P38 -> 2.146753 | L31: ='RAB input'!Q38 -> 1.646753328
D32: 15 | E32: ='RAB input'!E39 -> Property Leases | G32: 0 | H32: ='RAB input'!M39 -> 3.26957368 | I32: ='RAB input'!N39 -> 0.8178070878 | J32: ='RAB input'!O39 -> 9.796005411 | K32: ='RAB input'!P39 -> 1.080617 | L32: ='RAB input'!Q39 -> 5.253089645
D33: 16 | E33: ='RAB input'!E40 -> Fleet Leases | G33: 0 | H33: ='RAB input'!M40 -> 14.27709501 | I33: ='RAB input'!N40 -> 2.444284259 | J33: ='RAB input'!O40 -> 2.74303557 | K33: ='RAB input'!P40 -> 2.688565 | L33: ='RAB input'!Q40 -> 2.324638664
D34: 17 | E34: ='RAB input'!E41 -> 0 | G34: 0 | H34: ='RAB input'!M41 -> 0 | I34: ='RAB input'!N41 -> 0 | J34: ='RAB input'!O41 -> 0 | K34: ='RAB input'!P41 -> 0 | L34: ='RAB input'!Q41 -> 0
D35: 18 | E35: ='RAB input'!E42 -> 0 | G35: 0 | H35: ='RAB input'!M42 -> 0 | I35: ='RAB input'!N42 -> 0 | J35: ='RAB input'!O42 -> 0 | K35: ='RAB input'!P42 -> 0 | L35: ='RAB input'!Q42 -> 0
D36: 19 | E36: ='RAB input'!E43 -> 0 | G36: 0 | H36: ='RAB input'!M43 -> 0 | I36: ='RAB input'!N43 -> 0 | J36: ='RAB input'!O43 -> 0 | K36: ='RAB input'!P43 -> 0 | L36: ='RAB input'!Q43 -> 0
D37: 20 | E37: ='RAB input'!E44 -> 0 | G37: 0 | H37: ='RAB input'!M44 -> 0 | I37: ='RAB input'!N44 -> 0 | J37: ='RAB input'!O44 -> 0 | K37: ='RAB input'!P44 -> 0 | L37: ='RAB input'!Q44 -> 0
D38: 21 | E38: ='RAB input'!E45 -> 0 | G38: 0 | H38: ='RAB input'!M45 -> 0 | I38: ='RAB input'!N45 -> 0 | J38: ='RAB input'!O45 -> 0 | K38: ='RAB input'!P45 -> 0 | L38: ='RAB input'!Q45 -> 0
D39: 22 | E39: ='RAB input'!E46 -> 0 | G39: 0 | H39: ='RAB input'!M46 -> 0 | I39: ='RAB input'!N46 -> 0 | J39: ='RAB input'!O46 -> 0 | K39: ='RAB input'!P46 -> 0 | L39: ='RAB input'!Q46 -> 0
D40: 23 | E40: ='RAB input'!E47 -> 0 | G40: 0 | H40: ='RAB input'!M47 -> 0 | I40: ='RAB input'!N47 -> 0 | J40: ='RAB input'!O47 -> 0 | K40: ='RAB input'!P47 -> 0 | L40: ='RAB input'!Q47 -> 0
D41: 24 | E41: ='RAB input'!E48 -> 0 | G41: 0 | H41: ='RAB input'!M48 -> 0 | I41: ='RAB input'!N48 -> 0 | J41: ='RAB input'!O48 -> 0 | K41: ='RAB input'!P48 -> 0 | L41: ='RAB input'!Q48 -> 0
D42: 25 | E42: ='RAB input'!E49 -> 0 | G42: 0 | H42: ='RAB input'!M49 -> 0 | I42: ='RAB input'!N49 -> 0 | J42: ='RAB input'!O49 -> 0 | K42: ='RAB input'!P49 -> 0 | L42: ='RAB input'!Q49 -> 0
D43: 26 | E43: ='RAB input'!E50 -> 0 | G43: 0 | H43: ='RAB input'!M50 -> 0 | I43: ='RAB input'!N50 -> 0 | J43: ='RAB input'!O50 -> 0 | K43: ='RAB input'!P50 -> 0 | L43: ='RAB input'!Q50 -> 0
D44: 27 | E44: ='RAB input'!E51 -> 0 | G44: 0 | H44: ='RAB input'!M51 -> 0 | I44: ='RAB input'!N51 -> 0 | J44: ='RAB input'!O51 -> 0 | K44: ='RAB input'!P51 -> 0 | L44: ='RAB input'!Q51 -> 0
D45: 28 | E45: ='RAB input'!E52 -> 0 | G45: 0 | H45: ='RAB input'!M52 -> 0 | I45: ='RAB input'!N52 -> 0 | J45: ='RAB input'!O52 -> 0 | K45: ='RAB input'!P52 -> 0 | L45: ='RAB input'!Q52 -> 0
D46: 29 | E46: ='RAB input'!E53 -> 0 | G46: 0 | H46: ='RAB input'!M53 -> 0 | I46: ='RAB input'!N53 -> 0 | J46: ='RAB input'!O53 -> 0 | K46: ='RAB input'!P53 -> 0 | L46: ='RAB input'!Q53 -> 0
D47: 30 | E47: ='RAB input'!E54 -> 0 | G47: 0 | H47: ='RAB input'!M54 -> 0 | I47: ='RAB input'!N54 -> 0 | J47: ='RAB input'!O54 -> 0 | K47: ='RAB input'!P54 -> 0 | L47: ='RAB input'!Q54 -> 0
D48: 31 | E48: ='RAB input'!E55 -> 0 | G48: 0 | H48: ='RAB input'!M55 -> 0 | I48: ='RAB input'!N55 -> 0 | J48: ='RAB input'!O55 -> 0 | K48: ='RAB input'!P55 -> 0 | L48: ='RAB input'!Q55 -> 0
D49: 32 | E49: ='RAB input'!E56 -> 0 | G49: 0 | H49: ='RAB input'!M56 -> 0 | I49: ='RAB input'!N56 -> 0 | J49: ='RAB input'!O56 -> 0 | K49: ='RAB input'!P56 -> 0 | L49: ='RAB input'!Q56 -> 0
D50: 33 | E50: ='RAB input'!E57 -> 0 | G50: 0 | H50: ='RAB input'!M57 -> 0 | I50: ='RAB input'!N57 -> 0 | J50: ='RAB input'!O57 -> 0 | K50: ='RAB input'!P57 -> 0 | L50: ='RAB input'!Q57 -> 0
D51: 34 | E51: ='RAB input'!E58 -> 0 | G51: 0 | H51: ='RAB input'!M58 -> 0 | I51: ='RAB input'!N58 -> 0 | J51: ='RAB input'!O58 -> 0 | K51: ='RAB input'!P58 -> 0 | L51: ='RAB input'!Q58 -> 0
D52: 35 | E52: ='RAB input'!E59 -> 0 | G52: 0 | H52: ='RAB input'!M59 -> 0 | I52: ='RAB input'!N59 -> 0 | J52: ='RAB input'!O59 -> 0 | K52: ='RAB input'!P59 -> 0 | L52: ='RAB input'!Q59 -> 0
D53: 36 | E53: ='RAB input'!E60 -> 0 | G53: 0 | H53: ='RAB input'!M60 -> 0 | I53: ='RAB input'!N60 -> 0 | J53: ='RAB input'!O60 -> 0 | K53: ='RAB input'!P60 -> 0 | L53: ='RAB input'!Q60 -> 0
D54: 37 | E54: ='RAB input'!E61 -> 0 | G54: 0 | H54: ='RAB input'!M61 -> 0 | I54: ='RAB input'!N61 -> 0 | J54: ='RAB input'!O61 -> 0 | K54: ='RAB input'!P61 -> 0 | L54: ='RAB input'!Q61 -> 0
D55: 38 | E55: ='RAB input'!E62 -> 0 | G55: 0 | H55: ='RAB input'!M62 -> 0 | I55: ='RAB input'!N62 -> 0 | J55: ='RAB input'!O62 -> 0 | K55: ='RAB input'!P62 -> 0 | L55: ='RAB input'!Q62 -> 0
D56: 39 | E56: ='RAB input'!E63 -> 0 | G56: 0 | H56: ='RAB input'!M63 -> 0 | I56: ='RAB input'!N63 -> 0 | J56: ='RAB input'!O63 -> 0 | K56: ='RAB input'!P63 -> 0 | L56: ='RAB input'!Q63 -> 0
D57: 40 | E57: ='RAB input'!E64 -> 0 | G57: 0 | H57: ='RAB input'!M64 -> 0 | I57: ='RAB input'!N64 -> 0 | J57: ='RAB input'!O64 -> 0 | K57: ='RAB input'!P64 -> 0 | L57: ='RAB input'!Q64 -> 0
D58: 41 | E58: ='RAB input'!E65 -> 0 | G58: 0 | H58: ='RAB input'!M65 -> 0 | I58: ='RAB input'!N65 -> 0 | J58: ='RAB input'!O65 -> 0 | K58: ='RAB input'!P65 -> 0 | L58: ='RAB input'!Q65 -> 0
D59: 42 | E59: ='RAB input'!E66 -> 0 | G59: 0 | H59: ='RAB input'!M66 -> 0 | I59: ='RAB input'!N66 -> 0 | J59: ='RAB input'!O66 -> 0 | K59: ='RAB input'!P66 -> 0 | L59: ='RAB input'!Q66 -> 0
D60: 43 | E60: ='RAB input'!E67 -> 0 | G60: 0 | H60: ='RAB input'!M67 -> 0 | I60: ='RAB input'!N67 -> 0 | J60: ='RAB input'!O67 -> 0 | K60: ='RAB input'!P67 -> 0 | L60: ='RAB input'!Q67 -> 0
D61: 44 | E61: ='RAB input'!E68 -> 0 | G61: 0 | H61: ='RAB input'!M68 -> 0 | I61: ='RAB input'!N68 -> 0 | J61: ='RAB input'!O68 -> 0 | K61: ='RAB input'!P68 -> 0 | L61: ='RAB input'!Q68 -> 0
D62: 45 | E62: ='RAB input'!E69 -> 0 | G62: 0 | H62: ='RAB input'!M69 -> 0 | I62: ='RAB input'!N69 -> 0 | J62: ='RAB input'!O69 -> 0 | K62: ='RAB input'!P69 -> 0 | L62: ='RAB input'!Q69 -> 0
D63: 46 | E63: ='RAB input'!E70 -> 0 | G63: 0 | H63: ='RAB input'!M70 -> 0 | I63: ='RAB input'!N70 -> 0 | J63: ='RAB input'!O70 -> 0 | K63: ='RAB input'!P70 -> 0 | L63: ='RAB input'!Q70 -> 0
D64: 47 | E64: ='RAB input'!E71 -> Spare straight-line tax asset class | G64: 0 | H64: ='RAB input'!M71 -> 0 | I64: ='RAB input'!N71 -> 0 | J64: ='RAB input'!O71 -> 0 | K64: ='RAB input'!P71 -> 0 | L64: ='RAB input'!Q71 -> 0
D65: 48 | E65: ='RAB input'!E72 -> Buildings | G65: 0 | H65: ='RAB input'!M72 -> 0.1605315811 | I65: ='RAB input'!N72 -> 0.6918976275 | J65: ='RAB input'!O72 -> 2.210791296 | K65: ='RAB input'!P72 -> 2.175607 | L65: ='RAB input'!Q72 -> 0
D66: 49 | E66: ='RAB input'!E73 -> in-house software | G66: 0 | H66: ='RAB input'!M73 -> 0 | I66: ='RAB input'!N73 -> 0 | J66: ='RAB input'!O73 -> 0 | K66: ='RAB input'!P73 -> 0 | L66: ='RAB input'!Q73 -> 0
D67: 50 | E67: ='RAB input'!E74 -> Equity raising costs | G67: 0 | H67: ='RAB input'!M74 -> 0 | I67: ='RAB input'!N74 -> 0 | J67: ='RAB input'!O74 -> 0 | K67: ='RAB input'!P74 -> 0 | L67: ='RAB input'!Q74 -> 0
E68: Total | G68: =SUM(G18:G67) -> 920.5977482 | H68: =SUM(H18:H67) -> 67.60321128 | I68: 47.73079245 | J68: 70.97483345 | K68: 101.92715 | L68: 126.332019 | M68: 0 | N68: 0 | O68: 0 | P68: 0 | Q68: 0 | R68: 0 | S68: 0 | T68: 0 | U68: 0 | V68: 0 | W68: 0 | X68: 0 | Y68: 0 | Z68: 0 | AA68: 0 | AB68: 0 | AC68: 0 | AD68: 0 | AE68: 0 | AF68: 0 | AG68: 0 | AH68: 0 | AI68: 0 | AJ68: 0 | AK68: 0 | AL68: 0 | AM68: 0 | AN68: 0 | AO68: 0 | AP68: 0 | AQ68: 0 | AR68: 0 | AS68: 0 | AT68: 0 | AU68: 0 | AV68: 0 | AW68: 0 | AX68: 0 | AY68: 0 | AZ68: 0 | BA68: 0 | BB68: 0 | BC68: 0 | BD68: 0 | BE68: 0 | BF68: 0 | BG68: 0 | BH68: 0 | BI68: 0 | BJ68: 0 | BK68: 0 | BL68: 0 | BM68: 0 | BN68: 0 | BO68: 0 | BP68: 0 | BQ68: 0 | BR68: 0 | BS68: 0 | BT68: =SUM(BT18:BT67) -> 0 | BU68: 0 | BV68: 0 | BW68: 0 | BX68: 0 | BY68: 0 | BZ68: 0
D70: Actual immediately expensed capex - As incurred ($m, nominal)
E71: =$E$16 -> Asset class | H71: =IF(H$16="", "", "Actual immediately expensed capex (" & H$4 & ")") -> Actual immediately expensed capex (2019-20) | I71: =IF(I$16="", "", "Actual immediately expensed capex (" & I$4 & ")") -> Actual immediately expensed capex (2020-21) | J71: Actual immediately expensed capex (2021-22) | K71: Actual immediately expensed capex (2022-23) | L71: Actual immediately expensed capex (2023-24) | BU71: =IF(BU$16="", "", "Actual immediately expensed capex (" & BU$4 & ")") -> 
E72: =E18 -> Substations | H72: 3.116583035 | I72: 0.8792854239 | J72: 2.620291 | K72: 2.786899 | L72: 6.338135568
E73: Distribution Lines | H73: 1.994997816 | I73: 0.9823860381 | J73: 5.79846 | K73: 9.038771 | L73: 8.084548961
E74: Transmission Lines | H74: 0.1746673564 | I74: 0.1452806012 | J74: 0.730832 | K74: 0.631442 | L74: 1.41039996
E75: LV Services | H75: 0.1254808892 | I75: 0.09732438411 | J75: 0.657196 | K75: 0.653986 | L75: 0.6681783729
E76: Distribution Substations | H76: 0.9562355765 | I76: 0.4360497074 | J76: 1.867683 | K76: 1.982197 | L76: 0.991616015
E77: Distribution Switchgear | H77: 0.3667914139 | I77: 0.2709211648 | J77: 0.820649 | K77: 1.285255 | L77: 0.7863884474
E78: Protection | H78: 0.293709619 | I78: 0.1370126561 | J78: 0.93031 | K78: 1.426088 | L78: 1.360214223
E79: SCADA | H79: 0.3148717579 | I79: 0.1233778408 | J79: 0.484778 | K79: 0.883938 | L79: 1.897739906
E80: Communications | H80: 0.4111167969 | I80: 0.1584373847 | J80: 0.625287 | K80: 1.451785 | L80: 0.6305864228
E81: Land and Easements | H81: 0 | I81: 0 | J81: 0 | K81: -0.039054 | L81: 0
E82: Property | H82: 0.09881938098 | I82: 0.04395630701 | J82: 0.086962 | K82: 0.137773 | L82: 0.4488982074
E83: IT and Communications | H83: 1.251063884 | I83: 0.1466855123 | J83: 1.543457 | K83: 7.081227 | L83: 6.274999458
E84: Motor Vehicles | H84: 0.01295950166 | I84: 0.04423348011 | J84: 0.036873 | K84: 0.047407 | L84: 0
E85: Plant and Equipment | H85: 0.1721562784 | I85: 0.1976851456 | J85: 0.589438 | K85: 0.662596 | L85: 0.4062719901
E86: Property Leases | H86: 0.6372263132 | I86: 0.07275652104 | J86: 3.016552 | K86: 0.333533 | L86: 1.295994457
E87: Fleet Leases | H87: 2.782546443 | I87: 0.2174566861 | J87: 0.844682 | K87: 0.829827 | L87: 0.5735136892
E88: 0
E89: 0
E90: 0
E91: 0
E92: 0
E93: 0
E94: 0
E95: 0
E96: 0
E97: 0
E98: 0
E99: 0
E100: 0
E101: 0
E102: 0
E103: 0
E104: =E50 -> 0
E105: 0
E106: 0
E107: 0
E108: 0
E109: 0
E110: 0
E111: 0
E112: 0
E113: 0
E114: 0
E115: 0
E116: 0
E117: 0
E118: Spare straight-line tax asset class
E119: Buildings | H119: 0.03128693756 | I119: 0.06155493764 | J119: 0.680784 | K119: 0.671502 | L119: 0
E120: in-house software | H120: 0 | I120: 0 | J120: 0 | K120: 0 | L120: 0
E121: Equity raising costs | H121: 0 | I121: 0
E122: Total | H122: =SUM(H72:H121) -> 12.740513 | I122: 4.014403791 | J122: 21.334234 | K122: 29.865172 | L122: 31.16748568 | M122: 0 | N122: 0 | O122: 0 | P122: 0 | Q122: 0 | R122: 0 | S122: 0 | T122: 0 | U122: 0 | V122: 0 | W122: 0 | X122: 0 | Y122: 0 | Z122: 0 | AA122: 0 | AB122: 0 | AC122: 0 | AD122: 0 | AE122: 0 | AF122: 0 | AG122: 0 | AH122: 0 | AI122: 0 | AJ122: 0 | AK122: 0 | AL122: 0 | AM122: 0 | AN122: 0 | AO122: 0 | AP122: 0 | AQ122: 0 | AR122: 0 | AS122: 0 | AT122: 0 | AU122: 0 | AV122: 0 | AW122: 0 | AX122: 0 | AY122: 0 | AZ122: 0 | BA122: 0 | BB122: 0 | BC122: 0 | BD122: 0 | BE122: 0 | BF122: 0 | BG122: 0 | BH122: 0 | BI122: 0 | BJ122: 0 | BK122: 0 | BL122: 0 | BM122: 0 | BN122: 0 | BO122: 0 | BP122: 0 | BQ122: 0 | BR122: 0 | BS122: =SUM(BS72:BS121) -> 0 | BT122: 0 | BU122: 0 | BV122: 0 | BW122: 0 | BX122: 0 | BY122: 0 | BZ122: 0
D124: Actual asset disposals - As incurred ($m, nominal)
E125: =$E$16 -> Asset class | H125: =IF(H$16="", "", "Actual asset disposals (" & H$4 & ")") -> Actual asset disposals (2019-20) | I125: =IF(I$16="", "", "Actual asset disposals (" & I$4 & ")") -> Actual asset disposals (2020-21) | J125: Actual asset disposals (2021-22) | K125: Actual asset disposals (2022-23) | L125: Actual asset disposals (2023-24) | BU125: =IF(BU$16="", "", "Actual asset disposals (" & BU$4 & ")") -> 
... 153 more rows

Sheet RAB tracking
F2: =IF('RAB input'!$F$8='TAB input'!$F$8, 'RAB input'!$F$8, 'TAB input'!$F$8) & " - RAB tracking - Elec DNSP "&Intro!$I$3&" - version "&Intro!$M$4 -> Power and Water - RAB tracking - Elec DNSP RFM - Depreciation tracking module - version 1
F4: ="Year ($m, real "&'RAB input'!$G$4&")" -> Year ($m, real 2013-14) | G4: ='RAB input'!G$4 -> 2013-14 | H4: ='RAB input'!H$4 -> 2014-15 | I4: ='RAB input'!I$4 -> 2015-16 | J4: ='RAB input'!J$4 -> 2016-17 | K4: ='RAB input'!K$4 -> 2017-18 | L4: ='RAB input'!L$4 -> 2018-19 | M4: ='RAB input'!M$4 -> 2019-20 | N4: ='RAB input'!N$4 -> 2020-21 | O4: ='RAB input'!O$4 -> 2021-22 | P4: ='RAB input'!P$4 -> 2022-23 | Q4: ='RAB input'!Q$4 -> 2023-24 | R4: ='RAB input'!R$4 -> 2024-25 | S4: ='RAB input'!S$4 -> 2025-26 | T4: ='RAB input'!T$4 -> 2026-27 | U4: ='RAB input'!U$4 -> 2027-28 | V4: ='RAB input'!V$4 -> 2028-29 | W4: ='RAB input'!W$4 -> 2029-30 | X4: ='RAB input'!X$4 -> 2030-31 | Y4: ='RAB input'!Y$4 -> 2031-32 | Z4: ='RAB input'!Z$4 -> 2032-33 | AA4: ='RAB input'!AA$4 -> 2033-34 | AB4: ='RAB input'!AB$4 -> 2034-35 | AC4: ='RAB input'!AC$4 -> 2035-36 | AD4: ='RAB input'!AD$4 -> 2036-37 | AE4: ='RAB input'!AE$4 -> 2037-38 | AF4: ='RAB input'!AF$4 -> 2038-39 | AG4: ='RAB input'!AG$4 -> 2039-40 | AH4: ='RAB input'!AH$4 -> 2040-41 | AI4: ='RAB input'!AI$4 -> 2041-42 | AJ4: ='RAB input'!AJ$4 -> 2042-43 | AK4: ='RAB input'!AK$4 -> 2043-44 | AL4: ='RAB input'!AL$4 -> 2044-45 | AM4: ='RAB input'!AM$4 -> 2045-46 | AN4: ='RAB input'!AN$4 -> 2046-47 | AO4: ='RAB input'!AO$4 -> 2047-48 | AP4: ='RAB input'!AP$4 -> 2048-49 | AQ4: ='RAB input'!AQ$4 -> 2049-50 | AR4: ='RAB input'!AR$4 -> 2050-51 | AS4: ='RAB input'!AS$4 -> 2051-52 | AT4: ='RAB input'!AT$4 -> 2052-53 | AU4: ='RAB input'!AU$4 -> 2053-54 | AV4: ='RAB input'!AV$4 -> 2054-55 | AW4: ='RAB input'!AW$4 -> 2055-56 | AX4: ='RAB input'!AX$4 -> 2056-57 | AY4: ='RAB input'!AY$4 -> 2057-58 | AZ4: ='RAB input'!AZ$4 -> 2058-59 | BA4: ='RAB input'!BA$4 -> 2059-60 | BB4: ='RAB input'!BB$4 -> 2060-61 | BC4: ='RAB input'!BC$4 -> 2061-62 | BD4: ='RAB input'!BD$4 -> 2062-63 | BE4: ='RAB input'!BE$4 -> 2063-64 | BF4: ='RAB input'!BF$4 -> 2064-65 | BG4: ='RAB input'!BG$4 -> 2065-66 | BH4: ='RAB input'!BH$4 -> 2066-67 | BI4: ='RAB input'!BI$4 -> 2067-68 | BJ4: ='RAB input'!BJ$4 -> 2068-69 | BK4: ='RAB input'!BK$4 -> 2069-70 | BL4: ='RAB input'!BL$4 -> 2070-71 | BM4: ='RAB input'!BM$4 -> 2071-72 | BN4: ='RAB input'!BN$4 -> 2072-73 | BO4: ='RAB input'!BO$4 -> 2073-74 | BP4: ='RAB input'!BP$4 -> 2074-75 | BQ4: ='RAB input'!BQ$4 -> 2075-76 | BR4: ='RAB input'!BR$4 -> 2076-77 | BS4: ='RAB input'!BS$4 -> 2077-78 | BT4: ='RAB input'!BT$4 -> 2078-79 | BU4: ='RAB input'!BU$4 -> 2079-80 | BV4: ='RAB input'!BV$4 -> 2080-81 | BW4: ='RAB input'!BW$4 -> 2081-82 | BX4: ='RAB input'!BX$4 -> 2082-83 | BY4: ='RAB input'!BY$4 -> 2083-84 | BZ4: ='RAB input'!BZ$4 -> 2084-85
G5: 0 | H5: =G5+1 -> 1 | I5: =H5+1 -> 2 | J5: 3 | K5: 4 | L5: 5 | M5: 6 | N5: 7 | O5: 8 | P5: 9 | Q5: 10 | R5: 11 | S5: 12 | T5: 13 | U5: 14 | V5: 15 | W5: 16 | X5: 17 | Y5: 18 | Z5: 19 | AA5: 20 | AB5: 21 | AC5: 22 | AD5: 23 | AE5: 24 | AF5: 25 | AG5: 26 | AH5: 27 | AI5: 28 | AJ5: 29 | AK5: 30 | AL5: 31 | AM5: 32 | AN5: 33 | AO5: 34 | AP5: 35 | AQ5: 36 | AR5: 37 | AS5: 38 | AT5: 39 | AU5: 40 | AV5: 41 | AW5: 42 | AX5: 43 | AY5: 44 | AZ5: 45 | BA5: 46 | BB5: 47 | BC5: 48 | BD5: 49 | BE5: 50 | BF5: 51 | BG5: 52 | BH5: 53 | BI5: 54 | BJ5: 55 | BK5: 56 | BL5: 57 | BM5: 58 | BN5: 59 | BO5: 60 | BP5: 61 | BQ5: 62 | BR5: 63 | BS5: 64 | BT5: 65 | BU5: =BT5+1 -> 66 | BV5: 67 | BW5: 68 | BX5: 69 | BY5: 70 | BZ5: 71
E6: ="Asset class "&E7 -> Asset class 1 | F6: =INDEX('RAB input'!$E$25:$E$74, MATCH($E7, 'RAB input'!$D$25:$D$74, 0)) -> Substations
E7: 1 | F7: Value of starting RAB and net capex addition | G7: =INDEX('RAB input'!$G$25:$G$74, $E7)/'RAB input'!G$15 -> 294.1886357 | H7: =(INDEX('RAB input'!H$25:H$74,$E7)-INDEX('RAB input'!H$79:H$128,$E7)-INDEX('RAB input'!H$133:H$182,$E7))/'RAB input'!H$15*(1+'RAB input'!H$17)^0.5 -> 32.28896043 | I7: =(INDEX('RAB input'!I$25:I$74,$E7)-INDEX('RAB input'!I$79:I$128,$E7)-INDEX('RAB input'!I$133:I$182,$E7))/'RAB input'!I$15*(1+'RAB input'!I$17)^0.5 -> 27.21216438 | J7: =(INDEX('RAB input'!J$25:J$74,$E7)-INDEX('RAB input'!J$79:J$128,$E7)-INDEX('RAB input'!J$133:J$182,$E7))/'RAB input'!J$15*(1+'RAB input'!J$17)^0.5 -> 13.52170036 | K7: =(INDEX('RAB input'!K$25:K$74,$E7)-INDEX('RAB input'!K$79:K$128,$E7)-INDEX('RAB input'!K$133:K$182,$E7))/'RAB input'!K$15*(1+'RAB input'!K$17)^0.5 -> 6.455044429 | L7: =(INDEX('RAB input'!L$25:L$74,$E7)-INDEX('RAB input'!L$79:L$128,$E7)-INDEX('RAB input'!L$133:L$182,$E7))/'RAB input'!L$15*(1+'RAB input'!L$17)^0.5 -> 10.14091085 | M7: =(INDEX('RAB input'!M$25:M$74,$E7)-INDEX('RAB input'!M$79:M$128,$E7)-INDEX('RAB input'!M$133:M$182,$E7))/'RAB input'!M$15*(1+'RAB input'!M$17)^0.5 -> 14.6256937 | N7: =(INDEX('RAB input'!N$25:N$74,$E7)-INDEX('RAB input'!N$79:N$128,$E7)-INDEX('RAB input'!N$133:N$182,$E7))/'RAB input'!N$15*(1+'RAB input'!N$17)^0.5 -> 8.813547899 | O7: =(INDEX('RAB input'!O$25:O$74,$E7)-INDEX('RAB input'!O$79:O$128,$E7)-INDEX('RAB input'!O$133:O$182,$E7))/'RAB input'!O$15*(1+'RAB input'!O$17)^0.5 -> 7.598436543 | P7: =(INDEX('RAB input'!P$25:P$74,$E7)-INDEX('RAB input'!P$79:P$128,$E7)-INDEX('RAB input'!P$133:P$182,$E7))/'RAB input'!P$15*(1+'RAB input'!P$17)^0.5 -> 7.971101135 | Q7: =(INDEX('RAB input'!Q$25:Q$74,$E7)-INDEX('RAB input'!Q$79:Q$128,$E7)-INDEX('RAB input'!Q$133:Q$182,$E7))/'RAB input'!Q$15*(1+'RAB input'!Q$17)^0.5 -> 16.02318729 | R7: =(INDEX('RAB input'!R$25:R$74,$E7)-INDEX('RAB input'!R$79:R$128,$E7)-INDEX('RAB input'!R$133:R$182,$E7))/'RAB input'!R$15*(1+'RAB input'!R$17)^0.5 -> 0 | S7: =(INDEX('RAB input'!S$25:S$74,$E7)-INDEX('RAB input'!S$79:S$128,$E7)-INDEX('RAB input'!S$133:S$182,$E7))/'RAB input'!S$15*(1+'RAB input'!S$17)^0.5 -> 0 | T7: =(INDEX('RAB input'!T$25:T$74,$E7)-INDEX('RAB input'!T$79:T$128,$E7)-INDEX('RAB input'!T$133:T$182,$E7))/'RAB input'!T$15*(1+'RAB input'!T$17)^0.5 -> 0 | U7: =(INDEX('RAB input'!U$25:U$74,$E7)-INDEX('RAB input'!U$79:U$128,$E7)-INDEX('RAB input'!U$133:U$182,$E7))/'RAB input'!U$15*(1+'RAB input'!U$17)^0.5 -> 0 | V7: =(INDEX('RAB input'!V$25:V$74,$E7)-INDEX('RAB input'!V$79:V$128,$E7)-INDEX('RAB input'!V$133:V$182,$E7))/'RAB input'!V$15*(1+'RAB input'!V$17)^0.5 -> 0 | W7: =(INDEX('RAB input'!W$25:W$74,$E7)-INDEX('RAB input'!W$79:W$128,$E7)-INDEX('RAB input'!W$133:W$182,$E7))/'RAB input'!W$15*(1+'RAB input'!W$17)^0.5 -> 0 | X7: =(INDEX('RAB input'!X$25:X$74,$E7)-INDEX('RAB input'!X$79:X$128,$E7)-INDEX('RAB input'!X$133:X$182,$E7))/'RAB input'!X$15*(1+'RAB input'!X$17)^0.5 -> 0 | Y7: =(INDEX('RAB input'!Y$25:Y$74,$E7)-INDEX('RAB input'!Y$79:Y$128,$E7)-INDEX('RAB input'!Y$133:Y$182,$E7))/'RAB input'!Y$15*(1+'RAB input'!Y$17)^0.5 -> 0 | Z7: =(INDEX('RAB input'!Z$25:Z$74,$E7)-INDEX('RAB input'!Z$79:Z$128,$E7)-INDEX('RAB input'!Z$133:Z$182,$E7))/'RAB input'!Z$15*(1+'RAB input'!Z$17)^0.5 -> 0 | AA7: =(INDEX('RAB input'!AA$25:AA$74,$E7)-INDEX('RAB input'!AA$79:AA$128,$E7)-INDEX('RAB input'!AA$133:AA$182,$E7))/'RAB input'!AA$15*(1+'RAB input'!AA$17)^0.5 -> 0 | AB7: =(INDEX('RAB input'!AB$25:AB$74,$E7)-INDEX('RAB input'!AB$79:AB$128,$E7)-INDEX('RAB input'!AB$133:AB$182,$E7))/'RAB input'!AB$15*(1+'RAB input'!AB$17)^0.5 -> 0 | AC7: =(INDEX('RAB input'!AC$25:AC$74,$E7)-INDEX('RAB input'!AC$79:AC$128,$E7)-INDEX('RAB input'!AC$133:AC$182,$E7))/'RAB input'!AC$15*(1+'RAB input'!AC$17)^0.5 -> 0 | AD7: =(INDEX('RAB input'!AD$25:AD$74,$E7)-INDEX('RAB input'!AD$79:AD$128,$E7)-INDEX('RAB input'!AD$133:AD$182,$E7))/'RAB input'!AD$15*(1+'RAB input'!AD$17)^0.5 -> 0 | AE7: =(INDEX('RAB input'!AE$25:AE$74,$E7)-INDEX('RAB input'!AE$79:AE$128,$E7)-INDEX('RAB input'!AE$133:AE$182,$E7))/'RAB input'!AE$15*(1+'RAB input'!AE$17)^0.5 -> 0 | AF7: =(INDEX('RAB input'!AF$25:AF$74,$E7)-INDEX('RAB input'!AF$79:AF$128,$E7)-INDEX('RAB input'!AF$133:AF$182,$E7))/'RAB input'!AF$15*(1+'RAB input'!AF$17)^0.5 -> 0 | AG7: =(INDEX('RAB input'!AG$25:AG$74,$E7)-INDEX('RAB input'!AG$79:AG$128,$E7)-INDEX('RAB input'!AG$133:AG$182,$E7))/'RAB input'!AG$15*(1+'RAB input'!AG$17)^0.5 -> 0 | AH7: =(INDEX('RAB input'!AH$25:AH$74,$E7)-INDEX('RAB input'!AH$79:AH$128,$E7)-INDEX('RAB input'!AH$133:AH$182,$E7))/'RAB input'!AH$15*(1+'RAB input'!AH$17)^0.5 -> 0 | AI7: =(INDEX('RAB input'!AI$25:AI$74,$E7)-INDEX('RAB input'!AI$79:AI$128,$E7)-INDEX('RAB input'!AI$133:AI$182,$E7))/'RAB input'!AI$15*(1+'RAB input'!AI$17)^0.5 -> 0 | AJ7: =(INDEX('RAB input'!AJ$25:AJ$74,$E7)-INDEX('RAB input'!AJ$79:AJ$128,$E7)-INDEX('RAB input'!AJ$133:AJ$182,$E7))/'RAB input'!AJ$15*(1+'RAB input'!AJ$17)^0.5 -> 0 | AK7: =(INDEX('RAB input'!AK$25:AK$74,$E7)-INDEX('RAB input'!AK$79:AK$128,$E7)-INDEX('RAB input'!AK$133:AK$182,$E7))/'RAB input'!AK$15*(1+'RAB input'!AK$17)^0.5 -> 0 | AL7: =(INDEX('RAB input'!AL$25:AL$74,$E7)-INDEX('RAB input'!AL$79:AL$128,$E7)-INDEX('RAB input'!AL$133:AL$182,$E7))/'RAB input'!AL$15*(1+'RAB input'!AL$17)^0.5 -> 0 | AM7: =(INDEX('RAB input'!AM$25:AM$74,$E7)-INDEX('RAB input'!AM$79:AM$128,$E7)-INDEX('RAB input'!AM$133:AM$182,$E7))/'RAB input'!AM$15*(1+'RAB input'!AM$17)^0.5 -> 0 | AN7: =(INDEX('RAB input'!AN$25:AN$74,$E7)-INDEX('RAB input'!AN$79:AN$128,$E7)-INDEX('RAB input'!AN$133:AN$182,$E7))/'RAB input'!AN$15*(1+'RAB input'!AN$17)^0.5 -> 0 | AO7: =(INDEX('RAB input'!AO$25:AO$74,$E7)-INDEX('RAB input'!AO$79:AO$128,$E7)-INDEX('RAB input'!AO$133:AO$182,$E7))/'RAB input'!AO$15*(1+'RAB input'!AO$17)^0.5 -> 0 | AP7: =(INDEX('RAB input'!AP$25:AP$74,$E7)-INDEX('RAB input'!AP$79:AP$128,$E7)-INDEX('RAB input'!AP$133:AP$182,$E7))/'RAB input'!AP$15*(1+'RAB input'!AP$17)^0.5 -> 0 | AQ7: =(INDEX('RAB input'!AQ$25:AQ$74,$E7)-INDEX('RAB input'!AQ$79:AQ$128,$E7)-INDEX('RAB input'!AQ$133:AQ$182,$E7))/'RAB input'!AQ$15*(1+'RAB input'!AQ$17)^0.5 -> 0 | AR7: =(INDEX('RAB input'!AR$25:AR$74,$E7)-INDEX('RAB input'!AR$79:AR$128,$E7)-INDEX('RAB input'!AR$133:AR$182,$E7))/'RAB input'!AR$15*(1+'RAB input'!AR$17)^0.5 -> 0 | AS7: =(INDEX('RAB input'!AS$25:AS$74,$E7)-INDEX('RAB input'!AS$79:AS$128,$E7)-INDEX('RAB input'!AS$133:AS$182,$E7))/'RAB input'!AS$15*(1+'RAB input'!AS$17)^0.5 -> 0 | AT7: =(INDEX('RAB input'!AT$25:AT$74,$E7)-INDEX('RAB input'!AT$79:AT$128,$E7)-INDEX('RAB input'!AT$133:AT$182,$E7))/'RAB input'!AT$15*(1+'RAB input'!AT$17)^0.5 -> 0 | AU7: =(INDEX('RAB input'!AU$25:AU$74,$E7)-INDEX('RAB input'!AU$79:AU$128,$E7)-INDEX('RAB input'!AU$133:AU$182,$E7))/'RAB input'!AU$15*(1+'RAB input'!AU$17)^0.5 -> 0 | AV7: =(INDEX('RAB input'!AV$25:AV$74,$E7)-INDEX('RAB input'!AV$79:AV$128,$E7)-INDEX('RAB input'!AV$133:AV$182,$E7))/'RAB input'!AV$15*(1+'RAB input'!AV$17)^0.5 -> 0 | AW7: =(INDEX('RAB input'!AW$25:AW$74,$E7)-INDEX('RAB input'!AW$79:AW$128,$E7)-INDEX('RAB input'!AW$133:AW$182,$E7))/'RAB input'!AW$15*(1+'RAB input'!AW$17)^0.5 -> 0 | AX7: =(INDEX('RAB input'!AX$25:AX$74,$E7)-INDEX('RAB input'!AX$79:AX$128,$E7)-INDEX('RAB input'!AX$133:AX$182,$E7))/'RAB input'!AX$15*(1+'RAB input'!AX$17)^0.5 -> 0 | AY7: =(INDEX('RAB input'!AY$25:AY$74,$E7)-INDEX('RAB input'!AY$79:AY$128,$E7)-INDEX('RAB input'!AY$133:AY$182,$E7))/'RAB input'!AY$15*(1+'RAB input'!AY$17)^0.5 -> 0 | AZ7: =(INDEX('RAB input'!AZ$25:AZ$74,$E7)-INDEX('RAB input'!AZ$79:AZ$128,$E7)-INDEX('RAB input'!AZ$133:AZ$182,$E7))/'RAB input'!AZ$15*(1+'RAB input'!AZ$17)^0.5 -> 0 | BA7: =(INDEX('RAB input'!BA$25:BA$74,$E7)-INDEX('RAB input'!BA$79:BA$128,$E7)-INDEX('RAB input'!BA$133:BA$182,$E7))/'RAB input'!BA$15*(1+'RAB input'!BA$17)^0.5 -> 0 | BB7: =(INDEX('RAB input'!BB$25:BB$74,$E7)-INDEX('RAB input'!BB$79:BB$128,$E7)-INDEX('RAB input'!BB$133:BB$182,$E7))/'RAB input'!BB$15*(1+'RAB input'!BB$17)^0.5 -> 0 | BC7: =(INDEX('RAB input'!BC$25:BC$74,$E7)-INDEX('RAB input'!BC$79:BC$128,$E7)-INDEX('RAB input'!BC$133:BC$182,$E7))/'RAB input'!BC$15*(1+'RAB input'!BC$17)^0.5 -> 0 | BD7: =(INDEX('RAB input'!BD$25:BD$74,$E7)-INDEX('RAB input'!BD$79:BD$128,$E7)-INDEX('RAB input'!BD$133:BD$182,$E7))/'RAB input'!BD$15*(1+'RAB input'!BD$17)^0.5 -> 0 | BE7: =(INDEX('RAB input'!BE$25:BE$74,$E7)-INDEX('RAB input'!BE$79:BE$128,$E7)-INDEX('RAB input'!BE$133:BE$182,$E7))/'RAB input'!BE$15*(1+'RAB input'!BE$17)^0.5 -> 0 | BF7: =(INDEX('RAB input'!BF$25:BF$74,$E7)-INDEX('RAB input'!BF$79:BF$128,$E7)-INDEX('RAB input'!BF$133:BF$182,$E7))/'RAB input'!BF$15*(1+'RAB input'!BF$17)^0.5 -> 0 | BG7: =(INDEX('RAB input'!BG$25:BG$74,$E7)-INDEX('RAB input'!BG$79:BG$128,$E7)-INDEX('RAB input'!BG$133:BG$182,$E7))/'RAB input'!BG$15*(1+'RAB input'!BG$17)^0.5 -> 0 | BH7: =(INDEX('RAB input'!BH$25:BH$74,$E7)-INDEX('RAB input'!BH$79:BH$128,$E7)-INDEX('RAB input'!BH$133:BH$182,$E7))/'RAB input'!BH$15*(1+'RAB input'!BH$17)^0.5 -> 0 | BI7: =(INDEX('RAB input'!BI$25:BI$74,$E7)-INDEX('RAB input'!BI$79:BI$128,$E7)-INDEX('RAB input'!BI$133:BI$182,$E7))/'RAB input'!BI$15*(1+'RAB input'!BI$17)^0.5 -> 0 | BJ7: =(INDEX('RAB input'!BJ$25:BJ$74,$E7)-INDEX('RAB input'!BJ$79:BJ$128,$E7)-INDEX('RAB input'!BJ$133:BJ$182,$E7))/'RAB input'!BJ$15*(1+'RAB input'!BJ$17)^0.5 -> 0 | BK7: =(INDEX('RAB input'!BK$25:BK$74,$E7)-INDEX('RAB input'!BK$79:BK$128,$E7)-INDEX('RAB input'!BK$133:BK$182,$E7))/'RAB input'!BK$15*(1+'RAB input'!BK$17)^0.5 -> 0 | BL7: =(INDEX('RAB input'!BL$25:BL$74,$E7)-INDEX('RAB input'!BL$79:BL$128,$E7)-INDEX('RAB input'!BL$133:BL$182,$E7))/'RAB input'!BL$15*(1+'RAB input'!BL$17)^0.5 -> 0 | BM7: =(INDEX('RAB input'!BM$25:BM$74,$E7)-INDEX('RAB input'!BM$79:BM$128,$E7)-INDEX('RAB input'!BM$133:BM$182,$E7))/'RAB input'!BM$15*(1+'RAB input'!BM$17)^0.5 -> 0 | BN7: =(INDEX('RAB input'!BN$25:BN$74,$E7)-INDEX('RAB input'!BN$79:BN$128,$E7)-INDEX('RAB input'!BN$133:BN$182,$E7))/'RAB input'!BN$15*(1+'RAB input'!BN$17)^0.5 -> 0 | BO7: =(INDEX('RAB input'!BO$25:BO$74,$E7)-INDEX('RAB input'!BO$79:BO$128,$E7)-INDEX('RAB input'!BO$133:BO$182,$E7))/'RAB input'!BO$15*(1+'RAB input'!BO$17)^0.5 -> 0 | BP7: =(INDEX('RAB input'!BP$25:BP$74,$E7)-INDEX('RAB input'!BP$79:BP$128,$E7)-INDEX('RAB input'!BP$133:BP$182,$E7))/'RAB input'!BP$15*(1+'RAB input'!BP$17)^0.5 -> 0 | BQ7: =(INDEX('RAB input'!BQ$25:BQ$74,$E7)-INDEX('RAB input'!BQ$79:BQ$128,$E7)-INDEX('RAB input'!BQ$133:BQ$182,$E7))/'RAB input'!BQ$15*(1+'RAB input'!BQ$17)^0.5 -> 0 | BR7: =(INDEX('RAB input'!BR$25:BR$74,$E7)-INDEX('RAB input'!BR$79:BR$128,$E7)-INDEX('RAB input'!BR$133:BR$182,$E7))/'RAB input'!BR$15*(1+'RAB input'!BR$17)^0.5 -> 0 | BS7: =(INDEX('RAB input'!BS$25:BS$74,$E7)-INDEX('RAB input'!BS$79:BS$128,$E7)-INDEX('RAB input'!BS$133:BS$182,$E7))/'RAB input'!BS$15*(1+'RAB input'!BS$17)^0.5 -> 0 | BT7: =(INDEX('RAB input'!BT$25:BT$74,$E7)-INDEX('RAB input'!BT$79:BT$128,$E7)-INDEX('RAB input'!BT$133:BT$182,$E7))/'RAB input'!BT$15*(1+'RAB input'!BT$17)^0.5 -> 0 | BU7: =(INDEX('RAB input'!BU$25:BU$74,$E7)-INDEX('RAB input'!BU$79:BU$128,$E7)-INDEX('RAB input'!BU$133:BU$182,$E7))/'RAB input'!BU$15*(1+'RAB input'!BU$17)^0.5 -> 0 | BV7: =(INDEX('RAB input'!BV$25:BV$74,$E7)-INDEX('RAB input'!BV$79:BV$128,$E7)-INDEX('RAB input'!BV$133:BV$182,$E7))/'RAB input'!BV$15*(1+'RAB input'!BV$17)^0.5 -> 0 | BW7: =(INDEX('RAB input'!BW$25:BW$74,$E7)-INDEX('RAB input'!BW$79:BW$128,$E7)-INDEX('RAB input'!BW$133:BW$182,$E7))/'RAB input'!BW$15*(1+'RAB input'!BW$17)^0.5 -> 0 | BX7: =(INDEX('RAB input'!BX$25:BX$74,$E7)-INDEX('RAB input'!BX$79:BX$128,$E7)-INDEX('RAB input'!BX$133:BX$182,$E7))/'RAB input'!BX$15*(1+'RAB input'!BX$17)^0.5 -> 0 | BY7: =(INDEX('RAB input'!BY$25:BY$74,$E7)-INDEX('RAB input'!BY$79:BY$128,$E7)-INDEX('RAB input'!BY$133:BY$182,$E7))/'RAB input'!BY$15*(1+'RAB input'!BY$17)^0.5 -> 0 | BZ7: =(INDEX('RAB input'!BZ$25:BZ$74,$E7)-INDEX('RAB input'!BZ$79:BZ$128,$E7)-INDEX('RAB input'!BZ$133:BZ$182,$E7))/'RAB input'!BZ$15*(1+'RAB input'!BZ$17)^0.5 -> 0
F8: Initial remaining life and standard lives (years) | G8: =IF(INDEX('RAB input'!$G$187:$G$236, $E7)="", IF($G7=0, 0, F8), INDEX('RAB input'!$G$187:$G$236, $E7)) -> 19.42614556 | H8: =IF(INDEX('RAB input'!H$187:H$236, $E7)="", G8, INDEX('RAB input'!H$187:H$236, $E7)) -> 41.97333998 | I8: =IF(INDEX('RAB input'!I$187:I$236, $E7)="", H8, INDEX('RAB input'!I$187:I$236, $E7)) -> 41.97333998 | J8: =IF(INDEX('RAB input'!J$187:J$236, $E7)="", I8, INDEX('RAB input'!J$187:J$236, $E7)) -> 41.97333998 | K8: =IF(INDEX('RAB input'!K$187:K$236, $E7)="", J8, INDEX('RAB input'!K$187:K$236, $E7)) -> 41.97333998 | L8: =IF(INDEX('RAB input'!L$187:L$236, $E7)="", K8, INDEX('RAB input'!L$187:L$236, $E7)) -> 41.97333998 | M8: =IF(INDEX('RAB input'!M$187:M$236, $E7)="", L8, INDEX('RAB input'!M$187:M$236, $E7)) -> 41.97333998 | N8: =IF(INDEX('RAB input'!N$187:N$236, $E7)="", M8, INDEX('RAB input'!N$187:N$236, $E7)) -> 41.97333998 | O8: =IF(INDEX('RAB input'!O$187:O$236, $E7)="", N8, INDEX('RAB input'!O$187:O$236, $E7)) -> 41.97333998 | P8: =IF(INDEX('RAB input'!P$187:P$236, $E7)="", O8, INDEX('RAB input'!P$187:P$236, $E7)) -> 41.97333998 | Q8: =IF(INDEX('RAB input'!Q$187:Q$236, $E7)="", P8, INDEX('RAB input'!Q$187:Q$236, $E7)) -> 41.97333998 | R8: =IF(INDEX('RAB input'!R$187:R$236, $E7)="", Q8, INDEX('RAB input'!R$187:R$236, $E7)) -> 41.97333998 | S8: =IF(INDEX('RAB input'!S$187:S$236, $E7)="", R8, INDEX('RAB input'!S$187:S$236, $E7)) -> 41.97333998 | T8: =IF(INDEX('RAB input'!T$187:T$236, $E7)="", S8, INDEX('RAB input'!T$187:T$236, $E7)) -> 41.97333998 | U8: =IF(INDEX('RAB input'!U$187:U$236, $E7)="", T8, INDEX('RAB input'!U$187:U$236, $E7)) -> 41.97333998 | V8: =IF(INDEX('RAB input'!V$187:V$236, $E7)="", U8, INDEX('RAB input'!V$187:V$236, $E7)) -> 41.97333998 | W8: =IF(INDEX('RAB input'!W$187:W$236, $E7)="", V8, INDEX('RAB input'!W$187:W$236, $E7)) -> 41.97333998 | X8: =IF(INDEX('RAB input'!X$187:X$236, $E7)="", W8, INDEX('RAB input'!X$187:X$236, $E7)) -> 41.97333998 | Y8: =IF(INDEX('RAB input'!Y$187:Y$236, $E7)="", X8, INDEX('RAB input'!Y$187:Y$236, $E7)) -> 41.97333998 | Z8: =IF(INDEX('RAB input'!Z$187:Z$236, $E7)="", Y8, INDEX('RAB input'!Z$187:Z$236, $E7)) -> 41.97333998 | AA8: =IF(INDEX('RAB input'!AA$187:AA$236, $E7)="", Z8, INDEX('RAB input'!AA$187:AA$236, $E7)) -> 41.97333998 | AB8: =IF(INDEX('RAB input'!AB$187:AB$236, $E7)="", AA8, INDEX('RAB input'!AB$187:AB$236, $E7)) -> 41.97333998 | AC8: =IF(INDEX('RAB input'!AC$187:AC$236, $E7)="", AB8, INDEX('RAB input'!AC$187:AC$236, $E7)) -> 41.97333998 | AD8: =IF(INDEX('RAB input'!AD$187:AD$236, $E7)="", AC8, INDEX('RAB input'!AD$187:AD$236, $E7)) -> 41.97333998 | AE8: =IF(INDEX('RAB input'!AE$187:AE$236, $E7)="", AD8, INDEX('RAB input'!AE$187:AE$236, $E7)) -> 41.97333998 | AF8: =IF(INDEX('RAB input'!AF$187:AF$236, $E7)="", AE8, INDEX('RAB input'!AF$187:AF$236, $E7)) -> 41.97333998 | AG8: =IF(INDEX('RAB input'!AG$187:AG$236, $E7)="", AF8, INDEX('RAB input'!AG$187:AG$236, $E7)) -> 41.97333998 | AH8: =IF(INDEX('RAB input'!AH$187:AH$236, $E7)="", AG8, INDEX('RAB input'!AH$187:AH$236, $E7)) -> 41.97333998 | AI8: =IF(INDEX('RAB input'!AI$187:AI$236, $E7)="", AH8, INDEX('RAB input'!AI$187:AI$236, $E7)) -> 41.97333998 | AJ8: =IF(INDEX('RAB input'!AJ$187:AJ$236, $E7)="", AI8, INDEX('RAB input'!AJ$187:AJ$236, $E7)) -> 41.97333998 | AK8: =IF(INDEX('RAB input'!AK$187:AK$236, $E7)="", AJ8, INDEX('RAB input'!AK$187:AK$236, $E7)) -> 41.97333998 | AL8: =IF(INDEX('RAB input'!AL$187:AL$236, $E7)="", AK8, INDEX('RAB input'!AL$187:AL$236, $E7)) -> 41.97333998 | AM8: =IF(INDEX('RAB input'!AM$187:AM$236, $E7)="", AL8, INDEX('RAB input'!AM$187:AM$236, $E7)) -> 41.97333998 | AN8: =IF(INDEX('RAB input'!AN$187:AN$236, $E7)="", AM8, INDEX('RAB input'!AN$187:AN$236, $E7)) -> 41.97333998 | AO8: =IF(INDEX('RAB input'!AO$187:AO$236, $E7)="", AN8, INDEX('RAB input'!AO$187:AO$236, $E7)) -> 41.97333998 | AP8: =IF(INDEX('RAB input'!AP$187:AP$236, $E7)="", AO8, INDEX('RAB input'!AP$187:AP$236, $E7)) -> 41.97333998 | AQ8: =IF(INDEX('RAB input'!AQ$187:AQ$236, $E7)="", AP8, INDEX('RAB input'!AQ$187:AQ$236, $E7)) -> 41.97333998 | AR8: =IF(INDEX('RAB input'!AR$187:AR$236, $E7)="", AQ8, INDEX('RAB input'!AR$187:AR$236, $E7)) -> 41.97333998 | AS8: =IF(INDEX('RAB input'!AS$187:AS$236, $E7)="", AR8, INDEX('RAB input'!AS$187:AS$236, $E7)) -> 41.97333998 | AT8: =IF(INDEX('RAB input'!AT$187:AT$236, $E7)="", AS8, INDEX('RAB input'!AT$187:AT$236, $E7)) -> 41.97333998 | AU8: =IF(INDEX('RAB input'!AU$187:AU$236, $E7)="", AT8, INDEX('RAB input'!AU$187:AU$236, $E7)) -> 41.97333998 | AV8: =IF(INDEX('RAB input'!AV$187:AV$236, $E7)="", AU8, INDEX('RAB input'!AV$187:AV$236, $E7)) -> 41.97333998 | AW8: =IF(INDEX('RAB input'!AW$187:AW$236, $E7)="", AV8, INDEX('RAB input'!AW$187:AW$236, $E7)) -> 41.97333998 | AX8: =IF(INDEX('RAB input'!AX$187:AX$236, $E7)="", AW8, INDEX('RAB input'!AX$187:AX$236, $E7)) -> 41.97333998 | AY8: =IF(INDEX('RAB input'!AY$187:AY$236, $E7)="", AX8, INDEX('RAB input'!AY$187:AY$236, $E7)) -> 41.97333998 | AZ8: =IF(INDEX('RAB input'!AZ$187:AZ$236, $E7)="", AY8, INDEX('RAB input'!AZ$187:AZ$236, $E7)) -> 41.97333998 | BA8: =IF(INDEX('RAB input'!BA$187:BA$236, $E7)="", AZ8, INDEX('RAB input'!BA$187:BA$236, $E7)) -> 41.97333998 | BB8: =IF(INDEX('RAB input'!BB$187:BB$236, $E7)="", BA8, INDEX('RAB input'!BB$187:BB$236, $E7)) -> 41.97333998 | BC8: =IF(INDEX('RAB input'!BC$187:BC$236, $E7)="", BB8, INDEX('RAB input'!BC$187:BC$236, $E7)) -> 41.97333998 | BD8: =IF(INDEX('RAB input'!BD$187:BD$236, $E7)="", BC8, INDEX('RAB input'!BD$187:BD$236, $E7)) -> 41.97333998 | BE8: =IF(INDEX('RAB input'!BE$187:BE$236, $E7)="", BD8, INDEX('RAB input'!BE$187:BE$236, $E7)) -> 41.97333998 | BF8: =IF(INDEX('RAB input'!BF$187:BF$236, $E7)="", BE8, INDEX('RAB input'!BF$187:BF$236, $E7)) -> 41.97333998 | BG8: =IF(INDEX('RAB input'!BG$187:BG$236, $E7)="", BF8, INDEX('RAB input'!BG$187:BG$236, $E7)) -> 41.97333998 | BH8: =IF(INDEX('RAB input'!BH$187:BH$236, $E7)="", BG8, INDEX('RAB input'!BH$187:BH$236, $E7)) -> 41.97333998 | BI8: =IF(INDEX('RAB input'!BI$187:BI$236, $E7)="", BH8, INDEX('RAB input'!BI$187:BI$236, $E7)) -> 41.97333998 | BJ8: =IF(INDEX('RAB input'!BJ$187:BJ$236, $E7)="", BI8, INDEX('RAB input'!BJ$187:BJ$236, $E7)) -> 41.97333998 | BK8: =IF(INDEX('RAB input'!BK$187:BK$236, $E7)="", BJ8, INDEX('RAB input'!BK$187:BK$236, $E7)) -> 41.97333998 | BL8: =IF(INDEX('RAB input'!BL$187:BL$236, $E7)="", BK8, INDEX('RAB input'!BL$187:BL$236, $E7)) -> 41.97333998 | BM8: =IF(INDEX('RAB input'!BM$187:BM$236, $E7)="", BL8, INDEX('RAB input'!BM$187:BM$236, $E7)) -> 41.97333998 | BN8: =IF(INDEX('RAB input'!BN$187:BN$236, $E7)="", BM8, INDEX('RAB input'!BN$187:BN$236, $E7)) -> 41.97333998 | BO8: =IF(INDEX('RAB input'!BO$187:BO$236, $E7)="", BN8, INDEX('RAB input'!BO$187:BO$236, $E7)) -> 41.97333998 | BP8: =IF(INDEX('RAB input'!BP$187:BP$236, $E7)="", BO8, INDEX('RAB input'!BP$187:BP$236, $E7)) -> 41.97333998 | BQ8: =IF(INDEX('RAB input'!BQ$187:BQ$236, $E7)="", BP8, INDEX('RAB input'!BQ$187:BQ$236, $E7)) -> 41.97333998 | BR8: =IF(INDEX('RAB input'!BR$187:BR$236, $E7)="", BQ8, INDEX('RAB input'!BR$187:BR$236, $E7)) -> 41.97333998 | BS8: =IF(INDEX('RAB input'!BS$187:BS$236, $E7)="", BR8, INDEX('RAB input'!BS$187:BS$236, $E7)) -> 41.97333998 | BT8: =IF(INDEX('RAB input'!BT$187:BT$236, $E7)="", BS8, INDEX('RAB input'!BT$187:BT$236, $E7)) -> 41.97333998 | BU8: =IF(INDEX('RAB input'!BU$187:BU$236, $E7)="", BT8, INDEX('RAB input'!BU$187:BU$236, $E7)) -> 41.97333998 | BV8: =IF(INDEX('RAB input'!BV$187:BV$236, $E7)="", BU8, INDEX('RAB input'!BV$187:BV$236, $E7)) -> 41.97333998 | BW8: =IF(INDEX('RAB input'!BW$187:BW$236, $E7)="", BV8, INDEX('RAB input'!BW$187:BW$236, $E7)) -> 41.97333998 | BX8: =IF(INDEX('RAB input'!BX$187:BX$236, $E7)="", BW8, INDEX('RAB input'!BX$187:BX$236, $E7)) -> 41.97333998 | BY8: =IF(INDEX('RAB input'!BY$187:BY$236, $E7)="", BX8, INDEX('RAB input'!BY$187:BY$236, $E7)) -> 41.97333998 | BZ8: =IF(INDEX('RAB input'!BZ$187:BZ$236, $E7)="", BY8, INDEX('RAB input'!BZ$187:BZ$236, $E7)) -> 41.97333998
F9: Adjustment for difference in t-1 capex | G9: =INDEX('RAB input'!$G$347:$G$396, $E7)/INDEX(CPI, 'RAB input'!$H$11+2)*INDEX(nvanillaWACC, 'RAB input'!$H$11+2) -> -24.34479078 | H9: =IF('RAB input'!I$11="", 0, INDEX('RAB input'!H$347:H$396,$E7)/'RAB input'!H$15*(INDEX(rvanillaWACC, SUM('RAB input'!$H$11:I$11, 2))/'RAB input'!H$20-1)) -> 0 | I9: =IF('RAB input'!J$11="", 0, INDEX('RAB input'!I$347:I$396,$E7)/'RAB input'!I$15*(INDEX(rvanillaWACC, SUM('RAB input'!$H$11:J$11, 2))/'RAB input'!I$20-1)) -> 0 | J9: =IF('RAB input'!K$11="", 0, INDEX('RAB input'!J$347:J$396,$E7)/'RAB input'!J$15*(INDEX(rvanillaWACC, SUM('RAB input'!$H$11:K$11, 2))/'RAB input'!J$20-1)) -> 0 | K9: =IF('RAB input'!L$11="", 0, INDEX('RAB input'!K$347:K$396,$E7)/'RAB input'!K$15*(INDEX(rvanillaWACC, SUM('RAB input'!$H$11:L$11, 2))/'RAB input'!K$20-1)) -> 0 | L9: =IF('RAB input'!M$11="", 0, INDEX('RAB input'!L$347:L$396,$E7)/'RAB input'!L$15*(INDEX(rvanillaWACC, SUM('RAB input'!$H$11:M$11, 2))/'RAB input'!L$20-1)) -> -0.2580288321 | M9: =IF('RAB input'!N$11="", 0, INDEX('RAB input'!M$347:M$396,$E7)/'RAB input'!M$15*(INDEX(rvanillaWACC, SUM('RAB input'!$H$11:N$11, 2))/'RAB input'!M$20-1)) -> 0 | N9: =IF('RAB input'!O$11="", 0, INDEX('RAB input'!N$347:N$396,$E7)/'RAB input'!N$15*(INDEX(rvanillaWACC, SUM('RAB input'!$H$11:O$11, 2))/'RAB input'!N$20-1)) -> 0 | O9: =IF('RAB input'!P$11="", 0, INDEX('RAB input'!O$347:O$396,$E7)/'RAB input'!O$15*(INDEX(rvanillaWACC, SUM('RAB input'!$H$11:P$11, 2))/'RAB input'!O$20-1)) -> 0 | P9: =IF('RAB input'!Q$11="", 0, INDEX('RAB input'!P$347:P$396,$E7)/'RAB input'!P$15*(INDEX(rvanillaWACC, SUM('RAB input'!$H$11:Q$11, 2))/'RAB input'!P$20-1)) -> 0 | Q9: =IF('RAB input'!R$11="", 0, INDEX('RAB input'!Q$347:Q$396,$E7)/'RAB input'!Q$15*(INDEX(rvanillaWACC, SUM('RAB input'!$H$11:R$11, 2))/'RAB input'!Q$20-1)) -> 0 | R9: =IF('RAB input'!S$11="", 0, INDEX('RAB input'!R$347:R$396,$E7)/'RAB input'!R$15*(INDEX(rvanillaWACC, SUM('RAB input'!$H$11:S$11, 2))/'RAB input'!R$20-1)) -> 0 | S9: =IF('RAB input'!T$11="", 0, INDEX('RAB input'!S$347:S$396,$E7)/'RAB input'!S$15*(INDEX(rvanillaWACC, SUM('RAB input'!$H$11:T$11, 2))/'RAB input'!S$20-1)) -> 0 | T9: =IF('RAB input'!U$11="", 0, INDEX('RAB input'!T$347:T$396,$E7)/'RAB input'!T$15*(INDEX(rvanillaWACC, SUM('RAB input'!$H$11:U$11, 2))/'RAB input'!T$20-1)) -> 0 | U9: =IF('RAB input'!V$11="", 0, INDEX('RAB input'!U$347:U$396,$E7)/'RAB input'!U$15*(INDEX(rvanillaWACC, SUM('RAB input'!$H$11:V$11, 2))/'RAB input'!U$20-1)) -> 0 | V9: =IF('RAB input'!W$11="", 0, INDEX('RAB input'!V$347:V$396,$E7)/'RAB input'!V$15*(INDEX(rvanillaWACC, SUM('RAB input'!$H$11:W$11, 2))/'RAB input'!V$20-1)) -> 0 | W9: =IF('RAB input'!X$11="", 0, INDEX('RAB input'!W$347:W$396,$E7)/'RAB input'!W$15*(INDEX(rvanillaWACC, SUM('RAB input'!$H$11:X$11, 2))/'RAB input'!W$20-1)) -> 0 | X9: =IF('RAB input'!Y$11="", 0, INDEX('RAB input'!X$347:X$396,$E7)/'RAB input'!X$15*(INDEX(rvanillaWACC, SUM('RAB input'!$H$11:Y$11, 2))/'RAB input'!X$20-1)) -> 0 | Y9: =IF('RAB input'!Z$11="", 0, INDEX('RAB input'!Y$347:Y$396,$E7)/'RAB input'!Y$15*(INDEX(rvanillaWACC, SUM('RAB input'!$H$11:Z$11, 2))/'RAB input'!Y$20-1)) -> 0 | Z9: =IF('RAB input'!AA$11="", 0, INDEX('RAB input'!Z$347:Z$396,$E7)/'RAB input'!Z$15*(INDEX(rvanillaWACC, SUM('RAB input'!$H$11:AA$11, 2))/'RAB input'!Z$20-1)) -> 0 | AA9: =IF('RAB input'!AB$11="", 0, INDEX('RAB input'!AA$347:AA$396,$E7)/'RAB input'!AA$15*(INDEX(rvanillaWACC, SUM('RAB input'!$H$11:AB$11, 2))/'RAB input'!AA$20-1)) -> 0 | AB9: =IF('RAB input'!AC$11="", 0, INDEX('RAB input'!AB$347:AB$396,$E7)/'RAB input'!AB$15*(INDEX(rvanillaWACC, SUM('RAB input'!$H$11:AC$11, 2))/'RAB input'!AB$20-1)) -> 0 | AC9: =IF('RAB input'!AD$11="", 0, INDEX('RAB input'!AC$347:AC$396,$E7)/'RAB input'!AC$15*(INDEX(rvanillaWACC, SUM('RAB input'!$H$11:AD$11, 2))/'RAB input'!AC$20-1)) -> 0 | AD9: =IF('RAB input'!AE$11="", 0, INDEX('RAB input'!AD$347:AD$396,$E7)/'RAB input'!AD$15*(INDEX(rvanillaWACC, SUM('RAB input'!$H$11:AE$11, 2))/'RAB input'!AD$20-1)) -> 0 | AE9: =IF('RAB input'!AF$11="", 0, INDEX('RAB input'!AE$347:AE$396,$E7)/'RAB input'!AE$15*(INDEX(rvanillaWACC, SUM('RAB input'!$H$11:AF$11, 2))/'RAB input'!AE$20-1)) -> 0 | AF9: =IF('RAB input'!AG$11="", 0, INDEX('RAB input'!AF$347:AF$396,$E7)/'RAB input'!AF$15*(INDEX(rvanillaWACC, SUM('RAB input'!$H$11:AG$11, 2))/'RAB input'!AF$20-1)) -> 0 | AG9: =IF('RAB input'!AH$11="", 0, INDEX('RAB input'!AG$347:AG$396,$E7)/'RAB input'!AG$15*(INDEX(rvanillaWACC, SUM('RAB input'!$H$11:AH$11, 2))/'RAB input'!AG$20-1)) -> 0 | AH9: =IF('RAB input'!AI$11="", 0, INDEX('RAB input'!AH$347:AH$396,$E7)/'RAB input'!AH$15*(INDEX(rvanillaWACC, SUM('RAB input'!$H$11:AI$11, 2))/'RAB input'!AH$20-1)) -> 0 | AI9: =IF('RAB input'!AJ$11="", 0, INDEX('RAB input'!AI$347:AI$396,$E7)/'RAB input'!AI$15*(INDEX(rvanillaWACC, SUM('RAB input'!$H$11:AJ$11, 2))/'RAB input'!AI$20-1)) -> 0 | AJ9: =IF('RAB input'!AK$11="", 0, INDEX('RAB input'!AJ$347:AJ$396,$E7)/'RAB input'!AJ$15*(INDEX(rvanillaWACC, SUM('RAB input'!$H$11:AK$11, 2))/'RAB input'!AJ$20-1)) -> 0 | AK9: =IF('RAB input'!AL$11="", 0, INDEX('RAB input'!AK$347:AK$396,$E7)/'RAB input'!AK$15*(INDEX(rvanillaWACC, SUM('RAB input'!$H$11:AL$11, 2))/'RAB input'!AK$20-1)) -> 0 | AL9: =IF('RAB input'!AM$11="", 0, INDEX('RAB input'!AL$347:AL$396,$E7)/'RAB input'!AL$15*(INDEX(rvanillaWACC, SUM('RAB input'!$H$11:AM$11, 2))/'RAB input'!AL$20-1)) -> 0 | AM9: =IF('RAB input'!AN$11="", 0, INDEX('RAB input'!AM$347:AM$396,$E7)/'RAB input'!AM$15*(INDEX(rvanillaWACC, SUM('RAB input'!$H$11:AN$11, 2))/'RAB input'!AM$20-1)) -> 0 | AN9: =IF('RAB input'!AO$11="", 0, INDEX('RAB input'!AN$347:AN$396,$E7)/'RAB input'!AN$15*(INDEX(rvanillaWACC, SUM('RAB input'!$H$11:AO$11, 2))/'RAB input'!AN$20-1)) -> 0 | AO9: =IF('RAB input'!AP$11="", 0, INDEX('RAB input'!AO$347:AO$396,$E7)/'RAB input'!AO$15*(INDEX(rvanillaWACC, SUM('RAB input'!$H$11:AP$11, 2))/'RAB input'!AO$20-1)) -> 0 | AP9: =IF('RAB input'!AQ$11="", 0, INDEX('RAB input'!AP$347:AP$396,$E7)/'RAB input'!AP$15*(INDEX(rvanillaWACC, SUM('RAB input'!$H$11:AQ$11, 2))/'RAB input'!AP$20-1)) -> 0 | AQ9: =IF('RAB input'!AR$11="", 0, INDEX('RAB input'!AQ$347:AQ$396,$E7)/'RAB input'!AQ$15*(INDEX(rvanillaWACC, SUM('RAB input'!$H$11:AR$11, 2))/'RAB input'!AQ$20-1)) -> 0 | AR9: =IF('RAB input'!AS$11="", 0, INDEX('RAB input'!AR$347:AR$396,$E7)/'RAB input'!AR$15*(INDEX(rvanillaWACC, SUM('RAB input'!$H$11:AS$11, 2))/'RAB input'!AR$20-1)) -> 0 | AS9: =IF('RAB input'!AT$11="", 0, INDEX('RAB input'!AS$347:AS$396,$E7)/'RAB input'!AS$15*(INDEX(rvanillaWACC, SUM('RAB input'!$H$11:AT$11, 2))/'RAB input'!AS$20-1)) -> 0 | AT9: =IF('RAB input'!AU$11="", 0, INDEX('RAB input'!AT$347:AT$396,$E7)/'RAB input'!AT$15*(INDEX(rvanillaWACC, SUM('RAB input'!$H$11:AU$11, 2))/'RAB input'!AT$20-1)) -> 0 | AU9: =IF('RAB input'!AV$11="", 0, INDEX('RAB input'!AU$347:AU$396,$E7)/'RAB input'!AU$15*(INDEX(rvanillaWACC, SUM('RAB input'!$H$11:AV$11, 2))/'RAB input'!AU$20-1)) -> 0 | AV9: =IF('RAB input'!AW$11="", 0, INDEX('RAB input'!AV$347:AV$396,$E7)/'RAB input'!AV$15*(INDEX(rvanillaWACC, SUM('RAB input'!$H$11:AW$11, 2))/'RAB input'!AV$20-1)) -> 0 | AW9: =IF('RAB input'!AX$11="", 0, INDEX('RAB input'!AW$347:AW$396,$E7)/'RAB input'!AW$15*(INDEX(rvanillaWACC, SUM('RAB input'!$H$11:AX$11, 2))/'RAB input'!AW$20-1)) -> 0 | AX9: =IF('RAB input'!AY$11="", 0, INDEX('RAB input'!AX$347:AX$396,$E7)/'RAB input'!AX$15*(INDEX(rvanillaWACC, SUM('RAB input'!$H$11:AY$11, 2))/'RAB input'!AX$20-1)) -> 0 | AY9: =IF('RAB input'!AZ$11="", 0, INDEX('RAB input'!AY$347:AY$396,$E7)/'RAB input'!AY$15*(INDEX(rvanillaWACC, SUM('RAB input'!$H$11:AZ$11, 2))/'RAB input'!AY$20-1)) -> 0 | AZ9: =IF('RAB input'!BA$11="", 0, INDEX('RAB input'!AZ$347:AZ$396,$E7)/'RAB input'!AZ$15*(INDEX(rvanillaWACC, SUM('RAB input'!$H$11:BA$11, 2))/'RAB input'!AZ$20-1)) -> 0 | BA9: =IF('RAB input'!BB$11="", 0, INDEX('RAB input'!BA$347:BA$396,$E7)/'RAB input'!BA$15*(INDEX(rvanillaWACC, SUM('RAB input'!$H$11:BB$11, 2))/'RAB input'!BA$20-1)) -> 0 | BB9: =IF('RAB input'!BC$11="", 0, INDEX('RAB input'!BB$347:BB$396,$E7)/'RAB input'!BB$15*(INDEX(rvanillaWACC, SUM('RAB input'!$H$11:BC$11, 2))/'RAB input'!BB$20-1)) -> 0 | BC9: =IF('RAB input'!BD$11="", 0, INDEX('RAB input'!BC$347:BC$396,$E7)/'RAB input'!BC$15*(INDEX(rvanillaWACC, SUM('RAB input'!$H$11:BD$11, 2))/'RAB input'!BC$20-1)) -> 0 | BD9: =IF('RAB input'!BE$11="", 0, INDEX('RAB input'!BD$347:BD$396,$E7)/'RAB input'!BD$15*(INDEX(rvanillaWACC, SUM('RAB input'!$H$11:BE$11, 2))/'RAB input'!BD$20-1)) -> 0 | BE9: =IF('RAB input'!BF$11="", 0, INDEX('RAB input'!BE$347:BE$396,$E7)/'RAB input'!BE$15*(INDEX(rvanillaWACC, SUM('RAB input'!$H$11:BF$11, 2))/'RAB input'!BE$20-1)) -> 0 | BF9: =IF('RAB input'!BG$11="", 0, INDEX('RAB input'!BF$347:BF$396,$E7)/'RAB input'!BF$15*(INDEX(rvanillaWACC, SUM('RAB input'!$H$11:BG$11, 2))/'RAB input'!BF$20-1)) -> 0 | BG9: =IF('RAB input'!BH$11="", 0, INDEX('RAB input'!BG$347:BG$396,$E7)/'RAB input'!BG$15*(INDEX(rvanillaWACC, SUM('RAB input'!$H$11:BH$11, 2))/'RAB input'!BG$20-1)) -> 0 | BH9: =IF('RAB input'!BI$11="", 0, INDEX('RAB input'!BH$347:BH$396,$E7)/'RAB input'!BH$15*(INDEX(rvanillaWACC, SUM('RAB input'!$H$11:BI$11, 2))/'RAB input'!BH$20-1)) -> 0 | BI9: =IF('RAB input'!BJ$11="", 0, INDEX('RAB input'!BI$347:BI$396,$E7)/'RAB input'!BI$15*(INDEX(rvanillaWACC, SUM('RAB input'!$H$11:BJ$11, 2))/'RAB input'!BI$20-1)) -> 0 | BJ9: =IF('RAB input'!BK$11="", 0, INDEX('RAB input'!BJ$347:BJ$396,$E7)/'RAB input'!BJ$15*(INDEX(rvanillaWACC, SUM('RAB input'!$H$11:BK$11, 2))/'RAB input'!BJ$20-1)) -> 0 | BK9: =IF('RAB input'!BL$11="", 0, INDEX('RAB input'!BK$347:BK$396,$E7)/'RAB input'!BK$15*(INDEX(rvanillaWACC, SUM('RAB input'!$H$11:BL$11, 2))/'RAB input'!BK$20-1)) -> 0 | BL9: =IF('RAB input'!BM$11="", 0, INDEX('RAB input'!BL$347:BL$396,$E7)/'RAB input'!BL$15*(INDEX(rvanillaWACC, SUM('RAB input'!$H$11:BM$11, 2))/'RAB input'!BL$20-1)) -> 0 | BM9: =IF('RAB input'!BN$11="", 0, INDEX('RAB input'!BM$347:BM$396,$E7)/'RAB input'!BM$15*(INDEX(rvanillaWACC, SUM('RAB input'!$H$11:BN$11, 2))/'RAB input'!BM$20-1)) -> 0 | BN9: =IF('RAB input'!BO$11="", 0, INDEX('RAB input'!BN$347:BN$396,$E7)/'RAB input'!BN$15*(INDEX(rvanillaWACC, SUM('RAB input'!$H$11:BO$11, 2))/'RAB input'!BN$20-1)) -> 0 | BO9: =IF('RAB input'!BP$11="", 0, INDEX('RAB input'!BO$347:BO$396,$E7)/'RAB input'!BO$15*(INDEX(rvanillaWACC, SUM('RAB input'!$H$11:BP$11, 2))/'RAB input'!BO$20-1)) -> 0 | BP9: =IF('RAB input'!BQ$11="", 0, INDEX('RAB input'!BP$347:BP$396,$E7)/'RAB input'!BP$15*(INDEX(rvanillaWACC, SUM('RAB input'!$H$11:BQ$11, 2))/'RAB input'!BP$20-1)) -> 0 | BQ9: =IF('RAB input'!BR$11="", 0, INDEX('RAB input'!BQ$347:BQ$396,$E7)/'RAB input'!BQ$15*(INDEX(rvanillaWACC, SUM('RAB input'!$H$11:BR$11, 2))/'RAB input'!BQ$20-1)) -> 0 | BR9: =IF('RAB input'!BS$11="", 0, INDEX('RAB input'!BR$347:BR$396,$E7)/'RAB input'!BR$15*(INDEX(rvanillaWACC, SUM('RAB input'!$H$11:BS$11, 2))/'RAB input'!BR$20-1)) -> 0 | BS9: =IF('RAB input'!BT$11="", 0, INDEX('RAB input'!BS$347:BS$396,$E7)/'RAB input'!BS$15*(INDEX(rvanillaWACC, SUM('RAB input'!$H$11:BT$11, 2))/'RAB input'!BS$20-1)) -> 0 | BT9: =IF('RAB input'!BU$11="", 0, INDEX('RAB input'!BT$347:BT$396,$E7)/'RAB input'!BT$15*(INDEX(rvanillaWACC, SUM('RAB input'!$H$11:BU$11, 2))/'RAB input'!BT$20-1)) -> 0 | BU9: =IF('RAB input'!BV$11="", 0, INDEX('RAB input'!BU$347:BU$396,$E7)/'RAB input'!BU$15*(INDEX(rvanillaWACC, SUM('RAB input'!$H$11:BV$11, 2))/'RAB input'!BU$20-1)) -> 0 | BV9: =IF('RAB input'!BW$11="", 0, INDEX('RAB input'!BV$347:BV$396,$E7)/'RAB input'!BV$15*(INDEX(rvanillaWACC, SUM('RAB input'!$H$11:BW$11, 2))/'RAB input'!BV$20-1)) -> 0 | BW9: =IF('RAB input'!BX$11="", 0, INDEX('RAB input'!BW$347:BW$396,$E7)/'RAB input'!BW$15*(INDEX(rvanillaWACC, SUM('RAB input'!$H$11:BX$11, 2))/'RAB input'!BW$20-1)) -> 0 | BX9: =IF('RAB input'!BY$11="", 0, INDEX('RAB input'!BX$347:BX$396,$E7)/'RAB input'!BX$15*(INDEX(rvanillaWACC, SUM('RAB input'!$H$11:BY$11, 2))/'RAB input'!BX$20-1)) -> 0 | BY9: =IF('RAB input'!BZ$11="", 0, INDEX('RAB input'!BY$347:BY$396,$E7)/'RAB input'!BY$15*(INDEX(rvanillaWACC, SUM('RAB input'!$H$11:BZ$11, 2))/'RAB input'!BY$20-1)) -> 0 | BZ9: =IF('RAB input'!CA$11="", 0, INDEX('RAB input'!BZ$347:BZ$396,$E7)/'RAB input'!BZ$15*(INDEX(rvanillaWACC, SUM('RAB input'!$H$11:CA$11, 2))/'RAB input'!BZ$20-1)) -> 0
F10: Remaining life of adjustment for t-1 capex (years) | G10: =IF(G9<>0, IF(G8<>"n/a", INDEX('RAB input'!$F$187:$F$236, $E7)-'RAB input'!$H$11, "n/a"), 0) -> 36.97333998 | H10: =IF(H9<>0, IF(H8<>"n/a", H8-'RAB input'!I$11, "n/a"), 0) -> 0 | I10: =IF(I9<>0, IF(I8<>"n/a", I8-'RAB input'!J$11, "n/a"), 0) -> 0 | J10: =IF(J9<>0, IF(J8<>"n/a", J8-'RAB input'!K$11, "n/a"), 0) -> 0 | K10: =IF(K9<>0, IF(K8<>"n/a", K8-'RAB input'!L$11, "n/a"), 0) -> 0 | L10: =IF(L9<>0, IF(L8<>"n/a", L8-'RAB input'!M$11, "n/a"), 0) -> 36.97333998 | M10: =IF(M9<>0, IF(M8<>"n/a", M8-'RAB input'!N$11, "n/a"), 0) -> 0 | N10: =IF(N9<>0, IF(N8<>"n/a", N8-'RAB input'!O$11, "n/a"), 0) -> 0 | O10: =IF(O9<>0, IF(O8<>"n/a", O8-'RAB input'!P$11, "n/a"), 0) -> 0 | P10: =IF(P9<>0, IF(P8<>"n/a", P8-'RAB input'!Q$11, "n/a"), 0) -> 0 | Q10: =IF(Q9<>0, IF(Q8<>"n/a", Q8-'RAB input'!R$11, "n/a"), 0) -> 0 | R10: =IF(R9<>0, IF(R8<>"n/a", R8-'RAB input'!S$11, "n/a"), 0) -> 0 | S10: =IF(S9<>0, IF(S8<>"n/a", S8-'RAB input'!T$11, "n/a"), 0) -> 0 | T10: =IF(T9<>0, IF(T8<>"n/a", T8-'RAB input'!U$11, "n/a"), 0) -> 0 | U10: =IF(U9<>0, IF(U8<>"n/a", U8-'RAB input'!V$11, "n/a"), 0) -> 0 | V10: =IF(V9<>0, IF(V8<>"n/a", V8-'RAB input'!W$11, "n/a"), 0) -> 0 | W10: =IF(W9<>0, IF(W8<>"n/a", W8-'RAB input'!X$11, "n/a"), 0) -> 0 | X10: =IF(X9<>0, IF(X8<>"n/a", X8-'RAB input'!Y$11, "n/a"), 0) -> 0 | Y10: =IF(Y9<>0, IF(Y8<>"n/a", Y8-'RAB input'!Z$11, "n/a"), 0) -> 0 | Z10: =IF(Z9<>0, IF(Z8<>"n/a", Z8-'RAB input'!AA$11, "n/a"), 0) -> 0 | AA10: =IF(AA9<>0, IF(AA8<>"n/a", AA8-'RAB input'!AB$11, "n/a"), 0) -> 0 | AB10: =IF(AB9<>0, IF(AB8<>"n/a", AB8-'RAB input'!AC$11, "n/a"), 0) -> 0 | AC10: =IF(AC9<>0, IF(AC8<>"n/a", AC8-'RAB input'!AD$11, "n/a"), 0) -> 0 | AD10: =IF(AD9<>0, IF(AD8<>"n/a", AD8-'RAB input'!AE$11, "n/a"), 0) -> 0 | AE10: =IF(AE9<>0, IF(AE8<>"n/a", AE8-'RAB input'!AF$11, "n/a"), 0) -> 0 | AF10: =IF(AF9<>0, IF(AF8<>"n/a", AF8-'RAB input'!AG$11, "n/a"), 0) -> 0 | AG10: =IF(AG9<>0, IF(AG8<>"n/a", AG8-'RAB input'!AH$11, "n/a"), 0) -> 0 | AH10: =IF(AH9<>0, IF(AH8<>"n/a", AH8-'RAB input'!AI$11, "n/a"), 0) -> 0 | AI10: =IF(AI9<>0, IF(AI8<>"n/a", AI8-'RAB input'!AJ$11, "n/a"), 0) -> 0 | AJ10: =IF(AJ9<>0, IF(AJ8<>"n/a", AJ8-'RAB input'!AK$11, "n/a"), 0) -> 0 | AK10: =IF(AK9<>0, IF(AK8<>"n/a", AK8-'RAB input'!AL$11, "n/a"), 0) -> 0 | AL10: =IF(AL9<>0, IF(AL8<>"n/a", AL8-'RAB input'!AM$11, "n/a"), 0) -> 0 | AM10: =IF(AM9<>0, IF(AM8<>"n/a", AM8-'RAB input'!AN$11, "n/a"), 0) -> 0 | AN10: =IF(AN9<>0, IF(AN8<>"n/a", AN8-'RAB input'!AO$11, "n/a"), 0) -> 0 | AO10: =IF(AO9<>0, IF(AO8<>"n/a", AO8-'RAB input'!AP$11, "n/a"), 0) -> 0 | AP10: =IF(AP9<>0, IF(AP8<>"n/a", AP8-'RAB input'!AQ$11, "n/a"), 0) -> 0 | AQ10: =IF(AQ9<>0, IF(AQ8<>"n/a", AQ8-'RAB input'!AR$11, "n/a"), 0) -> 0 | AR10: =IF(AR9<>0, IF(AR8<>"n/a", AR8-'RAB input'!AS$11, "n/a"), 0) -> 0 | AS10: =IF(AS9<>0, IF(AS8<>"n/a", AS8-'RAB input'!AT$11, "n/a"), 0) -> 0 | AT10: =IF(AT9<>0, IF(AT8<>"n/a", AT8-'RAB input'!AU$11, "n/a"), 0) -> 0 | AU10: =IF(AU9<>0, IF(AU8<>"n/a", AU8-'RAB input'!AV$11, "n/a"), 0) -> 0 | AV10: =IF(AV9<>0, IF(AV8<>"n/a", AV8-'RAB input'!AW$11, "n/a"), 0) -> 0 | AW10: =IF(AW9<>0, IF(AW8<>"n/a", AW8-'RAB input'!AX$11, "n/a"), 0) -> 0 | AX10: =IF(AX9<>0, IF(AX8<>"n/a", AX8-'RAB input'!AY$11, "n/a"), 0) -> 0 | AY10: =IF(AY9<>0, IF(AY8<>"n/a", AY8-'RAB input'!AZ$11, "n/a"), 0) -> 0 | AZ10: =IF(AZ9<>0, IF(AZ8<>"n/a", AZ8-'RAB input'!BA$11, "n/a"), 0) -> 0 | BA10: =IF(BA9<>0, IF(BA8<>"n/a", BA8-'RAB input'!BB$11, "n/a"), 0) -> 0 | BB10: =IF(BB9<>0, IF(BB8<>"n/a", BB8-'RAB input'!BC$11, "n/a"), 0) -> 0 | BC10: =IF(BC9<>0, IF(BC8<>"n/a", BC8-'RAB input'!BD$11, "n/a"), 0) -> 0 | BD10: =IF(BD9<>0, IF(BD8<>"n/a", BD8-'RAB input'!BE$11, "n/a"), 0) -> 0 | BE10: =IF(BE9<>0, IF(BE8<>"n/a", BE8-'RAB input'!BF$11, "n/a"), 0) -> 0 | BF10: =IF(BF9<>0, IF(BF8<>"n/a", BF8-'RAB input'!BG$11, "n/a"), 0) -> 0 | BG10: =IF(BG9<>0, IF(BG8<>"n/a", BG8-'RAB input'!BH$11, "n/a"), 0) -> 0 | BH10: =IF(BH9<>0, IF(BH8<>"n/a", BH8-'RAB input'!BI$11, "n/a"), 0) -> 0 | BI10: =IF(BI9<>0, IF(BI8<>"n/a", BI8-'RAB input'!BJ$11, "n/a"), 0) -> 0 | BJ10: =IF(BJ9<>0, IF(BJ8<>"n/a", BJ8-'RAB input'!BK$11, "n/a"), 0) -> 0 | BK10: =IF(BK9<>0, IF(BK8<>"n/a", BK8-'RAB input'!BL$11, "n/a"), 0) -> 0 | BL10: =IF(BL9<>0, IF(BL8<>"n/a", BL8-'RAB input'!BM$11, "n/a"), 0) -> 0 | BM10: =IF(BM9<>0, IF(BM8<>"n/a", BM8-'RAB input'!BN$11, "n/a"), 0) -> 0 | BN10: =IF(BN9<>0, IF(BN8<>"n/a", BN8-'RAB input'!BO$11, "n/a"), 0) -> 0 | BO10: =IF(BO9<>0, IF(BO8<>"n/a", BO8-'RAB input'!BP$11, "n/a"), 0) -> 0 | BP10: =IF(BP9<>0, IF(BP8<>"n/a", BP8-'RAB input'!BQ$11, "n/a"), 0) -> 0 | BQ10: =IF(BQ9<>0, IF(BQ8<>"n/a", BQ8-'RAB input'!BR$11, "n/a"), 0) -> 0 | BR10: =IF(BR9<>0, IF(BR8<>"n/a", BR8-'RAB input'!BS$11, "n/a"), 0) -> 0 | BS10: =IF(BS9<>0, IF(BS8<>"n/a", BS8-'RAB input'!BT$11, "n/a"), 0) -> 0 | BT10: =IF(BT9<>0, IF(BT8<>"n/a", BT8-'RAB input'!BU$11, "n/a"), 0) -> 0 | BU10: =IF(BU9<>0, IF(BU8<>"n/a", BU8-'RAB input'!BV$11, "n/a"), 0) -> 0 | BV10: =IF(BV9<>0, IF(BV8<>"n/a", BV8-'RAB input'!BW$11, "n/a"), 0) -> 0 | BW10: =IF(BW9<>0, IF(BW8<>"n/a", BW8-'RAB input'!BX$11, "n/a"), 0) -> 0 | BX10: =IF(BX9<>0, IF(BX8<>"n/a", BX8-'RAB input'!BY$11, "n/a"), 0) -> 0 | BY10: =IF(BY9<>0, IF(BY8<>"n/a", BY8-'RAB input'!BZ$11, "n/a"), 0) -> 0 | BZ10: =IF(BZ9<>0, IF(BZ8<>"n/a", BZ8-'RAB input'!CA$11, "n/a"), 0) -> 0
F11: Adjustment for excluded t-2 capex | G11: =INDEX('RAB input'!$F$401:$F$450, $E7)/INDEX(CPI, 'RAB input'!$H$11+2)*INDEX(nvanillaWACC, 'RAB input'!$H$11+2) -> 0 | H11: =IF('RAB input'!I$11="", 0, INDEX('RAB input'!G$401:G$450,$E7)/'RAB input'!H$15*(INDEX(rvanillaWACC, SUM('RAB input'!$H$11:I$11, 2))/'RAB input'!H$20-1)) -> 0 | I11: =IF('RAB input'!J$11="", 0, INDEX('RAB input'!H$401:H$450,$E7)/'RAB input'!I$15*(INDEX(rvanillaWACC, SUM('RAB input'!$H$11:J$11, 2))/'RAB input'!I$20-1)) -> 0 | J11: =IF('RAB input'!K$11="", 0, INDEX('RAB input'!I$401:I$450,$E7)/'RAB input'!J$15*(INDEX(rvanillaWACC, SUM('RAB input'!$H$11:K$11, 2))/'RAB input'!J$20-1)) -> 0 | K11: =IF('RAB input'!L$11="", 0, INDEX('RAB input'!J$401:J$450,$E7)/'RAB input'!K$15*(INDEX(rvanillaWACC, SUM('RAB input'!$H$11:L$11, 2))/'RAB input'!K$20-1)) -> 0 | L11: =IF('RAB input'!M$11="", 0, INDEX('RAB input'!K$401:K$450,$E7)/'RAB input'!L$15*(INDEX(rvanillaWACC, SUM('RAB input'!$H$11:M$11, 2))/'RAB input'!L$20-1)) -> 0 | M11: =IF('RAB input'!N$11="", 0, INDEX('RAB input'!L$401:L$450,$E7)/'RAB input'!M$15*(INDEX(rvanillaWACC, SUM('RAB input'!$H$11:N$11, 2))/'RAB input'!M$20-1)) -> 0 | N11: =IF('RAB input'!O$11="", 0, INDEX('RAB input'!M$401:M$450,$E7)/'RAB input'!N$15*(INDEX(rvanillaWACC, SUM('RAB input'!$H$11:O$11, 2))/'RAB input'!N$20-1)) -> 0 | O11: =IF('RAB input'!P$11="", 0, INDEX('RAB input'!N$401:N$450,$E7)/'RAB input'!O$15*(INDEX(rvanillaWACC, SUM('RAB input'!$H$11:P$11, 2))/'RAB input'!O$20-1)) -> 0 | P11: =IF('RAB input'!Q$11="", 0, INDEX('RAB input'!O$401:O$450,$E7)/'RAB input'!P$15*(INDEX(rvanillaWACC, SUM('RAB input'!$H$11:Q$11, 2))/'RAB input'!P$20-1)) -> 0 | Q11: =IF('RAB input'!R$11="", 0, INDEX('RAB input'!P$401:P$450,$E7)/'RAB input'!Q$15*(INDEX(rvanillaWACC, SUM('RAB input'!$H$11:R$11, 2))/'RAB input'!Q$20-1)) -> 0 | R11: =IF('RAB input'!S$11="", 0, INDEX('RAB input'!Q$401:Q$450,$E7)/'RAB input'!R$15*(INDEX(rvanillaWACC, SUM('RAB input'!$H$11:S$11, 2))/'RAB input'!R$20-1)) -> 0 | S11: =IF('RAB input'!T$11="", 0, INDEX('RAB input'!R$401:R$450,$E7)/'RAB input'!S$15*(INDEX(rvanillaWACC, SUM('RAB input'!$H$11:T$11, 2))/'RAB input'!S$20-1)) -> 0 | T11: =IF('RAB input'!U$11="", 0, INDEX('RAB input'!S$401:S$450,$E7)/'RAB input'!T$15*(INDEX(rvanillaWACC, SUM('RAB input'!$H$11:U$11, 2))/'RAB input'!T$20-1)) -> 0 | U11: =IF('RAB input'!V$11="", 0, INDEX('RAB input'!T$401:T$450,$E7)/'RAB input'!U$15*(INDEX(rvanillaWACC, SUM('RAB input'!$H$11:V$11, 2))/'RAB input'!U$20-1)) -> 0 | V11: =IF('RAB input'!W$11="", 0, INDEX('RAB input'!U$401:U$450,$E7)/'RAB input'!V$15*(INDEX(rvanillaWACC, SUM('RAB input'!$H$11:W$11, 2))/'RAB input'!V$20-1)) -> 0 | W11: =IF('RAB input'!X$11="", 0, INDEX('RAB input'!V$401:V$450,$E7)/'RAB input'!W$15*(INDEX(rvanillaWACC, SUM('RAB input'!$H$11:X$11, 2))/'RAB input'!W$20-1)) -> 0 | X11: =IF('RAB input'!Y$11="", 0, INDEX('RAB input'!W$401:W$450,$E7)/'RAB input'!X$15*(INDEX(rvanillaWACC, SUM('RAB input'!$H$11:Y$11, 2))/'RAB input'!X$20-1)) -> 0 | Y11: =IF('RAB input'!Z$11="", 0, INDEX('RAB input'!X$401:X$450,$E7)/'RAB input'!Y$15*(INDEX(rvanillaWACC, SUM('RAB input'!$H$11:Z$11, 2))/'RAB input'!Y$20-1)) -> 0 | Z11: =IF('RAB input'!AA$11="", 0, INDEX('RAB input'!Y$401:Y$450,$E7)/'RAB input'!Z$15*(INDEX(rvanillaWACC, SUM('RAB input'!$H$11:AA$11, 2))/'RAB input'!Z$20-1)) -> 0 | AA11: =IF('RAB input'!AB$11="", 0, INDEX('RAB input'!Z$401:Z$450,$E7)/'RAB input'!AA$15*(INDEX(rvanillaWACC, SUM('RAB input'!$H$11:AB$11, 2))/'RAB input'!AA$20-1)) -> 0 | AB11: =IF('RAB input'!AC$11="", 0, INDEX('RAB input'!AA$401:AA$450,$E7)/'RAB input'!AB$15*(INDEX(rvanillaWACC, SUM('RAB input'!$H$11:AC$11, 2))/'RAB input'!AB$20-1)) -> 0 | AC11: =IF('RAB input'!AD$11="", 0, INDEX('RAB input'!AB$401:AB$450,$E7)/'RAB input'!AC$15*(INDEX(rvanillaWACC, SUM('RAB input'!$H$11:AD$11, 2))/'RAB input'!AC$20-1)) -> 0 | AD11: =IF('RAB input'!AE$11="", 0, INDEX('RAB input'!AC$401:AC$450,$E7)/'RAB input'!AD$15*(INDEX(rvanillaWACC, SUM('RAB input'!$H$11:AE$11, 2))/'RAB input'!AD$20-1)) -> 0 | AE11: =IF('RAB input'!AF$11="", 0, INDEX('RAB input'!AD$401:AD$450,$E7)/'RAB input'!AE$15*(INDEX(rvanillaWACC, SUM('RAB input'!$H$11:AF$11, 2))/'RAB input'!AE$20-1)) -> 0 | AF11: =IF('RAB input'!AG$11="", 0, INDEX('RAB input'!AE$401:AE$450,$E7)/'RAB input'!AF$15*(INDEX(rvanillaWACC, SUM('RAB input'!$H$11:AG$11, 2))/'RAB input'!AF$20-1)) -> 0 | AG11: =IF('RAB input'!AH$11="", 0, INDEX('RAB input'!AF$401:AF$450,$E7)/'RAB input'!AG$15*(INDEX(rvanillaWACC, SUM('RAB input'!$H$11:AH$11, 2))/'RAB input'!AG$20-1)) -> 0 | AH11: =IF('RAB input'!AI$11="", 0, INDEX('RAB input'!AG$401:AG$450,$E7)/'RAB input'!AH$15*(INDEX(rvanillaWACC, SUM('RAB input'!$H$11:AI$11, 2))/'RAB input'!AH$20-1)) -> 0 | AI11: =IF('RAB input'!AJ$11="", 0, INDEX('RAB input'!AH$401:AH$450,$E7)/'RAB input'!AI$15*(INDEX(rvanillaWACC, SUM('RAB input'!$H$11:AJ$11, 2))/'RAB input'!AI$20-1)) -> 0 | AJ11: =IF('RAB input'!AK$11="", 0, INDEX('RAB input'!AI$401:AI$450,$E7)/'RAB input'!AJ$15*(INDEX(rvanillaWACC, SUM('RAB input'!$H$11:AK$11, 2))/'RAB input'!AJ$20-1)) -> 0 | AK11: =IF('RAB input'!AL$11="", 0, INDEX('RAB input'!AJ$401:AJ$450,$E7)/'RAB input'!AK$15*(INDEX(rvanillaWACC, SUM('RAB input'!$H$11:AL$11, 2))/'RAB input'!AK$20-1)) -> 0 | AL11: =IF('RAB input'!AM$11="", 0, INDEX('RAB input'!AK$401:AK$450,$E7)/'RAB input'!AL$15*(INDEX(rvanillaWACC, SUM('RAB input'!$H$11:AM$11, 2))/'RAB input'!AL$20-1)) -> 0 | AM11: =IF('RAB input'!AN$11="", 0, INDEX('RAB input'!AL$401:AL$450,$E7)/'RAB input'!AM$15*(INDEX(rvanillaWACC, SUM('RAB input'!$H$11:AN$11, 2))/'RAB input'!AM$20-1)) -> 0 | AN11: =IF('RAB input'!AO$11="", 0, INDEX('RAB input'!AM$401:AM$450,$E7)/'RAB input'!AN$15*(INDEX(rvanillaWACC, SUM('RAB input'!$H$11:AO$11, 2))/'RAB input'!AN$20-1)) -> 0 | AO11: =IF('RAB input'!AP$11="", 0, INDEX('RAB input'!AN$401:AN$450,$E7)/'RAB input'!AO$15*(INDEX(rvanillaWACC, SUM('RAB input'!$H$11:AP$11, 2))/'RAB input'!AO$20-1)) -> 0 | AP11: =IF('RAB input'!AQ$11="", 0, INDEX('RAB input'!AO$401:AO$450,$E7)/'RAB input'!AP$15*(INDEX(rvanillaWACC, SUM('RAB input'!$H$11:AQ$11, 2))/'RAB input'!AP$20-1)) -> 0 | AQ11: =IF('RAB input'!AR$11="", 0, INDEX('RAB input'!AP$401:AP$450,$E7)/'RAB input'!AQ$15*(INDEX(rvanillaWACC, SUM('RAB input'!$H$11:AR$11, 2))/'RAB input'!AQ$20-1)) -> 0 | AR11: =IF('RAB input'!AS$11="", 0, INDEX('RAB input'!AQ$401:AQ$450,$E7)/'RAB input'!AR$15*(INDEX(rvanillaWACC, SUM('RAB input'!$H$11:AS$11, 2))/'RAB input'!AR$20-1)) -> 0 | AS11: =IF('RAB input'!AT$11="", 0, INDEX('RAB input'!AR$401:AR$450,$E7)/'RAB input'!AS$15*(INDEX(rvanillaWACC, SUM('RAB input'!$H$11:AT$11, 2))/'RAB input'!AS$20-1)) -> 0 | AT11: =IF('RAB input'!AU$11="", 0, INDEX('RAB input'!AS$401:AS$450,$E7)/'RAB input'!AT$15*(INDEX(rvanillaWACC, SUM('RAB input'!$H$11:AU$11, 2))/'RAB input'!AT$20-1)) -> 0 | AU11: =IF('RAB input'!AV$11="", 0, INDEX('RAB input'!AT$401:AT$450,$E7)/'RAB input'!AU$15*(INDEX(rvanillaWACC, SUM('RAB input'!$H$11:AV$11, 2))/'RAB input'!AU$20-1)) -> 0 | AV11: =IF('RAB input'!AW$11="", 0, INDEX('RAB input'!AU$401:AU$450,$E7)/'RAB input'!AV$15*(INDEX(rvanillaWACC, SUM('RAB input'!$H$11:AW$11, 2))/'RAB input'!AV$20-1)) -> 0 | AW11: =IF('RAB input'!AX$11="", 0, INDEX('RAB input'!AV$401:AV$450,$E7)/'RAB input'!AW$15*(INDEX(rvanillaWACC, SUM('RAB input'!$H$11:AX$11, 2))/'RAB input'!AW$20-1)) -> 0 | AX11: =IF('RAB input'!AY$11="", 0, INDEX('RAB input'!AW$401:AW$450,$E7)/'RAB input'!AX$15*(INDEX(rvanillaWACC, SUM('RAB input'!$H$11:AY$11, 2))/'RAB input'!AX$20-1)) -> 0 | AY11: =IF('RAB input'!AZ$11="", 0, INDEX('RAB input'!AX$401:AX$450,$E7)/'RAB input'!AY$15*(INDEX(rvanillaWACC, SUM('RAB input'!$H$11:AZ$11, 2))/'RAB input'!AY$20-1)) -> 0 | AZ11: =IF('RAB input'!BA$11="", 0, INDEX('RAB input'!AY$401:AY$450,$E7)/'RAB input'!AZ$15*(INDEX(rvanillaWACC, SUM('RAB input'!$H$11:BA$11, 2))/'RAB input'!AZ$20-1)) -> 0 | BA11: =IF('RAB input'!BB$11="", 0, INDEX('RAB input'!AZ$401:AZ$450,$E7)/'RAB input'!BA$15*(INDEX(rvanillaWACC, SUM('RAB input'!$H$11:BB$11, 2))/'RAB input'!BA$20-1)) -> 0 | BB11: =IF('RAB input'!BC$11="", 0, INDEX('RAB input'!BA$401:BA$450,$E7)/'RAB input'!BB$15*(INDEX(rvanillaWACC, SUM('RAB input'!$H$11:BC$11, 2))/'RAB input'!BB$20-1)) -> 0 | BC11: =IF('RAB input'!BD$11="", 0, INDEX('RAB input'!BB$401:BB$450,$E7)/'RAB input'!BC$15*(INDEX(rvanillaWACC, SUM('RAB input'!$H$11:BD$11, 2))/'RAB input'!BC$20-1)) -> 0 | BD11: =IF('RAB input'!BE$11="", 0, INDEX('RAB input'!BC$401:BC$450,$E7)/'RAB input'!BD$15*(INDEX(rvanillaWACC, SUM('RAB input'!$H$11:BE$11, 2))/'RAB input'!BD$20-1)) -> 0 | BE11: =IF('RAB input'!BF$11="", 0, INDEX('RAB input'!BD$401:BD$450,$E7)/'RAB input'!BE$15*(INDEX(rvanillaWACC, SUM('RAB input'!$H$11:BF$11, 2))/'RAB input'!BE$20-1)) -> 0 | BF11: =IF('RAB input'!BG$11="", 0, INDEX('RAB input'!BE$401:BE$450,$E7)/'RAB input'!BF$15*(INDEX(rvanillaWACC, SUM('RAB input'!$H$11:BG$11, 2))/'RAB input'!BF$20-1)) -> 0 | BG11: =IF('RAB input'!BH$11="", 0, INDEX('RAB input'!BF$401:BF$450,$E7)/'RAB input'!BG$15*(INDEX(rvanillaWACC, SUM('RAB input'!$H$11:BH$11, 2))/'RAB input'!BG$20-1)) -> 0 | BH11: =IF('RAB input'!BI$11="", 0, INDEX('RAB input'!BG$401:BG$450,$E7)/'RAB input'!BH$15*(INDEX(rvanillaWACC, SUM('RAB input'!$H$11:BI$11, 2))/'RAB input'!BH$20-1)) -> 0 | BI11: =IF('RAB input'!BJ$11="", 0, INDEX('RAB input'!BH$401:BH$450,$E7)/'RAB input'!BI$15*(INDEX(rvanillaWACC, SUM('RAB input'!$H$11:BJ$11, 2))/'RAB input'!BI$20-1)) -> 0 | BJ11: =IF('RAB input'!BK$11="", 0, INDEX('RAB input'!BI$401:BI$450,$E7)/'RAB input'!BJ$15*(INDEX(rvanillaWACC, SUM('RAB input'!$H$11:BK$11, 2))/'RAB input'!BJ$20-1)) -> 0 | BK11: =IF('RAB input'!BL$11="", 0, INDEX('RAB input'!BJ$401:BJ$450,$E7)/'RAB input'!BK$15*(INDEX(rvanillaWACC, SUM('RAB input'!$H$11:BL$11, 2))/'RAB input'!BK$20-1)) -> 0 | BL11: =IF('RAB input'!BM$11="", 0, INDEX('RAB input'!BK$401:BK$450,$E7)/'RAB input'!BL$15*(INDEX(rvanillaWACC, SUM('RAB input'!$H$11:BM$11, 2))/'RAB input'!BL$20-1)) -> 0 | BM11: =IF('RAB input'!BN$11="", 0, INDEX('RAB input'!BL$401:BL$450,$E7)/'RAB input'!BM$15*(INDEX(rvanillaWACC, SUM('RAB input'!$H$11:BN$11, 2))/'RAB input'!BM$20-1)) -> 0 | BN11: =IF('RAB input'!BO$11="", 0, INDEX('RAB input'!BM$401:BM$450,$E7)/'RAB input'!BN$15*(INDEX(rvanillaWACC, SUM('RAB input'!$H$11:BO$11, 2))/'RAB input'!BN$20-1)) -> 0 | BO11: =IF('RAB input'!BP$11="", 0, INDEX('RAB input'!BN$401:BN$450,$E7)/'RAB input'!BO$15*(INDEX(rvanillaWACC, SUM('RAB input'!$H$11:BP$11, 2))/'RAB input'!BO$20-1)) -> 0 | BP11: =IF('RAB input'!BQ$11="", 0, INDEX('RAB input'!BO$401:BO$450,$E7)/'RAB input'!BP$15*(INDEX(rvanillaWACC, SUM('RAB input'!$H$11:BQ$11, 2))/'RAB input'!BP$20-1)) -> 0 | BQ11: =IF('RAB input'!BR$11="", 0, INDEX('RAB input'!BP$401:BP$450,$E7)/'RAB input'!BQ$15*(INDEX(rvanillaWACC, SUM('RAB input'!$H$11:BR$11, 2))/'RAB input'!BQ$20-1)) -> 0 | BR11: =IF('RAB input'!BS$11="", 0, INDEX('RAB input'!BQ$401:BQ$450,$E7)/'RAB input'!BR$15*(INDEX(rvanillaWACC, SUM('RAB input'!$H$11:BS$11, 2))/'RAB input'!BR$20-1)) -> 0 | BS11: =IF('RAB input'!BT$11="", 0, INDEX('RAB input'!BR$401:BR$450,$E7)/'RAB input'!BS$15*(INDEX(rvanillaWACC, SUM('RAB input'!$H$11:BT$11, 2))/'RAB input'!BS$20-1)) -> 0 | BT11: =IF('RAB input'!BU$11="", 0, INDEX('RAB input'!BS$401:BS$450,$E7)/'RAB input'!BT$15*(INDEX(rvanillaWACC, SUM('RAB input'!$H$11:BU$11, 2))/'RAB input'!BT$20-1)) -> 0 | BU11: =IF('RAB input'!BV$11="", 0, INDEX('RAB input'!BT$401:BT$450,$E7)/'RAB input'!BU$15*(INDEX(rvanillaWACC, SUM('RAB input'!$H$11:BV$11, 2))/'RAB input'!BU$20-1)) -> 0 | BV11: =IF('RAB input'!BW$11="", 0, INDEX('RAB input'!BU$401:BU$450,$E7)/'RAB input'!BV$15*(INDEX(rvanillaWACC, SUM('RAB input'!$H$11:BW$11, 2))/'RAB input'!BV$20-1)) -> 0 | BW11: =IF('RAB input'!BX$11="", 0, INDEX('RAB input'!BV$401:BV$450,$E7)/'RAB input'!BW$15*(INDEX(rvanillaWACC, SUM('RAB input'!$H$11:BX$11, 2))/'RAB input'!BW$20-1)) -> 0 | BX11: =IF('RAB input'!BY$11="", 0, INDEX('RAB input'!BW$401:BW$450,$E7)/'RAB input'!BX$15*(INDEX(rvanillaWACC, SUM('RAB input'!$H$11:BY$11, 2))/'RAB input'!BX$20-1)) -> 0 | BY11: =IF('RAB input'!BZ$11="", 0, INDEX('RAB input'!BX$401:BX$450,$E7)/'RAB input'!BY$15*(INDEX(rvanillaWACC, SUM('RAB input'!$H$11:BZ$11, 2))/'RAB input'!BY$20-1)) -> 0 | BZ11: =IF('RAB input'!CA$11="", 0, INDEX('RAB input'!BY$401:BY$450,$E7)/'RAB input'!BZ$15*(INDEX(rvanillaWACC, SUM('RAB input'!$H$11:CA$11, 2))/'RAB input'!BZ$20-1)) -> 0
F12: Remaining life of adjustment for t-2 capex (years) | G12: =IF(G11<>0, IF(G8<>"n/a", INDEX('RAB input'!$F$187:$F$236, $E7)-'RAB input'!$H$11-1, "n/a"), 0) -> 0 | H12: =IF(H11<>0, IF(H8<>"n/a", H8-'RAB input'!I$11-1, "n/a"), 0) -> 0 | I12: =IF(I11<>0, IF(I8<>"n/a", I8-'RAB input'!J$11-1, "n/a"), 0) -> 0 | J12: =IF(J11<>0, IF(J8<>"n/a", J8-'RAB input'!K$11-1, "n/a"), 0) -> 0 | K12: =IF(K11<>0, IF(K8<>"n/a", K8-'RAB input'!L$11-1, "n/a"), 0) -> 0 | L12: =IF(L11<>0, IF(L8<>"n/a", L8-'RAB input'!M$11-1, "n/a"), 0) -> 0 | M12: =IF(M11<>0, IF(M8<>"n/a", M8-'RAB input'!N$11-1, "n/a"), 0) -> 0 | N12: =IF(N11<>0, IF(N8<>"n/a", N8-'RAB input'!O$11-1, "n/a"), 0) -> 0 | O12: =IF(O11<>0, IF(O8<>"n/a", O8-'RAB input'!P$11-1, "n/a"), 0) -> 0 | P12: =IF(P11<>0, IF(P8<>"n/a", P8-'RAB input'!Q$11-1, "n/a"), 0) -> 0 | Q12: =IF(Q11<>0, IF(Q8<>"n/a", Q8-'RAB input'!R$11-1, "n/a"), 0) -> 0 | R12: =IF(R11<>0, IF(R8<>"n/a", R8-'RAB input'!S$11-1, "n/a"), 0) -> 0 | S12: =IF(S11<>0, IF(S8<>"n/a", S8-'RAB input'!T$11-1, "n/a"), 0) -> 0 | T12: =IF(T11<>0, IF(T8<>"n/a", T8-'RAB input'!U$11-1, "n/a"), 0) -> 0 | U12: =IF(U11<>0, IF(U8<>"n/a", U8-'RAB input'!V$11-1, "n/a"), 0) -> 0 | V12: =IF(V11<>0, IF(V8<>"n/a", V8-'RAB input'!W$11-1, "n/a"), 0) -> 0 | W12: =IF(W11<>0, IF(W8<>"n/a", W8-'RAB input'!X$11-1, "n/a"), 0) -> 0 | X12: =IF(X11<>0, IF(X8<>"n/a", X8-'RAB input'!Y$11-1, "n/a"), 0) -> 0 | Y12: =IF(Y11<>0, IF(Y8<>"n/a", Y8-'RAB input'!Z$11-1, "n/a"), 0) -> 0 | Z12: =IF(Z11<>0, IF(Z8<>"n/a", Z8-'RAB input'!AA$11-1, "n/a"), 0) -> 0 | AA12: =IF(AA11<>0, IF(AA8<>"n/a", AA8-'RAB input'!AB$11-1, "n/a"), 0) -> 0 | AB12: =IF(AB11<>0, IF(AB8<>"n/a", AB8-'RAB input'!AC$11-1, "n/a"), 0) -> 0 | AC12: =IF(AC11<>0, IF(AC8<>"n/a", AC8-'RAB input'!AD$11-1, "n/a"), 0) -> 0 | AD12: =IF(AD11<>0, IF(AD8<>"n/a", AD8-'RAB input'!AE$11-1, "n/a"), 0) -> 0 | AE12: =IF(AE11<>0, IF(AE8<>"n/a", AE8-'RAB input'!AF$11-1, "n/a"), 0) -> 0 | AF12: =IF(AF11<>0, IF(AF8<>"n/a", AF8-'RAB input'!AG$11-1, "n/a"), 0) -> 0 | AG12: =IF(AG11<>0, IF(AG8<>"n/a", AG8-'RAB input'!AH$11-1, "n/a"), 0) -> 0 | AH12: =IF(AH11<>0, IF(AH8<>"n/a", AH8-'RAB input'!AI$11-1, "n/a"), 0) -> 0 | AI12: =IF(AI11<>0, IF(AI8<>"n/a", AI8-'RAB input'!AJ$11-1, "n/a"), 0) -> 0 | AJ12: =IF(AJ11<>0, IF(AJ8<>"n/a", AJ8-'RAB input'!AK$11-1, "n/a"), 0) -> 0 | AK12: =IF(AK11<>0, IF(AK8<>"n/a", AK8-'RAB input'!AL$11-1, "n/a"), 0) -> 0 | AL12: =IF(AL11<>0, IF(AL8<>"n/a", AL8-'RAB input'!AM$11-1, "n/a"), 0) -> 0 | AM12: =IF(AM11<>0, IF(AM8<>"n/a", AM8-'RAB input'!AN$11-1, "n/a"), 0) -> 0 | AN12: =IF(AN11<>0, IF(AN8<>"n/a", AN8-'RAB input'!AO$11-1, "n/a"), 0) -> 0 | AO12: =IF(AO11<>0, IF(AO8<>"n/a", AO8-'RAB input'!AP$11-1, "n/a"), 0) -> 0 | AP12: =IF(AP11<>0, IF(AP8<>"n/a", AP8-'RAB input'!AQ$11-1, "n/a"), 0) -> 0 | AQ12: =IF(AQ11<>0, IF(AQ8<>"n/a", AQ8-'RAB input'!AR$11-1, "n/a"), 0) -> 0 | AR12: =IF(AR11<>0, IF(AR8<>"n/a", AR8-'RAB input'!AS$11-1, "n/a"), 0) -> 0 | AS12: =IF(AS11<>0, IF(AS8<>"n/a", AS8-'RAB input'!AT$11-1, "n/a"), 0) -> 0 | AT12: =IF(AT11<>0, IF(AT8<>"n/a", AT8-'RAB input'!AU$11-1, "n/a"), 0) -> 0 | AU12: =IF(AU11<>0, IF(AU8<>"n/a", AU8-'RAB input'!AV$11-1, "n/a"), 0) -> 0 | AV12: =IF(AV11<>0, IF(AV8<>"n/a", AV8-'RAB input'!AW$11-1, "n/a"), 0) -> 0 | AW12: =IF(AW11<>0, IF(AW8<>"n/a", AW8-'RAB input'!AX$11-1, "n/a"), 0) -> 0 | AX12: =IF(AX11<>0, IF(AX8<>"n/a", AX8-'RAB input'!AY$11-1, "n/a"), 0) -> 0 | AY12: =IF(AY11<>0, IF(AY8<>"n/a", AY8-'RAB input'!AZ$11-1, "n/a"), 0) -> 0 | AZ12: =IF(AZ11<>0, IF(AZ8<>"n/a", AZ8-'RAB input'!BA$11-1, "n/a"), 0) -> 0 | BA12: =IF(BA11<>0, IF(BA8<>"n/a", BA8-'RAB input'!BB$11-1, "n/a"), 0) -> 0 | BB12: =IF(BB11<>0, IF(BB8<>"n/a", BB8-'RAB input'!BC$11-1, "n/a"), 0) -> 0 | BC12: =IF(BC11<>0, IF(BC8<>"n/a", BC8-'RAB input'!BD$11-1, "n/a"), 0) -> 0 | BD12: =IF(BD11<>0, IF(BD8<>"n/a", BD8-'RAB input'!BE$11-1, "n/a"), 0) -> 0 | BE12: =IF(BE11<>0, IF(BE8<>"n/a", BE8-'RAB input'!BF$11-1, "n/a"), 0) -> 0 | BF12: =IF(BF11<>0, IF(BF8<>"n/a", BF8-'RAB input'!BG$11-1, "n/a"), 0) -> 0 | BG12: =IF(BG11<>0, IF(BG8<>"n/a", BG8-'RAB input'!BH$11-1, "n/a"), 0) -> 0 | BH12: =IF(BH11<>0, IF(BH8<>"n/a", BH8-'RAB input'!BI$11-1, "n/a"), 0) -> 0 | BI12: =IF(BI11<>0, IF(BI8<>"n/a", BI8-'RAB input'!BJ$11-1, "n/a"), 0) -> 0 | BJ12: =IF(BJ11<>0, IF(BJ8<>"n/a", BJ8-'RAB input'!BK$11-1, "n/a"), 0) -> 0 | BK12: =IF(BK11<>0, IF(BK8<>"n/a", BK8-'RAB input'!BL$11-1, "n/a"), 0) -> 0 | BL12: =IF(BL11<>0, IF(BL8<>"n/a", BL8-'RAB input'!BM$11-1, "n/a"), 0) -> 0 | BM12: =IF(BM11<>0, IF(BM8<>"n/a", BM8-'RAB input'!BN$11-1, "n/a"), 0) -> 0 | BN12: =IF(BN11<>0, IF(BN8<>"n/a", BN8-'RAB input'!BO$11-1, "n/a"), 0) -> 0 | BO12: =IF(BO11<>0, IF(BO8<>"n/a", BO8-'RAB input'!BP$11-1, "n/a"), 0) -> 0 | BP12: =IF(BP11<>0, IF(BP8<>"n/a", BP8-'RAB input'!BQ$11-1, "n/a"), 0) -> 0 | BQ12: =IF(BQ11<>0, IF(BQ8<>"n/a", BQ8-'RAB input'!BR$11-1, "n/a"), 0) -> 0 | BR12: =IF(BR11<>0, IF(BR8<>"n/a", BR8-'RAB input'!BS$11-1, "n/a"), 0) -> 0 | BS12: =IF(BS11<>0, IF(BS8<>"n/a", BS8-'RAB input'!BT$11-1, "n/a"), 0) -> 0 | BT12: =IF(BT11<>0, IF(BT8<>"n/a", BT8-'RAB input'!BU$11-1, "n/a"), 0) -> 0 | BU12: =IF(BU11<>0, IF(BU8<>"n/a", BU8-'RAB input'!BV$11-1, "n/a"), 0) -> 0 | BV12: =IF(BV11<>0, IF(BV8<>"n/a", BV8-'RAB input'!BW$11-1, "n/a"), 0) -> 0 | BW12: =IF(BW11<>0, IF(BW8<>"n/a", BW8-'RAB input'!BX$11-1, "n/a"), 0) -> 0 | BX12: =IF(BX11<>0, IF(BX8<>"n/a", BX8-'RAB input'!BY$11-1, "n/a"), 0) -> 0 | BY12: =IF(BY11<>0, IF(BY8<>"n/a", BY8-'RAB input'!BZ$11-1, "n/a"), 0) -> 0 | BZ12: =IF(BZ11<>0, IF(BZ8<>"n/a", BZ8-'RAB input'!CA$11-1, "n/a"), 0) -> 0
F13: Asset adjustment - RAB | H13: =INDEX('RAB input'!H$240:H$289, $E7)/'RAB input'!H$15 -> 0 | I13: =INDEX('RAB input'!I$240:I$289, $E7)/'RAB input'!I$15 -> 0 | J13: =INDEX('RAB input'!J$240:J$289, $E7)/'RAB input'!J$15 -> 0 | K13: =INDEX('RAB input'!K$240:K$289, $E7)/'RAB input'!K$15 -> 0 | L13: =INDEX('RAB input'!L$240:L$289, $E7)/'RAB input'!L$15 -> 0 | M13: =INDEX('RAB input'!M$240:M$289, $E7)/'RAB input'!M$15 -> 0 | N13: =INDEX('RAB input'!N$240:N$289, $E7)/'RAB input'!N$15 -> 0 | O13: =INDEX('RAB input'!O$240:O$289, $E7)/'RAB input'!O$15 -> 0 | P13: =INDEX('RAB input'!P$240:P$289, $E7)/'RAB input'!P$15 -> 0 | Q13: =INDEX('RAB input'!Q$240:Q$289, $E7)/'RAB input'!Q$15 -> 0 | R13: =INDEX('RAB input'!R$240:R$289, $E7)/'RAB input'!R$15 -> 0 | S13: =INDEX('RAB input'!S$240:S$289, $E7)/'RAB input'!S$15 -> 0 | T13: =INDEX('RAB input'!T$240:T$289, $E7)/'RAB input'!T$15 -> 0 | U13: =INDEX('RAB input'!U$240:U$289, $E7)/'RAB input'!U$15 -> 0 | V13: =INDEX('RAB input'!V$240:V$289, $E7)/'RAB input'!V$15 -> 0 | W13: =INDEX('RAB input'!W$240:W$289, $E7)/'RAB input'!W$15 -> 0 | X13: =INDEX('RAB input'!X$240:X$289, $E7)/'RAB input'!X$15 -> 0 | Y13: =INDEX('RAB input'!Y$240:Y$289, $E7)/'RAB input'!Y$15 -> 0 | Z13: =INDEX('RAB input'!Z$240:Z$289, $E7)/'RAB input'!Z$15 -> 0 | AA13: =INDEX('RAB input'!AA$240:AA$289, $E7)/'RAB input'!AA$15 -> 0 | AB13: =INDEX('RAB input'!AB$240:AB$289, $E7)/'RAB input'!AB$15 -> 0 | AC13: =INDEX('RAB input'!AC$240:AC$289, $E7)/'RAB input'!AC$15 -> 0 | AD13: =INDEX('RAB input'!AD$240:AD$289, $E7)/'RAB input'!AD$15 -> 0 | AE13: =INDEX('RAB input'!AE$240:AE$289, $E7)/'RAB input'!AE$15 -> 0 | AF13: =INDEX('RAB input'!AF$240:AF$289, $E7)/'RAB input'!AF$15 -> 0 | AG13: =INDEX('RAB input'!AG$240:AG$289, $E7)/'RAB input'!AG$15 -> 0 | AH13: =INDEX('RAB input'!AH$240:AH$289, $E7)/'RAB input'!AH$15 -> 0 | AI13: =INDEX('RAB input'!AI$240:AI$289, $E7)/'RAB input'!AI$15 -> 0 | AJ13: =INDEX('RAB input'!AJ$240:AJ$289, $E7)/'RAB input'!AJ$15 -> 0 | AK13: =INDEX('RAB input'!AK$240:AK$289, $E7)/'RAB input'!AK$15 -> 0 | AL13: =INDEX('RAB input'!AL$240:AL$289, $E7)/'RAB input'!AL$15 -> 0 | AM13: =INDEX('RAB input'!AM$240:AM$289, $E7)/'RAB input'!AM$15 -> 0 | AN13: =INDEX('RAB input'!AN$240:AN$289, $E7)/'RAB input'!AN$15 -> 0 | AO13: =INDEX('RAB input'!AO$240:AO$289, $E7)/'RAB input'!AO$15 -> 0 | AP13: =INDEX('RAB input'!AP$240:AP$289, $E7)/'RAB input'!AP$15 -> 0 | AQ13: =INDEX('RAB input'!AQ$240:AQ$289, $E7)/'RAB input'!AQ$15 -> 0 | AR13: =INDEX('RAB input'!AR$240:AR$289, $E7)/'RAB input'!AR$15 -> 0 | AS13: =INDEX('RAB input'!AS$240:AS$289, $E7)/'RAB input'!AS$15 -> 0 | AT13: =INDEX('RAB input'!AT$240:AT$289, $E7)/'RAB input'!AT$15 -> 0 | AU13: =INDEX('RAB input'!AU$240:AU$289, $E7)/'RAB input'!AU$15 -> 0 | AV13: =INDEX('RAB input'!AV$240:AV$289, $E7)/'RAB input'!AV$15 -> 0 | AW13: =INDEX('RAB input'!AW$240:AW$289, $E7)/'RAB input'!AW$15 -> 0 | AX13: =INDEX('RAB input'!AX$240:AX$289, $E7)/'RAB input'!AX$15 -> 0 | AY13: =INDEX('RAB input'!AY$240:AY$289, $E7)/'RAB input'!AY$15 -> 0 | AZ13: =INDEX('RAB input'!AZ$240:AZ$289, $E7)/'RAB input'!AZ$15 -> 0 | BA13: =INDEX('RAB input'!BA$240:BA$289, $E7)/'RAB input'!BA$15 -> 0 | BB13: =INDEX('RAB input'!BB$240:BB$289, $E7)/'RAB input'!BB$15 -> 0 | BC13: =INDEX('RAB input'!BC$240:BC$289, $E7)/'RAB input'!BC$15 -> 0 | BD13: =INDEX('RAB input'!BD$240:BD$289, $E7)/'RAB input'!BD$15 -> 0 | BE13: =INDEX('RAB input'!BE$240:BE$289, $E7)/'RAB input'!BE$15 -> 0 | BF13: =INDEX('RAB input'!BF$240:BF$289, $E7)/'RAB input'!BF$15 -> 0 | BG13: =INDEX('RAB input'!BG$240:BG$289, $E7)/'RAB input'!BG$15 -> 0 | BH13: =INDEX('RAB input'!BH$240:BH$289, $E7)/'RAB input'!BH$15 -> 0 | BI13: =INDEX('RAB input'!BI$240:BI$289, $E7)/'RAB input'!BI$15 -> 0 | BJ13: =INDEX('RAB input'!BJ$240:BJ$289, $E7)/'RAB input'!BJ$15 -> 0 | BK13: =INDEX('RAB input'!BK$240:BK$289, $E7)/'RAB input'!BK$15 -> 0 | BL13: =INDEX('RAB input'!BL$240:BL$289, $E7)/'RAB input'!BL$15 -> 0 | BM13: =INDEX('RAB input'!BM$240:BM$289, $E7)/'RAB input'!BM$15 -> 0 | BN13: =INDEX('RAB input'!BN$240:BN$289, $E7)/'RAB input'!BN$15 -> 0 | BO13: =INDEX('RAB input'!BO$240:BO$289, $E7)/'RAB input'!BO$15 -> 0 | BP13: =INDEX('RAB input'!BP$240:BP$289, $E7)/'RAB input'!BP$15 -> 0 | BQ13: =INDEX('RAB input'!BQ$240:BQ$289, $E7)/'RAB input'!BQ$15 -> 0 | BR13: =INDEX('RAB input'!BR$240:BR$289, $E7)/'RAB input'!BR$15 -> 0 | BS13: =INDEX('RAB input'!BS$240:BS$289, $E7)/'RAB input'!BS$15 -> 0 | BT13: =INDEX('RAB input'!BT$240:BT$289, $E7)/'RAB input'!BT$15 -> 0 | BU13: =INDEX('RAB input'!BU$240:BU$289, $E7)/'RAB input'!BU$15 -> 0 | BV13: =INDEX('RAB input'!BV$240:BV$289, $E7)/'RAB input'!BV$15 -> 0 | BW13: =INDEX('RAB input'!BW$240:BW$289, $E7)/'RAB input'!BW$15 -> 0 | BX13: =INDEX('RAB input'!BX$240:BX$289, $E7)/'RAB input'!BX$15 -> 0 | BY13: =INDEX('RAB input'!BY$240:BY$289, $E7)/'RAB input'!BY$15 -> 0 | BZ13: =INDEX('RAB input'!BZ$240:BZ$289, $E7)/'RAB input'!BZ$15 -> 0
F14: Remaining life of asset adjustment - RAB (years) | H14: =INDEX('RAB input'!H$294:H$343, $E7) -> 0 | I14: =INDEX('RAB input'!I$294:I$343, $E7) -> 0 | J14: =INDEX('RAB input'!J$294:J$343, $E7) -> 0 | K14: =INDEX('RAB input'!K$294:K$343, $E7) -> 0 | L14: =INDEX('RAB input'!L$294:L$343, $E7) -> 0 | M14: =INDEX('RAB input'!M$294:M$343, $E7) -> 0 | N14: =INDEX('RAB input'!N$294:N$343, $E7) -> 0 | O14: =INDEX('RAB input'!O$294:O$343, $E7) -> 0 | P14: =INDEX('RAB input'!P$294:P$343, $E7) -> 0 | Q14: =INDEX('RAB input'!Q$294:Q$343, $E7) -> 0 | R14: =INDEX('RAB input'!R$294:R$343, $E7) -> 0 | S14: =INDEX('RAB input'!S$294:S$343, $E7) -> 0 | T14: =INDEX('RAB input'!T$294:T$343, $E7) -> 0 | U14: =INDEX('RAB input'!U$294:U$343, $E7) -> 0 | V14: =INDEX('RAB input'!V$294:V$343, $E7) -> 0 | W14: =INDEX('RAB input'!W$294:W$343, $E7) -> 0 | X14: =INDEX('RAB input'!X$294:X$343, $E7) -> 0 | Y14: =INDEX('RAB input'!Y$294:Y$343, $E7) -> 0 | Z14: =INDEX('RAB input'!Z$294:Z$343, $E7) -> 0 | AA14: =INDEX('RAB input'!AA$294:AA$343, $E7) -> 0 | AB14: =INDEX('RAB input'!AB$294:AB$343, $E7) -> 0 | AC14: =INDEX('RAB input'!AC$294:AC$343, $E7) -> 0 | AD14: =INDEX('RAB input'!AD$294:AD$343, $E7) -> 0 | AE14: =INDEX('RAB input'!AE$294:AE$343, $E7) -> 0 | AF14: =INDEX('RAB input'!AF$294:AF$343, $E7) -> 0 | AG14: =INDEX('RAB input'!AG$294:AG$343, $E7) -> 0 | AH14: =INDEX('RAB input'!AH$294:AH$343, $E7) -> 0 | AI14: =INDEX('RAB input'!AI$294:AI$343, $E7) -> 0 | AJ14: =INDEX('RAB input'!AJ$294:AJ$343, $E7) -> 0 | AK14: =INDEX('RAB input'!AK$294:AK$343, $E7) -> 0 | AL14: =INDEX('RAB input'!AL$294:AL$343, $E7) -> 0 | AM14: =INDEX('RAB input'!AM$294:AM$343, $E7) -> 0 | AN14: =INDEX('RAB input'!AN$294:AN$343, $E7) -> 0 | AO14: =INDEX('RAB input'!AO$294:AO$343, $E7) -> 0 | AP14: =INDEX('RAB input'!AP$294:AP$343, $E7) -> 0 | AQ14: =INDEX('RAB input'!AQ$294:AQ$343, $E7) -> 0 | AR14: =INDEX('RAB input'!AR$294:AR$343, $E7) -> 0 | AS14: =INDEX('RAB input'!AS$294:AS$343, $E7) -> 0 | AT14: =INDEX('RAB input'!AT$294:AT$343, $E7) -> 0 | AU14: =INDEX('RAB input'!AU$294:AU$343, $E7) -> 0 | AV14: =INDEX('RAB input'!AV$294:AV$343, $E7) -> 0 | AW14: =INDEX('RAB input'!AW$294:AW$343, $E7) -> 0 | AX14: =INDEX('RAB input'!AX$294:AX$343, $E7) -> 0 | AY14: =INDEX('RAB input'!AY$294:AY$343, $E7) -> 0 | AZ14: =INDEX('RAB input'!AZ$294:AZ$343, $E7) -> 0 | BA14: =INDEX('RAB input'!BA$294:BA$343, $E7) -> 0 | BB14: =INDEX('RAB input'!BB$294:BB$343, $E7) -> 0 | BC14: =INDEX('RAB input'!BC$294:BC$343, $E7) -> 0 | BD14: =INDEX('RAB input'!BD$294:BD$343, $E7) -> 0 | BE14: =INDEX('RAB input'!BE$294:BE$343, $E7) -> 0 | BF14: =INDEX('RAB input'!BF$294:BF$343, $E7) -> 0 | BG14: =INDEX('RAB input'!BG$294:BG$343, $E7) -> 0 | BH14: =INDEX('RAB input'!BH$294:BH$343, $E7) -> 0 | BI14: =INDEX('RAB input'!BI$294:BI$343, $E7) -> 0 | BJ14: =INDEX('RAB input'!BJ$294:BJ$343, $E7) -> 0 | BK14: =INDEX('RAB input'!BK$294:BK$343, $E7) -> 0 | BL14: =INDEX('RAB input'!BL$294:BL$343, $E7) -> 0 | BM14: =INDEX('RAB input'!BM$294:BM$343, $E7) -> 0 | BN14: =INDEX('RAB input'!BN$294:BN$343, $E7) -> 0 | BO14: =INDEX('RAB input'!BO$294:BO$343, $E7) -> 0 | BP14: =INDEX('RAB input'!BP$294:BP$343, $E7) -> 0 | BQ14: =INDEX('RAB input'!BQ$294:BQ$343, $E7) -> 0 | BR14: =INDEX('RAB input'!BR$294:BR$343, $E7) -> 0 | BS14: =INDEX('RAB input'!BS$294:BS$343, $E7) -> 0 | BT14: =INDEX('RAB input'!BT$294:BT$343, $E7) -> 0 | BU14: =INDEX('RAB input'!BU$294:BU$343, $E7) -> 0 | BV14: =INDEX('RAB input'!BV$294:BV$343, $E7) -> 0 | BW14: =INDEX('RAB input'!BW$294:BW$343, $E7) -> 0 | BX14: =INDEX('RAB input'!BX$294:BX$343, $E7) -> 0 | BY14: =INDEX('RAB input'!BY$294:BY$343, $E7) -> 0 | BZ14: =INDEX('RAB input'!BZ$294:BZ$343, $E7) -> 0
F16: Year-by-year tracking
E17: 0 | F17: Depreciation of starting RAB | H17: =IF(OFFSET($G8, -$E17, $E17)="n/a",0,IF(OFFSET($G8,-$E17,$E17)+$E17>H$5,IFERROR((OFFSET($G7,-$E17,$E17)/(OFFSET($G8,-$E17,$E17))),0),(OFFSET($G7,-$E17,$E17)-SUM($G17:G17)))) -> 15.14395302 | I17: =IF(OFFSET($G8, -$E17, $E17)="n/a",0,IF(OFFSET($G8,-$E17,$E17)+$E17>I$5,IFERROR((OFFSET($G7,-$E17,$E17)/(OFFSET($G8,-$E17,$E17))),0),(OFFSET($G7,-$E17,$E17)-SUM($G17:H17)))) -> 15.14395302 | J17: =IF(OFFSET($G8, -$E17, $E17)="n/a",0,IF(OFFSET($G8,-$E17,$E17)+$E17>J$5,IFERROR((OFFSET($G7,-$E17,$E17)/(OFFSET($G8,-$E17,$E17))),0),(OFFSET($G7,-$E17,$E17)-SUM($G17:I17)))) -> 15.14395302 | K17: =IF(OFFSET($G8, -$E17, $E17)="n/a",0,IF(OFFSET($G8,-$E17,$E17)+$E17>K$5,IFERROR((OFFSET($G7,-$E17,$E17)/(OFFSET($G8,-$E17,$E17))),0),(OFFSET($G7,-$E17,$E17)-SUM($G17:J17)))) -> 15.14395302 | L17: =IF(OFFSET($G8, -$E17, $E17)="n/a",0,IF(OFFSET($G8,-$E17,$E17)+$E17>L$5,IFERROR((OFFSET($G7,-$E17,$E17)/(OFFSET($G8,-$E17,$E17))),0),(OFFSET($G7,-$E17,$E17)-SUM($G17:K17)))) -> 15.14395302 | M17: =IF(OFFSET($G8, -$E17, $E17)="n/a",0,IF(OFFSET($G8,-$E17,$E17)+$E17>M$5,IFERROR((OFFSET($G7,-$E17,$E17)/(OFFSET($G8,-$E17,$E17))),0),(OFFSET($G7,-$E17,$E17)-SUM($G17:L17)))) -> 15.14395302 | N17: =IF(OFFSET($G8, -$E17, $E17)="n/a",0,IF(OFFSET($G8,-$E17,$E17)+$E17>N$5,IFERROR((OFFSET($G7,-$E17,$E17)/(OFFSET($G8,-$E17,$E17))),0),(OFFSET($G7,-$E17,$E17)-SUM($G17:M17)))) -> 15.14395302 | O17: =IF(OFFSET($G8, -$E17, $E17)="n/a",0,IF(OFFSET($G8,-$E17,$E17)+$E17>O$5,IFERROR((OFFSET($G7,-$E17,$E17)/(OFFSET($G8,-$E17,$E17))),0),(OFFSET($G7,-$E17,$E17)-SUM($G17:N17)))) -> 15.14395302 | P17: =IF(OFFSET($G8, -$E17, $E17)="n/a",0,IF(OFFSET($G8,-$E17,$E17)+$E17>P$5,IFERROR((OFFSET($G7,-$E17,$E17)/(OFFSET($G8,-$E17,$E17))),0),(OFFSET($G7,-$E17,$E17)-SUM($G17:O17)))) -> 15.14395302 | Q17: =IF(OFFSET($G8, -$E17, $E17)="n/a",0,IF(OFFSET($G8,-$E17,$E17)+$E17>Q$5,IFERROR((OFFSET($G7,-$E17,$E17)/(OFFSET($G8,-$E17,$E17))),0),(OFFSET($G7,-$E17,$E17)-SUM($G17:P17)))) -> 15.14395302 | R17: =IF(OFFSET($G8, -$E17, $E17)="n/a",0,IF(OFFSET($G8,-$E17,$E17)+$E17>R$5,IFERROR((OFFSET($G7,-$E17,$E17)/(OFFSET($G8,-$E17,$E17))),0),(OFFSET($G7,-$E17,$E17)-SUM($G17:Q17)))) -> 15.14395302 | S17: =IF(OFFSET($G8, -$E17, $E17)="n/a",0,IF(OFFSET($G8,-$E17,$E17)+$E17>S$5,IFERROR((OFFSET($G7,-$E17,$E17)/(OFFSET($G8,-$E17,$E17))),0),(OFFSET($G7,-$E17,$E17)-SUM($G17:R17)))) -> 15.14395302 | T17: =IF(OFFSET($G8, -$E17, $E17)="n/a",0,IF(OFFSET($G8,-$E17,$E17)+$E17>T$5,IFERROR((OFFSET($G7,-$E17,$E17)/(OFFSET($G8,-$E17,$E17))),0),(OFFSET($G7,-$E17,$E17)-SUM($G17:S17)))) -> 15.14395302 | U17: =IF(OFFSET($G8, -$E17, $E17)="n/a",0,IF(OFFSET($G8,-$E17,$E17)+$E17>U$5,IFERROR((OFFSET($G7,-$E17,$E17)/(OFFSET($G8,-$E17,$E17))),0),(OFFSET($G7,-$E17,$E17)-SUM($G17:T17)))) -> 15.14395302 | V17: =IF(OFFSET($G8, -$E17, $E17)="n/a",0,IF(OFFSET($G8,-$E17,$E17)+$E17>V$5,IFERROR((OFFSET($G7,-$E17,$E17)/(OFFSET($G8,-$E17,$E17))),0),(OFFSET($G7,-$E17,$E17)-SUM($G17:U17)))) -> 15.14395302 | W17: =IF(OFFSET($G8, -$E17, $E17)="n/a",0,IF(OFFSET($G8,-$E17,$E17)+$E17>W$5,IFERROR((OFFSET($G7,-$E17,$E17)/(OFFSET($G8,-$E17,$E17))),0),(OFFSET($G7,-$E17,$E17)-SUM($G17:V17)))) -> 15.14395302 | X17: =IF(OFFSET($G8, -$E17, $E17)="n/a",0,IF(OFFSET($G8,-$E17,$E17)+$E17>X$5,IFERROR((OFFSET($G7,-$E17,$E17)/(OFFSET($G8,-$E17,$E17))),0),(OFFSET($G7,-$E17,$E17)-SUM($G17:W17)))) -> 15.14395302 | Y17: =IF(OFFSET($G8, -$E17, $E17)="n/a",0,IF(OFFSET($G8,-$E17,$E17)+$E17>Y$5,IFERROR((OFFSET($G7,-$E17,$E17)/(OFFSET($G8,-$E17,$E17))),0),(OFFSET($G7,-$E17,$E17)-SUM($G17:X17)))) -> 15.14395302 | Z17: =IF(OFFSET($G8, -$E17, $E17)="n/a",0,IF(OFFSET($G8,-$E17,$E17)+$E17>Z$5,IFERROR((OFFSET($G7,-$E17,$E17)/(OFFSET($G8,-$E17,$E17))),0),(OFFSET($G7,-$E17,$E17)-SUM($G17:Y17)))) -> 15.14395302 | AA17: =IF(OFFSET($G8, -$E17, $E17)="n/a",0,IF(OFFSET($G8,-$E17,$E17)+$E17>AA$5,IFERROR((OFFSET($G7,-$E17,$E17)/(OFFSET($G8,-$E17,$E17))),0),(OFFSET($G7,-$E17,$E17)-SUM($G17:Z17)))) -> 6.453528397 | AB17: =IF(OFFSET($G8, -$E17, $E17)="n/a",0,IF(OFFSET($G8,-$E17,$E17)+$E17>AB$5,IFERROR((OFFSET($G7,-$E17,$E17)/(OFFSET($G8,-$E17,$E17))),0),(OFFSET($G7,-$E17,$E17)-SUM($G17:AA17)))) -> 0 | AC17: =IF(OFFSET($G8, -$E17, $E17)="n/a",0,IF(OFFSET($G8,-$E17,$E17)+$E17>AC$5,IFERROR((OFFSET($G7,-$E17,$E17)/(OFFSET($G8,-$E17,$E17))),0),(OFFSET($G7,-$E17,$E17)-SUM($G17:AB17)))) -> 0 | AD17: =IF(OFFSET($G8, -$E17, $E17)="n/a",0,IF(OFFSET($G8,-$E17,$E17)+$E17>AD$5,IFERROR((OFFSET($G7,-$E17,$E17)/(OFFSET($G8,-$E17,$E17))),0),(OFFSET($G7,-$E17,$E17)-SUM($G17:AC17)))) -> 0 | AE17: =IF(OFFSET($G8, -$E17, $E17)="n/a",0,IF(OFFSET($G8,-$E17,$E17)+$E17>AE$5,IFERROR((OFFSET($G7,-$E17,$E17)/(OFFSET($G8,-$E17,$E17))),0),(OFFSET($G7,-$E17,$E17)-SUM($G17:AD17)))) -> 0 | AF17: =IF(OFFSET($G8, -$E17, $E17)="n/a",0,IF(OFFSET($G8,-$E17,$E17)+$E17>AF$5,IFERROR((OFFSET($G7,-$E17,$E17)/(OFFSET($G8,-$E17,$E17))),0),(OFFSET($G7,-$E17,$E17)-SUM($G17:AE17)))) -> 0 | AG17: =IF(OFFSET($G8, -$E17, $E17)="n/a",0,IF(OFFSET($G8,-$E17,$E17)+$E17>AG$5,IFERROR((OFFSET($G7,-$E17,$E17)/(OFFSET($G8,-$E17,$E17))),0),(OFFSET($G7,-$E17,$E17)-SUM($G17:AF17)))) -> 0 | AH17: =IF(OFFSET($G8, -$E17, $E17)="n/a",0,IF(OFFSET($G8,-$E17,$E17)+$E17>AH$5,IFERROR((OFFSET($G7,-$E17,$E17)/(OFFSET($G8,-$E17,$E17))),0),(OFFSET($G7,-$E17,$E17)-SUM($G17:AG17)))) -> 0 | AI17: =IF(OFFSET($G8, -$E17, $E17)="n/a",0,IF(OFFSET($G8,-$E17,$E17)+$E17>AI$5,IFERROR((OFFSET($G7,-$E17,$E17)/(OFFSET($G8,-$E17,$E17))),0),(OFFSET($G7,-$E17,$E17)-SUM($G17:AH17)))) -> 0 | AJ17: =IF(OFFSET($G8, -$E17, $E17)="n/a",0,IF(OFFSET($G8,-$E17,$E17)+$E17>AJ$5,IFERROR((OFFSET($G7,-$E17,$E17)/(OFFSET($G8,-$E17,$E17))),0),(OFFSET($G7,-$E17,$E17)-SUM($G17:AI17)))) -> 0 | AK17: =IF(OFFSET($G8, -$E17, $E17)="n/a",0,IF(OFFSET($G8,-$E17,$E17)+$E17>AK$5,IFERROR((OFFSET($G7,-$E17,$E17)/(OFFSET($G8,-$E17,$E17))),0),(OFFSET($G7,-$E17,$E17)-SUM($G17:AJ17)))) -> 0 | AL17: =IF(OFFSET($G8, -$E17, $E17)="n/a",0,IF(OFFSET($G8,-$E17,$E17)+$E17>AL$5,IFERROR((OFFSET($G7,-$E17,$E17)/(OFFSET($G8,-$E17,$E17))),0),(OFFSET($G7,-$E17,$E17)-SUM($G17:AK17)))) -> 0 | AM17: =IF(OFFSET($G8, -$E17, $E17)="n/a",0,IF(OFFSET($G8,-$E17,$E17)+$E17>AM$5,IFERROR((OFFSET($G7,-$E17,$E17)/(OFFSET($G8,-$E17,$E17))),0),(OFFSET($G7,-$E17,$E17)-SUM($G17:AL17)))) -> 0 | AN17: =IF(OFFSET($G8, -$E17, $E17)="n/a",0,IF(OFFSET($G8,-$E17,$E17)+$E17>AN$5,IFERROR((OFFSET($G7,-$E17,$E17)/(OFFSET($G8,-$E17,$E17))),0),(OFFSET($G7,-$E17,$E17)-SUM($G17:AM17)))) -> 0 | AO17: =IF(OFFSET($G8, -$E17, $E17)="n/a",0,IF(OFFSET($G8,-$E17,$E17)+$E17>AO$5,IFERROR((OFFSET($G7,-$E17,$E17)/(OFFSET($G8,-$E17,$E17))),0),(OFFSET($G7,-$E17,$E17)-SUM($G17:AN17)))) -> 0 | AP17: =IF(OFFSET($G8, -$E17, $E17)="n/a",0,IF(OFFSET($G8,-$E17,$E17)+$E17>AP$5,IFERROR((OFFSET($G7,-$E17,$E17)/(OFFSET($G8,-$E17,$E17))),0),(OFFSET($G7,-$E17,$E17)-SUM($G17:AO17)))) -> 0 | AQ17: =IF(OFFSET($G8, -$E17, $E17)="n/a",0,IF(OFFSET($G8,-$E17,$E17)+$E17>AQ$5,IFERROR((OFFSET($G7,-$E17,$E17)/(OFFSET($G8,-$E17,$E17))),0),(OFFSET($G7,-$E17,$E17)-SUM($G17:AP17)))) -> 0 | AR17: =IF(OFFSET($G8, -$E17, $E17)="n/a",0,IF(OFFSET($G8,-$E17,$E17)+$E17>AR$5,IFERROR((OFFSET($G7,-$E17,$E17)/(OFFSET($G8,-$E17,$E17))),0),(OFFSET($G7,-$E17,$E17)-SUM($G17:AQ17)))) -> 0 | AS17: =IF(OFFSET($G8, -$E17, $E17)="n/a",0,IF(OFFSET($G8,-$E17,$E17)+$E17>AS$5,IFERROR((OFFSET($G7,-$E17,$E17)/(OFFSET($G8,-$E17,$E17))),0),(OFFSET($G7,-$E17,$E17)-SUM($G17:AR17)))) -> 0 | AT17: =IF(OFFSET($G8, -$E17, $E17)="n/a",0,IF(OFFSET($G8,-$E17,$E17)+$E17>AT$5,IFERROR((OFFSET($G7,-$E17,$E17)/(OFFSET($G8,-$E17,$E17))),0),(OFFSET($G7,-$E17,$E17)-SUM($G17:AS17)))) -> 0 | AU17: =IF(OFFSET($G8, -$E17, $E17)="n/a",0,IF(OFFSET($G8,-$E17,$E17)+$E17>AU$5,IFERROR((OFFSET($G7,-$E17,$E17)/(OFFSET($G8,-$E17,$E17))),0),(OFFSET($G7,-$E17,$E17)-SUM($G17:AT17)))) -> 0 | AV17: =IF(OFFSET($G8, -$E17, $E17)="n/a",0,IF(OFFSET($G8,-$E17,$E17)+$E17>AV$5,IFERROR((OFFSET($G7,-$E17,$E17)/(OFFSET($G8,-$E17,$E17))),0),(OFFSET($G7,-$E17,$E17)-SUM($G17:AU17)))) -> 0 | AW17: =IF(OFFSET($G8, -$E17, $E17)="n/a",0,IF(OFFSET($G8,-$E17,$E17)+$E17>AW$5,IFERROR((OFFSET($G7,-$E17,$E17)/(OFFSET($G8,-$E17,$E17))),0),(OFFSET($G7,-$E17,$E17)-SUM($G17:AV17)))) -> 0 | AX17: =IF(OFFSET($G8, -$E17, $E17)="n/a",0,IF(OFFSET($G8,-$E17,$E17)+$E17>AX$5,IFERROR((OFFSET($G7,-$E17,$E17)/(OFFSET($G8,-$E17,$E17))),0),(OFFSET($G7,-$E17,$E17)-SUM($G17:AW17)))) -> 0 | AY17: =IF(OFFSET($G8, -$E17, $E17)="n/a",0,IF(OFFSET($G8,-$E17,$E17)+$E17>AY$5,IFERROR((OFFSET($G7,-$E17,$E17)/(OFFSET($G8,-$E17,$E17))),0),(OFFSET($G7,-$E17,$E17)-SUM($G17:AX17)))) -> 0 | AZ17: =IF(OFFSET($G8, -$E17, $E17)="n/a",0,IF(OFFSET($G8,-$E17,$E17)+$E17>AZ$5,IFERROR((OFFSET($G7,-$E17,$E17)/(OFFSET($G8,-$E17,$E17))),0),(OFFSET($G7,-$E17,$E17)-SUM($G17:AY17)))) -> 0 | BA17: =IF(OFFSET($G8, -$E17, $E17)="n/a",0,IF(OFFSET($G8,-$E17,$E17)+$E17>BA$5,IFERROR((OFFSET($G7,-$E17,$E17)/(OFFSET($G8,-$E17,$E17))),0),(OFFSET($G7,-$E17,$E17)-SUM($G17:AZ17)))) -> 0 | BB17: =IF(OFFSET($G8, -$E17, $E17)="n/a",0,IF(OFFSET($G8,-$E17,$E17)+$E17>BB$5,IFERROR((OFFSET($G7,-$E17,$E17)/(OFFSET($G8,-$E17,$E17))),0),(OFFSET($G7,-$E17,$E17)-SUM($G17:BA17)))) -> 0 | BC17: =IF(OFFSET($G8, -$E17, $E17)="n/a",0,IF(OFFSET($G8,-$E17,$E17)+$E17>BC$5,IFERROR((OFFSET($G7,-$E17,$E17)/(OFFSET($G8,-$E17,$E17))),0),(OFFSET($G7,-$E17,$E17)-SUM($G17:BB17)))) -> 0 | BD17: =IF(OFFSET($G8, -$E17, $E17)="n/a",0,IF(OFFSET($G8,-$E17,$E17)+$E17>BD$5,IFERROR((OFFSET($G7,-$E17,$E17)/(OFFSET($G8,-$E17,$E17))),0),(OFFSET($G7,-$E17,$E17)-SUM($G17:BC17)))) -> 0 | BE17: =IF(OFFSET($G8, -$E17, $E17)="n/a",0,IF(OFFSET($G8,-$E17,$E17)+$E17>BE$5,IFERROR((OFFSET($G7,-$E17,$E17)/(OFFSET($G8,-$E17,$E17))),0),(OFFSET($G7,-$E17,$E17)-SUM($G17:BD17)))) -> 0 | BF17: =IF(OFFSET($G8, -$E17, $E17)="n/a",0,IF(OFFSET($G8,-$E17,$E17)+$E17>BF$5,IFERROR((OFFSET($G7,-$E17,$E17)/(OFFSET($G8,-$E17,$E17))),0),(OFFSET($G7,-$E17,$E17)-SUM($G17:BE17)))) -> 0 | BG17: =IF(OFFSET($G8, -$E17, $E17)="n/a",0,IF(OFFSET($G8,-$E17,$E17)+$E17>BG$5,IFERROR((OFFSET($G7,-$E17,$E17)/(OFFSET($G8,-$E17,$E17))),0),(OFFSET($G7,-$E17,$E17)-SUM($G17:BF17)))) -> 0 | BH17: =IF(OFFSET($G8, -$E17, $E17)="n/a",0,IF(OFFSET($G8,-$E17,$E17)+$E17>BH$5,IFERROR((OFFSET($G7,-$E17,$E17)/(OFFSET($G8,-$E17,$E17))),0),(OFFSET($G7,-$E17,$E17)-SUM($G17:BG17)))) -> 0 | BI17: =IF(OFFSET($G8, -$E17, $E17)="n/a",0,IF(OFFSET($G8,-$E17,$E17)+$E17>BI$5,IFERROR((OFFSET($G7,-$E17,$E17)/(OFFSET($G8,-$E17,$E17))),0),(OFFSET($G7,-$E17,$E17)-SUM($G17:BH17)))) -> 0 | BJ17: =IF(OFFSET($G8, -$E17, $E17)="n/a",0,IF(OFFSET($G8,-$E17,$E17)+$E17>BJ$5,IFERROR((OFFSET($G7,-$E17,$E17)/(OFFSET($G8,-$E17,$E17))),0),(OFFSET($G7,-$E17,$E17)-SUM($G17:BI17)))) -> 0 | BK17: =IF(OFFSET($G8, -$E17, $E17)="n/a",0,IF(OFFSET($G8,-$E17,$E17)+$E17>BK$5,IFERROR((OFFSET($G7,-$E17,$E17)/(OFFSET($G8,-$E17,$E17))),0),(OFFSET($G7,-$E17,$E17)-SUM($G17:BJ17)))) -> 0 | BL17: =IF(OFFSET($G8, -$E17, $E17)="n/a",0,IF(OFFSET($G8,-$E17,$E17)+$E17>BL$5,IFERROR((OFFSET($G7,-$E17,$E17)/(OFFSET($G8,-$E17,$E17))),0),(OFFSET($G7,-$E17,$E17)-SUM($G17:BK17)))) -> 0 | BM17: =IF(OFFSET($G8, -$E17, $E17)="n/a",0,IF(OFFSET($G8,-$E17,$E17)+$E17>BM$5,IFERROR((OFFSET($G7,-$E17,$E17)/(OFFSET($G8,-$E17,$E17))),0),(OFFSET($G7,-$E17,$E17)-SUM($G17:BL17)))) -> 0 | BN17: =IF(OFFSET($G8, -$E17, $E17)="n/a",0,IF(OFFSET($G8,-$E17,$E17)+$E17>BN$5,IFERROR((OFFSET($G7,-$E17,$E17)/(OFFSET($G8,-$E17,$E17))),0),(OFFSET($G7,-$E17,$E17)-SUM($G17:BM17)))) -> 0 | BO17: =IF(OFFSET($G8, -$E17, $E17)="n/a",0,IF(OFFSET($G8,-$E17,$E17)+$E17>BO$5,IFERROR((OFFSET($G7,-$E17,$E17)/(OFFSET($G8,-$E17,$E17))),0),(OFFSET($G7,-$E17,$E17)-SUM($G17:BN17)))) -> 0 | BP17: =IF(OFFSET($G8, -$E17, $E17)="n/a",0,IF(OFFSET($G8,-$E17,$E17)+$E17>BP$5,IFERROR((OFFSET($G7,-$E17,$E17)/(OFFSET($G8,-$E17,$E17))),0),(OFFSET($G7,-$E17,$E17)-SUM($G17:BO17)))) -> 0 | BQ17: =IF(OFFSET($G8, -$E17, $E17)="n/a",0,IF(OFFSET($G8,-$E17,$E17)+$E17>BQ$5,IFERROR((OFFSET($G7,-$E17,$E17)/(OFFSET($G8,-$E17,$E17))),0),(OFFSET($G7,-$E17,$E17)-SUM($G17:BP17)))) -> 0 | BR17: =IF(OFFSET($G8, -$E17, $E17)="n/a",0,IF(OFFSET($G8,-$E17,$E17)+$E17>BR$5,IFERROR((OFFSET($G7,-$E17,$E17)/(OFFSET($G8,-$E17,$E17))),0),(OFFSET($G7,-$E17,$E17)-SUM($G17:BQ17)))) -> 0 | BS17: =IF(OFFSET($G8, -$E17, $E17)="n/a",0,IF(OFFSET($G8,-$E17,$E17)+$E17>BS$5,IFERROR((OFFSET($G7,-$E17,$E17)/(OFFSET($G8,-$E17,$E17))),0),(OFFSET($G7,-$E17,$E17)-SUM($G17:BR17)))) -> 0 | BT17: =IF(OFFSET($G8, -$E17, $E17)="n/a",0,IF(OFFSET($G8,-$E17,$E17)+$E17>BT$5,IFERROR((OFFSET($G7,-$E17,$E17)/(OFFSET($G8,-$E17,$E17))),0),(OFFSET($G7,-$E17,$E17)-SUM($G17:BS17)))) -> 0 | BU17: =IF(OFFSET($G8, -$E17, $E17)="n/a",0,IF(OFFSET($G8,-$E17,$E17)+$E17>BU$5,IFERROR((OFFSET($G7,-$E17,$E17)/(OFFSET($G8,-$E17,$E17))),0),(OFFSET($G7,-$E17,$E17)-SUM($G17:BT17)))) -> 0 | BV17: =IF(OFFSET($G8, -$E17, $E17)="n/a",0,IF(OFFSET($G8,-$E17,$E17)+$E17>BV$5,IFERROR((OFFSET($G7,-$E17,$E17)/(OFFSET($G8,-$E17,$E17))),0),(OFFSET($G7,-$E17,$E17)-SUM($G17:BU17)))) -> 0 | BW17: =IF(OFFSET($G8, -$E17, $E17)="n/a",0,IF(OFFSET($G8,-$E17,$E17)+$E17>BW$5,IFERROR((OFFSET($G7,-$E17,$E17)/(OFFSET($G8,-$E17,$E17))),0),(OFFSET($G7,-$E17,$E17)-SUM($G17:BV17)))) -> 0 | BX17: =IF(OFFSET($G8, -$E17, $E17)="n/a",0,IF(OFFSET($G8,-$E17,$E17)+$E17>BX$5,IFERROR((OFFSET($G7,-$E17,$E17)/(OFFSET($G8,-$E17,$E17))),0),(OFFSET($G7,-$E17,$E17)-SUM($G17:BW17)))) -> 0 | BY17: =IF(OFFSET($G8, -$E17, $E17)="n/a",0,IF(OFFSET($G8,-$E17,$E17)+$E17>BY$5,IFERROR((OFFSET($G7,-$E17,$E17)/(OFFSET($G8,-$E17,$E17))),0),(OFFSET($G7,-$E17,$E17)-SUM($G17:BX17)))) -> 0 | BZ17: =IF(OFFSET($G8, -$E17, $E17)="n/a",0,IF(OFFSET($G8,-$E17,$E17)+$E17>BZ$5,IFERROR((OFFSET($G7,-$E17,$E17)/(OFFSET($G8,-$E17,$E17))),0),(OFFSET($G7,-$E17,$E17)-SUM($G17:BY17)))) -> 0
E18: =E17+1 -> 1 | F18: ="Depreciation of net capex "&INDEX(RAB_years, E18) -> Depreciation of net capex 2014-15 | I18: =IF(OFFSET($G9, -$E18, $E18)="n/a",0,IF(OFFSET($G9,-$E18,$E18)+$E18>I$5,IFERROR((OFFSET($G8,-$E18,$E18)/(OFFSET($G9,-$E18,$E18))),0),(OFFSET($G8,-$E18,$E18)-SUM($G18:H18)))) -> 0.7692730778 | J18: =IF(OFFSET($G9, -$E18, $E18)="n/a",0,IF(OFFSET($G9,-$E18,$E18)+$E18>J$5,IFERROR((OFFSET($G8,-$E18,$E18)/(OFFSET($G9,-$E18,$E18))),0),(OFFSET($G8,-$E18,$E18)-SUM($G18:I18)))) -> 0.7692730778 | K18: =IF(OFFSET($G9, -$E18, $E18)="n/a",0,IF(OFFSET($G9,-$E18,$E18)+$E18>K$5,IFERROR((OFFSET($G8,-$E18,$E18)/(OFFSET($G9,-$E18,$E18))),0),(OFFSET($G8,-$E18,$E18)-SUM($G18:J18)))) -> 0.7692730778 | L18: =IF(OFFSET($G9, -$E18, $E18)="n/a",0,IF(OFFSET($G9,-$E18,$E18)+$E18>L$5,IFERROR((OFFSET($G8,-$E18,$E18)/(OFFSET($G9,-$E18,$E18))),0),(OFFSET($G8,-$E18,$E18)-SUM($G18:K18)))) -> 0.7692730778 | M18: =IF(OFFSET($G9, -$E18, $E18)="n/a",0,IF(OFFSET($G9,-$E18,$E18)+$E18>M$5,IFERROR((OFFSET($G8,-$E18,$E18)/(OFFSET($G9,-$E18,$E18))),0),(OFFSET($G8,-$E18,$E18)-SUM($G18:L18)))) -> 0.7692730778 | N18: =IF(OFFSET($G9, -$E18, $E18)="n/a",0,IF(OFFSET($G9,-$E18,$E18)+$E18>N$5,IFERROR((OFFSET($G8,-$E18,$E18)/(OFFSET($G9,-$E18,$E18))),0),(OFFSET($G8,-$E18,$E18)-SUM($G18:M18)))) -> 0.7692730778 | O18: =IF(OFFSET($G9, -$E18, $E18)="n/a",0,IF(OFFSET($G9,-$E18,$E18)+$E18>O$5,IFERROR((OFFSET($G8,-$E18,$E18)/(OFFSET($G9,-$E18,$E18))),0),(OFFSET($G8,-$E18,$E18)-SUM($G18:N18)))) -> 0.7692730778 | P18: =IF(OFFSET($G9, -$E18, $E18)="n/a",0,IF(OFFSET($G9,-$E18,$E18)+$E18>P$5,IFERROR((OFFSET($G8,-$E18,$E18)/(OFFSET($G9,-$E18,$E18))),0),(OFFSET($G8,-$E18,$E18)-SUM($G18:O18)))) -> 0.7692730778 | Q18: =IF(OFFSET($G9, -$E18, $E18)="n/a",0,IF(OFFSET($G9,-$E18,$E18)+$E18>Q$5,IFERROR((OFFSET($G8,-$E18,$E18)/(OFFSET($G9,-$E18,$E18))),0),(OFFSET($G8,-$E18,$E18)-SUM($G18:P18)))) -> 0.7692730778 | R18: =IF(OFFSET($G9, -$E18, $E18)="n/a",0,IF(OFFSET($G9,-$E18,$E18)+$E18>R$5,IFERROR((OFFSET($G8,-$E18,$E18)/(OFFSET($G9,-$E18,$E18))),0),(OFFSET($G8,-$E18,$E18)-SUM($G18:Q18)))) -> 0.7692730778 | S18: =IF(OFFSET($G9, -$E18, $E18)="n/a",0,IF(OFFSET($G9,-$E18,$E18)+$E18>S$5,IFERROR((OFFSET($G8,-$E18,$E18)/(OFFSET($G9,-$E18,$E18))),0),(OFFSET($G8,-$E18,$E18)-SUM($G18:R18)))) -> 0.7692730778 | T18: =IF(OFFSET($G9, -$E18, $E18)="n/a",0,IF(OFFSET($G9,-$E18,$E18)+$E18>T$5,IFERROR((OFFSET($G8,-$E18,$E18)/(OFFSET($G9,-$E18,$E18))),0),(OFFSET($G8,-$E18,$E18)-SUM($G18:S18)))) -> 0.7692730778 | U18: =IF(OFFSET($G9, -$E18, $E18)="n/a",0,IF(OFFSET($G9,-$E18,$E18)+$E18>U$5,IFERROR((OFFSET($G8,-$E18,$E18)/(OFFSET($G9,-$E18,$E18))),0),(OFFSET($G8,-$E18,$E18)-SUM($G18:T18)))) -> 0.7692730778 | V18: =IF(OFFSET($G9, -$E18, $E18)="n/a",0,IF(OFFSET($G9,-$E18,$E18)+$E18>V$5,IFERROR((OFFSET($G8,-$E18,$E18)/(OFFSET($G9,-$E18,$E18))),0),(OFFSET($G8,-$E18,$E18)-SUM($G18:U18)))) -> 0.7692730778 | W18: =IF(OFFSET($G9, -$E18, $E18)="n/a",0,IF(OFFSET($G9,-$E18,$E18)+$E18>W$5,IFERROR((OFFSET($G8,-$E18,$E18)/(OFFSET($G9,-$E18,$E18))),0),(OFFSET($G8,-$E18,$E18)-SUM($G18:V18)))) -> 0.7692730778 | X18: =IF(OFFSET($G9, -$E18, $E18)="n/a",0,IF(OFFSET($G9,-$E18,$E18)+$E18>X$5,IFERROR((OFFSET($G8,-$E18,$E18)/(OFFSET($G9,-$E18,$E18))),0),(OFFSET($G8,-$E18,$E18)-SUM($G18:W18)))) -> 0.7692730778 | Y18: =IF(OFFSET($G9, -$E18, $E18)="n/a",0,IF(OFFSET($G9,-$E18,$E18)+$E18>Y$5,IFERROR((OFFSET($G8,-$E18,$E18)/(OFFSET($G9,-$E18,$E18))),0),(OFFSET($G8,-$E18,$E18)-SUM($G18:X18)))) -> 0.7692730778 | Z18: =IF(OFFSET($G9, -$E18, $E18)="n/a",0,IF(OFFSET($G9,-$E18,$E18)+$E18>Z$5,IFERROR((OFFSET($G8,-$E18,$E18)/(OFFSET($G9,-$E18,$E18))),0),(OFFSET($G8,-$E18,$E18)-SUM($G18:Y18)))) -> 0.7692730778 | AA18: =IF(OFFSET($G9, -$E18, $E18)="n/a",0,IF(OFFSET($G9,-$E18,$E18)+$E18>AA$5,IFERROR((OFFSET($G8,-$E18,$E18)/(OFFSET($G9,-$E18,$E18))),0),(OFFSET($G8,-$E18,$E18)-SUM($G18:Z18)))) -> 0.7692730778 | AB18: =IF(OFFSET($G9, -$E18, $E18)="n/a",0,IF(OFFSET($G9,-$E18,$E18)+$E18>AB$5,IFERROR((OFFSET($G8,-$E18,$E18)/(OFFSET($G9,-$E18,$E18))),0),(OFFSET($G8,-$E18,$E18)-SUM($G18:AA18)))) -> 0.7692730778 | AC18: =IF(OFFSET($G9, -$E18, $E18)="n/a",0,IF(OFFSET($G9,-$E18,$E18)+$E18>AC$5,IFERROR((OFFSET($G8,-$E18,$E18)/(OFFSET($G9,-$E18,$E18))),0),(OFFSET($G8,-$E18,$E18)-SUM($G18:AB18)))) -> 0.7692730778 | AD18: =IF(OFFSET($G9, -$E18, $E18)="n/a",0,IF(OFFSET($G9,-$E18,$E18)+$E18>AD$5,IFERROR((OFFSET($G8,-$E18,$E18)/(OFFSET($G9,-$E18,$E18))),0),(OFFSET($G8,-$E18,$E18)-SUM($G18:AC18)))) -> 0.7692730778 | AE18: =IF(OFFSET($G9, -$E18, $E18)="n/a",0,IF(OFFSET($G9,-$E18,$E18)+$E18>AE$5,IFERROR((OFFSET($G8,-$E18,$E18)/(OFFSET($G9,-$E18,$E18))),0),(OFFSET($G8,-$E18,$E18)-SUM($G18:AD18)))) -> 0.7692730778 | AF18: =IF(OFFSET($G9, -$E18, $E18)="n/a",0,IF(OFFSET($G9,-$E18,$E18)+$E18>AF$5,IFERROR((OFFSET($G8,-$E18,$E18)/(OFFSET($G9,-$E18,$E18))),0),(OFFSET($G8,-$E18,$E18)-SUM($G18:AE18)))) -> 0.7692730778 | AG18: =IF(OFFSET($G9, -$E18, $E18)="n/a",0,IF(OFFSET($G9,-$E18,$E18)+$E18>AG$5,IFERROR((OFFSET($G8,-$E18,$E18)/(OFFSET($G9,-$E18,$E18))),0),(OFFSET($G8,-$E18,$E18)-SUM($G18:AF18)))) -> 0.7692730778 | AH18: =IF(OFFSET($G9, -$E18, $E18)="n/a",0,IF(OFFSET($G9,-$E18,$E18)+$E18>AH$5,IFERROR((OFFSET($G8,-$E18,$E18)/(OFFSET($G9,-$E18,$E18))),0),(OFFSET($G8,-$E18,$E18)-SUM($G18:AG18)))) -> 0.7692730778 | AI18: =IF(OFFSET($G9, -$E18, $E18)="n/a",0,IF(OFFSET($G9,-$E18,$E18)+$E18>AI$5,IFERROR((OFFSET($G8,-$E18,$E18)/(OFFSET($G9,-$E18,$E18))),0),(OFFSET($G8,-$E18,$E18)-SUM($G18:AH18)))) -> 0.7692730778 | AJ18: =IF(OFFSET($G9, -$E18, $E18)="n/a",0,IF(OFFSET($G9,-$E18,$E18)+$E18>AJ$5,IFERROR((OFFSET($G8,-$E18,$E18)/(OFFSET($G9,-$E18,$E18))),0),(OFFSET($G8,-$E18,$E18)-SUM($G18:AI18)))) -> 0.7692730778 | AK18: =IF(OFFSET($G9, -$E18, $E18)="n/a",0,IF(OFFSET($G9,-$E18,$E18)+$E18>AK$5,IFERROR((OFFSET($G8,-$E18,$E18)/(OFFSET($G9,-$E18,$E18))),0),(OFFSET($G8,-$E18,$E18)-SUM($G18:AJ18)))) -> 0.7692730778 | AL18: =IF(OFFSET($G9, -$E18, $E18)="n/a",0,IF(OFFSET($G9,-$E18,$E18)+$E18>AL$5,IFERROR((OFFSET($G8,-$E18,$E18)/(OFFSET($G9,-$E18,$E18))),0),(OFFSET($G8,-$E18,$E18)-SUM($G18:AK18)))) -> 0.7692730778 | AM18: =IF(OFFSET($G9, -$E18, $E18)="n/a",0,IF(OFFSET($G9,-$E18,$E18)+$E18>AM$5,IFERROR((OFFSET($G8,-$E18,$E18)/(OFFSET($G9,-$E18,$E18))),0),(OFFSET($G8,-$E18,$E18)-SUM($G18:AL18)))) -> 0.7692730778 | AN18: =IF(OFFSET($G9, -$E18, $E18)="n/a",0,IF(OFFSET($G9,-$E18,$E18)+$E18>AN$5,IFERROR((OFFSET($G8,-$E18,$E18)/(OFFSET($G9,-$E18,$E18))),0),(OFFSET($G8,-$E18,$E18)-SUM($G18:AM18)))) -> 0.7692730778 | AO18: =IF(OFFSET($G9, -$E18, $E18)="n/a",0,IF(OFFSET($G9,-$E18,$E18)+$E18>AO$5,IFERROR((OFFSET($G8,-$E18,$E18)/(OFFSET($G9,-$E18,$E18))),0),(OFFSET($G8,-$E18,$E18)-SUM($G18:AN18)))) -> 0.7692730778 | AP18: =IF(OFFSET($G9, -$E18, $E18)="n/a",0,IF(OFFSET($G9,-$E18,$E18)+$E18>AP$5,IFERROR((OFFSET($G8,-$E18,$E18)/(OFFSET($G9,-$E18,$E18))),0),(OFFSET($G8,-$E18,$E18)-SUM($G18:AO18)))) -> 0.7692730778 | AQ18: =IF(OFFSET($G9, -$E18, $E18)="n/a",0,IF(OFFSET($G9,-$E18,$E18)+$E18>AQ$5,IFERROR((OFFSET($G8,-$E18,$E18)/(OFFSET($G9,-$E18,$E18))),0),(OFFSET($G8,-$E18,$E18)-SUM($G18:AP18)))) -> 0.7692730778 | AR18: =IF(OFFSET($G9, -$E18, $E18)="n/a",0,IF(OFFSET($G9,-$E18,$E18)+$E18>AR$5,IFERROR((OFFSET($G8,-$E18,$E18)/(OFFSET($G9,-$E18,$E18))),0),(OFFSET($G8,-$E18,$E18)-SUM($G18:AQ18)))) -> 0.7692730778 | AS18: =IF(OFFSET($G9, -$E18, $E18)="n/a",0,IF(OFFSET($G9,-$E18,$E18)+$E18>AS$5,IFERROR((OFFSET($G8,-$E18,$E18)/(OFFSET($G9,-$E18,$E18))),0),(OFFSET($G8,-$E18,$E18)-SUM($G18:AR18)))) -> 0.7692730778 | AT18: =IF(OFFSET($G9, -$E18, $E18)="n/a",0,IF(OFFSET($G9,-$E18,$E18)+$E18>AT$5,IFERROR((OFFSET($G8,-$E18,$E18)/(OFFSET($G9,-$E18,$E18))),0),(OFFSET($G8,-$E18,$E18)-SUM($G18:AS18)))) -> 0.7692730778 | AU18: =IF(OFFSET($G9, -$E18, $E18)="n/a",0,IF(OFFSET($G9,-$E18,$E18)+$E18>AU$5,IFERROR((OFFSET($G8,-$E18,$E18)/(OFFSET($G9,-$E18,$E18))),0),(OFFSET($G8,-$E18,$E18)-SUM($G18:AT18)))) -> 0.7692730778 | AV18: =IF(OFFSET($G9, -$E18, $E18)="n/a",0,IF(OFFSET($G9,-$E18,$E18)+$E18>AV$5,IFERROR((OFFSET($G8,-$E18,$E18)/(OFFSET($G9,-$E18,$E18))),0),(OFFSET($G8,-$E18,$E18)-SUM($G18:AU18)))) -> 0.7692730778 | AW18: =IF(OFFSET($G9, -$E18, $E18)="n/a",0,IF(OFFSET($G9,-$E18,$E18)+$E18>AW$5,IFERROR((OFFSET($G8,-$E18,$E18)/(OFFSET($G9,-$E18,$E18))),0),(OFFSET($G8,-$E18,$E18)-SUM($G18:AV18)))) -> 0.7692730778 | AX18: =IF(OFFSET($G9, -$E18, $E18)="n/a",0,IF(OFFSET($G9,-$E18,$E18)+$E18>AX$5,IFERROR((OFFSET($G8,-$E18,$E18)/(OFFSET($G9,-$E18,$E18))),0),(OFFSET($G8,-$E18,$E18)-SUM($G18:AW18)))) -> 0.7487642427 | AY18: =IF(OFFSET($G9, -$E18, $E18)="n/a",0,IF(OFFSET($G9,-$E18,$E18)+$E18>AY$5,IFERROR((OFFSET($G8,-$E18,$E18)/(OFFSET($G9,-$E18,$E18))),0),(OFFSET($G8,-$E18,$E18)-SUM($G18:AX18)))) -> 0 | AZ18: =IF(OFFSET($G9, -$E18, $E18)="n/a",0,IF(OFFSET($G9,-$E18,$E18)+$E18>AZ$5,IFERROR((OFFSET($G8,-$E18,$E18)/(OFFSET($G9,-$E18,$E18))),0),(OFFSET($G8,-$E18,$E18)-SUM($G18:AY18)))) -> 0 | BA18: =IF(OFFSET($G9, -$E18, $E18)="n/a",0,IF(OFFSET($G9,-$E18,$E18)+$E18>BA$5,IFERROR((OFFSET($G8,-$E18,$E18)/(OFFSET($G9,-$E18,$E18))),0),(OFFSET($G8,-$E18,$E18)-SUM($G18:AZ18)))) -> 0 | BB18: =IF(OFFSET($G9, -$E18, $E18)="n/a",0,IF(OFFSET($G9,-$E18,$E18)+$E18>BB$5,IFERROR((OFFSET($G8,-$E18,$E18)/(OFFSET($G9,-$E18,$E18))),0),(OFFSET($G8,-$E18,$E18)-SUM($G18:BA18)))) -> 0 | BC18: =IF(OFFSET($G9, -$E18, $E18)="n/a",0,IF(OFFSET($G9,-$E18,$E18)+$E18>BC$5,IFERROR((OFFSET($G8,-$E18,$E18)/(OFFSET($G9,-$E18,$E18))),0),(OFFSET($G8,-$E18,$E18)-SUM($G18:BB18)))) -> 0 | BD18: =IF(OFFSET($G9, -$E18, $E18)="n/a",0,IF(OFFSET($G9,-$E18,$E18)+$E18>BD$5,IFERROR((OFFSET($G8,-$E18,$E18)/(OFFSET($G9,-$E18,$E18))),0),(OFFSET($G8,-$E18,$E18)-SUM($G18:BC18)))) -> 0 | BE18: =IF(OFFSET($G9, -$E18, $E18)="n/a",0,IF(OFFSET($G9,-$E18,$E18)+$E18>BE$5,IFERROR((OFFSET($G8,-$E18,$E18)/(OFFSET($G9,-$E18,$E18))),0),(OFFSET($G8,-$E18,$E18)-SUM($G18:BD18)))) -> 0 | BF18: =IF(OFFSET($G9, -$E18, $E18)="n/a",0,IF(OFFSET($G9,-$E18,$E18)+$E18>BF$5,IFERROR((OFFSET($G8,-$E18,$E18)/(OFFSET($G9,-$E18,$E18))),0),(OFFSET($G8,-$E18,$E18)-SUM($G18:BE18)))) -> 0 | BG18: =IF(OFFSET($G9, -$E18, $E18)="n/a",0,IF(OFFSET($G9,-$E18,$E18)+$E18>BG$5,IFERROR((OFFSET($G8,-$E18,$E18)/(OFFSET($G9,-$E18,$E18))),0),(OFFSET($G8,-$E18,$E18)-SUM($G18:BF18)))) -> 0 | BH18: =IF(OFFSET($G9, -$E18, $E18)="n/a",0,IF(OFFSET($G9,-$E18,$E18)+$E18>BH$5,IFERROR((OFFSET($G8,-$E18,$E18)/(OFFSET($G9,-$E18,$E18))),0),(OFFSET($G8,-$E18,$E18)-SUM($G18:BG18)))) -> 0 | BI18: =IF(OFFSET($G9, -$E18, $E18)="n/a",0,IF(OFFSET($G9,-$E18,$E18)+$E18>BI$5,IFERROR((OFFSET($G8,-$E18,$E18)/(OFFSET($G9,-$E18,$E18))),0),(OFFSET($G8,-$E18,$E18)-SUM($G18:BH18)))) -> 0 | BJ18: =IF(OFFSET($G9, -$E18, $E18)="n/a",0,IF(OFFSET($G9,-$E18,$E18)+$E18>BJ$5,IFERROR((OFFSET($G8,-$E18,$E18)/(OFFSET($G9,-$E18,$E18))),0),(OFFSET($G8,-$E18,$E18)-SUM($G18:BI18)))) -> 0 | BK18: =IF(OFFSET($G9, -$E18, $E18)="n/a",0,IF(OFFSET($G9,-$E18,$E18)+$E18>BK$5,IFERROR((OFFSET($G8,-$E18,$E18)/(OFFSET($G9,-$E18,$E18))),0),(OFFSET($G8,-$E18,$E18)-SUM($G18:BJ18)))) -> 0 | BL18: =IF(OFFSET($G9, -$E18, $E18)="n/a",0,IF(OFFSET($G9,-$E18,$E18)+$E18>BL$5,IFERROR((OFFSET($G8,-$E18,$E18)/(OFFSET($G9,-$E18,$E18))),0),(OFFSET($G8,-$E18,$E18)-SUM($G18:BK18)))) -> 0 | BM18: =IF(OFFSET($G9, -$E18, $E18)="n/a",0,IF(OFFSET($G9,-$E18,$E18)+$E18>BM$5,IFERROR((OFFSET($G8,-$E18,$E18)/(OFFSET($G9,-$E18,$E18))),0),(OFFSET($G8,-$E18,$E18)-SUM($G18:BL18)))) -> 0 | BN18: =IF(OFFSET($G9, -$E18, $E18)="n/a",0,IF(OFFSET($G9,-$E18,$E18)+$E18>BN$5,IFERROR((OFFSET($G8,-$E18,$E18)/(OFFSET($G9,-$E18,$E18))),0),(OFFSET($G8,-$E18,$E18)-SUM($G18:BM18)))) -> 0 | BO18: =IF(OFFSET($G9, -$E18, $E18)="n/a",0,IF(OFFSET($G9,-$E18,$E18)+$E18>BO$5,IFERROR((OFFSET($G8,-$E18,$E18)/(OFFSET($G9,-$E18,$E18))),0),(OFFSET($G8,-$E18,$E18)-SUM($G18:BN18)))) -> 0 | BP18: =IF(OFFSET($G9, -$E18, $E18)="n/a",0,IF(OFFSET($G9,-$E18,$E18)+$E18>BP$5,IFERROR((OFFSET($G8,-$E18,$E18)/(OFFSET($G9,-$E18,$E18))),0),(OFFSET($G8,-$E18,$E18)-SUM($G18:BO18)))) -> 0 | BQ18: =IF(OFFSET($G9, -$E18, $E18)="n/a",0,IF(OFFSET($G9,-$E18,$E18)+$E18>BQ$5,IFERROR((OFFSET($G8,-$E18,$E18)/(OFFSET($G9,-$E18,$E18))),0),(OFFSET($G8,-$E18,$E18)-SUM($G18:BP18)))) -> 0 | BR18: =IF(OFFSET($G9, -$E18, $E18)="n/a",0,IF(OFFSET($G9,-$E18,$E18)+$E18>BR$5,IFERROR((OFFSET($G8,-$E18,$E18)/(OFFSET($G9,-$E18,$E18))),0),(OFFSET($G8,-$E18,$E18)-SUM($G18:BQ18)))) -> 0 | BS18: =IF(OFFSET($G9, -$E18, $E18)="n/a",0,IF(OFFSET($G9,-$E18,$E18)+$E18>BS$5,IFERROR((OFFSET($G8,-$E18,$E18)/(OFFSET($G9,-$E18,$E18))),0),(OFFSET($G8,-$E18,$E18)-SUM($G18:BR18)))) -> 0 | BT18: =IF(OFFSET($G9, -$E18, $E18)="n/a",0,IF(OFFSET($G9,-$E18,$E18)+$E18>BT$5,IFERROR((OFFSET($G8,-$E18,$E18)/(OFFSET($G9,-$E18,$E18))),0),(OFFSET($G8,-$E18,$E18)-SUM($G18:BS18)))) -> 0 | BU18: =IF(OFFSET($G9, -$E18, $E18)="n/a",0,IF(OFFSET($G9,-$E18,$E18)+$E18>BU$5,IFERROR((OFFSET($G8,-$E18,$E18)/(OFFSET($G9,-$E18,$E18))),0),(OFFSET($G8,-$E18,$E18)-SUM($G18:BT18)))) -> 0 | BV18: =IF(OFFSET($G9, -$E18, $E18)="n/a",0,IF(OFFSET($G9,-$E18,$E18)+$E18>BV$5,IFERROR((OFFSET($G8,-$E18,$E18)/(OFFSET($G9,-$E18,$E18))),0),(OFFSET($G8,-$E18,$E18)-SUM($G18:BU18)))) -> 0 | BW18: =IF(OFFSET($G9, -$E18, $E18)="n/a",0,IF(OFFSET($G9,-$E18,$E18)+$E18>BW$5,IFERROR((OFFSET($G8,-$E18,$E18)/(OFFSET($G9,-$E18,$E18))),0),(OFFSET($G8,-$E18,$E18)-SUM($G18:BV18)))) -> 0 | BX18: =IF(OFFSET($G9, -$E18, $E18)="n/a",0,IF(OFFSET($G9,-$E18,$E18)+$E18>BX$5,IFERROR((OFFSET($G8,-$E18,$E18)/(OFFSET($G9,-$E18,$E18))),0),(OFFSET($G8,-$E18,$E18)-SUM($G18:BW18)))) -> 0 | BY18: =IF(OFFSET($G9, -$E18, $E18)="n/a",0,IF(OFFSET($G9,-$E18,$E18)+$E18>BY$5,IFERROR((OFFSET($G8,-$E18,$E18)/(OFFSET($G9,-$E18,$E18))),0),(OFFSET($G8,-$E18,$E18)-SUM($G18:BX18)))) -> 0 | BZ18: =IF(OFFSET($G9, -$E18, $E18)="n/a",0,IF(OFFSET($G9,-$E18,$E18)+$E18>BZ$5,IFERROR((OFFSET($G8,-$E18,$E18)/(OFFSET($G9,-$E18,$E18))),0),(OFFSET($G8,-$E18,$E18)-SUM($G18:BY18)))) -> 0
E19: 2 | F19: ="Depreciation of net capex "&INDEX(RAB_years, E19) -> Depreciation of net capex 2015-16 | J19: =IF(OFFSET($G10, -$E19, $E19)="n/a",0,IF(OFFSET($G10,-$E19,$E19)+$E19>J$5,IFERROR((OFFSET($G9,-$E19,$E19)/(OFFSET($G10,-$E19,$E19))),0),(OFFSET($G9,-$E19,$E19)-SUM($G19:I19)))) -> 0.6483202049 | K19: =IF(OFFSET($G10, -$E19, $E19)="n/a",0,IF(OFFSET($G10,-$E19,$E19)+$E19>K$5,IFERROR((OFFSET($G9,-$E19,$E19)/(OFFSET($G10,-$E19,$E19))),0),(OFFSET($G9,-$E19,$E19)-SUM($G19:J19)))) -> 0.6483202049 | L19: =IF(OFFSET($G10, -$E19, $E19)="n/a",0,IF(OFFSET($G10,-$E19,$E19)+$E19>L$5,IFERROR((OFFSET($G9,-$E19,$E19)/(OFFSET($G10,-$E19,$E19))),0),(OFFSET($G9,-$E19,$E19)-SUM($G19:K19)))) -> 0.6483202049 | M19: =IF(OFFSET($G10, -$E19, $E19)="n/a",0,IF(OFFSET($G10,-$E19,$E19)+$E19>M$5,IFERROR((OFFSET($G9,-$E19,$E19)/(OFFSET($G10,-$E19,$E19))),0),(OFFSET($G9,-$E19,$E19)-SUM($G19:L19)))) -> 0.6483202049 | N19: =IF(OFFSET($G10, -$E19, $E19)="n/a",0,IF(OFFSET($G10,-$E19,$E19)+$E19>N$5,IFERROR((OFFSET($G9,-$E19,$E19)/(OFFSET($G10,-$E19,$E19))),0),(OFFSET($G9,-$E19,$E19)-SUM($G19:M19)))) -> 0.6483202049 | O19: =IF(OFFSET($G10, -$E19, $E19)="n/a",0,IF(OFFSET($G10,-$E19,$E19)+$E19>O$5,IFERROR((OFFSET($G9,-$E19,$E19)/(OFFSET($G10,-$E19,$E19))),0),(OFFSET($G9,-$E19,$E19)-SUM($G19:N19)))) -> 0.6483202049 | P19: =IF(OFFSET($G10, -$E19, $E19)="n/a",0,IF(OFFSET($G10,-$E19,$E19)+$E19>P$5,IFERROR((OFFSET($G9,-$E19,$E19)/(OFFSET($G10,-$E19,$E19))),0),(OFFSET($G9,-$E19,$E19)-SUM($G19:O19)))) -> 0.6483202049 | Q19: =IF(OFFSET($G10, -$E19, $E19)="n/a",0,IF(OFFSET($G10,-$E19,$E19)+$E19>Q$5,IFERROR((OFFSET($G9,-$E19,$E19)/(OFFSET($G10,-$E19,$E19))),0),(OFFSET($G9,-$E19,$E19)-SUM($G19:P19)))) -> 0.6483202049 | R19: =IF(OFFSET($G10, -$E19, $E19)="n/a",0,IF(OFFSET($G10,-$E19,$E19)+$E19>R$5,IFERROR((OFFSET($G9,-$E19,$E19)/(OFFSET($G10,-$E19,$E19))),0),(OFFSET($G9,-$E19,$E19)-SUM($G19:Q19)))) -> 0.6483202049 | S19: =IF(OFFSET($G10, -$E19, $E19)="n/a",0,IF(OFFSET($G10,-$E19,$E19)+$E19>S$5,IFERROR((OFFSET($G9,-$E19,$E19)/(OFFSET($G10,-$E19,$E19))),0),(OFFSET($G9,-$E19,$E19)-SUM($G19:R19)))) -> 0.6483202049 | T19: =IF(OFFSET($G10, -$E19, $E19)="n/a",0,IF(OFFSET($G10,-$E19,$E19)+$E19>T$5,IFERROR((OFFSET($G9,-$E19,$E19)/(OFFSET($G10,-$E19,$E19))),0),(OFFSET($G9,-$E19,$E19)-SUM($G19:S19)))) -> 0.6483202049 | U19: =IF(OFFSET($G10, -$E19, $E19)="n/a",0,IF(OFFSET($G10,-$E19,$E19)+$E19>U$5,IFERROR((OFFSET($G9,-$E19,$E19)/(OFFSET($G10,-$E19,$E19))),0),(OFFSET($G9,-$E19,$E19)-SUM($G19:T19)))) -> 0.6483202049 | V19: =IF(OFFSET($G10, -$E19, $E19)="n/a",0,IF(OFFSET($G10,-$E19,$E19)+$E19>V$5,IFERROR((OFFSET($G9,-$E19,$E19)/(OFFSET($G10,-$E19,$E19))),0),(OFFSET($G9,-$E19,$E19)-SUM($G19:U19)))) -> 0.6483202049 | W19: =IF(OFFSET($G10, -$E19, $E19)="n/a",0,IF(OFFSET($G10,-$E19,$E19)+$E19>W$5,IFERROR((OFFSET($G9,-$E19,$E19)/(OFFSET($G10,-$E19,$E19))),0),(OFFSET($G9,-$E19,$E19)-SUM($G19:V19)))) -> 0.6483202049 | X19: =IF(OFFSET($G10, -$E19, $E19)="n/a",0,IF(OFFSET($G10,-$E19,$E19)+$E19>X$5,IFERROR((OFFSET($G9,-$E19,$E19)/(OFFSET($G10,-$E19,$E19))),0),(OFFSET($G9,-$E19,$E19)-SUM($G19:W19)))) -> 0.6483202049 | Y19: =IF(OFFSET($G10, -$E19, $E19)="n/a",0,IF(OFFSET($G10,-$E19,$E19)+$E19>Y$5,IFERROR((OFFSET($G9,-$E19,$E19)/(OFFSET($G10,-$E19,$E19))),0),(OFFSET($G9,-$E19,$E19)-SUM($G19:X19)))) -> 0.6483202049 | Z19: =IF(OFFSET($G10, -$E19, $E19)="n/a",0,IF(OFFSET($G10,-$E19,$E19)+$E19>Z$5,IFERROR((OFFSET($G9,-$E19,$E19)/(OFFSET($G10,-$E19,$E19))),0),(OFFSET($G9,-$E19,$E19)-SUM($G19:Y19)))) -> 0.6483202049 | AA19: =IF(OFFSET($G10, -$E19, $E19)="n/a",0,IF(OFFSET($G10,-$E19,$E19)+$E19>AA$5,IFERROR((OFFSET($G9,-$E19,$E19)/(OFFSET($G10,-$E19,$E19))),0),(OFFSET($G9,-$E19,$E19)-SUM($G19:Z19)))) -> 0.6483202049 | AB19: =IF(OFFSET($G10, -$E19, $E19)="n/a",0,IF(OFFSET($G10,-$E19,$E19)+$E19>AB$5,IFERROR((OFFSET($G9,-$E19,$E19)/(OFFSET($G10,-$E19,$E19))),0),(OFFSET($G9,-$E19,$E19)-SUM($G19:AA19)))) -> 0.6483202049 | AC19: =IF(OFFSET($G10, -$E19, $E19)="n/a",0,IF(OFFSET($G10,-$E19,$E19)+$E19>AC$5,IFERROR((OFFSET($G9,-$E19,$E19)/(OFFSET($G10,-$E19,$E19))),0),(OFFSET($G9,-$E19,$E19)-SUM($G19:AB19)))) -> 0.6483202049 | AD19: =IF(OFFSET($G10, -$E19, $E19)="n/a",0,IF(OFFSET($G10,-$E19,$E19)+$E19>AD$5,IFERROR((OFFSET($G9,-$E19,$E19)/(OFFSET($G10,-$E19,$E19))),0),(OFFSET($G9,-$E19,$E19)-SUM($G19:AC19)))) -> 0.6483202049 | AE19: =IF(OFFSET($G10, -$E19, $E19)="n/a",0,IF(OFFSET($G10,-$E19,$E19)+$E19>AE$5,IFERROR((OFFSET($G9,-$E19,$E19)/(OFFSET($G10,-$E19,$E19))),0),(OFFSET($G9,-$E19,$E19)-SUM($G19:AD19)))) -> 0.6483202049 | AF19: =IF(OFFSET($G10, -$E19, $E19)="n/a",0,IF(OFFSET($G10,-$E19,$E19)+$E19>AF$5,IFERROR((OFFSET($G9,-$E19,$E19)/(OFFSET($G10,-$E19,$E19))),0),(OFFSET($G9,-$E19,$E19)-SUM($G19:AE19)))) -> 0.6483202049 | AG19: =IF(OFFSET($G10, -$E19, $E19)="n/a",0,IF(OFFSET($G10,-$E19,$E19)+$E19>AG$5,IFERROR((OFFSET($G9,-$E19,$E19)/(OFFSET($G10,-$E19,$E19))),0),(OFFSET($G9,-$E19,$E19)-SUM($G19:AF19)))) -> 0.6483202049 | AH19: =IF(OFFSET($G10, -$E19, $E19)="n/a",0,IF(OFFSET($G10,-$E19,$E19)+$E19>AH$5,IFERROR((OFFSET($G9,-$E19,$E19)/(OFFSET($G10,-$E19,$E19))),0),(OFFSET($G9,-$E19,$E19)-SUM($G19:AG19)))) -> 0.6483202049 | AI19: =IF(OFFSET($G10, -$E19, $E19)="n/a",0,IF(OFFSET($G10,-$E19,$E19)+$E19>AI$5,IFERROR((OFFSET($G9,-$E19,$E19)/(OFFSET($G10,-$E19,$E19))),0),(OFFSET($G9,-$E19,$E19)-SUM($G19:AH19)))) -> 0.6483202049 | AJ19: =IF(OFFSET($G10, -$E19, $E19)="n/a",0,IF(OFFSET($G10,-$E19,$E19)+$E19>AJ$5,IFERROR((OFFSET($G9,-$E19,$E19)/(OFFSET($G10,-$E19,$E19))),0),(OFFSET($G9,-$E19,$E19)-SUM($G19:AI19)))) -> 0.6483202049 | AK19: =IF(OFFSET($G10, -$E19, $E19)="n/a",0,IF(OFFSET($G10,-$E19,$E19)+$E19>AK$5,IFERROR((OFFSET($G9,-$E19,$E19)/(OFFSET($G10,-$E19,$E19))),0),(OFFSET($G9,-$E19,$E19)-SUM($G19:AJ19)))) -> 0.6483202049 | AL19: =IF(OFFSET($G10, -$E19, $E19)="n/a",0,IF(OFFSET($G10,-$E19,$E19)+$E19>AL$5,IFERROR((OFFSET($G9,-$E19,$E19)/(OFFSET($G10,-$E19,$E19))),0),(OFFSET($G9,-$E19,$E19)-SUM($G19:AK19)))) -> 0.6483202049 | AM19: =IF(OFFSET($G10, -$E19, $E19)="n/a",0,IF(OFFSET($G10,-$E19,$E19)+$E19>AM$5,IFERROR((OFFSET($G9,-$E19,$E19)/(OFFSET($G10,-$E19,$E19))),0),(OFFSET($G9,-$E19,$E19)-SUM($G19:AL19)))) -> 0.6483202049 | AN19: =IF(OFFSET($G10, -$E19, $E19)="n/a",0,IF(OFFSET($G10,-$E19,$E19)+$E19>AN$5,IFERROR((OFFSET($G9,-$E19,$E19)/(OFFSET($G10,-$E19,$E19))),0),(OFFSET($G9,-$E19,$E19)-SUM($G19:AM19)))) -> 0.6483202049 | AO19: =IF(OFFSET($G10, -$E19, $E19)="n/a",0,IF(OFFSET($G10,-$E19,$E19)+$E19>AO$5,IFERROR((OFFSET($G9,-$E19,$E19)/(OFFSET($G10,-$E19,$E19))),0),(OFFSET($G9,-$E19,$E19)-SUM($G19:AN19)))) -> 0.6483202049 | AP19: =IF(OFFSET($G10, -$E19, $E19)="n/a",0,IF(OFFSET($G10,-$E19,$E19)+$E19>AP$5,IFERROR((OFFSET($G9,-$E19,$E19)/(OFFSET($G10,-$E19,$E19))),0),(OFFSET($G9,-$E19,$E19)-SUM($G19:AO19)))) -> 0.6483202049 | AQ19: =IF(OFFSET($G10, -$E19, $E19)="n/a",0,IF(OFFSET($G10,-$E19,$E19)+$E19>AQ$5,IFERROR((OFFSET($G9,-$E19,$E19)/(OFFSET($G10,-$E19,$E19))),0),(OFFSET($G9,-$E19,$E19)-SUM($G19:AP19)))) -> 0.6483202049 | AR19: =IF(OFFSET($G10, -$E19, $E19)="n/a",0,IF(OFFSET($G10,-$E19,$E19)+$E19>AR$5,IFERROR((OFFSET($G9,-$E19,$E19)/(OFFSET($G10,-$E19,$E19))),0),(OFFSET($G9,-$E19,$E19)-SUM($G19:AQ19)))) -> 0.6483202049 | AS19: =IF(OFFSET($G10, -$E19, $E19)="n/a",0,IF(OFFSET($G10,-$E19,$E19)+$E19>AS$5,IFERROR((OFFSET($G9,-$E19,$E19)/(OFFSET($G10,-$E19,$E19))),0),(OFFSET($G9,-$E19,$E19)-SUM($G19:AR19)))) -> 0.6483202049 | AT19: =IF(OFFSET($G10, -$E19, $E19)="n/a",0,IF(OFFSET($G10,-$E19,$E19)+$E19>AT$5,IFERROR((OFFSET($G9,-$E19,$E19)/(OFFSET($G10,-$E19,$E19))),0),(OFFSET($G9,-$E19,$E19)-SUM($G19:AS19)))) -> 0.6483202049 | AU19: =IF(OFFSET($G10, -$E19, $E19)="n/a",0,IF(OFFSET($G10,-$E19,$E19)+$E19>AU$5,IFERROR((OFFSET($G9,-$E19,$E19)/(OFFSET($G10,-$E19,$E19))),0),(OFFSET($G9,-$E19,$E19)-SUM($G19:AT19)))) -> 0.6483202049 | AV19: =IF(OFFSET($G10, -$E19, $E19)="n/a",0,IF(OFFSET($G10,-$E19,$E19)+$E19>AV$5,IFERROR((OFFSET($G9,-$E19,$E19)/(OFFSET($G10,-$E19,$E19))),0),(OFFSET($G9,-$E19,$E19)-SUM($G19:AU19)))) -> 0.6483202049 | AW19: =IF(OFFSET($G10, -$E19, $E19)="n/a",0,IF(OFFSET($G10,-$E19,$E19)+$E19>AW$5,IFERROR((OFFSET($G9,-$E19,$E19)/(OFFSET($G10,-$E19,$E19))),0),(OFFSET($G9,-$E19,$E19)-SUM($G19:AV19)))) -> 0.6483202049 | AX19: =IF(OFFSET($G10, -$E19, $E19)="n/a",0,IF(OFFSET($G10,-$E19,$E19)+$E19>AX$5,IFERROR((OFFSET($G9,-$E19,$E19)/(OFFSET($G10,-$E19,$E19))),0),(OFFSET($G9,-$E19,$E19)-SUM($G19:AW19)))) -> 0.6483202049 | AY19: =IF(OFFSET($G10, -$E19, $E19)="n/a",0,IF(OFFSET($G10,-$E19,$E19)+$E19>AY$5,IFERROR((OFFSET($G9,-$E19,$E19)/(OFFSET($G10,-$E19,$E19))),0),(OFFSET($G9,-$E19,$E19)-SUM($G19:AX19)))) -> 0.6310359756 | AZ19: =IF(OFFSET($G10, -$E19, $E19)="n/a",0,IF(OFFSET($G10,-$E19,$E19)+$E19>AZ$5,IFERROR((OFFSET($G9,-$E19,$E19)/(OFFSET($G10,-$E19,$E19))),0),(OFFSET($G9,-$E19,$E19)-SUM($G19:AY19)))) -> 0 | BA19: =IF(OFFSET($G10, -$E19, $E19)="n/a",0,IF(OFFSET($G10,-$E19,$E19)+$E19>BA$5,IFERROR((OFFSET($G9,-$E19,$E19)/(OFFSET($G10,-$E19,$E19))),0),(OFFSET($G9,-$E19,$E19)-SUM($G19:AZ19)))) -> 0 | BB19: =IF(OFFSET($G10, -$E19, $E19)="n/a",0,IF(OFFSET($G10,-$E19,$E19)+$E19>BB$5,IFERROR((OFFSET($G9,-$E19,$E19)/(OFFSET($G10,-$E19,$E19))),0),(OFFSET($G9,-$E19,$E19)-SUM($G19:BA19)))) -> 0 | BC19: =IF(OFFSET($G10, -$E19, $E19)="n/a",0,IF(OFFSET($G10,-$E19,$E19)+$E19>BC$5,IFERROR((OFFSET($G9,-$E19,$E19)/(OFFSET($G10,-$E19,$E19))),0),(OFFSET($G9,-$E19,$E19)-SUM($G19:BB19)))) -> 0 | BD19: =IF(OFFSET($G10, -$E19, $E19)="n/a",0,IF(OFFSET($G10,-$E19,$E19)+$E19>BD$5,IFERROR((OFFSET($G9,-$E19,$E19)/(OFFSET($G10,-$E19,$E19))),0),(OFFSET($G9,-$E19,$E19)-SUM($G19:BC19)))) -> 0 | BE19: =IF(OFFSET($G10, -$E19, $E19)="n/a",0,IF(OFFSET($G10,-$E19,$E19)+$E19>BE$5,IFERROR((OFFSET($G9,-$E19,$E19)/(OFFSET($G10,-$E19,$E19))),0),(OFFSET($G9,-$E19,$E19)-SUM($G19:BD19)))) -> 0 | BF19: =IF(OFFSET($G10, -$E19, $E19)="n/a",0,IF(OFFSET($G10,-$E19,$E19)+$E19>BF$5,IFERROR((OFFSET($G9,-$E19,$E19)/(OFFSET($G10,-$E19,$E19))),0),(OFFSET($G9,-$E19,$E19)-SUM($G19:BE19)))) -> 0 | BG19: =IF(OFFSET($G10, -$E19, $E19)="n/a",0,IF(OFFSET($G10,-$E19,$E19)+$E19>BG$5,IFERROR((OFFSET($G9,-$E19,$E19)/(OFFSET($G10,-$E19,$E19))),0),(OFFSET($G9,-$E19,$E19)-SUM($G19:BF19)))) -> 0 | BH19: =IF(OFFSET($G10, -$E19, $E19)="n/a",0,IF(OFFSET($G10,-$E19,$E19)+$E19>BH$5,IFERROR((OFFSET($G9,-$E19,$E19)/(OFFSET($G10,-$E19,$E19))),0),(OFFSET($G9,-$E19,$E19)-SUM($G19:BG19)))) -> 0 | BI19: =IF(OFFSET($G10, -$E19, $E19)="n/a",0,IF(OFFSET($G10,-$E19,$E19)+$E19>BI$5,IFERROR((OFFSET($G9,-$E19,$E19)/(OFFSET($G10,-$E19,$E19))),0),(OFFSET($G9,-$E19,$E19)-SUM($G19:BH19)))) -> 0 | BJ19: =IF(OFFSET($G10, -$E19, $E19)="n/a",0,IF(OFFSET($G10,-$E19,$E19)+$E19>BJ$5,IFERROR((OFFSET($G9,-$E19,$E19)/(OFFSET($G10,-$E19,$E19))),0),(OFFSET($G9,-$E19,$E19)-SUM($G19:BI19)))) -> 0 | BK19: =IF(OFFSET($G10, -$E19, $E19)="n/a",0,IF(OFFSET($G10,-$E19,$E19)+$E19>BK$5,IFERROR((OFFSET($G9,-$E19,$E19)/(OFFSET($G10,-$E19,$E19))),0),(OFFSET($G9,-$E19,$E19)-SUM($G19:BJ19)))) -> 0 | BL19: =IF(OFFSET($G10, -$E19, $E19)="n/a",0,IF(OFFSET($G10,-$E19,$E19)+$E19>BL$5,IFERROR((OFFSET($G9,-$E19,$E19)/(OFFSET($G10,-$E19,$E19))),0),(OFFSET($G9,-$E19,$E19)-SUM($G19:BK19)))) -> 0 | BM19: =IF(OFFSET($G10, -$E19, $E19)="n/a",0,IF(OFFSET($G10,-$E19,$E19)+$E19>BM$5,IFERROR((OFFSET($G9,-$E19,$E19)/(OFFSET($G10,-$E19,$E19))),0),(OFFSET($G9,-$E19,$E19)-SUM($G19:BL19)))) -> 0 | BN19: =IF(OFFSET($G10, -$E19, $E19)="n/a",0,IF(OFFSET($G10,-$E19,$E19)+$E19>BN$5,IFERROR((OFFSET($G9,-$E19,$E19)/(OFFSET($G10,-$E19,$E19))),0),(OFFSET($G9,-$E19,$E19)-SUM($G19:BM19)))) -> 0 | BO19: =IF(OFFSET($G10, -$E19, $E19)="n/a",0,IF(OFFSET($G10,-$E19,$E19)+$E19>BO$5,IFERROR((OFFSET($G9,-$E19,$E19)/(OFFSET($G10,-$E19,$E19))),0),(OFFSET($G9,-$E19,$E19)-SUM($G19:BN19)))) -> 0 | BP19: =IF(OFFSET($G10, -$E19, $E19)="n/a",0,IF(OFFSET($G10,-$E19,$E19)+$E19>BP$5,IFERROR((OFFSET($G9,-$E19,$E19)/(OFFSET($G10,-$E19,$E19))),0),(OFFSET($G9,-$E19,$E19)-SUM($G19:BO19)))) -> 0 | BQ19: =IF(OFFSET($G10, -$E19, $E19)="n/a",0,IF(OFFSET($G10,-$E19,$E19)+$E19>BQ$5,IFERROR((OFFSET($G9,-$E19,$E19)/(OFFSET($G10,-$E19,$E19))),0),(OFFSET($G9,-$E19,$E19)-SUM($G19:BP19)))) -> 0 | BR19: =IF(OFFSET($G10, -$E19, $E19)="n/a",0,IF(OFFSET($G10,-$E19,$E19)+$E19>BR$5,IFERROR((OFFSET($G9,-$E19,$E19)/(OFFSET($G10,-$E19,$E19))),0),(OFFSET($G9,-$E19,$E19)-SUM($G19:BQ19)))) -> 0 | BS19: =IF(OFFSET($G10, -$E19, $E19)="n/a",0,IF(OFFSET($G10,-$E19,$E19)+$E19>BS$5,IFERROR((OFFSET($G9,-$E19,$E19)/(OFFSET($G10,-$E19,$E19))),0),(OFFSET($G9,-$E19,$E19)-SUM($G19:BR19)))) -> 0 | BT19: =IF(OFFSET($G10, -$E19, $E19)="n/a",0,IF(OFFSET($G10,-$E19,$E19)+$E19>BT$5,IFERROR((OFFSET($G9,-$E19,$E19)/(OFFSET($G10,-$E19,$E19))),0),(OFFSET($G9,-$E19,$E19)-SUM($G19:BS19)))) -> 0 | BU19: =IF(OFFSET($G10, -$E19, $E19)="n/a",0,IF(OFFSET($G10,-$E19,$E19)+$E19>BU$5,IFERROR((OFFSET($G9,-$E19,$E19)/(OFFSET($G10,-$E19,$E19))),0),(OFFSET($G9,-$E19,$E19)-SUM($G19:BT19)))) -> 0 | BV19: =IF(OFFSET($G10, -$E19, $E19)="n/a",0,IF(OFFSET($G10,-$E19,$E19)+$E19>BV$5,IFERROR((OFFSET($G9,-$E19,$E19)/(OFFSET($G10,-$E19,$E19))),0),(OFFSET($G9,-$E19,$E19)-SUM($G19:BU19)))) -> 0 | BW19: =IF(OFFSET($G10, -$E19, $E19)="n/a",0,IF(OFFSET($G10,-$E19,$E19)+$E19>BW$5,IFERROR((OFFSET($G9,-$E19,$E19)/(OFFSET($G10,-$E19,$E19))),0),(OFFSET($G9,-$E19,$E19)-SUM($G19:BV19)))) -> 0 | BX19: =IF(OFFSET($G10, -$E19, $E19)="n/a",0,IF(OFFSET($G10,-$E19,$E19)+$E19>BX$5,IFERROR((OFFSET($G9,-$E19,$E19)/(OFFSET($G10,-$E19,$E19))),0),(OFFSET($G9,-$E19,$E19)-SUM($G19:BW19)))) -> 0 | BY19: =IF(OFFSET($G10, -$E19, $E19)="n/a",0,IF(OFFSET($G10,-$E19,$E19)+$E19>BY$5,IFERROR((OFFSET($G9,-$E19,$E19)/(OFFSET($G10,-$E19,$E19))),0),(OFFSET($G9,-$E19,$E19)-SUM($G19:BX19)))) -> 0 | BZ19: =IF(OFFSET($G10, -$E19, $E19)="n/a",0,IF(OFFSET($G10,-$E19,$E19)+$E19>BZ$5,IFERROR((OFFSET($G9,-$E19,$E19)/(OFFSET($G10,-$E19,$E19))),0),(OFFSET($G9,-$E19,$E19)-SUM($G19:BY19)))) -> 0
E20: 3 | F20: ="Depreciation of net capex "&INDEX(RAB_years, E20) -> Depreciation of net capex 2016-17 | K20: =IF(OFFSET($G11, -$E20, $E20)="n/a",0,IF(OFFSET($G11,-$E20,$E20)+$E20>K$5,IFERROR((OFFSET($G10,-$E20,$E20)/(OFFSET($G11,-$E20,$E20))),0),(OFFSET($G10,-$E20,$E20)-SUM($G20:J20)))) -> 0.3221497353 | L20: =IF(OFFSET($G11, -$E20, $E20)="n/a",0,IF(OFFSET($G11,-$E20,$E20)+$E20>L$5,IFERROR((OFFSET($G10,-$E20,$E20)/(OFFSET($G11,-$E20,$E20))),0),(OFFSET($G10,-$E20,$E20)-SUM($G20:K20)))) -> 0.3221497353 | M20: =IF(OFFSET($G11, -$E20, $E20)="n/a",0,IF(OFFSET($G11,-$E20,$E20)+$E20>M$5,IFERROR((OFFSET($G10,-$E20,$E20)/(OFFSET($G11,-$E20,$E20))),0),(OFFSET($G10,-$E20,$E20)-SUM($G20:L20)))) -> 0.3221497353 | N20: =IF(OFFSET($G11, -$E20, $E20)="n/a",0,IF(OFFSET($G11,-$E20,$E20)+$E20>N$5,IFERROR((OFFSET($G10,-$E20,$E20)/(OFFSET($G11,-$E20,$E20))),0),(OFFSET($G10,-$E20,$E20)-SUM($G20:M20)))) -> 0.3221497353 | O20: =IF(OFFSET($G11, -$E20, $E20)="n/a",0,IF(OFFSET($G11,-$E20,$E20)+$E20>O$5,IFERROR((OFFSET($G10,-$E20,$E20)/(OFFSET($G11,-$E20,$E20))),0),(OFFSET($G10,-$E20,$E20)-SUM($G20:N20)))) -> 0.3221497353 | P20: =IF(OFFSET($G11, -$E20, $E20)="n/a",0,IF(OFFSET($G11,-$E20,$E20)+$E20>P$5,IFERROR((OFFSET($G10,-$E20,$E20)/(OFFSET($G11,-$E20,$E20))),0),(OFFSET($G10,-$E20,$E20)-SUM($G20:O20)))) -> 0.3221497353 | Q20: =IF(OFFSET($G11, -$E20, $E20)="n/a",0,IF(OFFSET($G11,-$E20,$E20)+$E20>Q$5,IFERROR((OFFSET($G10,-$E20,$E20)/(OFFSET($G11,-$E20,$E20))),0),(OFFSET($G10,-$E20,$E20)-SUM($G20:P20)))) -> 0.3221497353 | R20: =IF(OFFSET($G11, -$E20, $E20)="n/a",0,IF(OFFSET($G11,-$E20,$E20)+$E20>R$5,IFERROR((OFFSET($G10,-$E20,$E20)/(OFFSET($G11,-$E20,$E20))),0),(OFFSET($G10,-$E20,$E20)-SUM($G20:Q20)))) -> 0.3221497353 | S20: =IF(OFFSET($G11, -$E20, $E20)="n/a",0,IF(OFFSET($G11,-$E20,$E20)+$E20>S$5,IFERROR((OFFSET($G10,-$E20,$E20)/(OFFSET($G11,-$E20,$E20))),0),(OFFSET($G10,-$E20,$E20)-SUM($G20:R20)))) -> 0.3221497353 | T20: =IF(OFFSET($G11, -$E20, $E20)="n/a",0,IF(OFFSET($G11,-$E20,$E20)+$E20>T$5,IFERROR((OFFSET($G10,-$E20,$E20)/(OFFSET($G11,-$E20,$E20))),0),(OFFSET($G10,-$E20,$E20)-SUM($G20:S20)))) -> 0.3221497353 | U20: =IF(OFFSET($G11, -$E20, $E20)="n/a",0,IF(OFFSET($G11,-$E20,$E20)+$E20>U$5,IFERROR((OFFSET($G10,-$E20,$E20)/(OFFSET($G11,-$E20,$E20))),0),(OFFSET($G10,-$E20,$E20)-SUM($G20:T20)))) -> 0.3221497353 | V20: =IF(OFFSET($G11, -$E20, $E20)="n/a",0,IF(OFFSET($G11,-$E20,$E20)+$E20>V$5,IFERROR((OFFSET($G10,-$E20,$E20)/(OFFSET($G11,-$E20,$E20))),0),(OFFSET($G10,-$E20,$E20)-SUM($G20:U20)))) -> 0.3221497353 | W20: =IF(OFFSET($G11, -$E20, $E20)="n/a",0,IF(OFFSET($G11,-$E20,$E20)+$E20>W$5,IFERROR((OFFSET($G10,-$E20,$E20)/(OFFSET($G11,-$E20,$E20))),0),(OFFSET($G10,-$E20,$E20)-SUM($G20:V20)))) -> 0.3221497353 | X20: =IF(OFFSET($G11, -$E20, $E20)="n/a",0,IF(OFFSET($G11,-$E20,$E20)+$E20>X$5,IFERROR((OFFSET($G10,-$E20,$E20)/(OFFSET($G11,-$E20,$E20))),0),(OFFSET($G10,-$E20,$E20)-SUM($G20:W20)))) -> 0.3221497353 | Y20: =IF(OFFSET($G11, -$E20, $E20)="n/a",0,IF(OFFSET($G11,-$E20,$E20)+$E20>Y$5,IFERROR((OFFSET($G10,-$E20,$E20)/(OFFSET($G11,-$E20,$E20))),0),(OFFSET($G10,-$E20,$E20)-SUM($G20:X20)))) -> 0.3221497353 | Z20: =IF(OFFSET($G11, -$E20, $E20)="n/a",0,IF(OFFSET($G11,-$E20,$E20)+$E20>Z$5,IFERROR((OFFSET($G10,-$E20,$E20)/(OFFSET($G11,-$E20,$E20))),0),(OFFSET($G10,-$E20,$E20)-SUM($G20:Y20)))) -> 0.3221497353 | AA20: =IF(OFFSET($G11, -$E20, $E20)="n/a",0,IF(OFFSET($G11,-$E20,$E20)+$E20>AA$5,IFERROR((OFFSET($G10,-$E20,$E20)/(OFFSET($G11,-$E20,$E20))),0),(OFFSET($G10,-$E20,$E20)-SUM($G20:Z20)))) -> 0.3221497353 | AB20: =IF(OFFSET($G11, -$E20, $E20)="n/a",0,IF(OFFSET($G11,-$E20,$E20)+$E20>AB$5,IFERROR((OFFSET($G10,-$E20,$E20)/(OFFSET($G11,-$E20,$E20))),0),(OFFSET($G10,-$E20,$E20)-SUM($G20:AA20)))) -> 0.3221497353 | AC20: =IF(OFFSET($G11, -$E20, $E20)="n/a",0,IF(OFFSET($G11,-$E20,$E20)+$E20>AC$5,IFERROR((OFFSET($G10,-$E20,$E20)/(OFFSET($G11,-$E20,$E20))),0),(OFFSET($G10,-$E20,$E20)-SUM($G20:AB20)))) -> 0.3221497353 | AD20: =IF(OFFSET($G11, -$E20, $E20)="n/a",0,IF(OFFSET($G11,-$E20,$E20)+$E20>AD$5,IFERROR((OFFSET($G10,-$E20,$E20)/(OFFSET($G11,-$E20,$E20))),0),(OFFSET($G10,-$E20,$E20)-SUM($G20:AC20)))) -> 0.3221497353 | AE20: =IF(OFFSET($G11, -$E20, $E20)="n/a",0,IF(OFFSET($G11,-$E20,$E20)+$E20>AE$5,IFERROR((OFFSET($G10,-$E20,$E20)/(OFFSET($G11,-$E20,$E20))),0),(OFFSET($G10,-$E20,$E20)-SUM($G20:AD20)))) -> 0.3221497353 | AF20: =IF(OFFSET($G11, -$E20, $E20)="n/a",0,IF(OFFSET($G11,-$E20,$E20)+$E20>AF$5,IFERROR((OFFSET($G10,-$E20,$E20)/(OFFSET($G11,-$E20,$E20))),0),(OFFSET($G10,-$E20,$E20)-SUM($G20:AE20)))) -> 0.3221497353 | AG20: =IF(OFFSET($G11, -$E20, $E20)="n/a",0,IF(OFFSET($G11,-$E20,$E20)+$E20>AG$5,IFERROR((OFFSET($G10,-$E20,$E20)/(OFFSET($G11,-$E20,$E20))),0),(OFFSET($G10,-$E20,$E20)-SUM($G20:AF20)))) -> 0.3221497353 | AH20: =IF(OFFSET($G11, -$E20, $E20)="n/a",0,IF(OFFSET($G11,-$E20,$E20)+$E20>AH$5,IFERROR((OFFSET($G10,-$E20,$E20)/(OFFSET($G11,-$E20,$E20))),0),(OFFSET($G10,-$E20,$E20)-SUM($G20:AG20)))) -> 0.3221497353 | AI20: =IF(OFFSET($G11, -$E20, $E20)="n/a",0,IF(OFFSET($G11,-$E20,$E20)+$E20>AI$5,IFERROR((OFFSET($G10,-$E20,$E20)/(OFFSET($G11,-$E20,$E20))),0),(OFFSET($G10,-$E20,$E20)-SUM($G20:AH20)))) -> 0.3221497353 | AJ20: =IF(OFFSET($G11, -$E20, $E20)="n/a",0,IF(OFFSET($G11,-$E20,$E20)+$E20>AJ$5,IFERROR((OFFSET($G10,-$E20,$E20)/(OFFSET($G11,-$E20,$E20))),0),(OFFSET($G10,-$E20,$E20)-SUM($G20:AI20)))) -> 0.3221497353 | AK20: =IF(OFFSET($G11, -$E20, $E20)="n/a",0,IF(OFFSET($G11,-$E20,$E20)+$E20>AK$5,IFERROR((OFFSET($G10,-$E20,$E20)/(OFFSET($G11,-$E20,$E20))),0),(OFFSET($G10,-$E20,$E20)-SUM($G20:AJ20)))) -> 0.3221497353 | AL20: =IF(OFFSET($G11, -$E20, $E20)="n/a",0,IF(OFFSET($G11,-$E20,$E20)+$E20>AL$5,IFERROR((OFFSET($G10,-$E20,$E20)/(OFFSET($G11,-$E20,$E20))),0),(OFFSET($G10,-$E20,$E20)-SUM($G20:AK20)))) -> 0.3221497353 | AM20: =IF(OFFSET($G11, -$E20, $E20)="n/a",0,IF(OFFSET($G11,-$E20,$E20)+$E20>AM$5,IFERROR((OFFSET($G10,-$E20,$E20)/(OFFSET($G11,-$E20,$E20))),0),(OFFSET($G10,-$E20,$E20)-SUM($G20:AL20)))) -> 0.3221497353 | AN20: =IF(OFFSET($G11, -$E20, $E20)="n/a",0,IF(OFFSET($G11,-$E20,$E20)+$E20>AN$5,IFERROR((OFFSET($G10,-$E20,$E20)/(OFFSET($G11,-$E20,$E20))),0),(OFFSET($G10,-$E20,$E20)-SUM($G20:AM20)))) -> 0.3221497353 | AO20: =IF(OFFSET($G11, -$E20, $E20)="n/a",0,IF(OFFSET($G11,-$E20,$E20)+$E20>AO$5,IFERROR((OFFSET($G10,-$E20,$E20)/(OFFSET($G11,-$E20,$E20))),0),(OFFSET($G10,-$E20,$E20)-SUM($G20:AN20)))) -> 0.3221497353 | AP20: =IF(OFFSET($G11, -$E20, $E20)="n/a",0,IF(OFFSET($G11,-$E20,$E20)+$E20>AP$5,IFERROR((OFFSET($G10,-$E20,$E20)/(OFFSET($G11,-$E20,$E20))),0),(OFFSET($G10,-$E20,$E20)-SUM($G20:AO20)))) -> 0.3221497353 | AQ20: =IF(OFFSET($G11, -$E20, $E20)="n/a",0,IF(OFFSET($G11,-$E20,$E20)+$E20>AQ$5,IFERROR((OFFSET($G10,-$E20,$E20)/(OFFSET($G11,-$E20,$E20))),0),(OFFSET($G10,-$E20,$E20)-SUM($G20:AP20)))) -> 0.3221497353 | AR20: =IF(OFFSET($G11, -$E20, $E20)="n/a",0,IF(OFFSET($G11,-$E20,$E20)+$E20>AR$5,IFERROR((OFFSET($G10,-$E20,$E20)/(OFFSET($G11,-$E20,$E20))),0),(OFFSET($G10,-$E20,$E20)-SUM($G20:AQ20)))) -> 0.3221497353 | AS20: =IF(OFFSET($G11, -$E20, $E20)="n/a",0,IF(OFFSET($G11,-$E20,$E20)+$E20>AS$5,IFERROR((OFFSET($G10,-$E20,$E20)/(OFFSET($G11,-$E20,$E20))),0),(OFFSET($G10,-$E20,$E20)-SUM($G20:AR20)))) -> 0.3221497353 | AT20: =IF(OFFSET($G11, -$E20, $E20)="n/a",0,IF(OFFSET($G11,-$E20,$E20)+$E20>AT$5,IFERROR((OFFSET($G10,-$E20,$E20)/(OFFSET($G11,-$E20,$E20))),0),(OFFSET($G10,-$E20,$E20)-SUM($G20:AS20)))) -> 0.3221497353 | AU20: =IF(OFFSET($G11, -$E20, $E20)="n/a",0,IF(OFFSET($G11,-$E20,$E20)+$E20>AU$5,IFERROR((OFFSET($G10,-$E20,$E20)/(OFFSET($G11,-$E20,$E20))),0),(OFFSET($G10,-$E20,$E20)-SUM($G20:AT20)))) -> 0.3221497353 | AV20: =IF(OFFSET($G11, -$E20, $E20)="n/a",0,IF(OFFSET($G11,-$E20,$E20)+$E20>AV$5,IFERROR((OFFSET($G10,-$E20,$E20)/(OFFSET($G11,-$E20,$E20))),0),(OFFSET($G10,-$E20,$E20)-SUM($G20:AU20)))) -> 0.3221497353 | AW20: =IF(OFFSET($G11, -$E20, $E20)="n/a",0,IF(OFFSET($G11,-$E20,$E20)+$E20>AW$5,IFERROR((OFFSET($G10,-$E20,$E20)/(OFFSET($G11,-$E20,$E20))),0),(OFFSET($G10,-$E20,$E20)-SUM($G20:AV20)))) -> 0.3221497353 | AX20: =IF(OFFSET($G11, -$E20, $E20)="n/a",0,IF(OFFSET($G11,-$E20,$E20)+$E20>AX$5,IFERROR((OFFSET($G10,-$E20,$E20)/(OFFSET($G11,-$E20,$E20))),0),(OFFSET($G10,-$E20,$E20)-SUM($G20:AW20)))) -> 0.3221497353 | AY20: =IF(OFFSET($G11, -$E20, $E20)="n/a",0,IF(OFFSET($G11,-$E20,$E20)+$E20>AY$5,IFERROR((OFFSET($G10,-$E20,$E20)/(OFFSET($G11,-$E20,$E20))),0),(OFFSET($G10,-$E20,$E20)-SUM($G20:AX20)))) -> 0.3221497353 | AZ20: =IF(OFFSET($G11, -$E20, $E20)="n/a",0,IF(OFFSET($G11,-$E20,$E20)+$E20>AZ$5,IFERROR((OFFSET($G10,-$E20,$E20)/(OFFSET($G11,-$E20,$E20))),0),(OFFSET($G10,-$E20,$E20)-SUM($G20:AY20)))) -> 0.3135612171 | BA20: =IF(OFFSET($G11, -$E20, $E20)="n/a",0,IF(OFFSET($G11,-$E20,$E20)+$E20>BA$5,IFERROR((OFFSET($G10,-$E20,$E20)/(OFFSET($G11,-$E20,$E20))),0),(OFFSET($G10,-$E20,$E20)-SUM($G20:AZ20)))) -> 0 | BB20: =IF(OFFSET($G11, -$E20, $E20)="n/a",0,IF(OFFSET($G11,-$E20,$E20)+$E20>BB$5,IFERROR((OFFSET($G10,-$E20,$E20)/(OFFSET($G11,-$E20,$E20))),0),(OFFSET($G10,-$E20,$E20)-SUM($G20:BA20)))) -> 0 | BC20: =IF(OFFSET($G11, -$E20, $E20)="n/a",0,IF(OFFSET($G11,-$E20,$E20)+$E20>BC$5,IFERROR((OFFSET($G10,-$E20,$E20)/(OFFSET($G11,-$E20,$E20))),0),(OFFSET($G10,-$E20,$E20)-SUM($G20:BB20)))) -> 0 | BD20: =IF(OFFSET($G11, -$E20, $E20)="n/a",0,IF(OFFSET($G11,-$E20,$E20)+$E20>BD$5,IFERROR((OFFSET($G10,-$E20,$E20)/(OFFSET($G11,-$E20,$E20))),0),(OFFSET($G10,-$E20,$E20)-SUM($G20:BC20)))) -> 0 | BE20: =IF(OFFSET($G11, -$E20, $E20)="n/a",0,IF(OFFSET($G11,-$E20,$E20)+$E20>BE$5,IFERROR((OFFSET($G10,-$E20,$E20)/(OFFSET($G11,-$E20,$E20))),0),(OFFSET($G10,-$E20,$E20)-SUM($G20:BD20)))) -> 0 | BF20: =IF(OFFSET($G11, -$E20, $E20)="n/a",0,IF(OFFSET($G11,-$E20,$E20)+$E20>BF$5,IFERROR((OFFSET($G10,-$E20,$E20)/(OFFSET($G11,-$E20,$E20))),0),(OFFSET($G10,-$E20,$E20)-SUM($G20:BE20)))) -> 0 | BG20: =IF(OFFSET($G11, -$E20, $E20)="n/a",0,IF(OFFSET($G11,-$E20,$E20)+$E20>BG$5,IFERROR((OFFSET($G10,-$E20,$E20)/(OFFSET($G11,-$E20,$E20))),0),(OFFSET($G10,-$E20,$E20)-SUM($G20:BF20)))) -> 0 | BH20: =IF(OFFSET($G11, -$E20, $E20)="n/a",0,IF(OFFSET($G11,-$E20,$E20)+$E20>BH$5,IFERROR((OFFSET($G10,-$E20,$E20)/(OFFSET($G11,-$E20,$E20))),0),(OFFSET($G10,-$E20,$E20)-SUM($G20:BG20)))) -> 0 | BI20: =IF(OFFSET($G11, -$E20, $E20)="n/a",0,IF(OFFSET($G11,-$E20,$E20)+$E20>BI$5,IFERROR((OFFSET($G10,-$E20,$E20)/(OFFSET($G11,-$E20,$E20))),0),(OFFSET($G10,-$E20,$E20)-SUM($G20:BH20)))) -> 0 | BJ20: =IF(OFFSET($G11, -$E20, $E20)="n/a",0,IF(OFFSET($G11,-$E20,$E20)+$E20>BJ$5,IFERROR((OFFSET($G10,-$E20,$E20)/(OFFSET($G11,-$E20,$E20))),0),(OFFSET($G10,-$E20,$E20)-SUM($G20:BI20)))) -> 0 | BK20: =IF(OFFSET($G11, -$E20, $E20)="n/a",0,IF(OFFSET($G11,-$E20,$E20)+$E20>BK$5,IFERROR((OFFSET($G10,-$E20,$E20)/(OFFSET($G11,-$E20,$E20))),0),(OFFSET($G10,-$E20,$E20)-SUM($G20:BJ20)))) -> 0 | BL20: =IF(OFFSET($G11, -$E20, $E20)="n/a",0,IF(OFFSET($G11,-$E20,$E20)+$E20>BL$5,IFERROR((OFFSET($G10,-$E20,$E20)/(OFFSET($G11,-$E20,$E20))),0),(OFFSET($G10,-$E20,$E20)-SUM($G20:BK20)))) -> 0 | BM20: =IF(OFFSET($G11, -$E20, $E20)="n/a",0,IF(OFFSET($G11,-$E20,$E20)+$E20>BM$5,IFERROR((OFFSET($G10,-$E20,$E20)/(OFFSET($G11,-$E20,$E20))),0),(OFFSET($G10,-$E20,$E20)-SUM($G20:BL20)))) -> 0 | BN20: =IF(OFFSET($G11, -$E20, $E20)="n/a",0,IF(OFFSET($G11,-$E20,$E20)+$E20>BN$5,IFERROR((OFFSET($G10,-$E20,$E20)/(OFFSET($G11,-$E20,$E20))),0),(OFFSET($G10,-$E20,$E20)-SUM($G20:BM20)))) -> 0 | BO20: =IF(OFFSET($G11, -$E20, $E20)="n/a",0,IF(OFFSET($G11,-$E20,$E20)+$E20>BO$5,IFERROR((OFFSET($G10,-$E20,$E20)/(OFFSET($G11,-$E20,$E20))),0),(OFFSET($G10,-$E20,$E20)-SUM($G20:BN20)))) -> 0 | BP20: =IF(OFFSET($G11, -$E20, $E20)="n/a",0,IF(OFFSET($G11,-$E20,$E20)+$E20>BP$5,IFERROR((OFFSET($G10,-$E20,$E20)/(OFFSET($G11,-$E20,$E20))),0),(OFFSET($G10,-$E20,$E20)-SUM($G20:BO20)))) -> 0 | BQ20: =IF(OFFSET($G11, -$E20, $E20)="n/a",0,IF(OFFSET($G11,-$E20,$E20)+$E20>BQ$5,IFERROR((OFFSET($G10,-$E20,$E20)/(OFFSET($G11,-$E20,$E20))),0),(OFFSET($G10,-$E20,$E20)-SUM($G20:BP20)))) -> 0 | BR20: =IF(OFFSET($G11, -$E20, $E20)="n/a",0,IF(OFFSET($G11,-$E20,$E20)+$E20>BR$5,IFERROR((OFFSET($G10,-$E20,$E20)/(OFFSET($G11,-$E20,$E20))),0),(OFFSET($G10,-$E20,$E20)-SUM($G20:BQ20)))) -> 0 | BS20: =IF(OFFSET($G11, -$E20, $E20)="n/a",0,IF(OFFSET($G11,-$E20,$E20)+$E20>BS$5,IFERROR((OFFSET($G10,-$E20,$E20)/(OFFSET($G11,-$E20,$E20))),0),(OFFSET($G10,-$E20,$E20)-SUM($G20:BR20)))) -> 0 | BT20: =IF(OFFSET($G11, -$E20, $E20)="n/a",0,IF(OFFSET($G11,-$E20,$E20)+$E20>BT$5,IFERROR((OFFSET($G10,-$E20,$E20)/(OFFSET($G11,-$E20,$E20))),0),(OFFSET($G10,-$E20,$E20)-SUM($G20:BS20)))) -> 0 | BU20: =IF(OFFSET($G11, -$E20, $E20)="n/a",0,IF(OFFSET($G11,-$E20,$E20)+$E20>BU$5,IFERROR((OFFSET($G10,-$E20,$E20)/(OFFSET($G11,-$E20,$E20))),0),(OFFSET($G10,-$E20,$E20)-SUM($G20:BT20)))) -> 0 | BV20: =IF(OFFSET($G11, -$E20, $E20)="n/a",0,IF(OFFSET($G11,-$E20,$E20)+$E20>BV$5,IFERROR((OFFSET($G10,-$E20,$E20)/(OFFSET($G11,-$E20,$E20))),0),(OFFSET($G10,-$E20,$E20)-SUM($G20:BU20)))) -> 0 | BW20: =IF(OFFSET($G11, -$E20, $E20)="n/a",0,IF(OFFSET($G11,-$E20,$E20)+$E20>BW$5,IFERROR((OFFSET($G10,-$E20,$E20)/(OFFSET($G11,-$E20,$E20))),0),(OFFSET($G10,-$E20,$E20)-SUM($G20:BV20)))) -> 0 | BX20: =IF(OFFSET($G11, -$E20, $E20)="n/a",0,IF(OFFSET($G11,-$E20,$E20)+$E20>BX$5,IFERROR((OFFSET($G10,-$E20,$E20)/(OFFSET($G11,-$E20,$E20))),0),(OFFSET($G10,-$E20,$E20)-SUM($G20:BW20)))) -> 0 | BY20: =IF(OFFSET($G11, -$E20, $E20)="n/a",0,IF(OFFSET($G11,-$E20,$E20)+$E20>BY$5,IFERROR((OFFSET($G10,-$E20,$E20)/(OFFSET($G11,-$E20,$E20))),0),(OFFSET($G10,-$E20,$E20)-SUM($G20:BX20)))) -> 0 | BZ20: =IF(OFFSET($G11, -$E20, $E20)="n/a",0,IF(OFFSET($G11,-$E20,$E20)+$E20>BZ$5,IFERROR((OFFSET($G10,-$E20,$E20)/(OFFSET($G11,-$E20,$E20))),0),(OFFSET($G10,-$E20,$E20)-SUM($G20:BY20)))) -> 0
E21: 4 | F21: ="Depreciation of net capex "&INDEX(RAB_years, E21) -> Depreciation of net capex 2017-18 | L21: =IF(OFFSET($G12, -$E21, $E21)="n/a",0,IF(OFFSET($G12,-$E21,$E21)+$E21>L$5,IFERROR((OFFSET($G11,-$E21,$E21)/(OFFSET($G12,-$E21,$E21))),0),(OFFSET($G11,-$E21,$E21)-SUM($G21:K21)))) -> 0.1537891536 | M21: =IF(OFFSET($G12, -$E21, $E21)="n/a",0,IF(OFFSET($G12,-$E21,$E21)+$E21>M$5,IFERROR((OFFSET($G11,-$E21,$E21)/(OFFSET($G12,-$E21,$E21))),0),(OFFSET($G11,-$E21,$E21)-SUM($G21:L21)))) -> 0.1537891536 | N21: =IF(OFFSET($G12, -$E21, $E21)="n/a",0,IF(OFFSET($G12,-$E21,$E21)+$E21>N$5,IFERROR((OFFSET($G11,-$E21,$E21)/(OFFSET($G12,-$E21,$E21))),0),(OFFSET($G11,-$E21,$E21)-SUM($G21:M21)))) -> 0.1537891536 | O21: =IF(OFFSET($G12, -$E21, $E21)="n/a",0,IF(OFFSET($G12,-$E21,$E21)+$E21>O$5,IFERROR((OFFSET($G11,-$E21,$E21)/(OFFSET($G12,-$E21,$E21))),0),(OFFSET($G11,-$E21,$E21)-SUM($G21:N21)))) -> 0.1537891536 | P21: =IF(OFFSET($G12, -$E21, $E21)="n/a",0,IF(OFFSET($G12,-$E21,$E21)+$E21>P$5,IFERROR((OFFSET($G11,-$E21,$E21)/(OFFSET($G12,-$E21,$E21))),0),(OFFSET($G11,-$E21,$E21)-SUM($G21:O21)))) -> 0.1537891536 | Q21: =IF(OFFSET($G12, -$E21, $E21)="n/a",0,IF(OFFSET($G12,-$E21,$E21)+$E21>Q$5,IFERROR((OFFSET($G11,-$E21,$E21)/(OFFSET($G12,-$E21,$E21))),0),(OFFSET($G11,-$E21,$E21)-SUM($G21:P21)))) -> 0.1537891536 | R21: =IF(OFFSET($G12, -$E21, $E21)="n/a",0,IF(OFFSET($G12,-$E21,$E21)+$E21>R$5,IFERROR((OFFSET($G11,-$E21,$E21)/(OFFSET($G12,-$E21,$E21))),0),(OFFSET($G11,-$E21,$E21)-SUM($G21:Q21)))) -> 0.1537891536 | S21: =IF(OFFSET($G12, -$E21, $E21)="n/a",0,IF(OFFSET($G12,-$E21,$E21)+$E21>S$5,IFERROR((OFFSET($G11,-$E21,$E21)/(OFFSET($G12,-$E21,$E21))),0),(OFFSET($G11,-$E21,$E21)-SUM($G21:R21)))) -> 0.1537891536 | T21: =IF(OFFSET($G12, -$E21, $E21)="n/a",0,IF(OFFSET($G12,-$E21,$E21)+$E21>T$5,IFERROR((OFFSET($G11,-$E21,$E21)/(OFFSET($G12,-$E21,$E21))),0),(OFFSET($G11,-$E21,$E21)-SUM($G21:S21)))) -> 0.1537891536 | U21: =IF(OFFSET($G12, -$E21, $E21)="n/a",0,IF(OFFSET($G12,-$E21,$E21)+$E21>U$5,IFERROR((OFFSET($G11,-$E21,$E21)/(OFFSET($G12,-$E21,$E21))),0),(OFFSET($G11,-$E21,$E21)-SUM($G21:T21)))) -> 0.1537891536 | V21: =IF(OFFSET($G12, -$E21, $E21)="n/a",0,IF(OFFSET($G12,-$E21,$E21)+$E21>V$5,IFERROR((OFFSET($G11,-$E21,$E21)/(OFFSET($G12,-$E21,$E21))),0),(OFFSET($G11,-$E21,$E21)-SUM($G21:U21)))) -> 0.1537891536 | W21: =IF(OFFSET($G12, -$E21, $E21)="n/a",0,IF(OFFSET($G12,-$E21,$E21)+$E21>W$5,IFERROR((OFFSET($G11,-$E21,$E21)/(OFFSET($G12,-$E21,$E21))),0),(OFFSET($G11,-$E21,$E21)-SUM($G21:V21)))) -> 0.1537891536 | X21: =IF(OFFSET($G12, -$E21, $E21)="n/a",0,IF(OFFSET($G12,-$E21,$E21)+$E21>X$5,IFERROR((OFFSET($G11,-$E21,$E21)/(OFFSET($G12,-$E21,$E21))),0),(OFFSET($G11,-$E21,$E21)-SUM($G21:W21)))) -> 0.1537891536 | Y21: =IF(OFFSET($G12, -$E21, $E21)="n/a",0,IF(OFFSET($G12,-$E21,$E21)+$E21>Y$5,IFERROR((OFFSET($G11,-$E21,$E21)/(OFFSET($G12,-$E21,$E21))),0),(OFFSET($G11,-$E21,$E21)-SUM($G21:X21)))) -> 0.1537891536 | Z21: =IF(OFFSET($G12, -$E21, $E21)="n/a",0,IF(OFFSET($G12,-$E21,$E21)+$E21>Z$5,IFERROR((OFFSET($G11,-$E21,$E21)/(OFFSET($G12,-$E21,$E21))),0),(OFFSET($G11,-$E21,$E21)-SUM($G21:Y21)))) -> 0.1537891536 | AA21: =IF(OFFSET($G12, -$E21, $E21)="n/a",0,IF(OFFSET($G12,-$E21,$E21)+$E21>AA$5,IFERROR((OFFSET($G11,-$E21,$E21)/(OFFSET($G12,-$E21,$E21))),0),(OFFSET($G11,-$E21,$E21)-SUM($G21:Z21)))) -> 0.1537891536 | AB21: =IF(OFFSET($G12, -$E21, $E21)="n/a",0,IF(OFFSET($G12,-$E21,$E21)+$E21>AB$5,IFERROR((OFFSET($G11,-$E21,$E21)/(OFFSET($G12,-$E21,$E21))),0),(OFFSET($G11,-$E21,$E21)-SUM($G21:AA21)))) -> 0.1537891536 | AC21: =IF(OFFSET($G12, -$E21, $E21)="n/a",0,IF(OFFSET($G12,-$E21,$E21)+$E21>AC$5,IFERROR((OFFSET($G11,-$E21,$E21)/(OFFSET($G12,-$E21,$E21))),0),(OFFSET($G11,-$E21,$E21)-SUM($G21:AB21)))) -> 0.1537891536 | AD21: =IF(OFFSET($G12, -$E21, $E21)="n/a",0,IF(OFFSET($G12,-$E21,$E21)+$E21>AD$5,IFERROR((OFFSET($G11,-$E21,$E21)/(OFFSET($G12,-$E21,$E21))),0),(OFFSET($G11,-$E21,$E21)-SUM($G21:AC21)))) -> 0.1537891536 | AE21: =IF(OFFSET($G12, -$E21, $E21)="n/a",0,IF(OFFSET($G12,-$E21,$E21)+$E21>AE$5,IFERROR((OFFSET($G11,-$E21,$E21)/(OFFSET($G12,-$E21,$E21))),0),(OFFSET($G11,-$E21,$E21)-SUM($G21:AD21)))) -> 0.1537891536 | AF21: =IF(OFFSET($G12, -$E21, $E21)="n/a",0,IF(OFFSET($G12,-$E21,$E21)+$E21>AF$5,IFERROR((OFFSET($G11,-$E21,$E21)/(OFFSET($G12,-$E21,$E21))),0),(OFFSET($G11,-$E21,$E21)-SUM($G21:AE21)))) -> 0.1537891536 | AG21: =IF(OFFSET($G12, -$E21, $E21)="n/a",0,IF(OFFSET($G12,-$E21,$E21)+$E21>AG$5,IFERROR((OFFSET($G11,-$E21,$E21)/(OFFSET($G12,-$E21,$E21))),0),(OFFSET($G11,-$E21,$E21)-SUM($G21:AF21)))) -> 0.1537891536 | AH21: =IF(OFFSET($G12, -$E21, $E21)="n/a",0,IF(OFFSET($G12,-$E21,$E21)+$E21>AH$5,IFERROR((OFFSET($G11,-$E21,$E21)/(OFFSET($G12,-$E21,$E21))),0),(OFFSET($G11,-$E21,$E21)-SUM($G21:AG21)))) -> 0.1537891536 | AI21: =IF(OFFSET($G12, -$E21, $E21)="n/a",0,IF(OFFSET($G12,-$E21,$E21)+$E21>AI$5,IFERROR((OFFSET($G11,-$E21,$E21)/(OFFSET($G12,-$E21,$E21))),0),(OFFSET($G11,-$E21,$E21)-SUM($G21:AH21)))) -> 0.1537891536 | AJ21: =IF(OFFSET($G12, -$E21, $E21)="n/a",0,IF(OFFSET($G12,-$E21,$E21)+$E21>AJ$5,IFERROR((OFFSET($G11,-$E21,$E21)/(OFFSET($G12,-$E21,$E21))),0),(OFFSET($G11,-$E21,$E21)-SUM($G21:AI21)))) -> 0.1537891536 | AK21: =IF(OFFSET($G12, -$E21, $E21)="n/a",0,IF(OFFSET($G12,-$E21,$E21)+$E21>AK$5,IFERROR((OFFSET($G11,-$E21,$E21)/(OFFSET($G12,-$E21,$E21))),0),(OFFSET($G11,-$E21,$E21)-SUM($G21:AJ21)))) -> 0.1537891536 | AL21: =IF(OFFSET($G12, -$E21, $E21)="n/a",0,IF(OFFSET($G12,-$E21,$E21)+$E21>AL$5,IFERROR((OFFSET($G11,-$E21,$E21)/(OFFSET($G12,-$E21,$E21))),0),(OFFSET($G11,-$E21,$E21)-SUM($G21:AK21)))) -> 0.1537891536 | AM21: =IF(OFFSET($G12, -$E21, $E21)="n/a",0,IF(OFFSET($G12,-$E21,$E21)+$E21>AM$5,IFERROR((OFFSET($G11,-$E21,$E21)/(OFFSET($G12,-$E21,$E21))),0),(OFFSET($G11,-$E21,$E21)-SUM($G21:AL21)))) -> 0.1537891536 | AN21: =IF(OFFSET($G12, -$E21, $E21)="n/a",0,IF(OFFSET($G12,-$E21,$E21)+$E21>AN$5,IFERROR((OFFSET($G11,-$E21,$E21)/(OFFSET($G12,-$E21,$E21))),0),(OFFSET($G11,-$E21,$E21)-SUM($G21:AM21)))) -> 0.1537891536 | AO21: =IF(OFFSET($G12, -$E21, $E21)="n/a",0,IF(OFFSET($G12,-$E21,$E21)+$E21>AO$5,IFERROR((OFFSET($G11,-$E21,$E21)/(OFFSET($G12,-$E21,$E21))),0),(OFFSET($G11,-$E21,$E21)-SUM($G21:AN21)))) -> 0.1537891536 | AP21: =IF(OFFSET($G12, -$E21, $E21)="n/a",0,IF(OFFSET($G12,-$E21,$E21)+$E21>AP$5,IFERROR((OFFSET($G11,-$E21,$E21)/(OFFSET($G12,-$E21,$E21))),0),(OFFSET($G11,-$E21,$E21)-SUM($G21:AO21)))) -> 0.1537891536 | AQ21: =IF(OFFSET($G12, -$E21, $E21)="n/a",0,IF(OFFSET($G12,-$E21,$E21)+$E21>AQ$5,IFERROR((OFFSET($G11,-$E21,$E21)/(OFFSET($G12,-$E21,$E21))),0),(OFFSET($G11,-$E21,$E21)-SUM($G21:AP21)))) -> 0.1537891536 | AR21: =IF(OFFSET($G12, -$E21, $E21)="n/a",0,IF(OFFSET($G12,-$E21,$E21)+$E21>AR$5,IFERROR((OFFSET($G11,-$E21,$E21)/(OFFSET($G12,-$E21,$E21))),0),(OFFSET($G11,-$E21,$E21)-SUM($G21:AQ21)))) -> 0.1537891536 | AS21: =IF(OFFSET($G12, -$E21, $E21)="n/a",0,IF(OFFSET($G12,-$E21,$E21)+$E21>AS$5,IFERROR((OFFSET($G11,-$E21,$E21)/(OFFSET($G12,-$E21,$E21))),0),(OFFSET($G11,-$E21,$E21)-SUM($G21:AR21)))) -> 0.1537891536 | AT21: =IF(OFFSET($G12, -$E21, $E21)="n/a",0,IF(OFFSET($G12,-$E21,$E21)+$E21>AT$5,IFERROR((OFFSET($G11,-$E21,$E21)/(OFFSET($G12,-$E21,$E21))),0),(OFFSET($G11,-$E21,$E21)-SUM($G21:AS21)))) -> 0.1537891536 | AU21: =IF(OFFSET($G12, -$E21, $E21)="n/a",0,IF(OFFSET($G12,-$E21,$E21)+$E21>AU$5,IFERROR((OFFSET($G11,-$E21,$E21)/(OFFSET($G12,-$E21,$E21))),0),(OFFSET($G11,-$E21,$E21)-SUM($G21:AT21)))) -> 0.1537891536 | AV21: =IF(OFFSET($G12, -$E21, $E21)="n/a",0,IF(OFFSET($G12,-$E21,$E21)+$E21>AV$5,IFERROR((OFFSET($G11,-$E21,$E21)/(OFFSET($G12,-$E21,$E21))),0),(OFFSET($G11,-$E21,$E21)-SUM($G21:AU21)))) -> 0.1537891536 | AW21: =IF(OFFSET($G12, -$E21, $E21)="n/a",0,IF(OFFSET($G12,-$E21,$E21)+$E21>AW$5,IFERROR((OFFSET($G11,-$E21,$E21)/(OFFSET($G12,-$E21,$E21))),0),(OFFSET($G11,-$E21,$E21)-SUM($G21:AV21)))) -> 0.1537891536 | AX21: =IF(OFFSET($G12, -$E21, $E21)="n/a",0,IF(OFFSET($G12,-$E21,$E21)+$E21>AX$5,IFERROR((OFFSET($G11,-$E21,$E21)/(OFFSET($G12,-$E21,$E21))),0),(OFFSET($G11,-$E21,$E21)-SUM($G21:AW21)))) -> 0.1537891536 | AY21: =IF(OFFSET($G12, -$E21, $E21)="n/a",0,IF(OFFSET($G12,-$E21,$E21)+$E21>AY$5,IFERROR((OFFSET($G11,-$E21,$E21)/(OFFSET($G12,-$E21,$E21))),0),(OFFSET($G11,-$E21,$E21)-SUM($G21:AX21)))) -> 0.1537891536 | AZ21: =IF(OFFSET($G12, -$E21, $E21)="n/a",0,IF(OFFSET($G12,-$E21,$E21)+$E21>AZ$5,IFERROR((OFFSET($G11,-$E21,$E21)/(OFFSET($G12,-$E21,$E21))),0),(OFFSET($G11,-$E21,$E21)-SUM($G21:AY21)))) -> 0.1537891536 | BA21: =IF(OFFSET($G12, -$E21, $E21)="n/a",0,IF(OFFSET($G12,-$E21,$E21)+$E21>BA$5,IFERROR((OFFSET($G11,-$E21,$E21)/(OFFSET($G12,-$E21,$E21))),0),(OFFSET($G11,-$E21,$E21)-SUM($G21:AZ21)))) -> 0.1496891318 | BB21: =IF(OFFSET($G12, -$E21, $E21)="n/a",0,IF(OFFSET($G12,-$E21,$E21)+$E21>BB$5,IFERROR((OFFSET($G11,-$E21,$E21)/(OFFSET($G12,-$E21,$E21))),0),(OFFSET($G11,-$E21,$E21)-SUM($G21:BA21)))) -> 0 | BC21: =IF(OFFSET($G12, -$E21, $E21)="n/a",0,IF(OFFSET($G12,-$E21,$E21)+$E21>BC$5,IFERROR((OFFSET($G11,-$E21,$E21)/(OFFSET($G12,-$E21,$E21))),0),(OFFSET($G11,-$E21,$E21)-SUM($G21:BB21)))) -> 0 | BD21: =IF(OFFSET($G12, -$E21, $E21)="n/a",0,IF(OFFSET($G12,-$E21,$E21)+$E21>BD$5,IFERROR((OFFSET($G11,-$E21,$E21)/(OFFSET($G12,-$E21,$E21))),0),(OFFSET($G11,-$E21,$E21)-SUM($G21:BC21)))) -> 0 | BE21: =IF(OFFSET($G12, -$E21, $E21)="n/a",0,IF(OFFSET($G12,-$E21,$E21)+$E21>BE$5,IFERROR((OFFSET($G11,-$E21,$E21)/(OFFSET($G12,-$E21,$E21))),0),(OFFSET($G11,-$E21,$E21)-SUM($G21:BD21)))) -> 0 | BF21: =IF(OFFSET($G12, -$E21, $E21)="n/a",0,IF(OFFSET($G12,-$E21,$E21)+$E21>BF$5,IFERROR((OFFSET($G11,-$E21,$E21)/(OFFSET($G12,-$E21,$E21))),0),(OFFSET($G11,-$E21,$E21)-SUM($G21:BE21)))) -> 0 | BG21: =IF(OFFSET($G12, -$E21, $E21)="n/a",0,IF(OFFSET($G12,-$E21,$E21)+$E21>BG$5,IFERROR((OFFSET($G11,-$E21,$E21)/(OFFSET($G12,-$E21,$E21))),0),(OFFSET($G11,-$E21,$E21)-SUM($G21:BF21)))) -> 0 | BH21: =IF(OFFSET($G12, -$E21, $E21)="n/a",0,IF(OFFSET($G12,-$E21,$E21)+$E21>BH$5,IFERROR((OFFSET($G11,-$E21,$E21)/(OFFSET($G12,-$E21,$E21))),0),(OFFSET($G11,-$E21,$E21)-SUM($G21:BG21)))) -> 0 | BI21: =IF(OFFSET($G12, -$E21, $E21)="n/a",0,IF(OFFSET($G12,-$E21,$E21)+$E21>BI$5,IFERROR((OFFSET($G11,-$E21,$E21)/(OFFSET($G12,-$E21,$E21))),0),(OFFSET($G11,-$E21,$E21)-SUM($G21:BH21)))) -> 0 | BJ21: =IF(OFFSET($G12, -$E21, $E21)="n/a",0,IF(OFFSET($G12,-$E21,$E21)+$E21>BJ$5,IFERROR((OFFSET($G11,-$E21,$E21)/(OFFSET($G12,-$E21,$E21))),0),(OFFSET($G11,-$E21,$E21)-SUM($G21:BI21)))) -> 0 | BK21: =IF(OFFSET($G12, -$E21, $E21)="n/a",0,IF(OFFSET($G12,-$E21,$E21)+$E21>BK$5,IFERROR((OFFSET($G11,-$E21,$E21)/(OFFSET($G12,-$E21,$E21))),0),(OFFSET($G11,-$E21,$E21)-SUM($G21:BJ21)))) -> 0 | BL21: =IF(OFFSET($G12, -$E21, $E21)="n/a",0,IF(OFFSET($G12,-$E21,$E21)+$E21>BL$5,IFERROR((OFFSET($G11,-$E21,$E21)/(OFFSET($G12,-$E21,$E21))),0),(OFFSET($G11,-$E21,$E21)-SUM($G21:BK21)))) -> 0 | BM21: =IF(OFFSET($G12, -$E21, $E21)="n/a",0,IF(OFFSET($G12,-$E21,$E21)+$E21>BM$5,IFERROR((OFFSET($G11,-$E21,$E21)/(OFFSET($G12,-$E21,$E21))),0),(OFFSET($G11,-$E21,$E21)-SUM($G21:BL21)))) -> 0 | BN21: =IF(OFFSET($G12, -$E21, $E21)="n/a",0,IF(OFFSET($G12,-$E21,$E21)+$E21>BN$5,IFERROR((OFFSET($G11,-$E21,$E21)/(OFFSET($G12,-$E21,$E21))),0),(OFFSET($G11,-$E21,$E21)-SUM($G21:BM21)))) -> 0 | BO21: =IF(OFFSET($G12, -$E21, $E21)="n/a",0,IF(OFFSET($G12,-$E21,$E21)+$E21>BO$5,IFERROR((OFFSET($G11,-$E21,$E21)/(OFFSET($G12,-$E21,$E21))),0),(OFFSET($G11,-$E21,$E21)-SUM($G21:BN21)))) -> 0 | BP21: =IF(OFFSET($G12, -$E21, $E21)="n/a",0,IF(OFFSET($G12,-$E21,$E21)+$E21>BP$5,IFERROR((OFFSET($G11,-$E21,$E21)/(OFFSET($G12,-$E21,$E21))),0),(OFFSET($G11,-$E21,$E21)-SUM($G21:BO21)))) -> 0 | BQ21: =IF(OFFSET($G12, -$E21, $E21)="n/a",0,IF(OFFSET($G12,-$E21,$E21)+$E21>BQ$5,IFERROR((OFFSET($G11,-$E21,$E21)/(OFFSET($G12,-$E21,$E21))),0),(OFFSET($G11,-$E21,$E21)-SUM($G21:BP21)))) -> 0 | BR21: =IF(OFFSET($G12, -$E21, $E21)="n/a",0,IF(OFFSET($G12,-$E21,$E21)+$E21>BR$5,IFERROR((OFFSET($G11,-$E21,$E21)/(OFFSET($G12,-$E21,$E21))),0),(OFFSET($G11,-$E21,$E21)-SUM($G21:BQ21)))) -> 0 | BS21: =IF(OFFSET($G12, -$E21, $E21)="n/a",0,IF(OFFSET($G12,-$E21,$E21)+$E21>BS$5,IFERROR((OFFSET($G11,-$E21,$E21)/(OFFSET($G12,-$E21,$E21))),0),(OFFSET($G11,-$E21,$E21)-SUM($G21:BR21)))) -> 0 | BT21: =IF(OFFSET($G12, -$E21, $E21)="n/a",0,IF(OFFSET($G12,-$E21,$E21)+$E21>BT$5,IFERROR((OFFSET($G11,-$E21,$E21)/(OFFSET($G12,-$E21,$E21))),0),(OFFSET($G11,-$E21,$E21)-SUM($G21:BS21)))) -> 0 | BU21: =IF(OFFSET($G12, -$E21, $E21)="n/a",0,IF(OFFSET($G12,-$E21,$E21)+$E21>BU$5,IFERROR((OFFSET($G11,-$E21,$E21)/(OFFSET($G12,-$E21,$E21))),0),(OFFSET($G11,-$E21,$E21)-SUM($G21:BT21)))) -> 0 | BV21: =IF(OFFSET($G12, -$E21, $E21)="n/a",0,IF(OFFSET($G12,-$E21,$E21)+$E21>BV$5,IFERROR((OFFSET($G11,-$E21,$E21)/(OFFSET($G12,-$E21,$E21))),0),(OFFSET($G11,-$E21,$E21)-SUM($G21:BU21)))) -> 0 | BW21: =IF(OFFSET($G12, -$E21, $E21)="n/a",0,IF(OFFSET($G12,-$E21,$E21)+$E21>BW$5,IFERROR((OFFSET($G11,-$E21,$E21)/(OFFSET($G12,-$E21,$E21))),0),(OFFSET($G11,-$E21,$E21)-SUM($G21:BV21)))) -> 0 | BX21: =IF(OFFSET($G12, -$E21, $E21)="n/a",0,IF(OFFSET($G12,-$E21,$E21)+$E21>BX$5,IFERROR((OFFSET($G11,-$E21,$E21)/(OFFSET($G12,-$E21,$E21))),0),(OFFSET($G11,-$E21,$E21)-SUM($G21:BW21)))) -> 0 | BY21: =IF(OFFSET($G12, -$E21, $E21)="n/a",0,IF(OFFSET($G12,-$E21,$E21)+$E21>BY$5,IFERROR((OFFSET($G11,-$E21,$E21)/(OFFSET($G12,-$E21,$E21))),0),(OFFSET($G11,-$E21,$E21)-SUM($G21:BX21)))) -> 0 | BZ21: =IF(OFFSET($G12, -$E21, $E21)="n/a",0,IF(OFFSET($G12,-$E21,$E21)+$E21>BZ$5,IFERROR((OFFSET($G11,-$E21,$E21)/(OFFSET($G12,-$E21,$E21))),0),(OFFSET($G11,-$E21,$E21)-SUM($G21:BY21)))) -> 0
E22: 5 | F22: ="Depreciation of net capex "&INDEX(RAB_years, E22) -> Depreciation of net capex 2018-19 | M22: =IF(OFFSET($G13, -$E22, $E22)="n/a",0,IF(OFFSET($G13,-$E22,$E22)+$E22>M$5,IFERROR((OFFSET($G12,-$E22,$E22)/(OFFSET($G13,-$E22,$E22))),0),(OFFSET($G12,-$E22,$E22)-SUM($G22:L22)))) -> 0.2416036191 | N22: =IF(OFFSET($G13, -$E22, $E22)="n/a",0,IF(OFFSET($G13,-$E22,$E22)+$E22>N$5,IFERROR((OFFSET($G12,-$E22,$E22)/(OFFSET($G13,-$E22,$E22))),0),(OFFSET($G12,-$E22,$E22)-SUM($G22:M22)))) -> 0.2416036191 | O22: =IF(OFFSET($G13, -$E22, $E22)="n/a",0,IF(OFFSET($G13,-$E22,$E22)+$E22>O$5,IFERROR((OFFSET($G12,-$E22,$E22)/(OFFSET($G13,-$E22,$E22))),0),(OFFSET($G12,-$E22,$E22)-SUM($G22:N22)))) -> 0.2416036191 | P22: =IF(OFFSET($G13, -$E22, $E22)="n/a",0,IF(OFFSET($G13,-$E22,$E22)+$E22>P$5,IFERROR((OFFSET($G12,-$E22,$E22)/(OFFSET($G13,-$E22,$E22))),0),(OFFSET($G12,-$E22,$E22)-SUM($G22:O22)))) -> 0.2416036191 | Q22: =IF(OFFSET($G13, -$E22, $E22)="n/a",0,IF(OFFSET($G13,-$E22,$E22)+$E22>Q$5,IFERROR((OFFSET($G12,-$E22,$E22)/(OFFSET($G13,-$E22,$E22))),0),(OFFSET($G12,-$E22,$E22)-SUM($G22:P22)))) -> 0.2416036191 | R22: =IF(OFFSET($G13, -$E22, $E22)="n/a",0,IF(OFFSET($G13,-$E22,$E22)+$E22>R$5,IFERROR((OFFSET($G12,-$E22,$E22)/(OFFSET($G13,-$E22,$E22))),0),(OFFSET($G12,-$E22,$E22)-SUM($G22:Q22)))) -> 0.2416036191 | S22: =IF(OFFSET($G13, -$E22, $E22)="n/a",0,IF(OFFSET($G13,-$E22,$E22)+$E22>S$5,IFERROR((OFFSET($G12,-$E22,$E22)/(OFFSET($G13,-$E22,$E22))),0),(OFFSET($G12,-$E22,$E22)-SUM($G22:R22)))) -> 0.2416036191 | T22: =IF(OFFSET($G13, -$E22, $E22)="n/a",0,IF(OFFSET($G13,-$E22,$E22)+$E22>T$5,IFERROR((OFFSET($G12,-$E22,$E22)/(OFFSET($G13,-$E22,$E22))),0),(OFFSET($G12,-$E22,$E22)-SUM($G22:S22)))) -> 0.2416036191 | U22: =IF(OFFSET($G13, -$E22, $E22)="n/a",0,IF(OFFSET($G13,-$E22,$E22)+$E22>U$5,IFERROR((OFFSET($G12,-$E22,$E22)/(OFFSET($G13,-$E22,$E22))),0),(OFFSET($G12,-$E22,$E22)-SUM($G22:T22)))) -> 0.2416036191 | V22: =IF(OFFSET($G13, -$E22, $E22)="n/a",0,IF(OFFSET($G13,-$E22,$E22)+$E22>V$5,IFERROR((OFFSET($G12,-$E22,$E22)/(OFFSET($G13,-$E22,$E22))),0),(OFFSET($G12,-$E22,$E22)-SUM($G22:U22)))) -> 0.2416036191 | W22: =IF(OFFSET($G13, -$E22, $E22)="n/a",0,IF(OFFSET($G13,-$E22,$E22)+$E22>W$5,IFERROR((OFFSET($G12,-$E22,$E22)/(OFFSET($G13,-$E22,$E22))),0),(OFFSET($G12,-$E22,$E22)-SUM($G22:V22)))) -> 0.2416036191 | X22: =IF(OFFSET($G13, -$E22, $E22)="n/a",0,IF(OFFSET($G13,-$E22,$E22)+$E22>X$5,IFERROR((OFFSET($G12,-$E22,$E22)/(OFFSET($G13,-$E22,$E22))),0),(OFFSET($G12,-$E22,$E22)-SUM($G22:W22)))) -> 0.2416036191 | Y22: =IF(OFFSET($G13, -$E22, $E22)="n/a",0,IF(OFFSET($G13,-$E22,$E22)+$E22>Y$5,IFERROR((OFFSET($G12,-$E22,$E22)/(OFFSET($G13,-$E22,$E22))),0),(OFFSET($G12,-$E22,$E22)-SUM($G22:X22)))) -> 0.2416036191 | Z22: =IF(OFFSET($G13, -$E22, $E22)="n/a",0,IF(OFFSET($G13,-$E22,$E22)+$E22>Z$5,IFERROR((OFFSET($G12,-$E22,$E22)/(OFFSET($G13,-$E22,$E22))),0),(OFFSET($G12,-$E22,$E22)-SUM($G22:Y22)))) -> 0.2416036191 | AA22: =IF(OFFSET($G13, -$E22, $E22)="n/a",0,IF(OFFSET($G13,-$E22,$E22)+$E22>AA$5,IFERROR((OFFSET($G12,-$E22,$E22)/(OFFSET($G13,-$E22,$E22))),0),(OFFSET($G12,-$E22,$E22)-SUM($G22:Z22)))) -> 0.2416036191 | AB22: =IF(OFFSET($G13, -$E22, $E22)="n/a",0,IF(OFFSET($G13,-$E22,$E22)+$E22>AB$5,IFERROR((OFFSET($G12,-$E22,$E22)/(OFFSET($G13,-$E22,$E22))),0),(OFFSET($G12,-$E22,$E22)-SUM($G22:AA22)))) -> 0.2416036191 | AC22: =IF(OFFSET($G13, -$E22, $E22)="n/a",0,IF(OFFSET($G13,-$E22,$E22)+$E22>AC$5,IFERROR((OFFSET($G12,-$E22,$E22)/(OFFSET($G13,-$E22,$E22))),0),(OFFSET($G12,-$E22,$E22)-SUM($G22:AB22)))) -> 0.2416036191 | AD22: =IF(OFFSET($G13, -$E22, $E22)="n/a",0,IF(OFFSET($G13,-$E22,$E22)+$E22>AD$5,IFERROR((OFFSET($G12,-$E22,$E22)/(OFFSET($G13,-$E22,$E22))),0),(OFFSET($G12,-$E22,$E22)-SUM($G22:AC22)))) -> 0.2416036191 | AE22: =IF(OFFSET($G13, -$E22, $E22)="n/a",0,IF(OFFSET($G13,-$E22,$E22)+$E22>AE$5,IFERROR((OFFSET($G12,-$E22,$E22)/(OFFSET($G13,-$E22,$E22))),0),(OFFSET($G12,-$E22,$E22)-SUM($G22:AD22)))) -> 0.2416036191 | AF22: =IF(OFFSET($G13, -$E22, $E22)="n/a",0,IF(OFFSET($G13,-$E22,$E22)+$E22>AF$5,IFERROR((OFFSET($G12,-$E22,$E22)/(OFFSET($G13,-$E22,$E22))),0),(OFFSET($G12,-$E22,$E22)-SUM($G22:AE22)))) -> 0.2416036191 | AG22: =IF(OFFSET($G13, -$E22, $E22)="n/a",0,IF(OFFSET($G13,-$E22,$E22)+$E22>AG$5,IFERROR((OFFSET($G12,-$E22,$E22)/(OFFSET($G13,-$E22,$E22))),0),(OFFSET($G12,-$E22,$E22)-SUM($G22:AF22)))) -> 0.2416036191 | AH22: =IF(OFFSET($G13, -$E22, $E22)="n/a",0,IF(OFFSET($G13,-$E22,$E22)+$E22>AH$5,IFERROR((OFFSET($G12,-$E22,$E22)/(OFFSET($G13,-$E22,$E22))),0),(OFFSET($G12,-$E22,$E22)-SUM($G22:AG22)))) -> 0.2416036191 | AI22: =IF(OFFSET($G13, -$E22, $E22)="n/a",0,IF(OFFSET($G13,-$E22,$E22)+$E22>AI$5,IFERROR((OFFSET($G12,-$E22,$E22)/(OFFSET($G13,-$E22,$E22))),0),(OFFSET($G12,-$E22,$E22)-SUM($G22:AH22)))) -> 0.2416036191 | AJ22: =IF(OFFSET($G13, -$E22, $E22)="n/a",0,IF(OFFSET($G13,-$E22,$E22)+$E22>AJ$5,IFERROR((OFFSET($G12,-$E22,$E22)/(OFFSET($G13,-$E22,$E22))),0),(OFFSET($G12,-$E22,$E22)-SUM($G22:AI22)))) -> 0.2416036191 | AK22: =IF(OFFSET($G13, -$E22, $E22)="n/a",0,IF(OFFSET($G13,-$E22,$E22)+$E22>AK$5,IFERROR((OFFSET($G12,-$E22,$E22)/(OFFSET($G13,-$E22,$E22))),0),(OFFSET($G12,-$E22,$E22)-SUM($G22:AJ22)))) -> 0.2416036191 | AL22: =IF(OFFSET($G13, -$E22, $E22)="n/a",0,IF(OFFSET($G13,-$E22,$E22)+$E22>AL$5,IFERROR((OFFSET($G12,-$E22,$E22)/(OFFSET($G13,-$E22,$E22))),0),(OFFSET($G12,-$E22,$E22)-SUM($G22:AK22)))) -> 0.2416036191 | AM22: =IF(OFFSET($G13, -$E22, $E22)="n/a",0,IF(OFFSET($G13,-$E22,$E22)+$E22>AM$5,IFERROR((OFFSET($G12,-$E22,$E22)/(OFFSET($G13,-$E22,$E22))),0),(OFFSET($G12,-$E22,$E22)-SUM($G22:AL22)))) -> 0.2416036191 | AN22: =IF(OFFSET($G13, -$E22, $E22)="n/a",0,IF(OFFSET($G13,-$E22,$E22)+$E22>AN$5,IFERROR((OFFSET($G12,-$E22,$E22)/(OFFSET($G13,-$E22,$E22))),0),(OFFSET($G12,-$E22,$E22)-SUM($G22:AM22)))) -> 0.2416036191 | AO22: =IF(OFFSET($G13, -$E22, $E22)="n/a",0,IF(OFFSET($G13,-$E22,$E22)+$E22>AO$5,IFERROR((OFFSET($G12,-$E22,$E22)/(OFFSET($G13,-$E22,$E22))),0),(OFFSET($G12,-$E22,$E22)-SUM($G22:AN22)))) -> 0.2416036191 | AP22: =IF(OFFSET($G13, -$E22, $E22)="n/a",0,IF(OFFSET($G13,-$E22,$E22)+$E22>AP$5,IFERROR((OFFSET($G12,-$E22,$E22)/(OFFSET($G13,-$E22,$E22))),0),(OFFSET($G12,-$E22,$E22)-SUM($G22:AO22)))) -> 0.2416036191 | AQ22: =IF(OFFSET($G13, -$E22, $E22)="n/a",0,IF(OFFSET($G13,-$E22,$E22)+$E22>AQ$5,IFERROR((OFFSET($G12,-$E22,$E22)/(OFFSET($G13,-$E22,$E22))),0),(OFFSET($G12,-$E22,$E22)-SUM($G22:AP22)))) -> 0.2416036191 | AR22: =IF(OFFSET($G13, -$E22, $E22)="n/a",0,IF(OFFSET($G13,-$E22,$E22)+$E22>AR$5,IFERROR((OFFSET($G12,-$E22,$E22)/(OFFSET($G13,-$E22,$E22))),0),(OFFSET($G12,-$E22,$E22)-SUM($G22:AQ22)))) -> 0.2416036191 | AS22: =IF(OFFSET($G13, -$E22, $E22)="n/a",0,IF(OFFSET($G13,-$E22,$E22)+$E22>AS$5,IFERROR((OFFSET($G12,-$E22,$E22)/(OFFSET($G13,-$E22,$E22))),0),(OFFSET($G12,-$E22,$E22)-SUM($G22:AR22)))) -> 0.2416036191 | AT22: =IF(OFFSET($G13, -$E22, $E22)="n/a",0,IF(OFFSET($G13,-$E22,$E22)+$E22>AT$5,IFERROR((OFFSET($G12,-$E22,$E22)/(OFFSET($G13,-$E22,$E22))),0),(OFFSET($G12,-$E22,$E22)-SUM($G22:AS22)))) -> 0.2416036191 | AU22: =IF(OFFSET($G13, -$E22, $E22)="n/a",0,IF(OFFSET($G13,-$E22,$E22)+$E22>AU$5,IFERROR((OFFSET($G12,-$E22,$E22)/(OFFSET($G13,-$E22,$E22))),0),(OFFSET($G12,-$E22,$E22)-SUM($G22:AT22)))) -> 0.2416036191 | AV22: =IF(OFFSET($G13, -$E22, $E22)="n/a",0,IF(OFFSET($G13,-$E22,$E22)+$E22>AV$5,IFERROR((OFFSET($G12,-$E22,$E22)/(OFFSET($G13,-$E22,$E22))),0),(OFFSET($G12,-$E22,$E22)-SUM($G22:AU22)))) -> 0.2416036191 | AW22: =IF(OFFSET($G13, -$E22, $E22)="n/a",0,IF(OFFSET($G13,-$E22,$E22)+$E22>AW$5,IFERROR((OFFSET($G12,-$E22,$E22)/(OFFSET($G13,-$E22,$E22))),0),(OFFSET($G12,-$E22,$E22)-SUM($G22:AV22)))) -> 0.2416036191 | AX22: =IF(OFFSET($G13, -$E22, $E22)="n/a",0,IF(OFFSET($G13,-$E22,$E22)+$E22>AX$5,IFERROR((OFFSET($G12,-$E22,$E22)/(OFFSET($G13,-$E22,$E22))),0),(OFFSET($G12,-$E22,$E22)-SUM($G22:AW22)))) -> 0.2416036191 | AY22: =IF(OFFSET($G13, -$E22, $E22)="n/a",0,IF(OFFSET($G13,-$E22,$E22)+$E22>AY$5,IFERROR((OFFSET($G12,-$E22,$E22)/(OFFSET($G13,-$E22,$E22))),0),(OFFSET($G12,-$E22,$E22)-SUM($G22:AX22)))) -> 0.2416036191 | AZ22: =IF(OFFSET($G13, -$E22, $E22)="n/a",0,IF(OFFSET($G13,-$E22,$E22)+$E22>AZ$5,IFERROR((OFFSET($G12,-$E22,$E22)/(OFFSET($G13,-$E22,$E22))),0),(OFFSET($G12,-$E22,$E22)-SUM($G22:AY22)))) -> 0.2416036191 | BA22: =IF(OFFSET($G13, -$E22, $E22)="n/a",0,IF(OFFSET($G13,-$E22,$E22)+$E22>BA$5,IFERROR((OFFSET($G12,-$E22,$E22)/(OFFSET($G13,-$E22,$E22))),0),(OFFSET($G12,-$E22,$E22)-SUM($G22:AZ22)))) -> 0.2416036191 | BB22: =IF(OFFSET($G13, -$E22, $E22)="n/a",0,IF(OFFSET($G13,-$E22,$E22)+$E22>BB$5,IFERROR((OFFSET($G12,-$E22,$E22)/(OFFSET($G13,-$E22,$E22))),0),(OFFSET($G12,-$E22,$E22)-SUM($G22:BA22)))) -> 0.2351624619 | BC22: =IF(OFFSET($G13, -$E22, $E22)="n/a",0,IF(OFFSET($G13,-$E22,$E22)+$E22>BC$5,IFERROR((OFFSET($G12,-$E22,$E22)/(OFFSET($G13,-$E22,$E22))),0),(OFFSET($G12,-$E22,$E22)-SUM($G22:BB22)))) -> 0 | BD22: =IF(OFFSET($G13, -$E22, $E22)="n/a",0,IF(OFFSET($G13,-$E22,$E22)+$E22>BD$5,IFERROR((OFFSET($G12,-$E22,$E22)/(OFFSET($G13,-$E22,$E22))),0),(OFFSET($G12,-$E22,$E22)-SUM($G22:BC22)))) -> 0 | BE22: =IF(OFFSET($G13, -$E22, $E22)="n/a",0,IF(OFFSET($G13,-$E22,$E22)+$E22>BE$5,IFERROR((OFFSET($G12,-$E22,$E22)/(OFFSET($G13,-$E22,$E22))),0),(OFFSET($G12,-$E22,$E22)-SUM($G22:BD22)))) -> 0 | BF22: =IF(OFFSET($G13, -$E22, $E22)="n/a",0,IF(OFFSET($G13,-$E22,$E22)+$E22>BF$5,IFERROR((OFFSET($G12,-$E22,$E22)/(OFFSET($G13,-$E22,$E22))),0),(OFFSET($G12,-$E22,$E22)-SUM($G22:BE22)))) -> 0 | BG22: =IF(OFFSET($G13, -$E22, $E22)="n/a",0,IF(OFFSET($G13,-$E22,$E22)+$E22>BG$5,IFERROR((OFFSET($G12,-$E22,$E22)/(OFFSET($G13,-$E22,$E22))),0),(OFFSET($G12,-$E22,$E22)-SUM($G22:BF22)))) -> 0 | BH22: =IF(OFFSET($G13, -$E22, $E22)="n/a",0,IF(OFFSET($G13,-$E22,$E22)+$E22>BH$5,IFERROR((OFFSET($G12,-$E22,$E22)/(OFFSET($G13,-$E22,$E22))),0),(OFFSET($G12,-$E22,$E22)-SUM($G22:BG22)))) -> 0 | BI22: =IF(OFFSET($G13, -$E22, $E22)="n/a",0,IF(OFFSET($G13,-$E22,$E22)+$E22>BI$5,IFERROR((OFFSET($G12,-$E22,$E22)/(OFFSET($G13,-$E22,$E22))),0),(OFFSET($G12,-$E22,$E22)-SUM($G22:BH22)))) -> 0 | BJ22: =IF(OFFSET($G13, -$E22, $E22)="n/a",0,IF(OFFSET($G13,-$E22,$E22)+$E22>BJ$5,IFERROR((OFFSET($G12,-$E22,$E22)/(OFFSET($G13,-$E22,$E22))),0),(OFFSET($G12,-$E22,$E22)-SUM($G22:BI22)))) -> 0 | BK22: =IF(OFFSET($G13, -$E22, $E22)="n/a",0,IF(OFFSET($G13,-$E22,$E22)+$E22>BK$5,IFERROR((OFFSET($G12,-$E22,$E22)/(OFFSET($G13,-$E22,$E22))),0),(OFFSET($G12,-$E22,$E22)-SUM($G22:BJ22)))) -> 0 | BL22: =IF(OFFSET($G13, -$E22, $E22)="n/a",0,IF(OFFSET($G13,-$E22,$E22)+$E22>BL$5,IFERROR((OFFSET($G12,-$E22,$E22)/(OFFSET($G13,-$E22,$E22))),0),(OFFSET($G12,-$E22,$E22)-SUM($G22:BK22)))) -> 0 | BM22: =IF(OFFSET($G13, -$E22, $E22)="n/a",0,IF(OFFSET($G13,-$E22,$E22)+$E22>BM$5,IFERROR((OFFSET($G12,-$E22,$E22)/(OFFSET($G13,-$E22,$E22))),0),(OFFSET($G12,-$E22,$E22)-SUM($G22:BL22)))) -> 0 | BN22: =IF(OFFSET($G13, -$E22, $E22)="n/a",0,IF(OFFSET($G13,-$E22,$E22)+$E22>BN$5,IFERROR((OFFSET($G12,-$E22,$E22)/(OFFSET($G13,-$E22,$E22))),0),(OFFSET($G12,-$E22,$E22)-SUM($G22:BM22)))) -> 0 | BO22: =IF(OFFSET($G13, -$E22, $E22)="n/a",0,IF(OFFSET($G13,-$E22,$E22)+$E22>BO$5,IFERROR((OFFSET($G12,-$E22,$E22)/(OFFSET($G13,-$E22,$E22))),0),(OFFSET($G12,-$E22,$E22)-SUM($G22:BN22)))) -> 0 | BP22: =IF(OFFSET($G13, -$E22, $E22)="n/a",0,IF(OFFSET($G13,-$E22,$E22)+$E22>BP$5,IFERROR((OFFSET($G12,-$E22,$E22)/(OFFSET($G13,-$E22,$E22))),0),(OFFSET($G12,-$E22,$E22)-SUM($G22:BO22)))) -> 0 | BQ22: =IF(OFFSET($G13, -$E22, $E22)="n/a",0,IF(OFFSET($G13,-$E22,$E22)+$E22>BQ$5,IFERROR((OFFSET($G12,-$E22,$E22)/(OFFSET($G13,-$E22,$E22))),0),(OFFSET($G12,-$E22,$E22)-SUM($G22:BP22)))) -> 0 | BR22: =IF(OFFSET($G13, -$E22, $E22)="n/a",0,IF(OFFSET($G13,-$E22,$E22)+$E22>BR$5,IFERROR((OFFSET($G12,-$E22,$E22)/(OFFSET($G13,-$E22,$E22))),0),(OFFSET($G12,-$E22,$E22)-SUM($G22:BQ22)))) -> 0 | BS22: =IF(OFFSET($G13, -$E22, $E22)="n/a",0,IF(OFFSET($G13,-$E22,$E22)+$E22>BS$5,IFERROR((OFFSET($G12,-$E22,$E22)/(OFFSET($G13,-$E22,$E22))),0),(OFFSET($G12,-$E22,$E22)-SUM($G22:BR22)))) -> 0 | BT22: =IF(OFFSET($G13, -$E22, $E22)="n/a",0,IF(OFFSET($G13,-$E22,$E22)+$E22>BT$5,IFERROR((OFFSET($G12,-$E22,$E22)/(OFFSET($G13,-$E22,$E22))),0),(OFFSET($G12,-$E22,$E22)-SUM($G22:BS22)))) -> 0 | BU22: =IF(OFFSET($G13, -$E22, $E22)="n/a",0,IF(OFFSET($G13,-$E22,$E22)+$E22>BU$5,IFERROR((OFFSET($G12,-$E22,$E22)/(OFFSET($G13,-$E22,$E22))),0),(OFFSET($G12,-$E22,$E22)-SUM($G22:BT22)))) -> 0 | BV22: =IF(OFFSET($G13, -$E22, $E22)="n/a",0,IF(OFFSET($G13,-$E22,$E22)+$E22>BV$5,IFERROR((OFFSET($G12,-$E22,$E22)/(OFFSET($G13,-$E22,$E22))),0),(OFFSET($G12,-$E22,$E22)-SUM($G22:BU22)))) -> 0 | BW22: =IF(OFFSET($G13, -$E22, $E22)="n/a",0,IF(OFFSET($G13,-$E22,$E22)+$E22>BW$5,IFERROR((OFFSET($G12,-$E22,$E22)/(OFFSET($G13,-$E22,$E22))),0),(OFFSET($G12,-$E22,$E22)-SUM($G22:BV22)))) -> 0 | BX22: =IF(OFFSET($G13, -$E22, $E22)="n/a",0,IF(OFFSET($G13,-$E22,$E22)+$E22>BX$5,IFERROR((OFFSET($G12,-$E22,$E22)/(OFFSET($G13,-$E22,$E22))),0),(OFFSET($G12,-$E22,$E22)-SUM($G22:BW22)))) -> 0 | BY22: =IF(OFFSET($G13, -$E22, $E22)="n/a",0,IF(OFFSET($G13,-$E22,$E22)+$E22>BY$5,IFERROR((OFFSET($G12,-$E22,$E22)/(OFFSET($G13,-$E22,$E22))),0),(OFFSET($G12,-$E22,$E22)-SUM($G22:BX22)))) -> 0 | BZ22: =IF(OFFSET($G13, -$E22, $E22)="n/a",0,IF(OFFSET($G13,-$E22,$E22)+$E22>BZ$5,IFERROR((OFFSET($G12,-$E22,$E22)/(OFFSET($G13,-$E22,$E22))),0),(OFFSET($G12,-$E22,$E22)-SUM($G22:BY22)))) -> 0
E23: 6 | F23: ="Depreciation of net capex "&INDEX(RAB_years, E23) -> Depreciation of net capex 2019-20 | N23: =IF(OFFSET($G14, -$E23, $E23)="n/a",0,IF(OFFSET($G14,-$E23,$E23)+$E23>N$5,IFERROR((OFFSET($G13,-$E23,$E23)/(OFFSET($G14,-$E23,$E23))),0),(OFFSET($G13,-$E23,$E23)-SUM($G23:M23)))) -> 0.3484519866 | O23: =IF(OFFSET($G14, -$E23, $E23)="n/a",0,IF(OFFSET($G14,-$E23,$E23)+$E23>O$5,IFERROR((OFFSET($G13,-$E23,$E23)/(OFFSET($G14,-$E23,$E23))),0),(OFFSET($G13,-$E23,$E23)-SUM($G23:N23)))) -> 0.3484519866 | P23: =IF(OFFSET($G14, -$E23, $E23)="n/a",0,IF(OFFSET($G14,-$E23,$E23)+$E23>P$5,IFERROR((OFFSET($G13,-$E23,$E23)/(OFFSET($G14,-$E23,$E23))),0),(OFFSET($G13,-$E23,$E23)-SUM($G23:O23)))) -> 0.3484519866 | Q23: =IF(OFFSET($G14, -$E23, $E23)="n/a",0,IF(OFFSET($G14,-$E23,$E23)+$E23>Q$5,IFERROR((OFFSET($G13,-$E23,$E23)/(OFFSET($G14,-$E23,$E23))),0),(OFFSET($G13,-$E23,$E23)-SUM($G23:P23)))) -> 0.3484519866 | R23: =IF(OFFSET($G14, -$E23, $E23)="n/a",0,IF(OFFSET($G14,-$E23,$E23)+$E23>R$5,IFERROR((OFFSET($G13,-$E23,$E23)/(OFFSET($G14,-$E23,$E23))),0),(OFFSET($G13,-$E23,$E23)-SUM($G23:Q23)))) -> 0.3484519866 | S23: =IF(OFFSET($G14, -$E23, $E23)="n/a",0,IF(OFFSET($G14,-$E23,$E23)+$E23>S$5,IFERROR((OFFSET($G13,-$E23,$E23)/(OFFSET($G14,-$E23,$E23))),0),(OFFSET($G13,-$E23,$E23)-SUM($G23:R23)))) -> 0.3484519866 | T23: =IF(OFFSET($G14, -$E23, $E23)="n/a",0,IF(OFFSET($G14,-$E23,$E23)+$E23>T$5,IFERROR((OFFSET($G13,-$E23,$E23)/(OFFSET($G14,-$E23,$E23))),0),(OFFSET($G13,-$E23,$E23)-SUM($G23:S23)))) -> 0.3484519866 | U23: =IF(OFFSET($G14, -$E23, $E23)="n/a",0,IF(OFFSET($G14,-$E23,$E23)+$E23>U$5,IFERROR((OFFSET($G13,-$E23,$E23)/(OFFSET($G14,-$E23,$E23))),0),(OFFSET($G13,-$E23,$E23)-SUM($G23:T23)))) -> 0.3484519866 | V23: =IF(OFFSET($G14, -$E23, $E23)="n/a",0,IF(OFFSET($G14,-$E23,$E23)+$E23>V$5,IFERROR((OFFSET($G13,-$E23,$E23)/(OFFSET($G14,-$E23,$E23))),0),(OFFSET($G13,-$E23,$E23)-SUM($G23:U23)))) -> 0.3484519866 | W23: =IF(OFFSET($G14, -$E23, $E23)="n/a",0,IF(OFFSET($G14,-$E23,$E23)+$E23>W$5,IFERROR((OFFSET($G13,-$E23,$E23)/(OFFSET($G14,-$E23,$E23))),0),(OFFSET($G13,-$E23,$E23)-SUM($G23:V23)))) -> 0.3484519866 | X23: =IF(OFFSET($G14, -$E23, $E23)="n/a",0,IF(OFFSET($G14,-$E23,$E23)+$E23>X$5,IFERROR((OFFSET($G13,-$E23,$E23)/(OFFSET($G14,-$E23,$E23))),0),(OFFSET($G13,-$E23,$E23)-SUM($G23:W23)))) -> 0.3484519866 | Y23: =IF(OFFSET($G14, -$E23, $E23)="n/a",0,IF(OFFSET($G14,-$E23,$E23)+$E23>Y$5,IFERROR((OFFSET($G13,-$E23,$E23)/(OFFSET($G14,-$E23,$E23))),0),(OFFSET($G13,-$E23,$E23)-SUM($G23:X23)))) -> 0.3484519866 | Z23: =IF(OFFSET($G14, -$E23, $E23)="n/a",0,IF(OFFSET($G14,-$E23,$E23)+$E23>Z$5,IFERROR((OFFSET($G13,-$E23,$E23)/(OFFSET($G14,-$E23,$E23))),0),(OFFSET($G13,-$E23,$E23)-SUM($G23:Y23)))) -> 0.3484519866 | AA23: =IF(OFFSET($G14, -$E23, $E23)="n/a",0,IF(OFFSET($G14,-$E23,$E23)+$E23>AA$5,IFERROR((OFFSET($G13,-$E23,$E23)/(OFFSET($G14,-$E23,$E23))),0),(OFFSET($G13,-$E23,$E23)-SUM($G23:Z23)))) -> 0.3484519866 | AB23: =IF(OFFSET($G14, -$E23, $E23)="n/a",0,IF(OFFSET($G14,-$E23,$E23)+$E23>AB$5,IFERROR((OFFSET($G13,-$E23,$E23)/(OFFSET($G14,-$E23,$E23))),0),(OFFSET($G13,-$E23,$E23)-SUM($G23:AA23)))) -> 0.3484519866 | AC23: =IF(OFFSET($G14, -$E23, $E23)="n/a",0,IF(OFFSET($G14,-$E23,$E23)+$E23>AC$5,IFERROR((OFFSET($G13,-$E23,$E23)/(OFFSET($G14,-$E23,$E23))),0),(OFFSET($G13,-$E23,$E23)-SUM($G23:AB23)))) -> 0.3484519866 | AD23: =IF(OFFSET($G14, -$E23, $E23)="n/a",0,IF(OFFSET($G14,-$E23,$E23)+$E23>AD$5,IFERROR((OFFSET($G13,-$E23,$E23)/(OFFSET($G14,-$E23,$E23))),0),(OFFSET($G13,-$E23,$E23)-SUM($G23:AC23)))) -> 0.3484519866 | AE23: =IF(OFFSET($G14, -$E23, $E23)="n/a",0,IF(OFFSET($G14,-$E23,$E23)+$E23>AE$5,IFERROR((OFFSET($G13,-$E23,$E23)/(OFFSET($G14,-$E23,$E23))),0),(OFFSET($G13,-$E23,$E23)-SUM($G23:AD23)))) -> 0.3484519866 | AF23: =IF(OFFSET($G14, -$E23, $E23)="n/a",0,IF(OFFSET($G14,-$E23,$E23)+$E23>AF$5,IFERROR((OFFSET($G13,-$E23,$E23)/(OFFSET($G14,-$E23,$E23))),0),(OFFSET($G13,-$E23,$E23)-SUM($G23:AE23)))) -> 0.3484519866 | AG23: =IF(OFFSET($G14, -$E23, $E23)="n/a",0,IF(OFFSET($G14,-$E23,$E23)+$E23>AG$5,IFERROR((OFFSET($G13,-$E23,$E23)/(OFFSET($G14,-$E23,$E23))),0),(OFFSET($G13,-$E23,$E23)-SUM($G23:AF23)))) -> 0.3484519866 | AH23: =IF(OFFSET($G14, -$E23, $E23)="n/a",0,IF(OFFSET($G14,-$E23,$E23)+$E23>AH$5,IFERROR((OFFSET($G13,-$E23,$E23)/(OFFSET($G14,-$E23,$E23))),0),(OFFSET($G13,-$E23,$E23)-SUM($G23:AG23)))) -> 0.3484519866 | AI23: =IF(OFFSET($G14, -$E23, $E23)="n/a",0,IF(OFFSET($G14,-$E23,$E23)+$E23>AI$5,IFERROR((OFFSET($G13,-$E23,$E23)/(OFFSET($G14,-$E23,$E23))),0),(OFFSET($G13,-$E23,$E23)-SUM($G23:AH23)))) -> 0.3484519866 | AJ23: =IF(OFFSET($G14, -$E23, $E23)="n/a",0,IF(OFFSET($G14,-$E23,$E23)+$E23>AJ$5,IFERROR((OFFSET($G13,-$E23,$E23)/(OFFSET($G14,-$E23,$E23))),0),(OFFSET($G13,-$E23,$E23)-SUM($G23:AI23)))) -> 0.3484519866 | AK23: =IF(OFFSET($G14, -$E23, $E23)="n/a",0,IF(OFFSET($G14,-$E23,$E23)+$E23>AK$5,IFERROR((OFFSET($G13,-$E23,$E23)/(OFFSET($G14,-$E23,$E23))),0),(OFFSET($G13,-$E23,$E23)-SUM($G23:AJ23)))) -> 0.3484519866 | AL23: =IF(OFFSET($G14, -$E23, $E23)="n/a",0,IF(OFFSET($G14,-$E23,$E23)+$E23>AL$5,IFERROR((OFFSET($G13,-$E23,$E23)/(OFFSET($G14,-$E23,$E23))),0),(OFFSET($G13,-$E23,$E23)-SUM($G23:AK23)))) -> 0.3484519866 | AM23: =IF(OFFSET($G14, -$E23, $E23)="n/a",0,IF(OFFSET($G14,-$E23,$E23)+$E23>AM$5,IFERROR((OFFSET($G13,-$E23,$E23)/(OFFSET($G14,-$E23,$E23))),0),(OFFSET($G13,-$E23,$E23)-SUM($G23:AL23)))) -> 0.3484519866 | AN23: =IF(OFFSET($G14, -$E23, $E23)="n/a",0,IF(OFFSET($G14,-$E23,$E23)+$E23>AN$5,IFERROR((OFFSET($G13,-$E23,$E23)/(OFFSET($G14,-$E23,$E23))),0),(OFFSET($G13,-$E23,$E23)-SUM($G23:AM23)))) -> 0.3484519866 | AO23: =IF(OFFSET($G14, -$E23, $E23)="n/a",0,IF(OFFSET($G14,-$E23,$E23)+$E23>AO$5,IFERROR((OFFSET($G13,-$E23,$E23)/(OFFSET($G14,-$E23,$E23))),0),(OFFSET($G13,-$E23,$E23)-SUM($G23:AN23)))) -> 0.3484519866 | AP23: =IF(OFFSET($G14, -$E23, $E23)="n/a",0,IF(OFFSET($G14,-$E23,$E23)+$E23>AP$5,IFERROR((OFFSET($G13,-$E23,$E23)/(OFFSET($G14,-$E23,$E23))),0),(OFFSET($G13,-$E23,$E23)-SUM($G23:AO23)))) -> 0.3484519866 | AQ23: =IF(OFFSET($G14, -$E23, $E23)="n/a",0,IF(OFFSET($G14,-$E23,$E23)+$E23>AQ$5,IFERROR((OFFSET($G13,-$E23,$E23)/(OFFSET($G14,-$E23,$E23))),0),(OFFSET($G13,-$E23,$E23)-SUM($G23:AP23)))) -> 0.3484519866 | AR23: =IF(OFFSET($G14, -$E23, $E23)="n/a",0,IF(OFFSET($G14,-$E23,$E23)+$E23>AR$5,IFERROR((OFFSET($G13,-$E23,$E23)/(OFFSET($G14,-$E23,$E23))),0),(OFFSET($G13,-$E23,$E23)-SUM($G23:AQ23)))) -> 0.3484519866 | AS23: =IF(OFFSET($G14, -$E23, $E23)="n/a",0,IF(OFFSET($G14,-$E23,$E23)+$E23>AS$5,IFERROR((OFFSET($G13,-$E23,$E23)/(OFFSET($G14,-$E23,$E23))),0),(OFFSET($G13,-$E23,$E23)-SUM($G23:AR23)))) -> 0.3484519866 | AT23: =IF(OFFSET($G14, -$E23, $E23)="n/a",0,IF(OFFSET($G14,-$E23,$E23)+$E23>AT$5,IFERROR((OFFSET($G13,-$E23,$E23)/(OFFSET($G14,-$E23,$E23))),0),(OFFSET($G13,-$E23,$E23)-SUM($G23:AS23)))) -> 0.3484519866 | AU23: =IF(OFFSET($G14, -$E23, $E23)="n/a",0,IF(OFFSET($G14,-$E23,$E23)+$E23>AU$5,IFERROR((OFFSET($G13,-$E23,$E23)/(OFFSET($G14,-$E23,$E23))),0),(OFFSET($G13,-$E23,$E23)-SUM($G23:AT23)))) -> 0.3484519866 | AV23: =IF(OFFSET($G14, -$E23, $E23)="n/a",0,IF(OFFSET($G14,-$E23,$E23)+$E23>AV$5,IFERROR((OFFSET($G13,-$E23,$E23)/(OFFSET($G14,-$E23,$E23))),0),(OFFSET($G13,-$E23,$E23)-SUM($G23:AU23)))) -> 0.3484519866 | AW23: =IF(OFFSET($G14, -$E23, $E23)="n/a",0,IF(OFFSET($G14,-$E23,$E23)+$E23>AW$5,IFERROR((OFFSET($G13,-$E23,$E23)/(OFFSET($G14,-$E23,$E23))),0),(OFFSET($G13,-$E23,$E23)-SUM($G23:AV23)))) -> 0.3484519866 | AX23: =IF(OFFSET($G14, -$E23, $E23)="n/a",0,IF(OFFSET($G14,-$E23,$E23)+$E23>AX$5,IFERROR((OFFSET($G13,-$E23,$E23)/(OFFSET($G14,-$E23,$E23))),0),(OFFSET($G13,-$E23,$E23)-SUM($G23:AW23)))) -> 0.3484519866 | AY23: =IF(OFFSET($G14, -$E23, $E23)="n/a",0,IF(OFFSET($G14,-$E23,$E23)+$E23>AY$5,IFERROR((OFFSET($G13,-$E23,$E23)/(OFFSET($G14,-$E23,$E23))),0),(OFFSET($G13,-$E23,$E23)-SUM($G23:AX23)))) -> 0.3484519866 | AZ23: =IF(OFFSET($G14, -$E23, $E23)="n/a",0,IF(OFFSET($G14,-$E23,$E23)+$E23>AZ$5,IFERROR((OFFSET($G13,-$E23,$E23)/(OFFSET($G14,-$E23,$E23))),0),(OFFSET($G13,-$E23,$E23)-SUM($G23:AY23)))) -> 0.3484519866 | BA23: =IF(OFFSET($G14, -$E23, $E23)="n/a",0,IF(OFFSET($G14,-$E23,$E23)+$E23>BA$5,IFERROR((OFFSET($G13,-$E23,$E23)/(OFFSET($G14,-$E23,$E23))),0),(OFFSET($G13,-$E23,$E23)-SUM($G23:AZ23)))) -> 0.3484519866 | BB23: =IF(OFFSET($G14, -$E23, $E23)="n/a",0,IF(OFFSET($G14,-$E23,$E23)+$E23>BB$5,IFERROR((OFFSET($G13,-$E23,$E23)/(OFFSET($G14,-$E23,$E23))),0),(OFFSET($G13,-$E23,$E23)-SUM($G23:BA23)))) -> 0.3484519866 | BC23: =IF(OFFSET($G14, -$E23, $E23)="n/a",0,IF(OFFSET($G14,-$E23,$E23)+$E23>BC$5,IFERROR((OFFSET($G13,-$E23,$E23)/(OFFSET($G14,-$E23,$E23))),0),(OFFSET($G13,-$E23,$E23)-SUM($G23:BB23)))) -> 0.3391622499 | BD23: =IF(OFFSET($G14, -$E23, $E23)="n/a",0,IF(OFFSET($G14,-$E23,$E23)+$E23>BD$5,IFERROR((OFFSET($G13,-$E23,$E23)/(OFFSET($G14,-$E23,$E23))),0),(OFFSET($G13,-$E23,$E23)-SUM($G23:BC23)))) -> 0 | BE23: =IF(OFFSET($G14, -$E23, $E23)="n/a",0,IF(OFFSET($G14,-$E23,$E23)+$E23>BE$5,IFERROR((OFFSET($G13,-$E23,$E23)/(OFFSET($G14,-$E23,$E23))),0),(OFFSET($G13,-$E23,$E23)-SUM($G23:BD23)))) -> 0 | BF23: =IF(OFFSET($G14, -$E23, $E23)="n/a",0,IF(OFFSET($G14,-$E23,$E23)+$E23>BF$5,IFERROR((OFFSET($G13,-$E23,$E23)/(OFFSET($G14,-$E23,$E23))),0),(OFFSET($G13,-$E23,$E23)-SUM($G23:BE23)))) -> 0 | BG23: =IF(OFFSET($G14, -$E23, $E23)="n/a",0,IF(OFFSET($G14,-$E23,$E23)+$E23>BG$5,IFERROR((OFFSET($G13,-$E23,$E23)/(OFFSET($G14,-$E23,$E23))),0),(OFFSET($G13,-$E23,$E23)-SUM($G23:BF23)))) -> 0 | BH23: =IF(OFFSET($G14, -$E23, $E23)="n/a",0,IF(OFFSET($G14,-$E23,$E23)+$E23>BH$5,IFERROR((OFFSET($G13,-$E23,$E23)/(OFFSET($G14,-$E23,$E23))),0),(OFFSET($G13,-$E23,$E23)-SUM($G23:BG23)))) -> 0 | BI23: =IF(OFFSET($G14, -$E23, $E23)="n/a",0,IF(OFFSET($G14,-$E23,$E23)+$E23>BI$5,IFERROR((OFFSET($G13,-$E23,$E23)/(OFFSET($G14,-$E23,$E23))),0),(OFFSET($G13,-$E23,$E23)-SUM($G23:BH23)))) -> 0 | BJ23: =IF(OFFSET($G14, -$E23, $E23)="n/a",0,IF(OFFSET($G14,-$E23,$E23)+$E23>BJ$5,IFERROR((OFFSET($G13,-$E23,$E23)/(OFFSET($G14,-$E23,$E23))),0),(OFFSET($G13,-$E23,$E23)-SUM($G23:BI23)))) -> 0 | BK23: =IF(OFFSET($G14, -$E23, $E23)="n/a",0,IF(OFFSET($G14,-$E23,$E23)+$E23>BK$5,IFERROR((OFFSET($G13,-$E23,$E23)/(OFFSET($G14,-$E23,$E23))),0),(OFFSET($G13,-$E23,$E23)-SUM($G23:BJ23)))) -> 0 | BL23: =IF(OFFSET($G14, -$E23, $E23)="n/a",0,IF(OFFSET($G14,-$E23,$E23)+$E23>BL$5,IFERROR((OFFSET($G13,-$E23,$E23)/(OFFSET($G14,-$E23,$E23))),0),(OFFSET($G13,-$E23,$E23)-SUM($G23:BK23)))) -> 0 | BM23: =IF(OFFSET($G14, -$E23, $E23)="n/a",0,IF(OFFSET($G14,-$E23,$E23)+$E23>BM$5,IFERROR((OFFSET($G13,-$E23,$E23)/(OFFSET($G14,-$E23,$E23))),0),(OFFSET($G13,-$E23,$E23)-SUM($G23:BL23)))) -> 0 | BN23: =IF(OFFSET($G14, -$E23, $E23)="n/a",0,IF(OFFSET($G14,-$E23,$E23)+$E23>BN$5,IFERROR((OFFSET($G13,-$E23,$E23)/(OFFSET($G14,-$E23,$E23))),0),(OFFSET($G13,-$E23,$E23)-SUM($G23:BM23)))) -> 0 | BO23: =IF(OFFSET($G14, -$E23, $E23)="n/a",0,IF(OFFSET($G14,-$E23,$E23)+$E23>BO$5,IFERROR((OFFSET($G13,-$E23,$E23)/(OFFSET($G14,-$E23,$E23))),0),(OFFSET($G13,-$E23,$E23)-SUM($G23:BN23)))) -> 0 | BP23: =IF(OFFSET($G14, -$E23, $E23)="n/a",0,IF(OFFSET($G14,-$E23,$E23)+$E23>BP$5,IFERROR((OFFSET($G13,-$E23,$E23)/(OFFSET($G14,-$E23,$E23))),0),(OFFSET($G13,-$E23,$E23)-SUM($G23:BO23)))) -> 0 | BQ23: =IF(OFFSET($G14, -$E23, $E23)="n/a",0,IF(OFFSET($G14,-$E23,$E23)+$E23>BQ$5,IFERROR((OFFSET($G13,-$E23,$E23)/(OFFSET($G14,-$E23,$E23))),0),(OFFSET($G13,-$E23,$E23)-SUM($G23:BP23)))) -> 0 | BR23: =IF(OFFSET($G14, -$E23, $E23)="n/a",0,IF(OFFSET($G14,-$E23,$E23)+$E23>BR$5,IFERROR((OFFSET($G13,-$E23,$E23)/(OFFSET($G14,-$E23,$E23))),0),(OFFSET($G13,-$E23,$E23)-SUM($G23:BQ23)))) -> 0 | BS23: =IF(OFFSET($G14, -$E23, $E23)="n/a",0,IF(OFFSET($G14,-$E23,$E23)+$E23>BS$5,IFERROR((OFFSET($G13,-$E23,$E23)/(OFFSET($G14,-$E23,$E23))),0),(OFFSET($G13,-$E23,$E23)-SUM($G23:BR23)))) -> 0 | BT23: =IF(OFFSET($G14, -$E23, $E23)="n/a",0,IF(OFFSET($G14,-$E23,$E23)+$E23>BT$5,IFERROR((OFFSET($G13,-$E23,$E23)/(OFFSET($G14,-$E23,$E23))),0),(OFFSET($G13,-$E23,$E23)-SUM($G23:BS23)))) -> 0 | BU23: =IF(OFFSET($G14, -$E23, $E23)="n/a",0,IF(OFFSET($G14,-$E23,$E23)+$E23>BU$5,IFERROR((OFFSET($G13,-$E23,$E23)/(OFFSET($G14,-$E23,$E23))),0),(OFFSET($G13,-$E23,$E23)-SUM($G23:BT23)))) -> 0 | BV23: =IF(OFFSET($G14, -$E23, $E23)="n/a",0,IF(OFFSET($G14,-$E23,$E23)+$E23>BV$5,IFERROR((OFFSET($G13,-$E23,$E23)/(OFFSET($G14,-$E23,$E23))),0),(OFFSET($G13,-$E23,$E23)-SUM($G23:BU23)))) -> 0 | BW23: =IF(OFFSET($G14, -$E23, $E23)="n/a",0,IF(OFFSET($G14,-$E23,$E23)+$E23>BW$5,IFERROR((OFFSET($G13,-$E23,$E23)/(OFFSET($G14,-$E23,$E23))),0),(OFFSET($G13,-$E23,$E23)-SUM($G23:BV23)))) -> 0 | BX23: =IF(OFFSET($G14, -$E23, $E23)="n/a",0,IF(OFFSET($G14,-$E23,$E23)+$E23>BX$5,IFERROR((OFFSET($G13,-$E23,$E23)/(OFFSET($G14,-$E23,$E23))),0),(OFFSET($G13,-$E23,$E23)-SUM($G23:BW23)))) -> 0 | BY23: =IF(OFFSET($G14, -$E23, $E23)="n/a",0,IF(OFFSET($G14,-$E23,$E23)+$E23>BY$5,IFERROR((OFFSET($G13,-$E23,$E23)/(OFFSET($G14,-$E23,$E23))),0),(OFFSET($G13,-$E23,$E23)-SUM($G23:BX23)))) -> 0 | BZ23: =IF(OFFSET($G14, -$E23, $E23)="n/a",0,IF(OFFSET($G14,-$E23,$E23)+$E23>BZ$5,IFERROR((OFFSET($G13,-$E23,$E23)/(OFFSET($G14,-$E23,$E23))),0),(OFFSET($G13,-$E23,$E23)-SUM($G23:BY23)))) -> 0
E24: 7 | F24: ="Depreciation of net capex "&INDEX(RAB_years, E24) -> Depreciation of net capex 2020-21 | O24: =IF(OFFSET($G15, -$E24, $E24)="n/a",0,IF(OFFSET($G15,-$E24,$E24)+$E24>O$5,IFERROR((OFFSET($G14,-$E24,$E24)/(OFFSET($G15,-$E24,$E24))),0),(OFFSET($G14,-$E24,$E24)-SUM($G24:N24)))) -> 0.2099796657 | P24: =IF(OFFSET($G15, -$E24, $E24)="n/a",0,IF(OFFSET($G15,-$E24,$E24)+$E24>P$5,IFERROR((OFFSET($G14,-$E24,$E24)/(OFFSET($G15,-$E24,$E24))),0),(OFFSET($G14,-$E24,$E24)-SUM($G24:O24)))) -> 0.2099796657 | Q24: =IF(OFFSET($G15, -$E24, $E24)="n/a",0,IF(OFFSET($G15,-$E24,$E24)+$E24>Q$5,IFERROR((OFFSET($G14,-$E24,$E24)/(OFFSET($G15,-$E24,$E24))),0),(OFFSET($G14,-$E24,$E24)-SUM($G24:P24)))) -> 0.2099796657 | R24: =IF(OFFSET($G15, -$E24, $E24)="n/a",0,IF(OFFSET($G15,-$E24,$E24)+$E24>R$5,IFERROR((OFFSET($G14,-$E24,$E24)/(OFFSET($G15,-$E24,$E24))),0),(OFFSET($G14,-$E24,$E24)-SUM($G24:Q24)))) -> 0.2099796657 | S24: =IF(OFFSET($G15, -$E24, $E24)="n/a",0,IF(OFFSET($G15,-$E24,$E24)+$E24>S$5,IFERROR((OFFSET($G14,-$E24,$E24)/(OFFSET($G15,-$E24,$E24))),0),(OFFSET($G14,-$E24,$E24)-SUM($G24:R24)))) -> 0.2099796657 | T24: =IF(OFFSET($G15, -$E24, $E24)="n/a",0,IF(OFFSET($G15,-$E24,$E24)+$E24>T$5,IFERROR((OFFSET($G14,-$E24,$E24)/(OFFSET($G15,-$E24,$E24))),0),(OFFSET($G14,-$E24,$E24)-SUM($G24:S24)))) -> 0.2099796657 | U24: =IF(OFFSET($G15, -$E24, $E24)="n/a",0,IF(OFFSET($G15,-$E24,$E24)+$E24>U$5,IFERROR((OFFSET($G14,-$E24,$E24)/(OFFSET($G15,-$E24,$E24))),0),(OFFSET($G14,-$E24,$E24)-SUM($G24:T24)))) -> 0.2099796657 | V24: =IF(OFFSET($G15, -$E24, $E24)="n/a",0,IF(OFFSET($G15,-$E24,$E24)+$E24>V$5,IFERROR((OFFSET($G14,-$E24,$E24)/(OFFSET($G15,-$E24,$E24))),0),(OFFSET($G14,-$E24,$E24)-SUM($G24:U24)))) -> 0.2099796657 | W24: =IF(OFFSET($G15, -$E24, $E24)="n/a",0,IF(OFFSET($G15,-$E24,$E24)+$E24>W$5,IFERROR((OFFSET($G14,-$E24,$E24)/(OFFSET($G15,-$E24,$E24))),0),(OFFSET($G14,-$E24,$E24)-SUM($G24:V24)))) -> 0.2099796657 | X24: =IF(OFFSET($G15, -$E24, $E24)="n/a",0,IF(OFFSET($G15,-$E24,$E24)+$E24>X$5,IFERROR((OFFSET($G14,-$E24,$E24)/(OFFSET($G15,-$E24,$E24))),0),(OFFSET($G14,-$E24,$E24)-SUM($G24:W24)))) -> 0.2099796657 | Y24: =IF(OFFSET($G15, -$E24, $E24)="n/a",0,IF(OFFSET($G15,-$E24,$E24)+$E24>Y$5,IFERROR((OFFSET($G14,-$E24,$E24)/(OFFSET($G15,-$E24,$E24))),0),(OFFSET($G14,-$E24,$E24)-SUM($G24:X24)))) -> 0.2099796657 | Z24: =IF(OFFSET($G15, -$E24, $E24)="n/a",0,IF(OFFSET($G15,-$E24,$E24)+$E24>Z$5,IFERROR((OFFSET($G14,-$E24,$E24)/(OFFSET($G15,-$E24,$E24))),0),(OFFSET($G14,-$E24,$E24)-SUM($G24:Y24)))) -> 0.2099796657 | AA24: =IF(OFFSET($G15, -$E24, $E24)="n/a",0,IF(OFFSET($G15,-$E24,$E24)+$E24>AA$5,IFERROR((OFFSET($G14,-$E24,$E24)/(OFFSET($G15,-$E24,$E24))),0),(OFFSET($G14,-$E24,$E24)-SUM($G24:Z24)))) -> 0.2099796657 | AB24: =IF(OFFSET($G15, -$E24, $E24)="n/a",0,IF(OFFSET($G15,-$E24,$E24)+$E24>AB$5,IFERROR((OFFSET($G14,-$E24,$E24)/(OFFSET($G15,-$E24,$E24))),0),(OFFSET($G14,-$E24,$E24)-SUM($G24:AA24)))) -> 0.2099796657 | AC24: =IF(OFFSET($G15, -$E24, $E24)="n/a",0,IF(OFFSET($G15,-$E24,$E24)+$E24>AC$5,IFERROR((OFFSET($G14,-$E24,$E24)/(OFFSET($G15,-$E24,$E24))),0),(OFFSET($G14,-$E24,$E24)-SUM($G24:AB24)))) -> 0.2099796657 | AD24: =IF(OFFSET($G15, -$E24, $E24)="n/a",0,IF(OFFSET($G15,-$E24,$E24)+$E24>AD$5,IFERROR((OFFSET($G14,-$E24,$E24)/(OFFSET($G15,-$E24,$E24))),0),(OFFSET($G14,-$E24,$E24)-SUM($G24:AC24)))) -> 0.2099796657 | AE24: =IF(OFFSET($G15, -$E24, $E24)="n/a",0,IF(OFFSET($G15,-$E24,$E24)+$E24>AE$5,IFERROR((OFFSET($G14,-$E24,$E24)/(OFFSET($G15,-$E24,$E24))),0),(OFFSET($G14,-$E24,$E24)-SUM($G24:AD24)))) -> 0.2099796657 | AF24: =IF(OFFSET($G15, -$E24, $E24)="n/a",0,IF(OFFSET($G15,-$E24,$E24)+$E24>AF$5,IFERROR((OFFSET($G14,-$E24,$E24)/(OFFSET($G15,-$E24,$E24))),0),(OFFSET($G14,-$E24,$E24)-SUM($G24:AE24)))) -> 0.2099796657 | AG24: =IF(OFFSET($G15, -$E24, $E24)="n/a",0,IF(OFFSET($G15,-$E24,$E24)+$E24>AG$5,IFERROR((OFFSET($G14,-$E24,$E24)/(OFFSET($G15,-$E24,$E24))),0),(OFFSET($G14,-$E24,$E24)-SUM($G24:AF24)))) -> 0.2099796657 | AH24: =IF(OFFSET($G15, -$E24, $E24)="n/a",0,IF(OFFSET($G15,-$E24,$E24)+$E24>AH$5,IFERROR((OFFSET($G14,-$E24,$E24)/(OFFSET($G15,-$E24,$E24))),0),(OFFSET($G14,-$E24,$E24)-SUM($G24:AG24)))) -> 0.2099796657 | AI24: =IF(OFFSET($G15, -$E24, $E24)="n/a",0,IF(OFFSET($G15,-$E24,$E24)+$E24>AI$5,IFERROR((OFFSET($G14,-$E24,$E24)/(OFFSET($G15,-$E24,$E24))),0),(OFFSET($G14,-$E24,$E24)-SUM($G24:AH24)))) -> 0.2099796657 | AJ24: =IF(OFFSET($G15, -$E24, $E24)="n/a",0,IF(OFFSET($G15,-$E24,$E24)+$E24>AJ$5,IFERROR((OFFSET($G14,-$E24,$E24)/(OFFSET($G15,-$E24,$E24))),0),(OFFSET($G14,-$E24,$E24)-SUM($G24:AI24)))) -> 0.2099796657 | AK24: =IF(OFFSET($G15, -$E24, $E24)="n/a",0,IF(OFFSET($G15,-$E24,$E24)+$E24>AK$5,IFERROR((OFFSET($G14,-$E24,$E24)/(OFFSET($G15,-$E24,$E24))),0),(OFFSET($G14,-$E24,$E24)-SUM($G24:AJ24)))) -> 0.2099796657 | AL24: =IF(OFFSET($G15, -$E24, $E24)="n/a",0,IF(OFFSET($G15,-$E24,$E24)+$E24>AL$5,IFERROR((OFFSET($G14,-$E24,$E24)/(OFFSET($G15,-$E24,$E24))),0),(OFFSET($G14,-$E24,$E24)-SUM($G24:AK24)))) -> 0.2099796657 | AM24: =IF(OFFSET($G15, -$E24, $E24)="n/a",0,IF(OFFSET($G15,-$E24,$E24)+$E24>AM$5,IFERROR((OFFSET($G14,-$E24,$E24)/(OFFSET($G15,-$E24,$E24))),0),(OFFSET($G14,-$E24,$E24)-SUM($G24:AL24)))) -> 0.2099796657 | AN24: =IF(OFFSET($G15, -$E24, $E24)="n/a",0,IF(OFFSET($G15,-$E24,$E24)+$E24>AN$5,IFERROR((OFFSET($G14,-$E24,$E24)/(OFFSET($G15,-$E24,$E24))),0),(OFFSET($G14,-$E24,$E24)-SUM($G24:AM24)))) -> 0.2099796657 | AO24: =IF(OFFSET($G15, -$E24, $E24)="n/a",0,IF(OFFSET($G15,-$E24,$E24)+$E24>AO$5,IFERROR((OFFSET($G14,-$E24,$E24)/(OFFSET($G15,-$E24,$E24))),0),(OFFSET($G14,-$E24,$E24)-SUM($G24:AN24)))) -> 0.2099796657 | AP24: =IF(OFFSET($G15, -$E24, $E24)="n/a",0,IF(OFFSET($G15,-$E24,$E24)+$E24>AP$5,IFERROR((OFFSET($G14,-$E24,$E24)/(OFFSET($G15,-$E24,$E24))),0),(OFFSET($G14,-$E24,$E24)-SUM($G24:AO24)))) -> 0.2099796657 | AQ24: =IF(OFFSET($G15, -$E24, $E24)="n/a",0,IF(OFFSET($G15,-$E24,$E24)+$E24>AQ$5,IFERROR((OFFSET($G14,-$E24,$E24)/(OFFSET($G15,-$E24,$E24))),0),(OFFSET($G14,-$E24,$E24)-SUM($G24:AP24)))) -> 0.2099796657 | AR24: =IF(OFFSET($G15, -$E24, $E24)="n/a",0,IF(OFFSET($G15,-$E24,$E24)+$E24>AR$5,IFERROR((OFFSET($G14,-$E24,$E24)/(OFFSET($G15,-$E24,$E24))),0),(OFFSET($G14,-$E24,$E24)-SUM($G24:AQ24)))) -> 0.2099796657 | AS24: =IF(OFFSET($G15, -$E24, $E24)="n/a",0,IF(OFFSET($G15,-$E24,$E24)+$E24>AS$5,IFERROR((OFFSET($G14,-$E24,$E24)/(OFFSET($G15,-$E24,$E24))),0),(OFFSET($G14,-$E24,$E24)-SUM($G24:AR24)))) -> 0.2099796657 | AT24: =IF(OFFSET($G15, -$E24, $E24)="n/a",0,IF(OFFSET($G15,-$E24,$E24)+$E24>AT$5,IFERROR((OFFSET($G14,-$E24,$E24)/(OFFSET($G15,-$E24,$E24))),0),(OFFSET($G14,-$E24,$E24)-SUM($G24:AS24)))) -> 0.2099796657 | AU24: =IF(OFFSET($G15, -$E24, $E24)="n/a",0,IF(OFFSET($G15,-$E24,$E24)+$E24>AU$5,IFERROR((OFFSET($G14,-$E24,$E24)/(OFFSET($G15,-$E24,$E24))),0),(OFFSET($G14,-$E24,$E24)-SUM($G24:AT24)))) -> 0.2099796657 | AV24: =IF(OFFSET($G15, -$E24, $E24)="n/a",0,IF(OFFSET($G15,-$E24,$E24)+$E24>AV$5,IFERROR((OFFSET($G14,-$E24,$E24)/(OFFSET($G15,-$E24,$E24))),0),(OFFSET($G14,-$E24,$E24)-SUM($G24:AU24)))) -> 0.2099796657 | AW24: =IF(OFFSET($G15, -$E24, $E24)="n/a",0,IF(OFFSET($G15,-$E24,$E24)+$E24>AW$5,IFERROR((OFFSET($G14,-$E24,$E24)/(OFFSET($G15,-$E24,$E24))),0),(OFFSET($G14,-$E24,$E24)-SUM($G24:AV24)))) -> 0.2099796657 | AX24: =IF(OFFSET($G15, -$E24, $E24)="n/a",0,IF(OFFSET($G15,-$E24,$E24)+$E24>AX$5,IFERROR((OFFSET($G14,-$E24,$E24)/(OFFSET($G15,-$E24,$E24))),0),(OFFSET($G14,-$E24,$E24)-SUM($G24:AW24)))) -> 0.2099796657 | AY24: =IF(OFFSET($G15, -$E24, $E24)="n/a",0,IF(OFFSET($G15,-$E24,$E24)+$E24>AY$5,IFERROR((OFFSET($G14,-$E24,$E24)/(OFFSET($G15,-$E24,$E24))),0),(OFFSET($G14,-$E24,$E24)-SUM($G24:AX24)))) -> 0.2099796657 | AZ24: =IF(OFFSET($G15, -$E24, $E24)="n/a",0,IF(OFFSET($G15,-$E24,$E24)+$E24>AZ$5,IFERROR((OFFSET($G14,-$E24,$E24)/(OFFSET($G15,-$E24,$E24))),0),(OFFSET($G14,-$E24,$E24)-SUM($G24:AY24)))) -> 0.2099796657 | BA24: =IF(OFFSET($G15, -$E24, $E24)="n/a",0,IF(OFFSET($G15,-$E24,$E24)+$E24>BA$5,IFERROR((OFFSET($G14,-$E24,$E24)/(OFFSET($G15,-$E24,$E24))),0),(OFFSET($G14,-$E24,$E24)-SUM($G24:AZ24)))) -> 0.2099796657 | BB24: =IF(OFFSET($G15, -$E24, $E24)="n/a",0,IF(OFFSET($G15,-$E24,$E24)+$E24>BB$5,IFERROR((OFFSET($G14,-$E24,$E24)/(OFFSET($G15,-$E24,$E24))),0),(OFFSET($G14,-$E24,$E24)-SUM($G24:BA24)))) -> 0.2099796657 | BC24: =IF(OFFSET($G15, -$E24, $E24)="n/a",0,IF(OFFSET($G15,-$E24,$E24)+$E24>BC$5,IFERROR((OFFSET($G14,-$E24,$E24)/(OFFSET($G15,-$E24,$E24))),0),(OFFSET($G14,-$E24,$E24)-SUM($G24:BB24)))) -> 0.2099796657 | BD24: =IF(OFFSET($G15, -$E24, $E24)="n/a",0,IF(OFFSET($G15,-$E24,$E24)+$E24>BD$5,IFERROR((OFFSET($G14,-$E24,$E24)/(OFFSET($G15,-$E24,$E24))),0),(OFFSET($G14,-$E24,$E24)-SUM($G24:BC24)))) -> 0.2043816038 | BE24: =IF(OFFSET($G15, -$E24, $E24)="n/a",0,IF(OFFSET($G15,-$E24,$E24)+$E24>BE$5,IFERROR((OFFSET($G14,-$E24,$E24)/(OFFSET($G15,-$E24,$E24))),0),(OFFSET($G14,-$E24,$E24)-SUM($G24:BD24)))) -> 0 | BF24: =IF(OFFSET($G15, -$E24, $E24)="n/a",0,IF(OFFSET($G15,-$E24,$E24)+$E24>BF$5,IFERROR((OFFSET($G14,-$E24,$E24)/(OFFSET($G15,-$E24,$E24))),0),(OFFSET($G14,-$E24,$E24)-SUM($G24:BE24)))) -> 0 | BG24: =IF(OFFSET($G15, -$E24, $E24)="n/a",0,IF(OFFSET($G15,-$E24,$E24)+$E24>BG$5,IFERROR((OFFSET($G14,-$E24,$E24)/(OFFSET($G15,-$E24,$E24))),0),(OFFSET($G14,-$E24,$E24)-SUM($G24:BF24)))) -> 0 | BH24: =IF(OFFSET($G15, -$E24, $E24)="n/a",0,IF(OFFSET($G15,-$E24,$E24)+$E24>BH$5,IFERROR((OFFSET($G14,-$E24,$E24)/(OFFSET($G15,-$E24,$E24))),0),(OFFSET($G14,-$E24,$E24)-SUM($G24:BG24)))) -> 0 | BI24: =IF(OFFSET($G15, -$E24, $E24)="n/a",0,IF(OFFSET($G15,-$E24,$E24)+$E24>BI$5,IFERROR((OFFSET($G14,-$E24,$E24)/(OFFSET($G15,-$E24,$E24))),0),(OFFSET($G14,-$E24,$E24)-SUM($G24:BH24)))) -> 0 | BJ24: =IF(OFFSET($G15, -$E24, $E24)="n/a",0,IF(OFFSET($G15,-$E24,$E24)+$E24>BJ$5,IFERROR((OFFSET($G14,-$E24,$E24)/(OFFSET($G15,-$E24,$E24))),0),(OFFSET($G14,-$E24,$E24)-SUM($G24:BI24)))) -> 0 | BK24: =IF(OFFSET($G15, -$E24, $E24)="n/a",0,IF(OFFSET($G15,-$E24,$E24)+$E24>BK$5,IFERROR((OFFSET($G14,-$E24,$E24)/(OFFSET($G15,-$E24,$E24))),0),(OFFSET($G14,-$E24,$E24)-SUM($G24:BJ24)))) -> 0 | BL24: =IF(OFFSET($G15, -$E24, $E24)="n/a",0,IF(OFFSET($G15,-$E24,$E24)+$E24>BL$5,IFERROR((OFFSET($G14,-$E24,$E24)/(OFFSET($G15,-$E24,$E24))),0),(OFFSET($G14,-$E24,$E24)-SUM($G24:BK24)))) -> 0 | BM24: =IF(OFFSET($G15, -$E24, $E24)="n/a",0,IF(OFFSET($G15,-$E24,$E24)+$E24>BM$5,IFERROR((OFFSET($G14,-$E24,$E24)/(OFFSET($G15,-$E24,$E24))),0),(OFFSET($G14,-$E24,$E24)-SUM($G24:BL24)))) -> 0 | BN24: =IF(OFFSET($G15, -$E24, $E24)="n/a",0,IF(OFFSET($G15,-$E24,$E24)+$E24>BN$5,IFERROR((OFFSET($G14,-$E24,$E24)/(OFFSET($G15,-$E24,$E24))),0),(OFFSET($G14,-$E24,$E24)-SUM($G24:BM24)))) -> 0 | BO24: =IF(OFFSET($G15, -$E24, $E24)="n/a",0,IF(OFFSET($G15,-$E24,$E24)+$E24>BO$5,IFERROR((OFFSET($G14,-$E24,$E24)/(OFFSET($G15,-$E24,$E24))),0),(OFFSET($G14,-$E24,$E24)-SUM($G24:BN24)))) -> 0 | BP24: =IF(OFFSET($G15, -$E24, $E24)="n/a",0,IF(OFFSET($G15,-$E24,$E24)+$E24>BP$5,IFERROR((OFFSET($G14,-$E24,$E24)/(OFFSET($G15,-$E24,$E24))),0),(OFFSET($G14,-$E24,$E24)-SUM($G24:BO24)))) -> 0 | BQ24: =IF(OFFSET($G15, -$E24, $E24)="n/a",0,IF(OFFSET($G15,-$E24,$E24)+$E24>BQ$5,IFERROR((OFFSET($G14,-$E24,$E24)/(OFFSET($G15,-$E24,$E24))),0),(OFFSET($G14,-$E24,$E24)-SUM($G24:BP24)))) -> 0 | BR24: =IF(OFFSET($G15, -$E24, $E24)="n/a",0,IF(OFFSET($G15,-$E24,$E24)+$E24>BR$5,IFERROR((OFFSET($G14,-$E24,$E24)/(OFFSET($G15,-$E24,$E24))),0),(OFFSET($G14,-$E24,$E24)-SUM($G24:BQ24)))) -> 0 | BS24: =IF(OFFSET($G15, -$E24, $E24)="n/a",0,IF(OFFSET($G15,-$E24,$E24)+$E24>BS$5,IFERROR((OFFSET($G14,-$E24,$E24)/(OFFSET($G15,-$E24,$E24))),0),(OFFSET($G14,-$E24,$E24)-SUM($G24:BR24)))) -> 0 | BT24: =IF(OFFSET($G15, -$E24, $E24)="n/a",0,IF(OFFSET($G15,-$E24,$E24)+$E24>BT$5,IFERROR((OFFSET($G14,-$E24,$E24)/(OFFSET($G15,-$E24,$E24))),0),(OFFSET($G14,-$E24,$E24)-SUM($G24:BS24)))) -> 0 | BU24: =IF(OFFSET($G15, -$E24, $E24)="n/a",0,IF(OFFSET($G15,-$E24,$E24)+$E24>BU$5,IFERROR((OFFSET($G14,-$E24,$E24)/(OFFSET($G15,-$E24,$E24))),0),(OFFSET($G14,-$E24,$E24)-SUM($G24:BT24)))) -> 0 | BV24: =IF(OFFSET($G15, -$E24, $E24)="n/a",0,IF(OFFSET($G15,-$E24,$E24)+$E24>BV$5,IFERROR((OFFSET($G14,-$E24,$E24)/(OFFSET($G15,-$E24,$E24))),0),(OFFSET($G14,-$E24,$E24)-SUM($G24:BU24)))) -> 0 | BW24: =IF(OFFSET($G15, -$E24, $E24)="n/a",0,IF(OFFSET($G15,-$E24,$E24)+$E24>BW$5,IFERROR((OFFSET($G14,-$E24,$E24)/(OFFSET($G15,-$E24,$E24))),0),(OFFSET($G14,-$E24,$E24)-SUM($G24:BV24)))) -> 0 | BX24: =IF(OFFSET($G15, -$E24, $E24)="n/a",0,IF(OFFSET($G15,-$E24,$E24)+$E24>BX$5,IFERROR((OFFSET($G14,-$E24,$E24)/(OFFSET($G15,-$E24,$E24))),0),(OFFSET($G14,-$E24,$E24)-SUM($G24:BW24)))) -> 0 | BY24: =IF(OFFSET($G15, -$E24, $E24)="n/a",0,IF(OFFSET($G15,-$E24,$E24)+$E24>BY$5,IFERROR((OFFSET($G14,-$E24,$E24)/(OFFSET($G15,-$E24,$E24))),0),(OFFSET($G14,-$E24,$E24)-SUM($G24:BX24)))) -> 0 | BZ24: =IF(OFFSET($G15, -$E24, $E24)="n/a",0,IF(OFFSET($G15,-$E24,$E24)+$E24>BZ$5,IFERROR((OFFSET($G14,-$E24,$E24)/(OFFSET($G15,-$E24,$E24))),0),(OFFSET($G14,-$E24,$E24)-SUM($G24:BY24)))) -> 0
E25: 8 | F25: ="Depreciation of net capex "&INDEX(RAB_years, E25) -> Depreciation of net capex 2021-22 | P25: =IF(OFFSET($G16, -$E25, $E25)="n/a",0,IF(OFFSET($G16,-$E25,$E25)+$E25>P$5,IFERROR((OFFSET($G15,-$E25,$E25)/(OFFSET($G16,-$E25,$E25))),0),(OFFSET($G15,-$E25,$E25)-SUM($G25:O25)))) -> 0.1810300669 | Q25: =IF(OFFSET($G16, -$E25, $E25)="n/a",0,IF(OFFSET($G16,-$E25,$E25)+$E25>Q$5,IFERROR((OFFSET($G15,-$E25,$E25)/(OFFSET($G16,-$E25,$E25))),0),(OFFSET($G15,-$E25,$E25)-SUM($G25:P25)))) -> 0.1810300669 | R25: =IF(OFFSET($G16, -$E25, $E25)="n/a",0,IF(OFFSET($G16,-$E25,$E25)+$E25>R$5,IFERROR((OFFSET($G15,-$E25,$E25)/(OFFSET($G16,-$E25,$E25))),0),(OFFSET($G15,-$E25,$E25)-SUM($G25:Q25)))) -> 0.1810300669 | S25: =IF(OFFSET($G16, -$E25, $E25)="n/a",0,IF(OFFSET($G16,-$E25,$E25)+$E25>S$5,IFERROR((OFFSET($G15,-$E25,$E25)/(OFFSET($G16,-$E25,$E25))),0),(OFFSET($G15,-$E25,$E25)-SUM($G25:R25)))) -> 0.1810300669 | T25: =IF(OFFSET($G16, -$E25, $E25)="n/a",0,IF(OFFSET($G16,-$E25,$E25)+$E25>T$5,IFERROR((OFFSET($G15,-$E25,$E25)/(OFFSET($G16,-$E25,$E25))),0),(OFFSET($G15,-$E25,$E25)-SUM($G25:S25)))) -> 0.1810300669 | U25: =IF(OFFSET($G16, -$E25, $E25)="n/a",0,IF(OFFSET($G16,-$E25,$E25)+$E25>U$5,IFERROR((OFFSET($G15,-$E25,$E25)/(OFFSET($G16,-$E25,$E25))),0),(OFFSET($G15,-$E25,$E25)-SUM($G25:T25)))) -> 0.1810300669 | V25: =IF(OFFSET($G16, -$E25, $E25)="n/a",0,IF(OFFSET($G16,-$E25,$E25)+$E25>V$5,IFERROR((OFFSET($G15,-$E25,$E25)/(OFFSET($G16,-$E25,$E25))),0),(OFFSET($G15,-$E25,$E25)-SUM($G25:U25)))) -> 0.1810300669 | W25: =IF(OFFSET($G16, -$E25, $E25)="n/a",0,IF(OFFSET($G16,-$E25,$E25)+$E25>W$5,IFERROR((OFFSET($G15,-$E25,$E25)/(OFFSET($G16,-$E25,$E25))),0),(OFFSET($G15,-$E25,$E25)-SUM($G25:V25)))) -> 0.1810300669 | X25: =IF(OFFSET($G16, -$E25, $E25)="n/a",0,IF(OFFSET($G16,-$E25,$E25)+$E25>X$5,IFERROR((OFFSET($G15,-$E25,$E25)/(OFFSET($G16,-$E25,$E25))),0),(OFFSET($G15,-$E25,$E25)-SUM($G25:W25)))) -> 0.1810300669 | Y25: =IF(OFFSET($G16, -$E25, $E25)="n/a",0,IF(OFFSET($G16,-$E25,$E25)+$E25>Y$5,IFERROR((OFFSET($G15,-$E25,$E25)/(OFFSET($G16,-$E25,$E25))),0),(OFFSET($G15,-$E25,$E25)-SUM($G25:X25)))) -> 0.1810300669 | Z25: =IF(OFFSET($G16, -$E25, $E25)="n/a",0,IF(OFFSET($G16,-$E25,$E25)+$E25>Z$5,IFERROR((OFFSET($G15,-$E25,$E25)/(OFFSET($G16,-$E25,$E25))),0),(OFFSET($G15,-$E25,$E25)-SUM($G25:Y25)))) -> 0.1810300669 | AA25: =IF(OFFSET($G16, -$E25, $E25)="n/a",0,IF(OFFSET($G16,-$E25,$E25)+$E25>AA$5,IFERROR((OFFSET($G15,-$E25,$E25)/(OFFSET($G16,-$E25,$E25))),0),(OFFSET($G15,-$E25,$E25)-SUM($G25:Z25)))) -> 0.1810300669 | AB25: =IF(OFFSET($G16, -$E25, $E25)="n/a",0,IF(OFFSET($G16,-$E25,$E25)+$E25>AB$5,IFERROR((OFFSET($G15,-$E25,$E25)/(OFFSET($G16,-$E25,$E25))),0),(OFFSET($G15,-$E25,$E25)-SUM($G25:AA25)))) -> 0.1810300669 | AC25: =IF(OFFSET($G16, -$E25, $E25)="n/a",0,IF(OFFSET($G16,-$E25,$E25)+$E25>AC$5,IFERROR((OFFSET($G15,-$E25,$E25)/(OFFSET($G16,-$E25,$E25))),0),(OFFSET($G15,-$E25,$E25)-SUM($G25:AB25)))) -> 0.1810300669 | AD25: =IF(OFFSET($G16, -$E25, $E25)="n/a",0,IF(OFFSET($G16,-$E25,$E25)+$E25>AD$5,IFERROR((OFFSET($G15,-$E25,$E25)/(OFFSET($G16,-$E25,$E25))),0),(OFFSET($G15,-$E25,$E25)-SUM($G25:AC25)))) -> 0.1810300669 | AE25: =IF(OFFSET($G16, -$E25, $E25)="n/a",0,IF(OFFSET($G16,-$E25,$E25)+$E25>AE$5,IFERROR((OFFSET($G15,-$E25,$E25)/(OFFSET($G16,-$E25,$E25))),0),(OFFSET($G15,-$E25,$E25)-SUM($G25:AD25)))) -> 0.1810300669 | AF25: =IF(OFFSET($G16, -$E25, $E25)="n/a",0,IF(OFFSET($G16,-$E25,$E25)+$E25>AF$5,IFERROR((OFFSET($G15,-$E25,$E25)/(OFFSET($G16,-$E25,$E25))),0),(OFFSET($G15,-$E25,$E25)-SUM($G25:AE25)))) -> 0.1810300669 | AG25: =IF(OFFSET($G16, -$E25, $E25)="n/a",0,IF(OFFSET($G16,-$E25,$E25)+$E25>AG$5,IFERROR((OFFSET($G15,-$E25,$E25)/(OFFSET($G16,-$E25,$E25))),0),(OFFSET($G15,-$E25,$E25)-SUM($G25:AF25)))) -> 0.1810300669 | AH25: =IF(OFFSET($G16, -$E25, $E25)="n/a",0,IF(OFFSET($G16,-$E25,$E25)+$E25>AH$5,IFERROR((OFFSET($G15,-$E25,$E25)/(OFFSET($G16,-$E25,$E25))),0),(OFFSET($G15,-$E25,$E25)-SUM($G25:AG25)))) -> 0.1810300669 | AI25: =IF(OFFSET($G16, -$E25, $E25)="n/a",0,IF(OFFSET($G16,-$E25,$E25)+$E25>AI$5,IFERROR((OFFSET($G15,-$E25,$E25)/(OFFSET($G16,-$E25,$E25))),0),(OFFSET($G15,-$E25,$E25)-SUM($G25:AH25)))) -> 0.1810300669 | AJ25: =IF(OFFSET($G16, -$E25, $E25)="n/a",0,IF(OFFSET($G16,-$E25,$E25)+$E25>AJ$5,IFERROR((OFFSET($G15,-$E25,$E25)/(OFFSET($G16,-$E25,$E25))),0),(OFFSET($G15,-$E25,$E25)-SUM($G25:AI25)))) -> 0.1810300669 | AK25: =IF(OFFSET($G16, -$E25, $E25)="n/a",0,IF(OFFSET($G16,-$E25,$E25)+$E25>AK$5,IFERROR((OFFSET($G15,-$E25,$E25)/(OFFSET($G16,-$E25,$E25))),0),(OFFSET($G15,-$E25,$E25)-SUM($G25:AJ25)))) -> 0.1810300669 | AL25: =IF(OFFSET($G16, -$E25, $E25)="n/a",0,IF(OFFSET($G16,-$E25,$E25)+$E25>AL$5,IFERROR((OFFSET($G15,-$E25,$E25)/(OFFSET($G16,-$E25,$E25))),0),(OFFSET($G15,-$E25,$E25)-SUM($G25:AK25)))) -> 0.1810300669 | AM25: =IF(OFFSET($G16, -$E25, $E25)="n/a",0,IF(OFFSET($G16,-$E25,$E25)+$E25>AM$5,IFERROR((OFFSET($G15,-$E25,$E25)/(OFFSET($G16,-$E25,$E25))),0),(OFFSET($G15,-$E25,$E25)-SUM($G25:AL25)))) -> 0.1810300669 | AN25: =IF(OFFSET($G16, -$E25, $E25)="n/a",0,IF(OFFSET($G16,-$E25,$E25)+$E25>AN$5,IFERROR((OFFSET($G15,-$E25,$E25)/(OFFSET($G16,-$E25,$E25))),0),(OFFSET($G15,-$E25,$E25)-SUM($G25:AM25)))) -> 0.1810300669 | AO25: =IF(OFFSET($G16, -$E25, $E25)="n/a",0,IF(OFFSET($G16,-$E25,$E25)+$E25>AO$5,IFERROR((OFFSET($G15,-$E25,$E25)/(OFFSET($G16,-$E25,$E25))),0),(OFFSET($G15,-$E25,$E25)-SUM($G25:AN25)))) -> 0.1810300669 | AP25: =IF(OFFSET($G16, -$E25, $E25)="n/a",0,IF(OFFSET($G16,-$E25,$E25)+$E25>AP$5,IFERROR((OFFSET($G15,-$E25,$E25)/(OFFSET($G16,-$E25,$E25))),0),(OFFSET($G15,-$E25,$E25)-SUM($G25:AO25)))) -> 0.1810300669 | AQ25: =IF(OFFSET($G16, -$E25, $E25)="n/a",0,IF(OFFSET($G16,-$E25,$E25)+$E25>AQ$5,IFERROR((OFFSET($G15,-$E25,$E25)/(OFFSET($G16,-$E25,$E25))),0),(OFFSET($G15,-$E25,$E25)-SUM($G25:AP25)))) -> 0.1810300669 | AR25: =IF(OFFSET($G16, -$E25, $E25)="n/a",0,IF(OFFSET($G16,-$E25,$E25)+$E25>AR$5,IFERROR((OFFSET($G15,-$E25,$E25)/(OFFSET($G16,-$E25,$E25))),0),(OFFSET($G15,-$E25,$E25)-SUM($G25:AQ25)))) -> 0.1810300669 | AS25: =IF(OFFSET($G16, -$E25, $E25)="n/a",0,IF(OFFSET($G16,-$E25,$E25)+$E25>AS$5,IFERROR((OFFSET($G15,-$E25,$E25)/(OFFSET($G16,-$E25,$E25))),0),(OFFSET($G15,-$E25,$E25)-SUM($G25:AR25)))) -> 0.1810300669 | AT25: =IF(OFFSET($G16, -$E25, $E25)="n/a",0,IF(OFFSET($G16,-$E25,$E25)+$E25>AT$5,IFERROR((OFFSET($G15,-$E25,$E25)/(OFFSET($G16,-$E25,$E25))),0),(OFFSET($G15,-$E25,$E25)-SUM($G25:AS25)))) -> 0.1810300669 | AU25: =IF(OFFSET($G16, -$E25, $E25)="n/a",0,IF(OFFSET($G16,-$E25,$E25)+$E25>AU$5,IFERROR((OFFSET($G15,-$E25,$E25)/(OFFSET($G16,-$E25,$E25))),0),(OFFSET($G15,-$E25,$E25)-SUM($G25:AT25)))) -> 0.1810300669 | AV25: =IF(OFFSET($G16, -$E25, $E25)="n/a",0,IF(OFFSET($G16,-$E25,$E25)+$E25>AV$5,IFERROR((OFFSET($G15,-$E25,$E25)/(OFFSET($G16,-$E25,$E25))),0),(OFFSET($G15,-$E25,$E25)-SUM($G25:AU25)))) -> 0.1810300669 | AW25: =IF(OFFSET($G16, -$E25, $E25)="n/a",0,IF(OFFSET($G16,-$E25,$E25)+$E25>AW$5,IFERROR((OFFSET($G15,-$E25,$E25)/(OFFSET($G16,-$E25,$E25))),0),(OFFSET($G15,-$E25,$E25)-SUM($G25:AV25)))) -> 0.1810300669 | AX25: =IF(OFFSET($G16, -$E25, $E25)="n/a",0,IF(OFFSET($G16,-$E25,$E25)+$E25>AX$5,IFERROR((OFFSET($G15,-$E25,$E25)/(OFFSET($G16,-$E25,$E25))),0),(OFFSET($G15,-$E25,$E25)-SUM($G25:AW25)))) -> 0.1810300669 | AY25: =IF(OFFSET($G16, -$E25, $E25)="n/a",0,IF(OFFSET($G16,-$E25,$E25)+$E25>AY$5,IFERROR((OFFSET($G15,-$E25,$E25)/(OFFSET($G16,-$E25,$E25))),0),(OFFSET($G15,-$E25,$E25)-SUM($G25:AX25)))) -> 0.1810300669 | AZ25: =IF(OFFSET($G16, -$E25, $E25)="n/a",0,IF(OFFSET($G16,-$E25,$E25)+$E25>AZ$5,IFERROR((OFFSET($G15,-$E25,$E25)/(OFFSET($G16,-$E25,$E25))),0),(OFFSET($G15,-$E25,$E25)-SUM($G25:AY25)))) -> 0.1810300669 | BA25: =IF(OFFSET($G16, -$E25, $E25)="n/a",0,IF(OFFSET($G16,-$E25,$E25)+$E25>BA$5,IFERROR((OFFSET($G15,-$E25,$E25)/(OFFSET($G16,-$E25,$E25))),0),(OFFSET($G15,-$E25,$E25)-SUM($G25:AZ25)))) -> 0.1810300669 | BB25: =IF(OFFSET($G16, -$E25, $E25)="n/a",0,IF(OFFSET($G16,-$E25,$E25)+$E25>BB$5,IFERROR((OFFSET($G15,-$E25,$E25)/(OFFSET($G16,-$E25,$E25))),0),(OFFSET($G15,-$E25,$E25)-SUM($G25:BA25)))) -> 0.1810300669 | BC25: =IF(OFFSET($G16, -$E25, $E25)="n/a",0,IF(OFFSET($G16,-$E25,$E25)+$E25>BC$5,IFERROR((OFFSET($G15,-$E25,$E25)/(OFFSET($G16,-$E25,$E25))),0),(OFFSET($G15,-$E25,$E25)-SUM($G25:BB25)))) -> 0.1810300669 | BD25: =IF(OFFSET($G16, -$E25, $E25)="n/a",0,IF(OFFSET($G16,-$E25,$E25)+$E25>BD$5,IFERROR((OFFSET($G15,-$E25,$E25)/(OFFSET($G16,-$E25,$E25))),0),(OFFSET($G15,-$E25,$E25)-SUM($G25:BC25)))) -> 0.1810300669 | BE25: =IF(OFFSET($G16, -$E25, $E25)="n/a",0,IF(OFFSET($G16,-$E25,$E25)+$E25>BE$5,IFERROR((OFFSET($G15,-$E25,$E25)/(OFFSET($G16,-$E25,$E25))),0),(OFFSET($G15,-$E25,$E25)-SUM($G25:BD25)))) -> 0.1762038018 | BF25: =IF(OFFSET($G16, -$E25, $E25)="n/a",0,IF(OFFSET($G16,-$E25,$E25)+$E25>BF$5,IFERROR((OFFSET($G15,-$E25,$E25)/(OFFSET($G16,-$E25,$E25))),0),(OFFSET($G15,-$E25,$E25)-SUM($G25:BE25)))) -> 0 | BG25: =IF(OFFSET($G16, -$E25, $E25)="n/a",0,IF(OFFSET($G16,-$E25,$E25)+$E25>BG$5,IFERROR((OFFSET($G15,-$E25,$E25)/(OFFSET($G16,-$E25,$E25))),0),(OFFSET($G15,-$E25,$E25)-SUM($G25:BF25)))) -> 0 | BH25: =IF(OFFSET($G16, -$E25, $E25)="n/a",0,IF(OFFSET($G16,-$E25,$E25)+$E25>BH$5,IFERROR((OFFSET($G15,-$E25,$E25)/(OFFSET($G16,-$E25,$E25))),0),(OFFSET($G15,-$E25,$E25)-SUM($G25:BG25)))) -> 0 | BI25: =IF(OFFSET($G16, -$E25, $E25)="n/a",0,IF(OFFSET($G16,-$E25,$E25)+$E25>BI$5,IFERROR((OFFSET($G15,-$E25,$E25)/(OFFSET($G16,-$E25,$E25))),0),(OFFSET($G15,-$E25,$E25)-SUM($G25:BH25)))) -> 0 | BJ25: =IF(OFFSET($G16, -$E25, $E25)="n/a",0,IF(OFFSET($G16,-$E25,$E25)+$E25>BJ$5,IFERROR((OFFSET($G15,-$E25,$E25)/(OFFSET($G16,-$E25,$E25))),0),(OFFSET($G15,-$E25,$E25)-SUM($G25:BI25)))) -> 0 | BK25: =IF(OFFSET($G16, -$E25, $E25)="n/a",0,IF(OFFSET($G16,-$E25,$E25)+$E25>BK$5,IFERROR((OFFSET($G15,-$E25,$E25)/(OFFSET($G16,-$E25,$E25))),0),(OFFSET($G15,-$E25,$E25)-SUM($G25:BJ25)))) -> 0 | BL25: =IF(OFFSET($G16, -$E25, $E25)="n/a",0,IF(OFFSET($G16,-$E25,$E25)+$E25>BL$5,IFERROR((OFFSET($G15,-$E25,$E25)/(OFFSET($G16,-$E25,$E25))),0),(OFFSET($G15,-$E25,$E25)-SUM($G25:BK25)))) -> 0 | BM25: =IF(OFFSET($G16, -$E25, $E25)="n/a",0,IF(OFFSET($G16,-$E25,$E25)+$E25>BM$5,IFERROR((OFFSET($G15,-$E25,$E25)/(OFFSET($G16,-$E25,$E25))),0),(OFFSET($G15,-$E25,$E25)-SUM($G25:BL25)))) -> 0 | BN25: =IF(OFFSET($G16, -$E25, $E25)="n/a",0,IF(OFFSET($G16,-$E25,$E25)+$E25>BN$5,IFERROR((OFFSET($G15,-$E25,$E25)/(OFFSET($G16,-$E25,$E25))),0),(OFFSET($G15,-$E25,$E25)-SUM($G25:BM25)))) -> 0 | BO25: =IF(OFFSET($G16, -$E25, $E25)="n/a",0,IF(OFFSET($G16,-$E25,$E25)+$E25>BO$5,IFERROR((OFFSET($G15,-$E25,$E25)/(OFFSET($G16,-$E25,$E25))),0),(OFFSET($G15,-$E25,$E25)-SUM($G25:BN25)))) -> 0 | BP25: =IF(OFFSET($G16, -$E25, $E25)="n/a",0,IF(OFFSET($G16,-$E25,$E25)+$E25>BP$5,IFERROR((OFFSET($G15,-$E25,$E25)/(OFFSET($G16,-$E25,$E25))),0),(OFFSET($G15,-$E25,$E25)-SUM($G25:BO25)))) -> 0 | BQ25: =IF(OFFSET($G16, -$E25, $E25)="n/a",0,IF(OFFSET($G16,-$E25,$E25)+$E25>BQ$5,IFERROR((OFFSET($G15,-$E25,$E25)/(OFFSET($G16,-$E25,$E25))),0),(OFFSET($G15,-$E25,$E25)-SUM($G25:BP25)))) -> 0 | BR25: =IF(OFFSET($G16, -$E25, $E25)="n/a",0,IF(OFFSET($G16,-$E25,$E25)+$E25>BR$5,IFERROR((OFFSET($G15,-$E25,$E25)/(OFFSET($G16,-$E25,$E25))),0),(OFFSET($G15,-$E25,$E25)-SUM($G25:BQ25)))) -> 0 | BS25: =IF(OFFSET($G16, -$E25, $E25)="n/a",0,IF(OFFSET($G16,-$E25,$E25)+$E25>BS$5,IFERROR((OFFSET($G15,-$E25,$E25)/(OFFSET($G16,-$E25,$E25))),0),(OFFSET($G15,-$E25,$E25)-SUM($G25:BR25)))) -> 0 | BT25: =IF(OFFSET($G16, -$E25, $E25)="n/a",0,IF(OFFSET($G16,-$E25,$E25)+$E25>BT$5,IFERROR((OFFSET($G15,-$E25,$E25)/(OFFSET($G16,-$E25,$E25))),0),(OFFSET($G15,-$E25,$E25)-SUM($G25:BS25)))) -> 0 | BU25: =IF(OFFSET($G16, -$E25, $E25)="n/a",0,IF(OFFSET($G16,-$E25,$E25)+$E25>BU$5,IFERROR((OFFSET($G15,-$E25,$E25)/(OFFSET($G16,-$E25,$E25))),0),(OFFSET($G15,-$E25,$E25)-SUM($G25:BT25)))) -> 0 | BV25: =IF(OFFSET($G16, -$E25, $E25)="n/a",0,IF(OFFSET($G16,-$E25,$E25)+$E25>BV$5,IFERROR((OFFSET($G15,-$E25,$E25)/(OFFSET($G16,-$E25,$E25))),0),(OFFSET($G15,-$E25,$E25)-SUM($G25:BU25)))) -> 0 | BW25: =IF(OFFSET($G16, -$E25, $E25)="n/a",0,IF(OFFSET($G16,-$E25,$E25)+$E25>BW$5,IFERROR((OFFSET($G15,-$E25,$E25)/(OFFSET($G16,-$E25,$E25))),0),(OFFSET($G15,-$E25,$E25)-SUM($G25:BV25)))) -> 0 | BX25: =IF(OFFSET($G16, -$E25, $E25)="n/a",0,IF(OFFSET($G16,-$E25,$E25)+$E25>BX$5,IFERROR((OFFSET($G15,-$E25,$E25)/(OFFSET($G16,-$E25,$E25))),0),(OFFSET($G15,-$E25,$E25)-SUM($G25:BW25)))) -> 0 | BY25: =IF(OFFSET($G16, -$E25, $E25)="n/a",0,IF(OFFSET($G16,-$E25,$E25)+$E25>BY$5,IFERROR((OFFSET($G15,-$E25,$E25)/(OFFSET($G16,-$E25,$E25))),0),(OFFSET($G15,-$E25,$E25)-SUM($G25:BX25)))) -> 0 | BZ25: =IF(OFFSET($G16, -$E25, $E25)="n/a",0,IF(OFFSET($G16,-$E25,$E25)+$E25>BZ$5,IFERROR((OFFSET($G15,-$E25,$E25)/(OFFSET($G16,-$E25,$E25))),0),(OFFSET($G15,-$E25,$E25)-SUM($G25:BY25)))) -> 0
E26: 9 | F26: ="Depreciation of net capex "&INDEX(RAB_years, E26) -> Depreciation of net capex 2022-23 | Q26: =IF(OFFSET($G17, -$E26, $E26)="n/a",0,IF(OFFSET($G17,-$E26,$E26)+$E26>Q$5,IFERROR((OFFSET($G16,-$E26,$E26)/(OFFSET($G17,-$E26,$E26))),0),(OFFSET($G16,-$E26,$E26)-SUM($G26:P26)))) -> 0.1899086691 | R26: =IF(OFFSET($G17, -$E26, $E26)="n/a",0,IF(OFFSET($G17,-$E26,$E26)+$E26>R$5,IFERROR((OFFSET($G16,-$E26,$E26)/(OFFSET($G17,-$E26,$E26))),0),(OFFSET($G16,-$E26,$E26)-SUM($G26:Q26)))) -> 0.1899086691 | S26: =IF(OFFSET($G17, -$E26, $E26)="n/a",0,IF(OFFSET($G17,-$E26,$E26)+$E26>S$5,IFERROR((OFFSET($G16,-$E26,$E26)/(OFFSET($G17,-$E26,$E26))),0),(OFFSET($G16,-$E26,$E26)-SUM($G26:R26)))) -> 0.1899086691 | T26: =IF(OFFSET($G17, -$E26, $E26)="n/a",0,IF(OFFSET($G17,-$E26,$E26)+$E26>T$5,IFERROR((OFFSET($G16,-$E26,$E26)/(OFFSET($G17,-$E26,$E26))),0),(OFFSET($G16,-$E26,$E26)-SUM($G26:S26)))) -> 0.1899086691 | U26: =IF(OFFSET($G17, -$E26, $E26)="n/a",0,IF(OFFSET($G17,-$E26,$E26)+$E26>U$5,IFERROR((OFFSET($G16,-$E26,$E26)/(OFFSET($G17,-$E26,$E26))),0),(OFFSET($G16,-$E26,$E26)-SUM($G26:T26)))) -> 0.1899086691 | V26: =IF(OFFSET($G17, -$E26, $E26)="n/a",0,IF(OFFSET($G17,-$E26,$E26)+$E26>V$5,IFERROR((OFFSET($G16,-$E26,$E26)/(OFFSET($G17,-$E26,$E26))),0),(OFFSET($G16,-$E26,$E26)-SUM($G26:U26)))) -> 0.1899086691 | W26: =IF(OFFSET($G17, -$E26, $E26)="n/a",0,IF(OFFSET($G17,-$E26,$E26)+$E26>W$5,IFERROR((OFFSET($G16,-$E26,$E26)/(OFFSET($G17,-$E26,$E26))),0),(OFFSET($G16,-$E26,$E26)-SUM($G26:V26)))) -> 0.1899086691 | X26: =IF(OFFSET($G17, -$E26, $E26)="n/a",0,IF(OFFSET($G17,-$E26,$E26)+$E26>X$5,IFERROR((OFFSET($G16,-$E26,$E26)/(OFFSET($G17,-$E26,$E26))),0),(OFFSET($G16,-$E26,$E26)-SUM($G26:W26)))) -> 0.1899086691 | Y26: =IF(OFFSET($G17, -$E26, $E26)="n/a",0,IF(OFFSET($G17,-$E26,$E26)+$E26>Y$5,IFERROR((OFFSET($G16,-$E26,$E26)/(OFFSET($G17,-$E26,$E26))),0),(OFFSET($G16,-$E26,$E26)-SUM($G26:X26)))) -> 0.1899086691 | Z26: =IF(OFFSET($G17, -$E26, $E26)="n/a",0,IF(OFFSET($G17,-$E26,$E26)+$E26>Z$5,IFERROR((OFFSET($G16,-$E26,$E26)/(OFFSET($G17,-$E26,$E26))),0),(OFFSET($G16,-$E26,$E26)-SUM($G26:Y26)))) -> 0.1899086691 | AA26: =IF(OFFSET($G17, -$E26, $E26)="n/a",0,IF(OFFSET($G17,-$E26,$E26)+$E26>AA$5,IFERROR((OFFSET($G16,-$E26,$E26)/(OFFSET($G17,-$E26,$E26))),0),(OFFSET($G16,-$E26,$E26)-SUM($G26:Z26)))) -> 0.1899086691 | AB26: =IF(OFFSET($G17, -$E26, $E26)="n/a",0,IF(OFFSET($G17,-$E26,$E26)+$E26>AB$5,IFERROR((OFFSET($G16,-$E26,$E26)/(OFFSET($G17,-$E26,$E26))),0),(OFFSET($G16,-$E26,$E26)-SUM($G26:AA26)))) -> 0.1899086691 | AC26: =IF(OFFSET($G17, -$E26, $E26)="n/a",0,IF(OFFSET($G17,-$E26,$E26)+$E26>AC$5,IFERROR((OFFSET($G16,-$E26,$E26)/(OFFSET($G17,-$E26,$E26))),0),(OFFSET($G16,-$E26,$E26)-SUM($G26:AB26)))) -> 0.1899086691 | AD26: =IF(OFFSET($G17, -$E26, $E26)="n/a",0,IF(OFFSET($G17,-$E26,$E26)+$E26>AD$5,IFERROR((OFFSET($G16,-$E26,$E26)/(OFFSET($G17,-$E26,$E26))),0),(OFFSET($G16,-$E26,$E26)-SUM($G26:AC26)))) -> 0.1899086691 | AE26: =IF(OFFSET($G17, -$E26, $E26)="n/a",0,IF(OFFSET($G17,-$E26,$E26)+$E26>AE$5,IFERROR((OFFSET($G16,-$E26,$E26)/(OFFSET($G17,-$E26,$E26))),0),(OFFSET($G16,-$E26,$E26)-SUM($G26:AD26)))) -> 0.1899086691 | AF26: =IF(OFFSET($G17, -$E26, $E26)="n/a",0,IF(OFFSET($G17,-$E26,$E26)+$E26>AF$5,IFERROR((OFFSET($G16,-$E26,$E26)/(OFFSET($G17,-$E26,$E26))),0),(OFFSET($G16,-$E26,$E26)-SUM($G26:AE26)))) -> 0.1899086691 | AG26: =IF(OFFSET($G17, -$E26, $E26)="n/a",0,IF(OFFSET($G17,-$E26,$E26)+$E26>AG$5,IFERROR((OFFSET($G16,-$E26,$E26)/(OFFSET($G17,-$E26,$E26))),0),(OFFSET($G16,-$E26,$E26)-SUM($G26:AF26)))) -> 0.1899086691 | AH26: =IF(OFFSET($G17, -$E26, $E26)="n/a",0,IF(OFFSET($G17,-$E26,$E26)+$E26>AH$5,IFERROR((OFFSET($G16,-$E26,$E26)/(OFFSET($G17,-$E26,$E26))),0),(OFFSET($G16,-$E26,$E26)-SUM($G26:AG26)))) -> 0.1899086691 | AI26: =IF(OFFSET($G17, -$E26, $E26)="n/a",0,IF(OFFSET($G17,-$E26,$E26)+$E26>AI$5,IFERROR((OFFSET($G16,-$E26,$E26)/(OFFSET($G17,-$E26,$E26))),0),(OFFSET($G16,-$E26,$E26)-SUM($G26:AH26)))) -> 0.1899086691 | AJ26: =IF(OFFSET($G17, -$E26, $E26)="n/a",0,IF(OFFSET($G17,-$E26,$E26)+$E26>AJ$5,IFERROR((OFFSET($G16,-$E26,$E26)/(OFFSET($G17,-$E26,$E26))),0),(OFFSET($G16,-$E26,$E26)-SUM($G26:AI26)))) -> 0.1899086691 | AK26: =IF(OFFSET($G17, -$E26, $E26)="n/a",0,IF(OFFSET($G17,-$E26,$E26)+$E26>AK$5,IFERROR((OFFSET($G16,-$E26,$E26)/(OFFSET($G17,-$E26,$E26))),0),(OFFSET($G16,-$E26,$E26)-SUM($G26:AJ26)))) -> 0.1899086691 | AL26: =IF(OFFSET($G17, -$E26, $E26)="n/a",0,IF(OFFSET($G17,-$E26,$E26)+$E26>AL$5,IFERROR((OFFSET($G16,-$E26,$E26)/(OFFSET($G17,-$E26,$E26))),0),(OFFSET($G16,-$E26,$E26)-SUM($G26:AK26)))) -> 0.1899086691 | AM26: =IF(OFFSET($G17, -$E26, $E26)="n/a",0,IF(OFFSET($G17,-$E26,$E26)+$E26>AM$5,IFERROR((OFFSET($G16,-$E26,$E26)/(OFFSET($G17,-$E26,$E26))),0),(OFFSET($G16,-$E26,$E26)-SUM($G26:AL26)))) -> 0.1899086691 | AN26: =IF(OFFSET($G17, -$E26, $E26)="n/a",0,IF(OFFSET($G17,-$E26,$E26)+$E26>AN$5,IFERROR((OFFSET($G16,-$E26,$E26)/(OFFSET($G17,-$E26,$E26))),0),(OFFSET($G16,-$E26,$E26)-SUM($G26:AM26)))) -> 0.1899086691 | AO26: =IF(OFFSET($G17, -$E26, $E26)="n/a",0,IF(OFFSET($G17,-$E26,$E26)+$E26>AO$5,IFERROR((OFFSET($G16,-$E26,$E26)/(OFFSET($G17,-$E26,$E26))),0),(OFFSET($G16,-$E26,$E26)-SUM($G26:AN26)))) -> 0.1899086691 | AP26: =IF(OFFSET($G17, -$E26, $E26)="n/a",0,IF(OFFSET($G17,-$E26,$E26)+$E26>AP$5,IFERROR((OFFSET($G16,-$E26,$E26)/(OFFSET($G17,-$E26,$E26))),0),(OFFSET($G16,-$E26,$E26)-SUM($G26:AO26)))) -> 0.1899086691 | AQ26: =IF(OFFSET($G17, -$E26, $E26)="n/a",0,IF(OFFSET($G17,-$E26,$E26)+$E26>AQ$5,IFERROR((OFFSET($G16,-$E26,$E26)/(OFFSET($G17,-$E26,$E26))),0),(OFFSET($G16,-$E26,$E26)-SUM($G26:AP26)))) -> 0.1899086691 | AR26: =IF(OFFSET($G17, -$E26, $E26)="n/a",0,IF(OFFSET($G17,-$E26,$E26)+$E26>AR$5,IFERROR((OFFSET($G16,-$E26,$E26)/(OFFSET($G17,-$E26,$E26))),0),(OFFSET($G16,-$E26,$E26)-SUM($G26:AQ26)))) -> 0.1899086691 | AS26: =IF(OFFSET($G17, -$E26, $E26)="n/a",0,IF(OFFSET($G17,-$E26,$E26)+$E26>AS$5,IFERROR((OFFSET($G16,-$E26,$E26)/(OFFSET($G17,-$E26,$E26))),0),(OFFSET($G16,-$E26,$E26)-SUM($G26:AR26)))) -> 0.1899086691 | AT26: =IF(OFFSET($G17, -$E26, $E26)="n/a",0,IF(OFFSET($G17,-$E26,$E26)+$E26>AT$5,IFERROR((OFFSET($G16,-$E26,$E26)/(OFFSET($G17,-$E26,$E26))),0),(OFFSET($G16,-$E26,$E26)-SUM($G26:AS26)))) -> 0.1899086691 | AU26: =IF(OFFSET($G17, -$E26, $E26)="n/a",0,IF(OFFSET($G17,-$E26,$E26)+$E26>AU$5,IFERROR((OFFSET($G16,-$E26,$E26)/(OFFSET($G17,-$E26,$E26))),0),(OFFSET($G16,-$E26,$E26)-SUM($G26:AT26)))) -> 0.1899086691 | AV26: =IF(OFFSET($G17, -$E26, $E26)="n/a",0,IF(OFFSET($G17,-$E26,$E26)+$E26>AV$5,IFERROR((OFFSET($G16,-$E26,$E26)/(OFFSET($G17,-$E26,$E26))),0),(OFFSET($G16,-$E26,$E26)-SUM($G26:AU26)))) -> 0.1899086691 | AW26: =IF(OFFSET($G17, -$E26, $E26)="n/a",0,IF(OFFSET($G17,-$E26,$E26)+$E26>AW$5,IFERROR((OFFSET($G16,-$E26,$E26)/(OFFSET($G17,-$E26,$E26))),0),(OFFSET($G16,-$E26,$E26)-SUM($G26:AV26)))) -> 0.1899086691 | AX26: =IF(OFFSET($G17, -$E26, $E26)="n/a",0,IF(OFFSET($G17,-$E26,$E26)+$E26>AX$5,IFERROR((OFFSET($G16,-$E26,$E26)/(OFFSET($G17,-$E26,$E26))),0),(OFFSET($G16,-$E26,$E26)-SUM($G26:AW26)))) -> 0.1899086691 | AY26: =IF(OFFSET($G17, -$E26, $E26)="n/a",0,IF(OFFSET($G17,-$E26,$E26)+$E26>AY$5,IFERROR((OFFSET($G16,-$E26,$E26)/(OFFSET($G17,-$E26,$E26))),0),(OFFSET($G16,-$E26,$E26)-SUM($G26:AX26)))) -> 0.1899086691 | AZ26: =IF(OFFSET($G17, -$E26, $E26)="n/a",0,IF(OFFSET($G17,-$E26,$E26)+$E26>AZ$5,IFERROR((OFFSET($G16,-$E26,$E26)/(OFFSET($G17,-$E26,$E26))),0),(OFFSET($G16,-$E26,$E26)-SUM($G26:AY26)))) -> 0.1899086691 | BA26: =IF(OFFSET($G17, -$E26, $E26)="n/a",0,IF(OFFSET($G17,-$E26,$E26)+$E26>BA$5,IFERROR((OFFSET($G16,-$E26,$E26)/(OFFSET($G17,-$E26,$E26))),0),(OFFSET($G16,-$E26,$E26)-SUM($G26:AZ26)))) -> 0.1899086691 | BB26: =IF(OFFSET($G17, -$E26, $E26)="n/a",0,IF(OFFSET($G17,-$E26,$E26)+$E26>BB$5,IFERROR((OFFSET($G16,-$E26,$E26)/(OFFSET($G17,-$E26,$E26))),0),(OFFSET($G16,-$E26,$E26)-SUM($G26:BA26)))) -> 0.1899086691 | BC26: =IF(OFFSET($G17, -$E26, $E26)="n/a",0,IF(OFFSET($G17,-$E26,$E26)+$E26>BC$5,IFERROR((OFFSET($G16,-$E26,$E26)/(OFFSET($G17,-$E26,$E26))),0),(OFFSET($G16,-$E26,$E26)-SUM($G26:BB26)))) -> 0.1899086691 | BD26: =IF(OFFSET($G17, -$E26, $E26)="n/a",0,IF(OFFSET($G17,-$E26,$E26)+$E26>BD$5,IFERROR((OFFSET($G16,-$E26,$E26)/(OFFSET($G17,-$E26,$E26))),0),(OFFSET($G16,-$E26,$E26)-SUM($G26:BC26)))) -> 0.1899086691 | BE26: =IF(OFFSET($G17, -$E26, $E26)="n/a",0,IF(OFFSET($G17,-$E26,$E26)+$E26>BE$5,IFERROR((OFFSET($G16,-$E26,$E26)/(OFFSET($G17,-$E26,$E26))),0),(OFFSET($G16,-$E26,$E26)-SUM($G26:BD26)))) -> 0.1899086691 | BF26: =IF(OFFSET($G17, -$E26, $E26)="n/a",0,IF(OFFSET($G17,-$E26,$E26)+$E26>BF$5,IFERROR((OFFSET($G16,-$E26,$E26)/(OFFSET($G17,-$E26,$E26))),0),(OFFSET($G16,-$E26,$E26)-SUM($G26:BE26)))) -> 0.1848457003 | BG26: =IF(OFFSET($G17, -$E26, $E26)="n/a",0,IF(OFFSET($G17,-$E26,$E26)+$E26>BG$5,IFERROR((OFFSET($G16,-$E26,$E26)/(OFFSET($G17,-$E26,$E26))),0),(OFFSET($G16,-$E26,$E26)-SUM($G26:BF26)))) -> 0 | BH26: =IF(OFFSET($G17, -$E26, $E26)="n/a",0,IF(OFFSET($G17,-$E26,$E26)+$E26>BH$5,IFERROR((OFFSET($G16,-$E26,$E26)/(OFFSET($G17,-$E26,$E26))),0),(OFFSET($G16,-$E26,$E26)-SUM($G26:BG26)))) -> 0 | BI26: =IF(OFFSET($G17, -$E26, $E26)="n/a",0,IF(OFFSET($G17,-$E26,$E26)+$E26>BI$5,IFERROR((OFFSET($G16,-$E26,$E26)/(OFFSET($G17,-$E26,$E26))),0),(OFFSET($G16,-$E26,$E26)-SUM($G26:BH26)))) -> 0 | BJ26: =IF(OFFSET($G17, -$E26, $E26)="n/a",0,IF(OFFSET($G17,-$E26,$E26)+$E26>BJ$5,IFERROR((OFFSET($G16,-$E26,$E26)/(OFFSET($G17,-$E26,$E26))),0),(OFFSET($G16,-$E26,$E26)-SUM($G26:BI26)))) -> 0 | BK26: =IF(OFFSET($G17, -$E26, $E26)="n/a",0,IF(OFFSET($G17,-$E26,$E26)+$E26>BK$5,IFERROR((OFFSET($G16,-$E26,$E26)/(OFFSET($G17,-$E26,$E26))),0),(OFFSET($G16,-$E26,$E26)-SUM($G26:BJ26)))) -> 0 | BL26: =IF(OFFSET($G17, -$E26, $E26)="n/a",0,IF(OFFSET($G17,-$E26,$E26)+$E26>BL$5,IFERROR((OFFSET($G16,-$E26,$E26)/(OFFSET($G17,-$E26,$E26))),0),(OFFSET($G16,-$E26,$E26)-SUM($G26:BK26)))) -> 0 | BM26: =IF(OFFSET($G17, -$E26, $E26)="n/a",0,IF(OFFSET($G17,-$E26,$E26)+$E26>BM$5,IFERROR((OFFSET($G16,-$E26,$E26)/(OFFSET($G17,-$E26,$E26))),0),(OFFSET($G16,-$E26,$E26)-SUM($G26:BL26)))) -> 0 | BN26: =IF(OFFSET($G17, -$E26, $E26)="n/a",0,IF(OFFSET($G17,-$E26,$E26)+$E26>BN$5,IFERROR((OFFSET($G16,-$E26,$E26)/(OFFSET($G17,-$E26,$E26))),0),(OFFSET($G16,-$E26,$E26)-SUM($G26:BM26)))) -> 0 | BO26: =IF(OFFSET($G17, -$E26, $E26)="n/a",0,IF(OFFSET($G17,-$E26,$E26)+$E26>BO$5,IFERROR((OFFSET($G16,-$E26,$E26)/(OFFSET($G17,-$E26,$E26))),0),(OFFSET($G16,-$E26,$E26)-SUM($G26:BN26)))) -> 0 | BP26: =IF(OFFSET($G17, -$E26, $E26)="n/a",0,IF(OFFSET($G17,-$E26,$E26)+$E26>BP$5,IFERROR((OFFSET($G16,-$E26,$E26)/(OFFSET($G17,-$E26,$E26))),0),(OFFSET($G16,-$E26,$E26)-SUM($G26:BO26)))) -> 0 | BQ26: =IF(OFFSET($G17, -$E26, $E26)="n/a",0,IF(OFFSET($G17,-$E26,$E26)+$E26>BQ$5,IFERROR((OFFSET($G16,-$E26,$E26)/(OFFSET($G17,-$E26,$E26))),0),(OFFSET($G16,-$E26,$E26)-SUM($G26:BP26)))) -> 0 | BR26: =IF(OFFSET($G17, -$E26, $E26)="n/a",0,IF(OFFSET($G17,-$E26,$E26)+$E26>BR$5,IFERROR((OFFSET($G16,-$E26,$E26)/(OFFSET($G17,-$E26,$E26))),0),(OFFSET($G16,-$E26,$E26)-SUM($G26:BQ26)))) -> 0 | BS26: =IF(OFFSET($G17, -$E26, $E26)="n/a",0,IF(OFFSET($G17,-$E26,$E26)+$E26>BS$5,IFERROR((OFFSET($G16,-$E26,$E26)/(OFFSET($G17,-$E26,$E26))),0),(OFFSET($G16,-$E26,$E26)-SUM($G26:BR26)))) -> 0 | BT26: =IF(OFFSET($G17, -$E26, $E26)="n/a",0,IF(OFFSET($G17,-$E26,$E26)+$E26>BT$5,IFERROR((OFFSET($G16,-$E26,$E26)/(OFFSET($G17,-$E26,$E26))),0),(OFFSET($G16,-$E26,$E26)-SUM($G26:BS26)))) -> 0 | BU26: =IF(OFFSET($G17, -$E26, $E26)="n/a",0,IF(OFFSET($G17,-$E26,$E26)+$E26>BU$5,IFERROR((OFFSET($G16,-$E26,$E26)/(OFFSET($G17,-$E26,$E26))),0),(OFFSET($G16,-$E26,$E26)-SUM($G26:BT26)))) -> 0 | BV26: =IF(OFFSET($G17, -$E26, $E26)="n/a",0,IF(OFFSET($G17,-$E26,$E26)+$E26>BV$5,IFERROR((OFFSET($G16,-$E26,$E26)/(OFFSET($G17,-$E26,$E26))),0),(OFFSET($G16,-$E26,$E26)-SUM($G26:BU26)))) -> 0 | BW26: =IF(OFFSET($G17, -$E26, $E26)="n/a",0,IF(OFFSET($G17,-$E26,$E26)+$E26>BW$5,IFERROR((OFFSET($G16,-$E26,$E26)/(OFFSET($G17,-$E26,$E26))),0),(OFFSET($G16,-$E26,$E26)-SUM($G26:BV26)))) -> 0 | BX26: =IF(OFFSET($G17, -$E26, $E26)="n/a",0,IF(OFFSET($G17,-$E26,$E26)+$E26>BX$5,IFERROR((OFFSET($G16,-$E26,$E26)/(OFFSET($G17,-$E26,$E26))),0),(OFFSET($G16,-$E26,$E26)-SUM($G26:BW26)))) -> 0 | BY26: =IF(OFFSET($G17, -$E26, $E26)="n/a",0,IF(OFFSET($G17,-$E26,$E26)+$E26>BY$5,IFERROR((OFFSET($G16,-$E26,$E26)/(OFFSET($G17,-$E26,$E26))),0),(OFFSET($G16,-$E26,$E26)-SUM($G26:BX26)))) -> 0 | BZ26: =IF(OFFSET($G17, -$E26, $E26)="n/a",0,IF(OFFSET($G17,-$E26,$E26)+$E26>BZ$5,IFERROR((OFFSET($G16,-$E26,$E26)/(OFFSET($G17,-$E26,$E26))),0),(OFFSET($G16,-$E26,$E26)-SUM($G26:BY26)))) -> 0
